Workbook

Sheet Indtastning
A1: Indtastningsark
A6: Kvæg
A7: Dyretype | B7: Staldtype
A8: Antal producerede dyr i året | B8: Bindestald med grebning | C8: Bindestald med riste | D8: Sengestald med fast gulv | E8: Sengestald, fast drænet gulv med skraber og ajleafløb | F8: Sengestald med spalter (kanal, linespil) | G8: Sengestald med spalter (kanal, bagskyl eller ringkanal) | H8: Dybstrøelse (hele arealet) | I8: Dybstrøelse, lang ædeplads med fast gulv | J8: Dybstrøelse, lang ædeplads med spalter (kanal, linespil) | K8: Dybstrøelse, lang ædeplads med spalter (kanal, bagskyl eller ringkanal) | L8: Dybstrøelse + kort ædeplads med fast gulv | M8: Spaltegulvbokse | S8: Biogas
A9: Malkekvæg, tung race
A10: Malkekvæg, jersey
A11: Småkalv, 0-6 mdr., tung race
A12: Småkalv, 0-6 mdr., jersey
A13: Kvier og stude, 6-27 mdr., tung race
A14: Kvier og stude, 6-27 mdr., jersey
A15: Tyrekalv, 0-6 mdr., tung race
A16: Tyrekalv, 0-6 mdr., jersey
A17: Ungtyre, 6 mdr. til slagtning (440 kg), tung race
A18: Ungtyre, 6 mdr. til slagtning (440 kg), jersey
A19: Ammekvæg (<400 kg)
A20: Ammekvæg( 400-600 kg)
A21: Ammekvæg (>600 kg)
A26: Svin
A27: Dyretype | B27: Staldtype
A28: Antal producerede dyr i året | B28: Løsgående, dybstrøelse + fast gulv | C28: Løsgående, dybstrøelse + spaltegulv | D28: Løsgående, dybstrøelse | E28: Løsgående, delvis spaltegulv | F28: Individuel opstaldning, delvis spaltegulv | G28: Individuel opstaldning, fuldspaltegulv | H28: Individuel opstaldning, fast gulv | I28: Kassestier, delvis spaltegulv | J28: Kassestier, fuldspaltegulv | K28: Fuldspaltegulv | L28: To klimastald, delvis spaltegulv | M28: Fast gulv | N28: Dybstrøelse | O28: Dybstrøelse, opdelt lejeareal | P28: Drænet gulv + spalter (50/50) | Q28: Drænet gulv + spalter (33/67) | R28: Søer på friland | S28: Biogas
A29: Søer
A30: Søer, bidrag fra fareperiode
A31: Smågrise (7-31 kg)
A32: Slagtesvin (31 kg >)
A37: Fjerkræ
A38: Dyretype | B38: Staldtype
A39: Antal producerede dyr i året | B39: Friland, konsumæg | C39: Økologiske, konsumæg | D39: Skrabehøner, konsumæg | E39: Burhøns, konsumæg, bånd, staldgødning | F39: Burhøns, konsumæg, bånd, gylle | G39: Burhøns, konsumæg, gødningskælder | H39: HPR høner (rugeæg), gulvdrift | I39: Slagtekyllinger (25 dyr/m2), produktionstid 30 dage | J39: Slagtekyllinger (25 dyr/m2), produktionstid 32 dage | K39: Slagtekyllinger (25 dyr/m2), produktionstid 35 dage | L39: Slagtekyllinger (25 dyr/m2), produktionstid 40 dage | M39: Slagtekyllinger (25 dyr/m2), produktionstid 45 dage | N39: Skrabekyllinger (10 dyr/m2), produktionstid 56 dage | O39: Økologiske slagtekyllinger | P39: Hønniker, konsum, gulvdrift, 112 dage | Q39: Hønniker, konsum, netdrift, 112 dage | R39: Hønniker, rugeæg, HPR, gulvdrift, 119 dage
A40: Høns
A41: Hønniker
A42: Slagtekyllinger
A47: Får og geder
A48: Dyretype | B48: Staldtype
A49: Antal producerede dyr i året | B49: Dybstrøelse
A50: Får
A51: Malkegeder
A52: Mohairgeder
A53: Kødgeder
A58: Andre dyr
A59: Dyretype | B59: Staldtype
A60: Antal producerede dyr i året | B60: Dybstrøelse | C60: Græs | D60: Bure, fast gødning i gødningsrende | E60: Bure gødningsrende, ugentlig tømning
A61: Heste <300 kg
A62: Heste 300 - <500 kg
A63: Heste 500 - <700 kg
A64: Heste >700 kg
A65: Dådyr
A66: Fasaner
A67: Mink
A73: Brændstofforbrug
A75: Brændstofforbrug i stationære anlæg
A76: Brændselstype | B76: Brændstofforbrug
A77: Flydende brændsler (l)
A78: Faste brændsler (ton)
A79: Naturgas (m3)
A81: Brændstofforbrug i mobile anlæg
A82: Brændselstype | B82: Brændstofforbrug
A83: Benzin (l)
A84: Diesel (l)
A90: Gødningsforbrug
A91: Gødningstype | B91: Gødningsforbrug Kg N
A92: Handelsgødning
A93: Husdyrgødning udlagt på marken
A94: Slam
A95: Andet organisk gødning
A97: Afgrøder
A98: Type afgrøde | B98: Areal i ha
A99: Vinterhvede
A100: Vårhvede
A101: Rug
A102: Vinterbyg
A103: Vårbyg
A104: Havre
A105: Triticale og andet korn til modenhed
A106: Majs til opfodring
A107: Kartofler
A108: Lucerne
A109: Bælgsæd til modenhed
A110: Sukkerroer til fabrik + Foderroer
A111: Korn og bælgsæd til ensilering (helsæd)
A112: Græs- og kløvermark i omdriften + Frø til udsæd
A113: Græsarealer uden for omdriften
A114: Raps i alt + Hør + Anden industrifrø
A115: Samlet | B115: =SUM(B99:B114) -> 0
A117: Halm
A118: Halm bjærget
A120: Jordbunden
A121: Jordtype | B121: Areal dyrket i ha
A122: JB-nr. 1
A123: JB-nr. 2
A124: JB-nr. 3
A125: JB-nr. 4
A126: JB-nr. 5
A127: JB-nr. 6
A128: JB-nr. 7
A129: JB-nr. 8
A130: JB-nr. 9
A131: JB-nr. 10
A132: JB-nr. 11
A133: JB-nr. 12
A134: Tørvejord dyrket med afgrøde
A135: Tørvejord dyrket med græs
A138: Reduktionstiltag
A140: På gården
A141: Tiltag | B141: Ja/nej
A142: Forsuret, svinegylle | D142: =IF(AND(B142="ja",B144="ja")=TRUE,"FEJL man kan ikke forsure og biogasse den samme gylle","") -> 
A143: Forsuret, kvæggylle | D143: =IF(AND(B143="ja",B145="ja")=TRUE,"FEJL man kan ikke forsure og biogasse den samme gylle","") -> 
A144: Biogas, svinegylle
A145: Biogas, kvæggylle
A147: På marken
A148: Tiltag | B148: Ja/nej
A149: Nitrifikationshæmmere
A150: Tiltag | B150: Areal i ha.
A151: Vedvarende græs
A152: Dyrkning af energipil, sandjord
A153: Dyrkning af energipil, lerjord
A154: Dyrkning af energipil, tørvejord
A155: Efterafgrøder på sandjord
A156: Efterafgrøder på lerjord
A157: Mellemafgrøder på sandjord
A158: Mellemafgrøder på lerjord

Sheet Resultatark
A1: Bedriftsregnskab for udledningen af drivhusgasser
A3: Drivhusgasudledning i alt | E3: =F19+F31+F43+F54 -> 0 | F3: ton CO2e
A5: Tabel 1. Udledningen af metan fra fordøjelsen
A6: Dyretype | F6: I alt
F7: ton CO2e
A8: Malkekøer | F8: =IFERROR('CH4 Fordøjelse'!G4*GWP!$B$2,0) -> 0
A9: Tyrekalve (0-½ år) | F9: =IFERROR('CH4 Fordøjelse'!G5*GWP!$B$2,0) -> 0
A10: Tyre (> ½ år) | F10: =IFERROR('CH4 Fordøjelse'!G6*GWP!$B$2,0) -> 0
A11: Kviekalve (0-½ år) | F11: =IFERROR('CH4 Fordøjelse'!G7*GWP!$B$2,0) -> 0
A12: Kvier (> ½ år) | F12: =IFERROR('CH4 Fordøjelse'!G8*GWP!$B$2,0) -> 0
A13: Ammekvæg | F13: =IFERROR('CH4 Fordøjelse'!G9*GWP!$B$2,0) -> 0
A14: Søer | F14: =IFERROR('CH4 Fordøjelse'!G10*GWP!$B$2,0) -> 0
A15: Smågrise | F15: =IFERROR('CH4 Fordøjelse'!G11*GWP!$B$2,0) -> 0
A16: Slagtesvin | F16: =IFERROR('CH4 Fordøjelse'!G12*GWP!$B$2,0) -> 0
A17: Fjerkræ | F17: ='CH4 Fordøjelse'!G17*GWP!B2 -> 0
A18: Andre dyr | F18: =SUM('CH4 Fordøjelse'!G13:G16)*GWP!B2 -> 0
A19: I alt | F19: =SUM(F8:F18) -> 0
A23: Tabel 2. Udledningen af metan og lattergas fra gødningshåndtering
B24: Metan fra gødningshånd-tering | C24: Lattergas fra gødningshånd-tering | D24: Reduktion af udledningen fra gødningshåndtering | F24: I alt
B25: ton CO2e | C25: ton CO2e | D25: ton CO2e | F25: ton CO2e
A26: Kvæggylle | B26: =('CH4 Gødning'!C225+'CH4 Gødning'!B225)*GWP!B2/1000 -> 0 | C26: =IFERROR(('N2O Gødning'!B220+'N2O Gødning'!C220)*GWP!B3/1000,0) -> 0 | F26: =B26+C26+D26+E26 -> 0
A27: Svinegylle | B27: ='CH4 Gødning'!D225*GWP!B2/1000 -> 0 | C27: =IFERROR('N2O Gødning'!D220*GWP!B3/1000,0) -> 0 | F27: =B27+C27+D27+E27 -> 0
A28: Anden gylle | B28: ='CH4 Gødning'!E225*GWP!B2/1000 -> 0 | C28: =IFERROR('N2O Gødning'!E220*GWP!B3/1000,0) -> 0 | F28: 0
A29: Anden gødning | B29: =('CH4 Gødning'!G224+'CH4 Gødning'!G226+'CH4 Gødning'!G227+'CH4 Gødning'!G228)*GWP!B2/1000 -> 0 | C29: =IFERROR((('N2O Gødning'!F219+'N2O Gødning'!F221+'N2O Gødning'!F222+'N2O Gødning'!F223)*GWP!B3/1000),0) -> 0 | F29: =B29+C29+D29+E29 -> 0
A30: Reduktionstiltag | D30: =-SUM(F61:F64) -> 0 | F30: =SUM(B30:E30) -> 0
A31: I alt | B31: =SUM(B26:B30) -> 0 | C31: =SUM(C26:C30) -> 0 | F31: =SUM(F26:F30) -> 0
A34: Tabel 3. Udledning af lattergas fra jorde
A35: Kilde til udledning | F35: I alt
F36: ton CO2e
A37: Handelsgødning | F37: ='N20 Jord'!D4*1000*GWP!$B$3 -> 0
A38: Organisk gødning | F38: =('N20 Jord'!D6+'N20 Jord'!D7+'N20 Jord'!D8+'N20 Jord'!D9)*1000*GWP!$B$3 -> 0
A39: Afgrøderester | F39: ='N20 Jord'!D10*1000*GWP!$B$3 -> 0
A40: Organiske jorde | F40: =('N20 Jord'!D11+'N20 Jord'!D12)*1000*GWP!$B$3 -> 0
A41: Indirekte lattergas | F41: =('N20 Jord'!D14+'N20 Jord'!D15)*1000*GWP!$B$3 -> 0
A42: Reduktionstiltag Landbrugsjorden | F42: =-F66 -> 0
A43: I alt | F43: =SUM(F37:F42) -> 0
A46: Tabel 4. Udledning af CO2 fra afbrænding af fossile brændsler
A47: Brændsel | F47: I alt
F48: ton CO2e
A49: Flydende brændsler i stationære anlæg | F49: ='CO2 Brændsler'!P4 -> 0
A50: Faste brændsler | F50: ='CO2 Brændsler'!P5 -> 0
A51: Gas | F51: ='CO2 Brændsler'!P6 -> 0
A52: Benzin | F52: ='CO2 Brændsler'!P7 -> 0
A53: Diesel | F53: ='CO2 Brændsler'!P8 -> 0
A54: I alt | F54: =SUM(F49:F53) -> 0
A57: Tabel 5. Effekten af reduktionstiltag
A58: Reduktionstiltag | F58: I alt
F59: ton CO2e
A60: På gården | F60: =SUM(F61:F64) -> 0
A61: Forsuret, svinegylle | F61: =Reduktionstiltag!H3 -> 0
A62: Forsuret, kvæggylle | F62: =Reduktionstiltag!H4 -> 0
A63: Biogas, svinegylle | F63: =Reduktionstiltag!H5 -> 0
A64: Biogas, kvæggylle | F64: =Reduktionstiltag!H6 -> 0
A66: På marken | F66: =SUM(F67:F73) -> 0
A67: Nitrifikationshæmmere | F67: =Reduktionstiltag!H10 -> 0
A68: Dyrkning af energipil | F68: =Reduktionstiltag!H7+Reduktionstiltag!H8+Reduktionstiltag!H9+Reduktionstiltag!H11 -> 0
A69: Efterafgrøder på sandjord | F69: =Reduktionstiltag!H12 -> 0
A70: Efterafgrøder på lerjord | F70: =Reduktionstiltag!H13 -> 0
A71: Mellemafgrøder på sandjord | F71: =Reduktionstiltag!H14 -> 0
A72: Mellemafgrøder på lerjord | F72: =Reduktionstiltag!H15 -> 0
A73: Vedvarende græs | F73: =Reduktionstiltag!H16 -> 0
A74: I alt | F74: =F60+F66 -> 0

Sheet CH4 Fordøjelse
A2: Karekteristika | B2: Inputs | C2: Normtal | F2: Emissionsfaktor | G2: Total udledning
B3: Antal dyr | C3: Bruttoenergiindtag | D3: Metankonverteringsrate | E3: Brændværdi af 1 kg CH4 omregnet til MJ | F3: Kg CH4/dyr/år | G3: ton CH4
A4: Malkekøer | B4: =SUM(Indtastning!B9:S10) -> 0 | C4: 393.0990287 | D4: 6 | E4: 55.65 | F4: =C4*(D4/100)*(365/E4) -> 154.6966528 | G4: =B4*F4/1000 -> 0
A5: Tyrekalve (0-½ år) | B5: =SUM(Indtastning!B15:P16) -> 0 | C5: 61.75443736 | D5: 3 | E5: 55.65 | F5: =C5*(D5/100)*(365/E5) -> 12.15114266 | G5: =B5*F5/1000 -> 0
A6: Tyre (> ½ år) | B6: =SUM(Indtastning!B17:P18) -> 0 | C6: 51.14042795 | D6: 6 | E6: 55.65 | F6: =C6*(D6/100)*(365/E6) -> 20.12534361 | G6: 0
A7: Kviekalve (0-½ år) | B7: =SUM(Indtastning!B11:P12) -> 0 | C7: 115.0884957 | D7: 3 | E7: 55.65 | F7: 22.64544525 | G7: 0
A8: Kvier (> ½ år) | B8: =SUM(Indtastning!B13:P14) -> 0 | C8: 130.2389516 | D8: 6 | E8: 55.65 | F8: =C8*(D8/100)*(365/E8) -> 51.25306452 | G8: 0
A9: Ammekvæg | B9: =SUM(Indtastning!B19:P21) -> 0 | C9: 163.5530627 | D9: 6 | E9: 55.65 | F9: 64.36319986 | G9: 0
A10: Søer | B10: =SUM(Indtastning!B29:S29) -> 0 | C10: 72.57205475 | D10: 0.6 | E10: 55.65 | F10: 2.855935308 | G10: 0
A11: Smågrise | B11: =SUM(Indtastning!B31:S31) -> 0 | C11: 2.080394283 | D11: 0.6 | E11: 55.65 | F11: 0.08186996369 | G11: 0
A12: Slagtesvin | B12: =SUM(Indtastning!B32:S32) -> 0 | C12: 9.576948505 | D12: 0.6 | E12: 55.65 | F12: 0.3768826096 | G12: 0
A13: Får | B13: =SUM(Indtastning!B50) -> 0 | C13: 17.44 | D13: 6.5 | E13: 55.65 | F13: =C13*(D13/100)*365/E13 -> 7.435112309 | G13: =F13*B13/1000 -> 0
A14: Dådyr | B14: =SUM(Indtastning!B65:E65) -> 0 | C14: 34.46 | D14: 5 | E14: 55.65 | F14: =C14*(D14/100)*365/E14 -> 11.30089847 | G14: =F14*B14/1000 -> 0
A15: Geder | B15: =SUM(Indtastning!B51:B53) -> 0 | C15: 39.89 | D15: 5 | E15: 55.65 | F15: 13.08162624 | G15: 0
A16: Heste | B16: =SUM(Indtastning!B61:E64) -> 0 | C16: 133.01 | D16: 2.5 | E16: 55.65 | F16: 21.80981581 | G16: 0
A17: Fjerkræ | B17: =SUM(Indtastning!B40:P42,Indtastning!B66:E66) -> 0 | F17: 0.003059584005 | G17: =F17*B17/1000 -> 0
A20: Kilde | C20: NIR Annex 3D-11 og egne beregninger for smågrise og slagtesvin | D20: NIR Tabel 5.6, 5.7 og 5.8 og CRF Tabel 3.As1 for "Andre dyr" | E20: NIR: 383 | F20: Beregning og CRF tabel 3.As1 for fjerkræ

Sheet CH4 Gødning
C1: Karakteristika | F1: Inputs | G1: Normtal | W1: Emissionsfaktor | X1: Totale udledninger
A2: Beskrivelse | B2: Dyrekategori | C2: Dyretype Dansk betegnelse | D2: Staldtype (Engelsk) | E2: Staldtype (Dansk) | F2: Number of animals | G2: Gødningstype | H2: Gødningstype (M/S) | I2: Ton Gødning pr dyr (m) | J2: Tørstof pct. | K2: Strøelsestype | L2: Gødningstype (M/S)3 | M2: Ton Gødning pr dyr (s) | N2: Tørstof pct. | O2: Dage på græs (g) | P2: Dage på græs2 | Q2: VS_housing | R2: VSHousing | S2: VS_grazing | T2: VSGrazing | U2: MCF | V2: B0 | W2: CH4 pr dyr | X2: Total amount of CH4
A3: Dairy cattle | B3: Malkekvæg | C3: 1 årsko, tung race | D3: Tethered with urine and solid manure | E3: Bindestald med grebning | F3: =IFERROR(HLOOKUP('CH4 Gødning'!$E3,Indtastning!$B$8:$P$9,2,FALSE),0) -> 0 | G3: Staldgødning | H3: M | I3: 11.54 | J3: 0.2 | K3: Strøelse | L3: S | M3: =(1.2*365)/1000 -> 0.438 | N3: 0.85 | O3: 18 | P3: 18 | Q3: =(I3*1000)/365*J3*(365-O3)*0.8+(M3*1000)/365*N3*(365-O3)*(1-0.045/100) -> 2109.125385 | R3: 2044.454125 | S3: =(I3*1000)/365*J3*0.8*P3 -> 91.05534247 | T3: 88.51857534 | U3: 2 | V3: 0.24 | W3: =(R3*U3/100*0.67*V3)+(T3*U3/100*0.67*V3) -> 6.859640203 | X3: =F3*W3 -> 0
A4: Dairy cattle | B4: Malkekvæg | C4: 1 årsko, tung race | D4: Tethered with urine and solid manure | E4: Bindestald med grebning | F4: =IFERROR(HLOOKUP('CH4 Gødning'!$E4,Indtastning!$B$8:$P$9,2,FALSE),0) -> 0 | G4: Ajle (liquid manure/urin) | H4: M | I4: 14.95 | J4: 0.034 | O4: 18 | P4: 18 | Q4: =(I4*1000)/365*J4*(365-O4)*0.8+(M4*1000)/365*N4*(365-O4)*(1-0.045/100) -> 386.5865205 | R4: 341.8663014 | S4: =(I4*1000)/365*J4*0.8*P4 -> 20.05347945 | T4: 17.73369863 | U4: 6.97 | V4: 0.24 | W4: 4.030310496 | X4: 0
A5: Dairy cattle | B5: Malkekvæg | C5: 1 årsko, tung race | D5: Tethered with slurry | E5: Bindestald med riste | F5: =IFERROR(HLOOKUP('CH4 Gødning'!$E5,Indtastning!$B$8:$P$9,2,FALSE),0) -> 0 | G5: Gylle | H5: M | I5: 30.61 | J5: 0.087 | K5: Strøelse | L5: S | M5: =1.2*365/1000 -> 0.438 | N5: 0.85 | O5: 18 | P5: 18 | Q5: 2379.173143 | R5: 2387.059679 | S5: 105.0635836 | T5: 106.2906214 | U5: 6.97 | V5: 0.24 | W5: 27.94487176 | X5: 0
A6: Dairy cattle | B6: Malkekvæg | C6: 1 årsko, tung race | D6: Loose-holding with beds, solid floor | E6: Sengestald med fast gulv | F6: =IFERROR(HLOOKUP('CH4 Gødning'!$E6,Indtastning!$B$8:$P$9,2,FALSE),0) -> 0 | G6: Gylle | H6: M | I6: 30.5 | J6: 0.08 | K6: Strøelse | L6: S | M6: =0.4*365/1000 -> 0.146 | N6: 0.85 | O6: 18 | P6: 18 | Q6: 1973.663895 | R6: 2161.717879 | S6: 96.2630137 | T6: 106.2906214 | U6: 6.97 | V6: 0.24 | W6: 25.41929495 | X6: 0
A7: Dairy cattle | B7: Malkekvæg | C7: 1 årsko, tung race | D7: Loose-holding with beds, slatted floor | E7: Sengestald med spalter (kanal, linespil) | F7: =IFERROR(HLOOKUP('CH4 Gødning'!$E7,Indtastning!$B$8:$P$9,2,FALSE),0) -> 0 | G7: Gylle | H7: M | I7: 30.5 | J7: 0.08 | K7: Strøelse | L7: S | M7: =0.4*365/1000 -> 0.146 | N7: 0.85 | O7: 18 | P7: 18 | Q7: 1973.663895 | R7: 2161.717879 | S7: 96.2630137 | T7: 106.2906214 | U7: 6.97 | V7: 0.24 | W7: 25.41929495 | X7: 0
A8: Dairy cattle | B8: Malkekvæg | C8: 1 årsko, tung race | D8: Loose-holding with beds, slatted floor, scrape | E8: Sengestald med spalter (kanal, bagskyl eller ringkanal) | F8: =IFERROR(HLOOKUP('CH4 Gødning'!$E8,Indtastning!$B$8:$P$9,2,FALSE),0) -> 0 | G8: Gylle | H8: M | I8: 30.5 | J8: 0.08 | K8: Strøelse | L8: S | M8: 0.146 | N8: 0.85 | O8: 18 | P8: 18 | Q8: 1973.663895 | R8: 2161.717879 | S8: 96.2630137 | T8: 106.2906214 | U8: 6.97 | V8: 0.24 | W8: 25.41929495 | X8: 0
A9: Dairy cattle | B9: Malkekvæg | C9: 1 årsko, tung race | D9: Loose-holding with beds, drained floor | E9: Sengestald, fast drænet gulv med skraber og ajleafløb | F9: =IFERROR(HLOOKUP('CH4 Gødning'!$E9,Indtastning!$B$8:$P$9,2,FALSE),0) -> 0 | G9: Gylle | H9: M | I9: 30.5 | J9: 0.08 | K9: Strøelse | L9: S | M9: 0.146 | N9: 0.85 | O9: 18 | P9: 18 | Q9: 1973.663895 | R9: 2161.717879 | S9: 96.2630137 | T9: 106.2906214 | U9: 6.97 | V9: 0.24 | W9: 25.41929495 | X9: 0
A10: Dairy cattle | B10: Malkekvæg | C10: 1 årsko, tung race | D10: Deep litter (all) | E10: Dybstrøelse (hele arealet) | F10: =IFERROR(HLOOKUP('CH4 Gødning'!$E10,Indtastning!$B$8:$P$9,2,FALSE),0) -> 0 | K10: Dybstrøelse | L10: S | M10: 15.92 | N10: 0.3 | O10: 18 | P10: 18 | Q10: 4538.428021 | R10: 5429.173979 | S10: 0 | T10: 106.2906214 | U10: 17 | V10: 0.24 | W10: 151.3174603 | X10: 0
A11: Dairy cattle | B11: Malkekvæg | C11: 1 årsko, tung race | D11: Deep litter, long eating space, solid floor | E11: Dybstrøelse, lang ædeplads med fast gulv | F11: =IFERROR(HLOOKUP('CH4 Gødning'!$E11,Indtastning!$B$8:$P$9,2,FALSE),0) -> 0 | G11: Gylle | H11: M | I11: 13.39 | J11: 0.069 | O11: 18 | P11: 18 | Q11: 702.6778521 | R11: 819.2987529 | S11: 36.45014795 | T11: 42.49964712 | U11: 6.97 | V11: 0.24 | W11: 9.658829636 | X11: 0
A12: Dairy cattle | B12: Malkekvæg | C12: 1 årsko, tung race | D12: Deep litter, long eating space, solid floor | E12: Dybstrøelse, lang ædeplads med fast gulv | F12: =IFERROR(HLOOKUP('CH4 Gødning'!$E12,Indtastning!$B$8:$P$9,2,FALSE),0) -> 0 | K12: Dybstrøelse | L12: S | M12: 12.53 | N12: 0.287 | O12: 18 | P12: 18 | Q12: 3417.229144 | R12: 4046.520726 | S12: 0 | T12: 63.79097425 | U12: 17 | V12: 0.24 | W12: 112.3594806 | X12: 0
A13: Dairy cattle | B13: Malkekvæg | C13: 1 årsko, tung race | D13: Deep litter, slatted floor | E13: Dybstrøelse, lang ædeplads med spalter (kanal, linespil) | F13: =IFERROR(HLOOKUP('CH4 Gødning'!$E13,Indtastning!$B$8:$P$9,2,FALSE),0) -> 0 | G13: Gylle | H13: M | I13: 13.39 | J13: 0.069 | O13: 18 | P13: 18 | Q13: 702.6778521 | R13: 819.2987529 | S13: 36.45014795 | T13: 42.49964712 | U13: 6.97 | V13: 0.24 | W13: 9.658829636 | X13: 0
A14: Dairy cattle | B14: Malkekvæg | C14: 1 årsko, tung race | D14: Deep litter, slatted floor | E14: Dybstrøelse, lang ædeplads med spalter (kanal, linespil) | F14: =IFERROR(HLOOKUP('CH4 Gødning'!$E14,Indtastning!$B$8:$P$9,2,FALSE),0) -> 0 | K14: Dybstrøelse | L14: S | M14: 12.53 | N14: 0.287 | O14: 18 | P14: 18 | Q14: 3417.229144 | R14: 4046.520726 | S14: 0 | T14: 63.79097425 | U14: 17 | V14: 0.24 | W14: 112.3594806 | X14: 0
A15: Dairy cattle | B15: Malkekvæg | C15: 1 årsko, tung race | D15: Deep litter, slatted floor, scrape | E15: Dybstrøelse, lang ædeplads med spalter (kanal, bagskyl eller ringkanal) | F15: =IFERROR(HLOOKUP('CH4 Gødning'!$E15,Indtastning!$B$8:$P$9,2,FALSE),0) -> 0 | G15: Gylle | H15: M | I15: 13.39 | J15: 0.069 | O15: 18 | P15: 18 | Q15: 702.6778521 | R15: 819.2987529 | S15: 36.45014795 | T15: 42.49964712 | U15: 6.97 | V15: 0.24 | W15: 9.658829636 | X15: 0
A16: Dairy cattle | B16: Malkekvæg | C16: 1 årsko, tung race | D16: Deep litter, slatted floor, scrape | E16: Dybstrøelse, lang ædeplads med spalter (kanal, bagskyl eller ringkanal) | F16: =IFERROR(HLOOKUP('CH4 Gødning'!$E16,Indtastning!$B$8:$P$9,2,FALSE),0) -> 0 | K16: Dybstrøelse | L16: S | M16: 12.53 | N16: 0.287 | O16: 18 | P16: 18 | Q16: 3417.229144 | R16: 4046.520726 | S16: 0 | T16: 63.79097425 | U16: 17 | V16: 0.24 | W16: 112.3594806 | X16: 0
A17: Dairy cattle | B17: Malkekvæg | C17: 1 årsko, tung race | D17: Biogas | E17: Biogas | F17: =IFERROR(HLOOKUP('CH4 Gødning'!$E17,Indtastning!$B$8:$S$9,2,FALSE),0) -> 0 | O17: 18 | P17: 18 | Q17: 0 | R17: 2161.717879 | S17: 0 | T17: 106.2906214 | U17: 5.06 | V17: 0.24 | W17: 18.4536058 | X17: 0
A18: Dairy cattle, jersey | B18: Malkekvæg | C18: 1 årsko, jersey | D18: Tethered with urine and solid manure | E18: Bindestald med grebning | F18: =IFERROR(HLOOKUP('CH4 Gødning'!$E18,Indtastning!$A$8:$P$21,3,FALSE),0) -> 0 | G18: Staldgødning | H18: M | I18: 9.62 | J18: 0.2 | O18: 18 | P18: 18 | Q18: 1463.294247 | R18: 1694.471113 | S18: 75.90575342 | T18: 73.28613699 | U18: 2 | V18: 0.24 | W18: 5.685107316 | X18: 0
A19: Dairy cattle, jersey | B19: Malkekvæg | C19: 1 årsko, jersey | D19: Tethered with urine and solid manure | E19: Bindestald med grebning | F19: =IFERROR(HLOOKUP('CH4 Gødning'!$E19,Indtastning!$A$8:$P$21,3,FALSE),0) -> 0 | G19: Ajle (liquid manure/urin) | H19: M | I19: 12.46 | J19: 0.034 | O19: 18 | P19: 18 | Q19: 322.1985315 | R19: 282.9238356 | S19: 16.71346849 | T19: 14.67616438 | U19: 6.97 | V19: 0.24 | W19: 3.335429376 | X19: 0
A20: Dairy cattle, jersey | B20: Malkekvæg | C20: 1 årsko, jersey | D20: Tethered with slurry | E20: Bindestald med riste | F20: =IFERROR(HLOOKUP('CH4 Gødning'!$E20,Indtastning!$A$8:$P$21,3,FALSE),0) -> 0 | G20: Gylle | H20: M | I20: 25.51 | J20: 0.087 | O20: 18 | P20: 18 | Q20: 1687.937293 | R20: 1977.081603 | S20: 87.55870685 | T20: 87.94604712 | U20: 6.97 | V20: 0.24 | W20: 23.14433429 | X20: 0
A21: Dairy cattle, jersey | B21: Malkekvæg | C21: 1 årsko, jersey | D21: Loose-holding with beds, solid floor | E21: Sengestald med fast gulv | F21: =IFERROR(HLOOKUP('CH4 Gødning'!$E21,Indtastning!$A$8:$P$21,3,FALSE),0) -> 0 | G21: Gylle | H21: M | I21: 25.29 | J21: 0.08 | O21: 18 | P21: 18 | Q21: 1538.740603 | R21: 1779.907528 | S21: 79.81939726 | T21: 87.94604712 | U21: 6.97 | V21: 0.24 | W21: 20.93445458 | X21: 0
A22: Dairy cattle, jersey | B22: Malkekvæg | C22: 1 årsko, jersey | D22: Loose-holding with beds, slatted floor | E22: Sengestald med spalter (kanal, linespil) | F22: =IFERROR(HLOOKUP('CH4 Gødning'!$E22,Indtastning!$A$8:$P$21,3,FALSE),0) -> 0 | G22: Gylle | H22: M | I22: 25.29 | J22: 0.08 | O22: 18 | P22: 18 | Q22: 1538.740603 | R22: 1779.907528 | S22: 79.81939726 | T22: 87.94604712 | U22: 6.97 | V22: 0.24 | W22: 20.93445458 | X22: 0
A23: Dairy cattle, jersey | B23: Malkekvæg | C23: 1 årsko, jersey | D23: Loose-holding with beds, slatted floor, scrape | E23: Sengestald med spalter (kanal, bagskyl eller ringkanal) | F23: =IFERROR(HLOOKUP('CH4 Gødning'!$E23,Indtastning!$A$8:$P$21,3,FALSE),0) -> 0 | G23: Gylle | H23: M | I23: 25.29 | J23: 0.08 | O23: 18 | P23: 18 | Q23: 1538.740603 | R23: 1779.907528 | S23: 79.81939726 | T23: 87.94604712 | U23: 6.97 | V23: 0.24 | W23: 20.93445458 | X23: 0
A24: Dairy cattle, jersey | B24: Malkekvæg | C24: 1 årsko, jersey | D24: Loose-holding with beds, drained floor | E24: Sengestald, fast drænet gulv med skraber og ajleafløb | F24: =IFERROR(HLOOKUP('CH4 Gødning'!$E24,Indtastning!$A$8:$P$21,3,FALSE),0) -> 0 | G24: Gylle | H24: M | I24: 25.29 | J24: 0.08 | O24: 18 | P24: 18 | Q24: 1538.740603 | R24: 1779.907528 | S24: 79.81939726 | T24: 87.94604712 | U24: 6.97 | V24: 0.24 | W24: 20.93445458 | X24: 0
A25: Dairy cattle, jersey | B25: Malkekvæg | C25: 1 årsko, jersey | D25: Deep litter (all) | E25: Dybstrøelse (hele arealet) | F25: =IFERROR(HLOOKUP('CH4 Gødning'!$E25,Indtastning!$A$8:$P$21,3,FALSE),0) -> 0 | K25: Dybstrøelse | L25: S | M25: 13.26 | N25: 0.3 | O25: 18 | P25: 18 | Q25: 3780.122836 | R25: 4512.176853 | S25: 0 | T25: 87.94604712 | U25: 17 | V25: 0.24 | W25: 125.7489596 | X25: 0
A26: Dairy cattle, jersey | B26: Malkekvæg | C26: 1 årsko, jersey | D26: Deep litter, long eating space, solid floor | E26: Dybstrøelse, lang ædeplads med fast gulv | F26: =IFERROR(HLOOKUP('CH4 Gødning'!$E26,Indtastning!$A$8:$P$21,3,FALSE),0) -> 0 | G26: Gylle | H26: M | I26: 11.16 | J26: 0.069 | O26: 18 | P26: 18 | Q26: 585.6523397 | R26: 678.4817797 | S26: 30.37966027 | T26: 35.19502027 | U26: 6.97 | V26: 0.24 | W26: 7.998718292 | X26: 0
A27: Dairy cattle, jersey | B27: Malkekvæg | C27: 1 årsko, jersey | D27: Deep litter, long eating space, solid floor | E27: Dybstrøelse, lang ædeplads med fast gulv | F27: =IFERROR(HLOOKUP('CH4 Gødning'!$E27,Indtastning!$A$8:$P$21,3,FALSE),0) -> 0 | K27: Dybstrøelse | L27: S | M27: 10.14 | N27: 0.287 | O27: 18 | P27: 18 | Q27: 2765.419275 | R27: 3271.14067 | S27: 0 | T27: 52.79253041 | U27: 17 | V27: 0.24 | W27: 90.86303796 | X27: 0
A28: Dairy cattle, jersey | B28: Malkekvæg | C28: 1 årsko, jersey | D28: Deep litter, slatted floor | E28: Dybstrøelse, lang ædeplads med spalter (kanal, linespil) | F28: =IFERROR(HLOOKUP('CH4 Gødning'!$E28,Indtastning!$A$8:$P$21,3,FALSE),0) -> 0 | G28: Gylle | H28: M | I28: 11.16 | J28: 0.069 | O28: 18 | P28: 18 | Q28: 585.6523397 | R28: 678.4817797 | S28: 30.37966027 | T28: 35.19502027 | U28: 6.97 | V28: 0.24 | W28: 7.998718292 | X28: 0
A29: Dairy cattle, jersey | B29: Malkekvæg | C29: 1 årsko, jersey | D29: Deep litter, slatted floor | E29: Dybstrøelse, lang ædeplads med spalter (kanal, linespil) | F29: =IFERROR(HLOOKUP('CH4 Gødning'!$E29,Indtastning!$A$8:$P$21,3,FALSE),0) -> 0 | K29: Dybstrøelse | L29: S | M29: 10.14 | N29: 0.287 | O29: 18 | P29: 18 | Q29: 2765.419275 | R29: 3271.14067 | S29: 0 | T29: 52.79253041 | U29: 17 | V29: 0.24 | W29: 90.86303796 | X29: 0
A30: Dairy cattle, jersey | B30: Malkekvæg | C30: 1 årsko, jersey | D30: Deep litter, slatted floor, scrape | E30: Dybstrøelse, lang ædeplads med spalter (kanal, bagskyl eller ringkanal) | F30: =IFERROR(HLOOKUP('CH4 Gødning'!$E30,Indtastning!$A$8:$P$21,3,FALSE),0) -> 0 | G30: Gylle | H30: M | I30: 11.16 | J30: 0.069 | O30: 18 | P30: 18 | Q30: 585.6523397 | R30: 678.4817797 | S30: 30.37966027 | T30: 35.19502027 | U30: 6.97 | V30: 0.24 | W30: 7.998718292 | X30: 0
A31: Dairy cattle, jersey | B31: Malkekvæg | C31: 1 årsko, jersey | D31: Deep litter, slatted floor, scrape | E31: Dybstrøelse, lang ædeplads med spalter (kanal, bagskyl eller ringkanal) | F31: =IFERROR(HLOOKUP('CH4 Gødning'!$E31,Indtastning!$A$8:$P$21,3,FALSE),0) -> 0 | K31: Dybstrøelse | L31: S | M31: 10.14 | N31: 0.287 | O31: 18 | P31: 18 | Q31: 2765.419275 | R31: 3271.14067 | S31: 0 | T31: 52.79253041 | U31: 17 | V31: 0.24 | W31: 90.86303796 | X31: 0
A32: Heifer calves, 0-6 mth. | B32: Andet kvæg | C32: Årsopdræt, 0-6 mdr., småkalv, tung race. | D32: Deep litter (boxes) | E32: Dybstrøelse (hele arealet) | F32: =IFERROR(HLOOKUP('CH4 Gødning'!$E32,Indtastning!$A$8:$P$21,4,FALSE),0) -> 0 | K32: Dybstrøelse | L32: S | M32: 1.89 | N32: 0.3 | Q32: 566.74485 | R32: 676.657125 | S32: 0 | U32: 3 | V32: 0.18 | W32: 2.448145478 | X32: 0
A33: Heifer calves, 0-6 mth. | B33: Andet kvæg | C33: Årsopdræt, 0-6 mdr., småkalv, tung race. | D33: Deep litter, solid floor | E33: Dybstrøelse + kort ædeplads med fast gulv | F33: =IFERROR(HLOOKUP('CH4 Gødning'!$E33,Indtastning!$A$8:$P$21,4,FALSE),0) -> 0 | K33: Dybstrøelse | L33: S | M33: 1.89 | N33: 0.3 | Q33: 566.74485 | R33: 676.657125 | S33: 0 | U33: 3 | V33: 0.18 | W33: 2.448145478 | X33: 0
A34: Heifer, 6 mth.-calving | B34: Andet kvæg | C34: Årsopdræt 6 mdr. til kælvning (27 mdr.), kvier og stude, tung race | D34: Slatted floor-boxes | E34: Spaltegulvbokse | F34: =IFERROR(HLOOKUP('CH4 Gødning'!$E34,Indtastning!$A$8:$P$21,6,FALSE),0) -> 0 | G34: Gylle | H34: M | I34: 7.28 | J34: 0.1 | O34: 18 | P34: 18 | Q34: 553.6789041 | R34: 435.1035616 | S34: 28.72109589 | T34: 246.4964384 | U34: 6.97 | V34: 0.18 | W34: 5.729406912 | X34: 0
A35: Heifer, 6 mth.-calving | B35: Andet kvæg | C35: Årsopdræt 6 mdr. til kælvning (27 mdr.), kvier og stude, tung race | D35: Tethered with urine and solid manure | E35: Bindestald med grebning | F35: =IFERROR(HLOOKUP('CH4 Gødning'!$E35,Indtastning!$A$8:$P$21,6,FALSE),0) -> 0 | G35: Staldgødning | H35: M | I35: 4.51 | J35: 0.182 | K35: Strøelse | L35: S | M35: =0.75*365/1000 -> 0.27375 | N35: 0.85 | O35: 18 | P35: 18 | Q35: 845.3859188 | R35: 540.7161832 | S35: 32.38303562 | T35: 218.7221918 | U35: 2 | V35: 0.18 | W35: =(R35*U35/100*0.67*V35)+(T35*U35/100*0.67*V35) -> 1.83176536 | X35: =F35*W35 -> 0
A36: Heifer, 6 mth.-calving | B36: Andet kvæg | C36: Årsopdræt 6 mdr. til kælvning (27 mdr.), kvier og stude, tung race | D36: Tethered with urine and solid manure | E36: Bindestald med grebning | F36: =IFERROR(HLOOKUP('CH4 Gødning'!$E36,Indtastning!$A$8:$P$21,6,FALSE),0) -> 0 | G36: Ajle (liquid manure/urin) | H36: M | I36: 3.17 | J36: 0.034 | O36: 18 | P36: 18 | Q36: 81.97185753 | R36: 48.25972603 | S36: 4.252142466 | T36: 27.34027397 | U36: 6.97 | V36: 0.18 | W36: 0.635479992 | X36: 0
A37: Heifer, 6 mth.-calving | B37: Andet kvæg | C37: Årsopdræt 6 mdr. til kælvning (27 mdr.), kvier og stude, tung race | D37: Tethered with slurry | E37: Bindestald med riste | F37: =IFERROR(HLOOKUP('CH4 Gødning'!$E37,Indtastning!$A$8:$P$21,6,FALSE),0) -> 0 | G37: Gylle | H37: M | I37: 7.22 | J37: 0.123 | K37: Strøelse | L37: S | M37: =0.75*365/1000 -> 0.27375 | N37: 0.85 | O37: 18 | P37: 18 | Q37: 896.5251626 | R37: 589.7419366 | S37: 35.03579178 | T37: 246.4964384 | U37: 6.97 | V37: 0.18 | W37: 7.029269257 | X37: 0
A38: Heifer, 6 mth.-calving | B38: Andet kvæg | C38: Årsopdræt 6 mdr. til kælvning (27 mdr.), kvier og stude, tung race | D38: Loose-holding with beds, solid floor | E38: Sengestald med fast gulv | F38: =IFERROR(HLOOKUP('CH4 Gødning'!$E38,Indtastning!$A$8:$P$21,6,FALSE),0) -> 0 | G38: Gylle | H38: M | I38: 6.44 | J38: 0.123 | K38: Strøelse | L38: S | M38: =0.3*365/1000 -> 0.1095 | N38: 0.85 | O38: 18 | P38: 18 | Q38: 690.8904201 | R38: 496.9589116 | S38: 31.25076164 | T38: 246.4964384 | U38: 6.97 | V38: 0.18 | W38: 6.24935185 | X38: 0
A39: Heifer, 6 mth.-calving | B39: Andet kvæg | C39: Årsopdræt 6 mdr. til kælvning (27 mdr.), kvier og stude, tung race | D39: Loose-holding with beds, slatted floor | E39: Sengestald med spalter (kanal, linespil) | F39: =IFERROR(HLOOKUP('CH4 Gødning'!$E39,Indtastning!$A$8:$P$21,6,FALSE),0) -> 0 | G39: Gylle | H39: M | I39: 6.44 | J39: 0.123 | K39: Strøelse | L39: S | M39: =0.3*365/1000 -> 0.1095 | N39: 0.85 | O39: 18 | P39: 18 | Q39: 690.8904201 | R39: 496.9589116 | S39: 31.25076164 | T39: 246.4964384 | U39: 6.97 | V39: 0.18 | W39: 6.24935185 | X39: 0
A40: Heifer, 6 mth.-calving | B40: Andet kvæg | C40: Årsopdræt 6 mdr. til kælvning (27 mdr.), kvier og stude, tung race | D40: Loose-holding with beds, slatted floor, scrape | E40: Sengestald med spalter (kanal, bagskyl eller ringkanal) | F40: =IFERROR(HLOOKUP('CH4 Gødning'!$E40,Indtastning!$A$8:$P$21,6,FALSE),0) -> 0 | G40: Gylle | H40: M | I40: 6.44 | J40: 0.123 | K40: Strøelse | L40: S | M40: 0.1095 | N40: 0.85 | O40: 18 | P40: 18 | Q40: 690.8904201 | R40: 496.9589116 | S40: 31.25076164 | T40: 246.4964384 | U40: 6.97 | V40: 0.18 | W40: 6.24935185 | X40: 0
A41: Heifer, 6 mth.-calving | B41: Andet kvæg | C41: Årsopdræt 6 mdr. til kælvning (27 mdr.), kvier og stude, tung race | D41: Loose-holding with beds, solid floor with tilt | E41: Sengestald, fast drænet gulv med skraber og ajleafløb | F41: =IFERROR(HLOOKUP('CH4 Gødning'!$E41,Indtastning!$A$8:$P$21,6,FALSE),0) -> 0 | G41: Gylle | H41: M | I41: 6.44 | J41: 0.123 | K41: Strøelse | L41: S | M41: 0.1095 | N41: 0.85 | O41: 18 | P41: 18 | Q41: 690.8904201 | R41: 496.9589116 | S41: 31.25076164 | T41: 246.4964384 | U41: 6.97 | V41: 0.18 | W41: 6.24935185 | X41: 0
A42: Heifer, 6 mth.-calving | B42: Andet kvæg | C42: Årsopdræt 6 mdr. til kælvning (27 mdr.), kvier og stude, tung race | D42: Deep litter (all) | E42: Dybstrøelse (hele arealet) | F42: =IFERROR(HLOOKUP('CH4 Gødning'!$E42,Indtastning!$A$8:$P$21,6,FALSE),0) -> 0 | K42: Dybstrøelse | L42: S | M42: 5.52 | N42: 0.3 | O42: 18 | P42: 18 | Q42: 1573.625796 | R42: 1672.210562 | S42: 0 | T42: 246.4964384 | U42: 17 | V42: 0.18 | W42: 39.33733091 | X42: 0
A43: Heifer, 6 mth.-calving | B43: Andet kvæg | C43: Årsopdræt 6 mdr. til kælvning (27 mdr.), kvier og stude, tung race | D43: Deep litter, long eating space, solid floor | E43: Dybstrøelse, lang ædeplads med fast gulv | F43: =IFERROR(HLOOKUP('CH4 Gødning'!$E43,Indtastning!$A$8:$P$21,6,FALSE),0) -> 0 | G43: Gylle | H43: M | I43: 2.65 | J43: 0.11 | O43: 18 | P43: 18 | Q43: 221.699726 | R43: 173.8882192 | S43: 11.50027397 | T43: 98.51178082 | U43: 6.97 | V43: 0.18 | W43: 2.289745368 | X43: 0
A44: Heifer, 6 mth.-calving | B44: Andet kvæg | C44: Årsopdræt 6 mdr. til kælvning (27 mdr.), kvier og stude, tung race | D44: Deep litter, long eating space, solid floor | E44: Dybstrøelse, lang ædeplads med fast gulv | F44: =IFERROR(HLOOKUP('CH4 Gødning'!$E44,Indtastning!$A$8:$P$21,6,FALSE),0) -> 0 | K44: Dybstrøelse | L44: S | M44: 4.2 | N44: 0.3 | O44: 18 | P44: 18 | Q44: 1197.323975 | R44: 1292.137842 | S44: 0 | T44: 147.9846575 | U44: 17 | V44: 0.18 | W44: 29.52539149 | X44: 0
A45: Heifer, 6 mth.-calving | B45: Andet kvæg | C45: Årsopdræt 6 mdr. til kælvning (27 mdr.), kvier og stude, tung race | D45: Deep litter, solid floor | E45: Dybstrøelse + kort ædeplads med fast gulv | F45: =IFERROR(HLOOKUP('CH4 Gødning'!$E45,Indtastning!$A$8:$P$21,6,FALSE),0) -> 0 | K45: Dybstrøelse | L45: S | M45: 4.88 | N45: 0.3 | O45: 18 | P45: 18 | Q45: 1391.176428 | R45: 1466.026062 | S45: 0 | T45: 246.4964384 | U45: 17 | V45: 0.18 | W45: 35.1101363 | X45: 0
A46: Heifer, 6 mth.-calving | B46: Andet kvæg | C46: Årsopdræt 6 mdr. til kælvning (27 mdr.), kvier og stude, tung race | D46: Deep litter, slatted floor | E46: Dybstrøelse, lang ædeplads med spalter (kanal, linespil) | F46: =IFERROR(HLOOKUP('CH4 Gødning'!$E46,Indtastning!$A$8:$P$21,6,FALSE),0) -> 0 | G46: Gylle | H46: M | I46: 2.65 | J46: 0.11 | O46: 18 | P46: 18 | Q46: 221.699726 | R46: 173.8882192 | S46: 11.50027397 | T46: 98.51178082 | U46: 6.97 | V46: 0.18 | W46: 2.289745368 | X46: 0
A47: Heifer, 6 mth.-calving | B47: Andet kvæg | C47: Årsopdræt 6 mdr. til kælvning (27 mdr.), kvier og stude, tung race | D47: Deep litter, slatted floor | E47: Dybstrøelse, lang ædeplads med spalter (kanal, linespil) | F47: =IFERROR(HLOOKUP('CH4 Gødning'!$E47,Indtastning!$A$8:$P$21,6,FALSE),0) -> 0 | K47: Dybstrøelse | L47: S | M47: 4.2 | N47: 0.3 | O47: 18 | P47: 18 | Q47: 1197.323975 | R47: 1292.137842 | S47: 0 | T47: 147.9846575 | U47: 17 | V47: 0.18 | W47: 29.52539149 | X47: 0
A48: Heifer, 6 mth.-calving | B48: Andet kvæg | C48: Årsopdræt 6 mdr. til kælvning (27 mdr.), kvier og stude, tung race | D48: Deep litter, slatted floor, scrape | E48: Dybstrøelse, lang ædeplads med spalter (kanal, bagskyl eller ringkanal) | F48: =IFERROR(HLOOKUP('CH4 Gødning'!$E48,Indtastning!$A$8:$P$21,6,FALSE),0) -> 0 | G48: Gylle | H48: M | I48: 2.65 | J48: 0.11 | O48: 18 | P48: 18 | Q48: 221.699726 | R48: 173.8882192 | S48: 11.50027397 | T48: 246.4964384 | U48: 6.97 | V48: 0.18 | W48: 3.533677762 | X48: 0
A49: Heifer, 6 mth.-calving | B49: Andet kvæg | C49: Årsopdræt 6 mdr. til kælvning (27 mdr.), kvier og stude, tung race | D49: Deep litter, slatted floor, scrape | E49: Dybstrøelse, lang ædeplads med spalter (kanal, bagskyl eller ringkanal) | F49: =IFERROR(HLOOKUP('CH4 Gødning'!$E49,Indtastning!$A$8:$P$21,6,FALSE),0) -> 0 | K49: Dybstrøelse | L49: S | M49: 4.2 | N49: 0.3 | O49: 18 | P49: 18 | Q49: 1197.323975 | R49: 1292.137842 | S49: 0 | T49: 74.87123288 | U49: 17 | V49: 0.18 | W49: 28.02642006 | X49: 0
A50: Heifer calves, 0-6 mth., jersey | B50: Andet kvæg | C50: Årsopdræt, 0-6 mdr., småkalv, jersey. | D50: Deep litter (boxes) | E50: Dybstrøelse (hele arealet) | F50: =IFERROR(HLOOKUP('CH4 Gødning'!$E50,Indtastning!$A$8:$P$21,5,FALSE),0) -> 0 | K50: Dybstrøelse | L50: S | M50: 1.48 | N50: 0.3 | Q50: 443.8002 | R50: 529.2425 | S50: 0 | U50: 3 | V50: 0.18 | W50: 1.914799365 | X50: 0
A51: Heifer calves, 0-6 mth., jersey | B51: Andet kvæg | C51: Årsopdræt, 0-6 mdr., småkalv, jersey. | D51: Deep litter, solid floor | E51: Dybstrøelse + kort ædeplads med fast gulv | F51: =IFERROR(HLOOKUP('CH4 Gødning'!$E51,Indtastning!$A$8:$P$21,5,FALSE),0) -> 0 | K51: Dybstrøelse | L51: S | M51: 1.48 | N51: 0.3 | Q51: 443.8002 | R51: 529.2425 | S51: 0 | U51: 6.97 | V51: 0.18 | W51: 4.448717191 | X51: 0
A52: Heifer, 6 mth.-calving, jersey | B52: Andet kvæg | C52: Årsopdræt 6 mdr. til kælvning (27 mdr.), kvier og stude, jersey | D52: Slatted floor-boxes | E52: Spaltegulvbokse | F52: =IFERROR(HLOOKUP('CH4 Gødning'!$E52,Indtastning!$A$8:$P$21,7,FALSE),0) -> 0 | G52: Gylle | H52: M | I52: 5.46 | J52: 0.1 | P52: 132 | Q52: 436.8 | R52: 326.3276712 | S52: 157.9660274 | T52: 184.8723288 | U52: 6.97 | V52: 0.18 | W52: 4.297055184 | X52: 0
A53: Heifer, 6 mth.-calving, jersey | B53: Andet kvæg | C53: Årsopdræt 6 mdr. til kælvning (27 mdr.), kvier og stude, jersey | D53: Tethered with urine and solid manure | E53: Bindestald med grebning | F53: =IFERROR(HLOOKUP('CH4 Gødning'!$E53,Indtastning!$A$8:$P$21,7,FALSE),0) -> 0 | G53: Staldgødning | H53: M | I53: 3.36 | J53: 0.186 | P53: 132 | Q53: 499.968 | R53: 413.7797411 | S53: 180.8103452 | T53: 164.3309589 | U53: 2 | V53: 0.18 | W53: 1.394403008 | X53: 0
A54: Heifer, 6 mth.-calving, jersey | B54: Andet kvæg | C54: Årsopdræt 6 mdr. til kælvning (27 mdr.), kvier og stude, jersey | D54: Tethered with urine and solid manure | E54: Bindestald med grebning | F54: =IFERROR(HLOOKUP('CH4 Gødning'!$E54,Indtastning!$A$8:$P$21,7,FALSE),0) -> 0 | G54: Ajle (liquid manure/urin) | H54: M | I54: 2.56 | J54: 0.031 | P54: 132 | Q54: 63.488 | R54: 36.25863014 | S54: 22.96004384 | T54: 20.54136986 | U54: 6.97 | V54: 0.18 | W54: 0.477450576 | X54: 0
A55: Heifer, 6 mth.-calving, jersey | B55: Andet kvæg | C55: Årsopdræt 6 mdr. til kælvning (27 mdr.), kvier og stude, jersey | D55: Tethered with slurry | E55: Bindestald med riste | F55: =IFERROR(HLOOKUP('CH4 Gødning'!$E55,Indtastning!$A$8:$P$21,7,FALSE),0) -> 0 | G55: Gylle | H55: M | I55: 5.31 | J55: 0.127 | P55: 132 | Q55: 539.496 | R55: 450.0383712 | S55: 195.1054027 | T55: 184.8723288 | U55: 6.97 | V55: 0.18 | W55: 5.33694506 | X55: 0
A56: Heifer, 6 mth.-calving, jersey | B56: Andet kvæg | C56: Årsopdræt 6 mdr. til kælvning (27 mdr.), kvier og stude, jersey | D56: Loose-holding with beds, solid floor | E56: Sengestald med fast gulv | F56: =IFERROR(HLOOKUP('CH4 Gødning'!$E56,Indtastning!$A$8:$P$21,7,FALSE),0) -> 0 | G56: Gylle | H56: M | I56: 4.64 | J56: 0.127 | P56: 132 | Q56: 471.424 | R56: 367.5645712 | S56: 170.4875836 | T56: 184.8723288 | U56: 6.97 | V56: 0.18 | W56: 4.643685143 | X56: 0
A57: Heifer, 6 mth.-calving, jersey | B57: Andet kvæg | C57: Årsopdræt 6 mdr. til kælvning (27 mdr.), kvier og stude, jersey | D57: Loose-holding with beds, slatted floor | E57: Sengestald med spalter (kanal, linespil) | F57: =IFERROR(HLOOKUP('CH4 Gødning'!$E57,Indtastning!$A$8:$P$21,7,FALSE),0) -> 0 | G57: Gylle | H57: M | I57: 4.64 | J57: 0.127 | P57: 132 | Q57: 471.424 | R57: 367.5645712 | S57: 170.4875836 | T57: 184.8723288 | U57: 6.97 | V57: 0.18 | W57: 4.643685143 | X57: 0
A58: Heifer, 6 mth.-calving, jersey | B58: Andet kvæg | C58: Årsopdræt 6 mdr. til kælvning (27 mdr.), kvier og stude, jersey | D58: Loose-holding with beds, slatted floor, scrape | E58: Sengestald med spalter (kanal, bagskyl eller ringkanal) | F58: =IFERROR(HLOOKUP('CH4 Gødning'!$E58,Indtastning!$A$8:$P$21,7,FALSE),0) -> 0 | G58: Gylle | H58: M | I58: 4.64 | J58: 0.127 | P58: 132 | Q58: 471.424 | R58: 367.5645712 | S58: 170.4875836 | T58: 184.8723288 | U58: 6.97 | V58: 0.18 | W58: 4.643685143 | X58: 0
A59: Heifer, 6 mth.-calving, jersey | B59: Andet kvæg | C59: Årsopdræt 6 mdr. til kælvning (27 mdr.), kvier og stude, jersey | D59: Loose-holding with beds, solid floor with tilt | E59: Sengestald, fast drænet gulv med skraber og ajleafløb | F59: =IFERROR(HLOOKUP('CH4 Gødning'!$E59,Indtastning!$A$8:$P$21,7,FALSE),0) -> 0 | G59: Gylle | H59: M | I59: 4.64 | J59: 0.127 | P59: 132 | Q59: 471.424 | R59: 367.5645712 | S59: 170.4875836 | T59: 184.8723288 | U59: 6.97 | V59: 0.18 | W59: 4.643685143 | X59: 0
A60: Heifer, 6 mth.-calving, jersey | B60: Andet kvæg | C60: Årsopdræt 6 mdr. til kælvning (27 mdr.), kvier og stude, jersey | D60: Deep litter (all) | E60: Dybstrøelse (hele arealet) | F60: =IFERROR(HLOOKUP('CH4 Gødning'!$E60,Indtastning!$A$8:$P$21,7,FALSE),0) -> 0 | K60: Dybstrøelse | L60: S | M60: 4.45 | N60: 0.3 | P60: 132 | Q60: 1334.39925 | R60: 1357.250171 | S60: 0 | T60: 184.8723288 | U60: 17 | V60: 0.18 | W60: 31.6165955 | X60: 0
A61: Heifer, 6 mth.-calving, jersey | B61: Andet kvæg | C61: Årsopdræt 6 mdr. til kælvning (27 mdr.), kvier og stude, jersey | D61: Deep litter, long eating space, solid floor | E61: Dybstrøelse, lang ædeplads med fast gulv | F61: =IFERROR(HLOOKUP('CH4 Gødning'!$E61,Indtastning!$A$8:$P$21,7,FALSE),0) -> 0 | G61: Gylle | H61: M | I61: 2.1 | J61: 0.104 | P61: 132 | Q61: 174.72 | R61: 130.2246575 | S61: 63.18641096 | T61: 73.77534247 | U61: 6.97 | V61: 0.18 | W61: 1.71478728 | X61: 0
A62: Heifer, 6 mth.-calving, jersey | B62: Andet kvæg | C62: Årsopdræt 6 mdr. til kælvning (27 mdr.), kvier og stude, jersey | D62: Deep litter, long eating space, solid floor | E62: Dybstrøelse, lang ædeplads med fast gulv | F62: =IFERROR(HLOOKUP('CH4 Gødning'!$E62,Indtastning!$A$8:$P$21,7,FALSE),0) -> 0 | K62: Dybstrøelse | L62: S | M62: 3.31 | N62: 0.3 | P62: 132 | Q62: 992.55315 | R62: 1020.074986 | S62: 0 | T62: 110.6630137 | U62: 17 | V62: 0.18 | W62: 23.18239048 | X62: 0
A63: Heifer, 6 mth.-calving, jersey | B63: Andet kvæg | C63: Årsopdræt 6 mdr. til kælvning (27 mdr.), kvier og stude, jersey | D63: Deep litter, solid floor | E63: Dybstrøelse + kort ædeplads med fast gulv | F63: =IFERROR(HLOOKUP('CH4 Gødning'!$E63,Indtastning!$A$8:$P$21,7,FALSE),0) -> 0 | K63: Dybstrøelse | L63: S | M63: 3.82 | N63: 0.3 | P63: 132 | Q63: 1145.4843 | R63: 1151.065671 | S63: 0 | T63: 184.8723288 | U63: 17 | V63: 0.18 | W63: 27.38940088 | X63: 0
A64: Heifer, 6 mth.-calving, jersey | B64: Andet kvæg | C64: Årsopdræt 6 mdr. til kælvning (27 mdr.), kvier og stude, jersey | D64: Deep litter, slatted floor | E64: Dybstrøelse, lang ædeplads med spalter (kanal, linespil) | F64: =IFERROR(HLOOKUP('CH4 Gødning'!$E64,Indtastning!$A$8:$P$21,7,FALSE),0) -> 0 | G64: Gylle | H64: M | I64: 2.1 | J64: 0.104 | P64: 132 | Q64: 174.72 | R64: 130.2246575 | S64: 63.18641096 | T64: 73.77534247 | U64: 6.97 | V64: 0.18 | W64: 1.71478728 | X64: 0
A65: Heifer, 6 mth.-calving, jersey | B65: Andet kvæg | C65: Årsopdræt 6 mdr. til kælvning (27 mdr.), kvier og stude, jersey | D65: Deep litter, slatted floor | E65: Dybstrøelse, lang ædeplads med spalter (kanal, linespil) | F65: =IFERROR(HLOOKUP('CH4 Gødning'!$E65,Indtastning!$A$8:$P$21,7,FALSE),0) -> 0 | K65: Dybstrøelse | L65: S | M65: 3.31 | N65: 0.3 | P65: 132 | Q65: 992.55315 | R65: 1020.074986 | S65: 0 | T65: 110.6630137 | U65: 17 | V65: 0.18 | W65: 23.18239048 | X65: 0
A66: Heifer, 6 mth.-calving, jersey | B66: Andet kvæg | C66: Årsopdræt 6 mdr. til kælvning (27 mdr.), kvier og stude, jersey | D66: Deep litter, slatted floor, scrape | E66: Dybstrøelse, lang ædeplads med spalter (kanal, bagskyl eller ringkanal) | F66: =IFERROR(HLOOKUP('CH4 Gødning'!$E66,Indtastning!$A$8:$P$21,7,FALSE),0) -> 0 | G66: Gylle | H66: M | I66: 2.1 | J66: 0.104 | P66: 132 | Q66: 174.72 | R66: 130.2246575 | S66: 63.18641096 | T66: 73.77534247 | U66: 6.97 | V66: 0.18 | W66: 1.71478728 | X66: 0
A67: Heifer, 6 mth.-calving, jersey | B67: Andet kvæg | C67: Årsopdræt 6 mdr. til kælvning (27 mdr.), kvier og stude, jersey | D67: Deep litter, slatted floor, scrape | E67: Dybstrøelse, lang ædeplads med spalter (kanal, bagskyl eller ringkanal) | F67: =IFERROR(HLOOKUP('CH4 Gødning'!$E67,Indtastning!$A$8:$P$21,7,FALSE),0) -> 0 | K67: Dybstrøelse | L67: S | M67: 3.31 | N67: 0.3 | P67: 132 | Q67: 992.55315 | R67: 1020.074986 | S67: 0 | T67: 110.6630137 | U67: 17 | V67: 0.18 | W67: =(R67*U67/100*0.67*V67)+(T67*U67/100*0.67*V67) -> 23.18239048 | X67: =F67*W67 -> 0
A68: Bull calves, 0-6 mth. | B68: Andet kvæg | C68: 1 produceret tyrekalv, 0-6 mdr., tung race | D68: Deep litter (boxes) | E68: Dybstrøelse (hele arealet) | F68: =IFERROR(HLOOKUP('CH4 Gødning'!$E68,Indtastning!$A$8:$P$21,8,FALSE),0) -> 0 | K68: Dybstrøelse | L68: S | M68: 0.98 | N68: 0.3 | Q68: =(I68*1000)/365*J68*(365-O68)*0.8+(M68*1000)/365*N68*(365-O68)*(1-0.045/100) -> 293.8677 | R68: 565.265125 | S68: =(I68*1000)/365*J68*0.8*P68 -> 0 | U68: 3 | V68: 0.18 | W68: 2.045129222 | X68: 0
A69: Bull calves, 0-6 mth. | B69: Andet kvæg | C69: 1 produceret tyrekalv, 0-6 mdr., tung race | D69: Deep litter, solid floor | E69: Dybstrøelse + kort ædeplads med fast gulv | F69: =IFERROR(HLOOKUP('CH4 Gødning'!$E69,Indtastning!$A$8:$P$21,8,FALSE),0) -> 0 | K69: Dybstrøelse | L69: S | M69: 0.98 | N69: 0.3 | Q69: 293.8677 | R69: 565.265125 | S69: 0 | U69: 6.97 | V69: 0.18 | W69: 4.751516893 | X69: 0
A70: Bulls, 6 mth - 440 kg | B70: Andet kvæg | C70: Ungtyre, 6 mdr. til slagtning (440 kg), tung race, (1 produceret ungtyr) | D70: Slatted floor-boxes | E70: Spaltegulvbokse | F70: =IFERROR(HLOOKUP('CH4 Gødning'!$E70,Indtastning!$A$8:$P$21,10,FALSE),0) -> 0 | G70: Gylle | H70: M | I70: 3 | J70: 0.101 | Q70: 242.4 | R70: 293.28 | S70: 0 | U70: 6.97 | V70: 0.18 | W70: 2.46525889 | X70: 0
A71: Bulls, 6 mth - 440 kg | B71: Andet kvæg | C71: Ungtyre, 6 mdr. til slagtning (440 kg), tung race, (1 produceret ungtyr) | D71: Tethered with urine and solid manure | E71: Bindestald med grebning | F71: =IFERROR(HLOOKUP('CH4 Gødning'!$E71,Indtastning!$A$8:$P$21,10,FALSE),0) -> 0 | G71: Staldgødning | H71: M | I71: 1.92 | J71: 0.206 | K71: Strøelse | L71: S | M71: =0.75*365/1000 -> 0.27375 | N71: 0.85 | Q71: 548.9987906 | R71: 477.8965625 | S71: 0 | U71: 2 | V71: 0.18 | W71: 1.152686509 | X71: 0
A72: Bulls, 6 mth - 440 kg | B72: Andet kvæg | C72: Ungtyre, 6 mdr. til slagtning (440 kg), tung race, (1 produceret ungtyr) | D72: Tethered with urine and solid manure | E72: Bindestald med grebning | F72: =IFERROR(HLOOKUP('CH4 Gødning'!$E72,Indtastning!$A$8:$P$21,10,FALSE),0) -> 0 | G72: Ajle (liquid manure/urin) | H72: M | I72: 1.36 | J72: 0.031 | Q72: 33.728 | R72: 37.6 | S72: 0 | U72: 6.97 | V72: 0.18 | W72: 0.316058832 | X72: 0
A73: Bulls, 6 mth - 440 kg | B73: Andet kvæg | C73: Ungtyre, 6 mdr. til slagtning (440 kg), tung race, (1 produceret ungtyr) | D73: Tethered with slurry | E73: Bindestald med riste | F73: =IFERROR(HLOOKUP('CH4 Gødning'!$E73,Indtastning!$A$8:$P$21,10,FALSE),0) -> 0 | G73: Gylle | H73: M | I73: 3.31 | J73: 0.128 | K73: Strøelse | L73: S | M73: =0.75*365/1000 -> 0.27375 | N73: 0.85 | Q73: 571.5267906 | R73: 515.4965625 | S73: 0 | U73: 6.97 | V73: 0.18 | W73: 4.333171315 | X73: 0
A74: Bulls, 6 mth - 440 kg | B74: Andet kvæg | C74: Ungtyre, 6 mdr. til slagtning (440 kg), tung race, (1 produceret ungtyr) | D74: Loose-holding with beds, solid floor | E74: Sengestald med fast gulv | F74: =IFERROR(HLOOKUP('CH4 Gødning'!$E74,Indtastning!$A$8:$P$21,10,FALSE),0) -> 0 | G74: Gylle | H74: M | I74: 2.85 | J74: 0.123 | K74: Strøelse | L74: S | M74: =0.3*365/1000 -> 0.1095 | N74: 0.85 | Q74: 373.4731162 | R74: 382.166625 | S74: 0 | U74: 6.97 | V74: 0.18 | W74: 3.21242386 | X74: 0
A75: Bulls, 6 mth - 440 kg | B75: Andet kvæg | C75: Ungtyre, 6 mdr. til slagtning (440 kg), tung race, (1 produceret ungtyr) | D75: Loose-holding with beds, slatted floor | E75: Sengestald med spalter (kanal, linespil) | F75: =IFERROR(HLOOKUP('CH4 Gødning'!$E75,Indtastning!$A$8:$P$21,10,FALSE),0) -> 0 | G75: Gylle | H75: M | I75: 2.85 | J75: 0.123 | K75: Strøelse | L75: S | M75: =0.3*365/1000 -> 0.1095 | N75: 0.85 | Q75: 373.4731162 | R75: 382.166625 | S75: 0 | U75: 6.97 | V75: 0.18 | W75: 3.21242386 | X75: 0
A76: Bulls, 6 mth - 440 kg | B76: Andet kvæg | C76: Ungtyre, 6 mdr. til slagtning (440 kg), tung race, (1 produceret ungtyr) | D76: Loose-holding with beds, slatted floor, scrape | E76: Sengestald med spalter (kanal, bagskyl eller ringkanal) | F76: =IFERROR(HLOOKUP('CH4 Gødning'!$E76,Indtastning!$A$8:$P$21,10,FALSE),0) -> 0 | G76: Gylle | H76: M | I76: 2.85 | J76: 0.123 | K76: Strøelse | L76: S | M76: 0.1095 | N76: 0.85 | Q76: 373.4731162 | R76: 382.166625 | S76: 0 | U76: 6.97 | V76: 0.18 | W76: 3.21242386 | X76: 0
A77: Bulls, 6 mth - 440 kg | B77: Andet kvæg | C77: Ungtyre, 6 mdr. til slagtning (440 kg), tung race, (1 produceret ungtyr) | D77: Loose-holding with beds, solid floor with tilt | E77: Sengestald, fast drænet gulv med skraber og ajleafløb | F77: =IFERROR(HLOOKUP('CH4 Gødning'!$E77,Indtastning!$A$8:$P$21,10,FALSE),0) -> 0 | G77: Gylle | H77: M | I77: 2.85 | J77: 0.123 | K77: Strøelse | L77: S | M77: 0.1095 | N77: 0.85 | Q77: 373.4731162 | R77: 382.166625 | S77: 0 | U77: 6.97 | V77: 0.18 | W77: 3.21242386 | X77: 0
A78: Bulls, 6 mth - 440 kg | B78: Andet kvæg | C78: Ungtyre, 6 mdr. til slagtning (440 kg), tung race, (1 produceret ungtyr) | D78: Deep litter (all) | E78: Dybstrøelse (hele arealet) | F78: =IFERROR(HLOOKUP('CH4 Gødning'!$E78,Indtastning!$A$8:$P$21,10,FALSE),0) -> 0 | K78: Dybstrøelse | L78: S | M78: 2.53 | N78: 0.3 | Q78: 758.65845 | R78: 1419.17725 | S78: 0 | U78: 17 | V78: 0.18 | W78: 29.09597198 | X78: 0
A79: Bulls, 6 mth - 440 kg | B79: Andet kvæg | C79: Ungtyre, 6 mdr. til slagtning (440 kg), tung race, (1 produceret ungtyr) | D79: Deep litter, long eating space, solid floor | E79: Dybstrøelse, lang ædeplads med fast gulv | F79: =IFERROR(HLOOKUP('CH4 Gødning'!$E79,Indtastning!$A$8:$P$21,10,FALSE),0) -> 0 | G79: Gylle | H79: M | I79: 1.36 | J79: 0.089 | Q79: 96.832 | R79: 117.52 | S79: 0 | U79: 6.97 | V79: 0.18 | W79: 0.9878519664 | X79: 0
A80: Bulls, 6 mth - 440 kg | B80: Andet kvæg | C80: Ungtyre, 6 mdr. til slagtning (440 kg), tung race, (1 produceret ungtyr) | D80: Deep litter, long eating space, solid floor | E80: Dybstrøelse, lang ædeplads med fast gulv | F80: =IFERROR(HLOOKUP('CH4 Gødning'!$E80,Indtastning!$A$8:$P$21,10,FALSE),0) -> 0 | K80: Dybstrøelse | L80: S | M80: 1.91 | N80: 0.3 | Q80: 572.74215 | R80: 1094.255125 | S80: 0 | U80: 17 | V80: 0.18 | W80: 22.43441857 | X80: 0
A81: Bulls, 6 mth - 440 kg | B81: Andet kvæg | C81: Ungtyre, 6 mdr. til slagtning (440 kg), tung race, (1 produceret ungtyr) | D81: Deep litter, solid floor | E81: Dybstrøelse + kort ædeplads med fast gulv | F81: =IFERROR(HLOOKUP('CH4 Gødning'!$E81,Indtastning!$A$8:$P$21,10,FALSE),0) -> 0 | K81: Dybstrøelse | L81: S | M81: 2.24 | N81: 0.3 | Q81: 671.6976 | R81: 1241.404 | S81: 0 | U81: 17 | V81: 0.18 | W81: 25.45126481 | X81: 0
A82: Bulls, 6 mth - 440 kg | B82: Andet kvæg | C82: Ungtyre, 6 mdr. til slagtning (440 kg), tung race, (1 produceret ungtyr) | D82: Deep litter, slatted floor | E82: Dybstrøelse, lang ædeplads med spalter (kanal, linespil) | F82: =IFERROR(HLOOKUP('CH4 Gødning'!$E82,Indtastning!$A$8:$P$21,10,FALSE),0) -> 0 | G82: Gylle | H82: M | I82: 1.36 | J82: 0.089 | Q82: 96.832 | R82: 117.52 | S82: 0 | U82: 6.97 | V82: 0.18 | W82: 0.9878519664 | X82: 0
A83: Bulls, 6 mth - 440 kg | B83: Andet kvæg | C83: Ungtyre, 6 mdr. til slagtning (440 kg), tung race, (1 produceret ungtyr) | D83: Deep litter, slatted floor | E83: Dybstrøelse, lang ædeplads med spalter (kanal, linespil) | F83: =IFERROR(HLOOKUP('CH4 Gødning'!$E83,Indtastning!$A$8:$P$21,10,FALSE),0) -> 0 | K83: Dybstrøelse | L83: S | M83: 1.91 | N83: 0.3 | Q83: 572.74215 | R83: 1094.255125 | S83: 0 | U83: 17 | V83: 0.18 | W83: 22.43441857 | X83: 0
A84: Bulls, 6 mth - 440 kg | B84: Andet kvæg | C84: Ungtyre, 6 mdr. til slagtning (440 kg), tung race, (1 produceret ungtyr) | D84: Deep litter, slatted floor, scrape | E84: Dybstrøelse, lang ædeplads med spalter (kanal, bagskyl eller ringkanal) | F84: =IFERROR(HLOOKUP('CH4 Gødning'!$E84,Indtastning!$A$8:$P$21,10,FALSE),0) -> 0 | G84: Gylle | H84: M | I84: 1.36 | J84: 0.089 | Q84: 96.832 | R84: 117.52 | S84: 0 | U84: 6.97 | V84: 0.18 | W84: 0.9878519664 | X84: 0
A85: Bulls, 6 mth - 440 kg | B85: Andet kvæg | C85: Ungtyre, 6 mdr. til slagtning (440 kg), tung race, (1 produceret ungtyr) | D85: Deep litter, slatted floor, scrape | E85: Dybstrøelse, lang ædeplads med spalter (kanal, bagskyl eller ringkanal) | F85: =IFERROR(HLOOKUP('CH4 Gødning'!$E85,Indtastning!$A$8:$P$21,10,FALSE),0) -> 0 | K85: Dybstrøelse | L85: S | M85: 1.91 | N85: 0.3 | Q85: 572.74215 | R85: 1094.255125 | S85: 0 | U85: 17 | V85: 0.18 | W85: 22.43441857 | X85: 0
A86: Bull calves, 0-6 mth., jersey | B86: Andet kvæg | C86: 1 produceret tyrekalv, 0-6 mdr., jersey | D86: Deep litter (boxes) | E86: Dybstrøelse (hele arealet) | F86: =IFERROR(HLOOKUP('CH4 Gødning'!$E86,Indtastning!$A$8:$P$21,9,FALSE),0) -> 0 | K86: Dybstrøelse | L86: S | M86: 0.75 | N86: 0.3 | Q86: 224.89875 | R86: 441.4505 | S86: 0 | U86: 3 | V86: 0.18 | W86: 1.597167909 | X86: 0
A87: Bull calves, 0-6 mth., jersey | B87: Andet kvæg | C87: 1 produceret tyrekalv, 0-6 mdr., jersey | D87: Deep litter, solid floor | E87: Dybstrøelse + kort ædeplads med fast gulv | F87: =IFERROR(HLOOKUP('CH4 Gødning'!$E87,Indtastning!$A$8:$P$21,9,FALSE),0) -> 0 | K87: Dybstrøelse | L87: S | M87: 0.75 | N87: 0.3 | Q87: 224.89875 | R87: 441.4505 | S87: 0 | U87: 6.97 | V87: 0.18 | W87: 3.710753442 | X87: 0
A88: Bulls, 6 mth - 440 kg, jersey | B88: Andet kvæg | C88: Ungtyre, 6 mdr. til slagtning (440 kg), jersey, (1 produceret ungtyr) | D88: Slatted floor-boxes | E88: Spaltegulvbokse | F88: =IFERROR(HLOOKUP('CH4 Gødning'!$E88,Indtastning!$A$8:$P$21,11,FALSE),0) -> 0 | G88: Gylle | H88: M | I88: 2.45 | J88: 0.098 | Q88: 192.08 | R88: 230.88 | S88: 0 | U88: 6.97 | V88: 0.18 | W88: 1.940735722 | X88: 0
A89: Bulls, 6 mth - 440 kg, jersey | B89: Andet kvæg | C89: Ungtyre, 6 mdr. til slagtning (440 kg), jersey, (1 produceret ungtyr) | D89: Tethered with urine and solid manure | E89: Bindestald med grebning | F89: =IFERROR(HLOOKUP('CH4 Gødning'!$E89,Indtastning!$A$8:$P$21,11,FALSE),0) -> 0 | G89: Staldgødning | H89: M | I89: 1.48 | J89: 0.212 | Q89: 251.008 | R89: 379.05325 | S89: 0 | U89: 2 | V89: 0.18 | W89: 0.914276439 | X89: 0
A90: Bulls, 6 mth - 440 kg, jersey | B90: Andet kvæg | C90: Ungtyre, 6 mdr. til slagtning (440 kg), jersey, (1 produceret ungtyr) | D90: Tethered with urine and solid manure | E90: Bindestald med grebning | F90: =IFERROR(HLOOKUP('CH4 Gødning'!$E90,Indtastning!$A$8:$P$21,11,FALSE),0) -> 0 | G90: Ajle (liquid manure/urin) | H90: M | I90: 1.07 | J90: 0.031 | Q90: 26.536 | R90: 29.6 | S90: 0 | U90: 6.97 | V90: 0.18 | W90: 0.248812272 | X90: 0
A91: Bulls, 6 mth - 440 kg, jersey | B91: Andet kvæg | C91: Ungtyre, 6 mdr. til slagtning (440 kg), jersey, (1 produceret ungtyr) | D91: Tethered with slurry | E91: Bindestald med riste | F91: =IFERROR(HLOOKUP('CH4 Gødning'!$E91,Indtastning!$A$8:$P$21,11,FALSE),0) -> 0 | G91: Gylle | H91: M | I91: 3.12 | J91: 0.108 | Q91: 269.568 | R91: 408.65325 | S91: 0 | U91: 6.97 | V91: 0.18 | W91: 3.435065662 | X91: 0
A92: Bulls, 6 mth - 440 kg, jersey | B92: Andet kvæg | C92: Ungtyre, 6 mdr. til slagtning (440 kg), jersey, (1 produceret ungtyr) | D92: Loose-holding with beds, solid floor | E92: Sengestald med fast gulv | F92: =IFERROR(HLOOKUP('CH4 Gødning'!$E92,Indtastning!$A$8:$P$21,11,FALSE),0) -> 0 | G92: Gylle | H92: M | I92: 2.14 | J92: 0.127 | Q92: 217.424 | R92: 290.13775 | S92: 0 | U92: 6.97 | V92: 0.18 | W92: 2.438845702 | X92: 0
A93: Bulls, 6 mth - 440 kg, jersey | B93: Andet kvæg | C93: Ungtyre, 6 mdr. til slagtning (440 kg), jersey, (1 produceret ungtyr) | D93: Loose-holding with beds, slatted floor | E93: Sengestald med spaltegulv (kanal, linespil) | F93: =IFERROR(HLOOKUP('CH4 Gødning'!$E93,Indtastning!$A$8:$P$21,11,FALSE),0) -> 0 | G93: Gylle | H93: M | I93: 2.14 | J93: 0.127 | Q93: 217.424 | R93: 290.13775 | S93: 0 | U93: 6.97 | V93: 0.18 | W93: 2.438845702 | X93: 0
A94: Bulls, 6 mth - 440 kg, jersey | B94: Andet kvæg | C94: Ungtyre, 6 mdr. til slagtning (440 kg), jersey, (1 produceret ungtyr) | D94: Loose-holding with beds, slatted floor, scrape | E94: Sengestald med spaltegulv (kanal, bagskyl eller ringkanal) | F94: =IFERROR(HLOOKUP('CH4 Gødning'!$E94,Indtastning!$A$8:$P$21,11,FALSE),0) -> 0 | G94: Gylle | H94: M | I94: 2.14 | J94: 0.127 | Q94: 217.424 | R94: 290.13775 | S94: 0 | U94: 6.97 | V94: 0.18 | W94: 2.438845702 | X94: 0
A95: Bulls, 6 mth - 440 kg, jersey | B95: Andet kvæg | C95: Ungtyre, 6 mdr. til slagtning (440 kg), jersey, (1 produceret ungtyr) | D95: Loose-holding with beds, solid floor with tilt | E95: Sengestald, fast drænet gulv med skraber og ajleafløb | F95: =IFERROR(HLOOKUP('CH4 Gødning'!$E95,Indtastning!$A$8:$P$21,11,FALSE),0) -> 0 | G95: Gylle | H95: M | I95: 2.14 | J95: 0.127 | Q95: 217.424 | R95: 290.13775 | S95: 0 | U95: 6.97 | V95: 0.18 | W95: 2.438845702 | X95: 0
A96: Bulls, 6 mth - 440 kg, jersey | B96: Andet kvæg | C96: Ungtyre, 6 mdr. til slagtning (440 kg), jersey, (1 produceret ungtyr) | D96: Deep litter (all) | E96: Dybstrøelse, hele arealet | F96: =IFERROR(HLOOKUP('CH4 Gødning'!$E96,Indtastning!$A$8:$P$21,11,FALSE),0) -> 0 | K96: Dybstrøelse | L96: S | M96: 1.95 | N96: 0.3 | Q96: 584.73675 | R96: 1090.117375 | S96: 0 | U96: 17 | V96: 0.18 | W96: 22.34958642 | X96: 0
A97: Bulls, 6 mth - 440 kg, jersey | B97: Andet kvæg | C97: Ungtyre, 6 mdr. til slagtning (440 kg), jersey, (1 produceret ungtyr) | D97: Deep litter, long eating space, solid floor | E97: Dybstrøelse, lang ædeplads med fast gulv | F97: =IFERROR(HLOOKUP('CH4 Gødning'!$E97,Indtastning!$A$8:$P$21,11,FALSE),0) -> 0 | G97: Gylle | H97: M | I97: 1.14 | J97: 0.084 | Q97: 76.608 | R97: 92.56 | S97: 0 | U97: 6.97 | V97: 0.18 | W97: 0.7780426992 | X97: 0
A98: Bulls, 6 mth - 440 kg, jersey | B98: Andet kvæg | C98: Ungtyre, 6 mdr. til slagtning (440 kg), jersey, (1 produceret ungtyr) | D98: Deep litter, long eating space, solid floor | E98: Dybstrøelse, lang ædeplads med fast gulv | F98: =IFERROR(HLOOKUP('CH4 Gødning'!$E98,Indtastning!$A$8:$P$21,11,FALSE),0) -> 0 | K98: Dybstrøelse | L98: S | M98: 1.44 | N98: 0.3 | Q98: 431.8056 | R98: 819.784125 | S98: 0 | U98: 17 | V98: 0.18 | W98: =(R98*U98/100*0.67*V98)+(T98*U98/100*0.67*V98) -> 16.80721413 | X98: 0
A99: Bulls, 6 mth - 440 kg, jersey | B99: Andet kvæg | C99: Ungtyre, 6 mdr. til slagtning (440 kg), jersey, (1 produceret ungtyr) | D99: Deep litter, solid floor | E99: Dybstrøelse + kort ædeplads med fast gulv | F99: =IFERROR(HLOOKUP('CH4 Gødning'!$E99,Indtastning!$A$8:$P$21,11,FALSE),0) -> 0 | K99: Dybstrøelse | L99: S | M99: 1.71 | N99: 0.3 | Q99: 512.76915 | R99: 941.973 | S99: 0 | U99: 6.97 | V99: 0.18 | W99: 7.918055483 | X99: =F99*W99 -> 0
A100: Bulls, 6 mth - 440 kg, jersey | B100: Andet kvæg | C100: Ungtyre, 6 mdr. til slagtning (440 kg), jersey, (1 produceret ungtyr) | D100: Deep litter, slatted floor | E100: Dybstrøelse, lang ædeplads med spalter (kanal, linespil) | F100: =IFERROR(HLOOKUP('CH4 Gødning'!$E100,Indtastning!$A$8:$P$21,11,FALSE),0) -> 0 | G100: Gylle | H100: M | I100: 1.14 | J100: 0.084 | Q100: 76.608 | R100: 92.56 | S100: 0 | U100: 6.97 | V100: 0.18 | W100: 0.7780426992 | X100: 0
A101: Bulls, 6 mth - 440 kg, jersey | B101: Andet kvæg | C101: Ungtyre, 6 mdr. til slagtning (440 kg), jersey, (1 produceret ungtyr) | D101: Deep litter, slatted floor | E101: Dybstrøelse, lang ædeplads med spalter (kanal, linespil) | F101: =IFERROR(HLOOKUP('CH4 Gødning'!$E101,Indtastning!$A$8:$P$21,11,FALSE),0) -> 0 | K101: Dybstrøelse | L101: S | M101: 1.44 | N101: 0.3 | Q101: 431.8056 | R101: 819.784125 | S101: 0 | U101: 17 | V101: 0.16 | W101: 14.93974589 | X101: 0
A102: Bulls, 6 mth - 440 kg, jersey | B102: Andet kvæg | C102: Ungtyre, 6 mdr. til slagtning (440 kg), jersey, (1 produceret ungtyr) | D102: Deep litter, slatted floor, scrape | E102: Dybstrøelse, lang ædeplads med spalter (kanal, bagskyl eller ringkanal) | F102: =IFERROR(HLOOKUP('CH4 Gødning'!$E102,Indtastning!$A$8:$P$21,11,FALSE),0) -> 0 | G102: Gylle | H102: M | I102: 1.14 | J102: 0.084 | Q102: 76.608 | R102: 92.56 | S102: 0 | U102: 6.97 | V102: 0.18 | W102: 0.7780426992 | X102: 0
A103: Bulls, 6 mth - 440 kg, jersey | B103: Andet kvæg | C103: Ungtyre, 6 mdr. til slagtning (440 kg), jersey, (1 produceret ungtyr) | D103: Deep litter, slatted floor, scrape | E103: Dybstrøelse, lang ædeplads med spalter (kanal, bagskyl eller ringkanal) | F103: =IFERROR(HLOOKUP('CH4 Gødning'!$E103,Indtastning!$A$8:$P$21,11,FALSE),0) -> 0 | K103: Dybstrøelse | L103: S | M103: 1.44 | N103: 0.3 | Q103: 431.8056 | R103: 819.784125 | S103: 0 | U103: 17 | V103: 0.18 | W103: 16.80721413 | X103: 0
A104: Suckling cattle <400 kg | B104: Andet kvæg | C104: Ammekøer, 1 årsko under 400 kg | D104: Tethered with urine and solid manure | E104: Bindestald med grebning | F104: =IFERROR(HLOOKUP('CH4 Gødning'!$E104,Indtastning!$A$8:$P$21,12,FALSE),0) -> 0 | G104: Staldgødning | H104: M | I104: 2.61 | J104: 0.228 | O104: 224 | P104: 224 | Q104: 183.9041753 | R104: 249.0879152 | S104: 292.1598247 | T104: 286.6149348 | U104: 2 | V104: 0.18 | W104: 1.292115274 | X104: 0
A105: Suckling cattle <400 kg | B105: Andet kvæg | C105: Ammekøer, 1 årsko under 400 kg | D105: Tethered with urine and solid manure | E105: Bindestald med grebning | F105: =IFERROR(HLOOKUP('CH4 Gødning'!$E105,Indtastning!$A$8:$P$21,12,FALSE),0) -> 0 | G105: Ajle (liquid manure/urin) | H105: M | I105: 2.86 | J105: 0.038 | O105: 224 | P105: 224 | Q105: 33.5865863 | R105: 28.74082192 | S105: 53.3574137 | T105: 45.65917808 | U105: 6.97 | V105: 0.18 | W105: 0.625393008 | X105: 0
A106: Suckling cattle <400 kg | B106: Andet kvæg | C106: Ammekøer, 1 årsko under 400 kg | D106: Tethered with slurry | E106: Bindestald med riste | F106: =IFERROR(HLOOKUP('CH4 Gødning'!$E106,Indtastning!$A$8:$P$21,12,FALSE),0) -> 0 | G106: Gylle | H106: M | I106: 5.5 | J106: 0.121 | O106: 224 | P106: 224 | Q106: 205.6668493 | R106: 277.7885618 | S106: 326.7331507 | T106: 332.2102882 | U106: 6.97 | V106: 0.18 | W106: 5.127540533 | X106: 0
A107: Suckling cattle <400 kg | B107: Andet kvæg | C107: Ammekøer, 1 årsko under 400 kg | D107: Deep litter (all) | E107: Dybstrøelse (hele arealet) | F107: =IFERROR(HLOOKUP('CH4 Gødning'!$E107,Indtastning!$A$8:$P$21,12,FALSE),0) -> 0 | K107: Dybstrøelse | L107: S | M107: 6.99 | N107: 0.17 | O107: 224 | P107: 224 | Q107: 458.8353489 | R107: 895.8550118 | S107: 0 | T107: 332.2102882 | U107: 17 | V107: 0.18 | W107: 25.17779478 | X107: 0
A108: Suckling cattle <400 kg | B108: Andet kvæg | C108: Ammekøer, 1 årsko under 400 kg | D108: Deep litter, solid floor | E108: Dybstrøelse + kort ædeplads med fast gulv | F108: =IFERROR(HLOOKUP('CH4 Gødning'!$E108,Indtastning!$A$8:$P$21,12,FALSE),0) -> 0 | K108: Dybstrøelse | L108: S | M108: 6.42 | N108: 0.17 | O108: 224 | P108: 224 | Q108: 421.4195909 | R108: 810.0124493 | S108: 0 | T108: 332.2102882 | U108: 17 | V108: 0.18 | W108: 23.41785056 | X108: 0
A109: Suckling cattle <400 kg | B109: Andet kvæg | C109: Ammekøer, 1 årsko under 400 kg | D109: Deep litter, slatted floor | E109: Dybstrøelse, lang ædeplads med spalter (kanal, linespil) | F109: =IFERROR(HLOOKUP('CH4 Gødning'!$E109,Indtastning!$A$8:$P$21,12,FALSE),0) -> 0 | G109: Gylle | H109: M | I109: 3.35 | J109: 0.069 | O109: 224 | P109: 224 | Q109: 71.43484932 | R109: 83.56347616 | S109: 113.4851507 | T109: 132.7533238 | U109: 6.97 | V109: 0.18 | W109: 1.818320084 | X109: 0
A110: Suckling cattle <400 kg | B110: Andet kvæg | C110: Ammekøer, 1 årsko under 400 kg | D110: Deep litter, slatted floor | E110: Dybstrøelse, lang ædeplads med spalter (kanal, linespil) | F110: =IFERROR(HLOOKUP('CH4 Gødning'!$E110,Indtastning!$A$8:$P$21,12,FALSE),0) -> 0 | K110: Dybstrøelse | L110: S | M110: 4.88 | N110: 0.17 | O110: 224 | P110: 224 | Q110: 320.3314024 | R110: 640.6064106 | S110: 0 | T110: 199.4569644 | U110: 17 | V110: 0.18 | W110: 17.22297931 | X110: 0
A111: Suckling cattle <400 kg | B111: Andet kvæg | C111: Ammekøer, 1 årsko under 400 kg | D111: Deep litter, slatted floor, scrape | E111: Dybstrøelse, lang ædeplads med spalter (kanal, bagskyl eller ringkanal) | F111: =IFERROR(HLOOKUP('CH4 Gødning'!$E111,Indtastning!$A$8:$P$21,12,FALSE),0) -> 0 | G111: Gylle | H111: M | I111: 3.35 | J111: 0.069 | O111: 224 | P111: 224 | Q111: 71.43484932 | R111: 83.56347616 | S111: 113.4851507 | T111: 132.7533238 | U111: 6.97 | V111: 0.18 | W111: 1.818320084 | X111: 0
A112: Suckling cattle <400 kg | B112: Andet kvæg | C112: Ammekøer, 1 årsko under 400 kg | D112: Deep litter, slatted floor, scrape | E112: Dybstrøelse, lang ædeplads med spalter (kanal, bagskyl eller ringkanal) | F112: =IFERROR(HLOOKUP('CH4 Gødning'!$E112,Indtastning!$A$8:$P$21,12,FALSE),0) -> 0 | K112: Dybstrøelse | L112: S | M112: 4.88 | N112: 0.17 | O112: 224 | P112: 224 | Q112: 320.3314024 | R112: 640.6064106 | S112: 0 | T112: 199.4569644 | U112: 17 | V112: 0.18 | W112: 17.22297931 | X112: 0
A113: Suckling cattle 400-600 kg | B113: Andet kvæg | C113: Ammekøer, 1 årsko 400-600 kg | D113: Tethered with urine and solid manure | E113: Bindestald med grebning | F113: =IFERROR(HLOOKUP('CH4 Gødning'!$E113,Indtastning!$A$8:$P$21,13,FALSE),0) -> 0 | G113: Staldgødning | H113: M | I113: 3.72 | J113: 0.228 | O113: 224 | P113: 224 | Q113: 262.1162959 | R113: 352.6612422 | S113: 416.4117041 | T113: 414.7905578 | U113: 2 | V113: 0.18 | W113: 1.851093742 | X113: 0
A114: Suckling cattle 400-600 kg | B114: Andet kvæg | C114: Ammekøer, 1 årsko 400-600 kg | D114: Tethered with urine and solid manure | E114: Bindestald med grebning | F114: =IFERROR(HLOOKUP('CH4 Gødning'!$E114,Indtastning!$A$8:$P$21,13,FALSE),0) -> 0 | G114: Ajle (liquid manure/urin) | H114: M | I114: 4.17 | J114: 0.038 | O114: 224 | P114: 224 | Q114: 48.97065205 | R114: 41.5660274 | S114: 77.79734795 | T114: 66.0339726 | U114: 6.97 | V114: 0.18 | W114: 0.904466232 | X114: 0
A115: Suckling cattle 400-600 kg | B115: Andet kvæg | C115: Ammekøer, 1 årsko 400-600 kg | D115: Tethered with slurry | E115: Bindestald med riste | F115: =IFERROR(HLOOKUP('CH4 Gødning'!$E115,Indtastning!$A$8:$P$21,13,FALSE),0) -> 0 | G115: Gylle | H115: M | I115: 7.88 | J115: 0.121 | O115: 224 | P115: 224 | Q115: 294.6645041 | R115: 394.1228137 | S115: 468.1194959 | T115: 480.6585863 | U115: 6.97 | V115: 0.18 | W115: 7.353254988 | X115: 0
A116: Suckling cattle 400-600 kg | B116: Andet kvæg | C116: Ammekøer, 1 årsko 400-600 kg | D116: Deep litter (all) | E116: Dybstrøelse (hele arealet) | F116: =IFERROR(HLOOKUP('CH4 Gødning'!$E116,Indtastning!$A$8:$P$21,13,FALSE),0) -> 0 | K116: Dybstrøelse | L116: S | M116: 9.59 | N116: 0.17 | O116: 224 | P116: 224 | Q116: 629.5037191 | R116: 1218.211414 | S116: 0 | T116: 480.6585863 | U116: 17 | V116: 0.18 | W116: 34.83023274 | X116: 0
A117: Suckling cattle 400-600 kg | B117: Andet kvæg | C117: Ammekøer, 1 årsko 400-600 kg | D117: Deep litter, long eating space, solid floor | E117: Dybstrøelse, lang ædeplads med fast gulv | F117: =IFERROR(HLOOKUP('CH4 Gødning'!$E117,Indtastning!$A$8:$P$21,13,FALSE),0) -> 0 | G117: Gylle | H117: M | I117: 4.85 | J117: 0.069 | O117: 224 | P117: 224 | Q117: 103.4206027 | R117: 121.0229655 | S117: 164.2993973 | T117: 192.2634345 | U117: 6.97 | V117: 0.18 | W117: 2.633429087 | X117: 0
A118: Suckling cattle 400-600 kg | B118: Andet kvæg | C118: Ammekøer, 1 årsko 400-600 kg | D118: Deep litter, long eating space, solid floor | E118: Dybstrøelse, lang ædeplads med fast gulv | F118: =IFERROR(HLOOKUP('CH4 Gødning'!$E118,Indtastning!$A$8:$P$21,13,FALSE),0) -> 0 | K118: Dybstrøelse | L118: S | M118: 6.67 | N118: 0.17 | O118: 224 | P118: 224 | Q118: 437.8300111 | R118: 868.2749482 | S118: 0 | T118: 288.3951518 | U118: 17 | V118: 0.18 | W118: 23.71405039 | X118: 0
A119: Suckling cattle 400-600 kg | B119: Andet kvæg | C119: Ammekøer, 1 årsko 400-600 kg | D119: Deep litter, solid floor | E119: Dybstrøelse + kort ædeplads med fast gulv | F119: =IFERROR(HLOOKUP('CH4 Gødning'!$E119,Indtastning!$A$8:$P$21,13,FALSE),0) -> 0 | K119: Dybstrøelse | L119: S | M119: 8.83 | N119: 0.17 | O119: 224 | P119: 224 | Q119: 579.6160417 | R119: 1103.754664 | S119: 0 | T119: 480.6585863 | U119: 17 | V119: 0.18 | W119: 32.48364045 | X119: 0
A120: Suckling cattle 400-600 kg | B120: Andet kvæg | C120: Ammekøer, 1 årsko 400-600 kg | D120: Deep litter, slatted floor | E120: Dybstrøelse, lang ædeplads med spalter (kanal, linespil) | F120: =IFERROR(HLOOKUP('CH4 Gødning'!$E120,Indtastning!$A$8:$P$21,13,FALSE),0) -> 0 | G120: Gylle | H120: M | I120: 4.85 | J120: 0.069 | O120: 224 | P120: 224 | Q120: 103.4206027 | R120: 121.0229655 | S120: 164.2993973 | T120: 192.2634345 | U120: 6.97 | V120: 0.18 | W120: 2.633429087 | X120: 0
A121: Suckling cattle 400-600 kg | B121: Andet kvæg | C121: Ammekøer, 1 årsko 400-600 kg | D121: Deep litter, slatted floor | E121: Dybstrøelse, lang ædeplads med spalter (kanal, linespil) | F121: =IFERROR(HLOOKUP('CH4 Gødning'!$E121,Indtastning!$A$8:$P$21,13,FALSE),0) -> 0 | K121: Dybstrøelse | L121: S | M121: 6.67 | N121: 0.17 | O121: 224 | P121: 224 | Q121: 437.8300111 | R121: 868.2749482 | S121: 0 | T121: 288.3951518 | U121: 17 | V121: 0.18 | W121: 23.71405039 | X121: 0
A122: Suckling cattle 400-600 kg | B122: Andet kvæg | C122: Ammekøer, 1 årsko 400-600 kg | D122: Deep litter, slatted floor, scrape | E122: Dybstrøelse, lang ædeplads med spalter (kanal, bagskyl eller ringkanal) | F122: =IFERROR(HLOOKUP('CH4 Gødning'!$E122,Indtastning!$A$8:$P$21,13,FALSE),0) -> 0 | G122: Gylle | H122: M | I122: 4.85 | J122: 0.069 | O122: 224 | P122: 224 | Q122: 103.4206027 | R122: 121.0229655 | S122: 164.2993973 | T122: 192.2634345 | U122: 6.97 | V122: 0.18 | W122: 2.633429087 | X122: 0
A123: Suckling cattle 400-600 kg | B123: Andet kvæg | C123: Ammekøer, 1 årsko 400-600 kg | D123: Deep litter, slatted floor, scrape | E123: Dybstrøelse, lang ædeplads med spalter (kanal, bagskyl eller ringkanal) | F123: =IFERROR(HLOOKUP('CH4 Gødning'!$E123,Indtastning!$A$8:$P$21,13,FALSE),0) -> 0 | K123: Dybstrøelse | L123: S | M123: 6.67 | N123: 0.17 | O123: 224 | P123: 224 | Q123: 437.8300111 | R123: 868.2749482 | S123: 0 | T123: 288.3951518 | U123: 17 | V123: 0.18 | W123: 23.71405039 | X123: 0
A124: Suckling cattle >600 kg | B124: Andet kvæg | C124: Ammekøer, 1 årsko over 600 kg | D124: Tethered with urine and solid manure | E124: Bindestald med grebning | F124: =IFERROR(HLOOKUP('CH4 Gødning'!$E124,Indtastning!$A$8:$P$21,14,FALSE),0) -> 0 | G124: Staldgødning | H124: M | I124: 4.15 | J124: 0.228 | K124: Strøelse | L124: S | M124: =0.8*365/1000 -> 0.292 | N124: 0.85 | O124: 224 | P124: 224 | Q124: 388.2515389 | R124: 387.3993156 | S124: 464.5453151 | T124: 469.9772844 | U124: 2 | V124: 0.18 | W124: 2.067992359 | X124: 0
A125: Suckling cattle >600 kg | B125: Andet kvæg | C125: Ammekøer, 1 årsko over 600 kg | D125: Tethered with urine and solid manure | E125: Bindestald med grebning | F125: =IFERROR(HLOOKUP('CH4 Gødning'!$E125,Indtastning!$A$8:$P$21,14,FALSE),0) -> 0 | G125: Ajle (liquid manure/urin) | H125: M | I125: 4.8 | J125: 0.038 | O125: 224 | P125: 224 | Q125: 56.36909589 | R125: 47.12876712 | S125: 89.55090411 | T125: 74.87123288 | U125: 6.97 | V125: 0.18 | W125: 1.02551004 | X125: 0
A126: Suckling cattle >600 kg | B126: Andet kvæg | C126: Ammekøer, 1 årsko over 600 kg | D126: Tethered with slurry | E126: Bindestald med riste | F126: =IFERROR(HLOOKUP('CH4 Gødning'!$E126,Indtastning!$A$8:$P$21,14,FALSE),0) -> 0 | G126: Gylle | H126: M | I126: 8.81 | J126: 0.121 | K126: Strøelse | L126: S | M126: =0.8*365/1000 -> 0.292 | N126: 0.85 | O126: 224 | P126: 224 | Q126: 425.2777526 | R126: 434.4638022 | S126: 523.3671014 | T126: 544.7463978 | U126: 6.97 | V126: 0.18 | W126: 8.231064683 | X126: 0
A127: Suckling cattle >600 kg | B127: Andet kvæg | C127: Ammekøer, 1 årsko over 600 kg | D127: Deep litter (all) | E127: Dybstrøelse (hele arealet) | F127: =IFERROR(HLOOKUP('CH4 Gødning'!$E127,Indtastning!$A$8:$P$21,14,FALSE),0) -> 0 | K127: Dybstrøelse | L127: S | M127: 10.06 | N127: 0.17 | O127: 224 | P127: 224 | Q127: 660.3553091 | R127: 1258.552402 | S127: 0 | T127: 544.7463978 | U127: 17 | V127: 0.18 | W127: 36.971232 | X127: 0
A128: Suckling cattle >600 kg | B128: Andet kvæg | C128: Ammekøer, 1 årsko over 600 kg | D128: Deep litter, long eating space, solid floor | E128: Dybstrøelse, lang ædeplads med fast gulv | F128: =IFERROR(HLOOKUP('CH4 Gødning'!$E128,Indtastning!$A$8:$P$21,14,FALSE),0) -> 0 | G128: Gylle | H128: M | I128: 5.5 | J128: 0.069 | O128: 224 | P128: 224 | Q128: 117.2810959 | R128: 137.0770323 | S128: 186.3189041 | T128: 217.7677677 | U128: 6.97 | V128: 0.18 | W128: =(R128*U128/100*0.67*V128)+(T128*U128/100*0.67*V128) -> 2.982761517 | X128: 0
A129: Suckling cattle >600 kg | B129: Andet kvæg | C129: Ammekøer, 1 årsko over 600 kg | D129: Deep litter, long eating space, solid floor | E129: Dybstrøelse, lang ædeplads med fast gulv | F129: =IFERROR(HLOOKUP('CH4 Gødning'!$E129,Indtastning!$A$8:$P$21,14,FALSE),0) -> 0 | K129: Dybstrøelse | L129: S | M129: 6.95 | N129: 0.17 | O129: 224 | P129: 224 | Q129: =(I129*1000)/365*J129*(365-O129)*0.8+(M129*1000)/365*N129*(365-O129)*(1-0.045/100) -> 456.2096817 | R129: 892.5618699 | S129: =(I129*1000)/365*J129*0.8*P129 -> 0 | T129: 326.9786301 | U129: 17 | V129: 0.18 | W129: 25.00301933 | X129: 0
A130: Suckling cattle >600 kg | B130: Andet kvæg | C130: Ammekøer, 1 årsko over 600 kg | D130: Deep litter, solid floor | E130: Dybstrøelse + kort ædeplads med fast gulv | F130: =IFERROR(HLOOKUP('CH4 Gødning'!$E130,Indtastning!$A$8:$P$21,14,FALSE),0) -> 0 | K130: Dybstrøelse | L130: S | M130: 9.3 | N130: 0.17 | O130: 224 | P130: 224 | Q130: 610.4676316 | R130: 1144.095652 | S130: 0 | T130: 544.7463978 | U130: 17 | V130: 0.18 | W130: 34.62463971 | X130: 0
A131: Suckling cattle >600 kg | B131: Andet kvæg | C131: Ammekøer, 1 årsko over 600 kg | D131: Deep litter, slatted floor | E131: Dybstrøelse, lang ædeplads med spalter (kanal, linespil) | F131: =IFERROR(HLOOKUP('CH4 Gødning'!$E131,Indtastning!$A$8:$P$21,14,FALSE),0) -> 0 | G131: Gylle | H131: M | I131: 5.5 | J131: 0.069 | O131: 224 | P131: 224 | Q131: 117.2810959 | R131: 137.0770323 | S131: 186.3189041 | T131: 217.7677677 | U131: 6.97 | V131: 0.18 | W131: 2.982761517 | X131: =F131*W131 -> 0
A132: Suckling cattle >600 kg | B132: Andet kvæg | C132: Ammekøer, 1 årsko over 600 kg | D132: Deep litter, slatted floor | E132: Dybstrøelse, lang ædeplads med spalter (kanal, linespil) | F132: =IFERROR(HLOOKUP('CH4 Gødning'!$E132,Indtastning!$A$8:$P$21,14,FALSE),0) -> 0 | K132: Dybstrøelse | L132: S | M132: 6.95 | N132: 0.17 | O132: 224 | P132: 224 | Q132: 456.2096817 | R132: 892.5618699 | S132: 0 | T132: 326.9786301 | U132: 17 | V132: 0.18 | W132: 25.00301933 | X132: 0
A133: Suckling cattle >600 kg | B133: Andet kvæg | C133: Ammekøer, 1 årsko over 600 kg | D133: Deep litter, slatted floor, scrape | E133: Dybstrøelse, lang ædeplads med spalter (kanal, bagskyl eller ringkanal) | F133: =IFERROR(HLOOKUP('CH4 Gødning'!$E133,Indtastning!$A$8:$P$21,14,FALSE),0) -> 0 | G133: Gylle | H133: M | I133: 5.5 | J133: 0.069 | O133: 224 | P133: 224 | Q133: 117.2810959 | R133: 137.0770323 | S133: 186.3189041 | T133: 217.7677677 | U133: 6.97 | V133: 0.18 | W133: 2.982761517 | X133: 0
A134: Suckling cattle >600 kg | B134: Andet kvæg | C134: Ammekøer, 1 årsko over 600 kg | D134: Deep litter, slatted floor, scrape | E134: Dybstrøelse, lang ædeplads med spalter (kanal, bagskyl eller ringkanal) | F134: =IFERROR(HLOOKUP('CH4 Gødning'!$E134,Indtastning!$A$8:$P$21,14,FALSE),0) -> 0 | K134: Dybstrøelse | L134: S | M134: 6.95 | N134: 0.17 | O134: 224 | P134: 224 | Q134: 456.2096817 | R134: 892.5618699 | S134: 0 | T134: 326.9786301 | U134: 17 | V134: 0.18 | W134: 25.00301933 | X134: 0
A135: Sows, gastation period | B135: Svin | C135: 1 årsso med 30 grise til 7,0 kg | D135: Deep litter + solid floor | E135: Løsgående, dybstrøelse + fast gulv | F135: =IFERROR(HLOOKUP('CH4 Gødning'!$E135,Indtastning!$A$28:$S$32,2,FALSE),0) -> 0 | G135: Gylle | H135: M | I135: 2.19 | J135: 0.055 | Q135: 96.36 | R135: 112.7552 | S135: 0 | U135: 16.66 | V135: 0.45 | W135: 5.66368242 | X135: 0
A136: Sows, gastation period | B136: Svin | C136: 1 årsso med 30 grise til 7,0 kg | D136: Deep litter + solid floor | E136: Løsgående, dybstrøelse + fast gulv | F136: =IFERROR(HLOOKUP('CH4 Gødning'!$E136,Indtastning!$A$28:$S$32,2,FALSE),0) -> 0 | K136: Dybstrøelse | L136: S | M136: 0.67 | N136: 0.33 | Q136: 221.000505 | R136: 339.8773 | S136: 0 | U136: 14.7 | V136: 0.45 | W136: 15.06353187 | X136: 0
A137: Sows, gastation period | B137: Svin | C137: 1 årsso med 30 grise til 7,0 kg | D137: Deep litter + slatted floor | E137: Løsgående, dybstrøelse + spaltegulv | F137: =IFERROR(HLOOKUP('CH4 Gødning'!$E137,Indtastning!$A$28:$S$32,2,FALSE),0) -> 0 | G137: Gylle | H137: M | I137: 2.19 | J137: 0.05 | Q137: 87.6 | R137: 112.7552 | S137: 0 | U137: 16.66 | V137: 0.45 | W137: 5.66368242 | X137: 0
A138: Sows, gastation period | B138: Svin | C138: 1 årsso med 30 grise til 7,0 kg | D138: Deep litter + slatted floor | E138: Løsgående, dybstrøelse + spaltegulv | F138: =IFERROR(HLOOKUP('CH4 Gødning'!$E138,Indtastning!$A$28:$S$32,2,FALSE),0) -> 0 | K138: Dybstrøelse | L138: S | M138: 0.67 | N138: 0.33 | Q138: 221.000505 | R138: 339.8773 | S138: 0 | U138: 14.7 | V138: 0.45 | W138: 15.06353187 | X138: 0
A139: Sows, gastation period | B139: Svin | C139: 1 årsso med 30 grise til 7,0 kg | D139: Deep litter, sows | E139: Løsgående, dybstrøelse | F139: =IFERROR(HLOOKUP('CH4 Gødning'!$E139,Indtastning!$A$28:$S$32,2,FALSE),0) -> 0 | K139: Dybstrøelse | L139: S | M139: 1.78 | N139: 0.33 | Q139: 587.13567 | R139: 899.095 | S139: 0 | U139: 14.7 | V139: 0.45 | W139: 39.84833995 | X139: 0
A140: Sows, gastation period | B140: Svin | C140: 1 årsso med 30 grise til 7,0 kg | D140: Individual housing, partly slatted floor | E140: Individuel opstaldning, delvis spaltegulv | F140: =IFERROR(HLOOKUP('CH4 Gødning'!$E140,Indtastning!$A$28:$S$32,2,FALSE),0) -> 0 | G140: Gylle | H140: M | I140: 3.99 | J140: 0.045 | Q140: 143.64 | R140: 168.52 | S140: 0 | U140: 16.66 | V140: 0.45 | W140: 8.464742748 | X140: 0
A141: Sows, gastation period | B141: Svin | C141: 1 årsso med 30 grise til 7,0 kg | D141: Individual housing, fully slatted floor | E141: Individuel opstaldning, fuldspaltegulv | F141: =IFERROR(HLOOKUP('CH4 Gødning'!$E141,Indtastning!$A$28:$S$32,2,FALSE),0) -> 0 | G141: Gylle | H141: M | I141: 3.99 | J141: 0.045 | Q141: 143.64 | R141: 168.52 | S141: 0 | U141: 16.66 | V141: 0.45 | W141: 8.464742748 | X141: 0
A142: Sows, gastation period | B142: Svin | C142: 1 årsso med 30 grise til 7,0 kg | D142: Individual housing, solid floor | E142: Individuel opstaldning, fast gulv | F142: =IFERROR(HLOOKUP('CH4 Gødning'!$E142,Indtastning!$A$28:$S$32,2,FALSE),0) -> 0 | G142: Staldgødning | H142: M | I142: 0.52 | J142: 0.23 | Q142: 95.68 | R142: 134.4 | S142: 0 | U142: 2 | V142: 0.45 | W142: 0.810432 | X142: 0
A143: Sows, gastation period | B143: Svin | C143: 1 årsso med 30 grise til 7,0 kg | D143: Individual housing, solid floor | E143: Individuel opstaldning, fast gulv | F143: =IFERROR(HLOOKUP('CH4 Gødning'!$E143,Indtastning!$A$28:$S$32,2,FALSE),0) -> 0 | G143: Ajle (liquid manure/urin) | H143: M | I143: 1.74 | J143: 0.025 | Q143: 34.8 | R143: 96.08125 | S143: 0 | U143: 16.66 | V143: 0.45 | W143: 4.826151579 | X143: 0
A144: Sows, gastation period | B144: Svin | C144: 1 årsso med 30 grise til 7,0 kg | D144: Free range | E144: Søer på friland | F144: =IFERROR(HLOOKUP('CH4 Gødning'!$E144,Indtastning!$A$28:$R$32,2,FALSE),0) -> 0 | Q144: 0 | S144: 0 | T144: 79.0512 | U144: 1 | V144: 0.45 | W144: 0.238339368 | X144: 0
A145: Sows, gastation period | B145: Svin | C145: 1 årsso med 30 grise til 7,0 kg | D145: Loose housing, partly slatted floor | E145: Løsgående, delvis spaltegulv | F145: =IFERROR(HLOOKUP('CH4 Gødning'!$E145,Indtastning!$A$28:$S$32,2,FALSE),0) -> 0 | G145: Gylle | H145: M | I145: 4.71 | J145: 0.045 | Q145: 169.56 | R145: 209.1075 | S145: 0 | U145: 16.66 | V145: 0.45 | W145: 10.50344881 | X145: 0
A146: Sows, farrow period | B146: Svin | C146: Bidrag fra farestald | D146: Individual housing, partly slatted floor | E146: Kassestier, delvis spaltegulv | F146: =IFERROR(HLOOKUP('CH4 Gødning'!$E146,Indtastning!$A$28:$S$32,3,FALSE),0) -> 0 | G146: Gylle | H146: M | I146: 1.7 | J146: 0.045 | Q146: 61.2 | R146: 71.6976 | S146: 0 | U146: 16.66 | V146: 0.45 | W146: 3.601363278 | X146: 0
A147: Sows, farrow period | B147: Svin | C147: Bidrag fra farestald | D147: Individual housing, fully slatted floor | E147: Kassestier, fuldspaltegulv | F147: =IFERROR(HLOOKUP('CH4 Gødning'!$E147,Indtastning!$A$28:$S$32,3,FALSE),0) -> 0 | G147: Gylle | H147: M | I147: 1.7 | J147: 0.045 | Q147: 61.2 | R147: 71.6976 | S147: 0 | U147: 16.66 | V147: 0.45 | W147: 3.601363278 | X147: 0
A148: Weaners | B148: Svin | C148: 1 smågris (7-31 kg) | D148: Fully slatted floor | E148: Fuldspaltegulv | F148: =IFERROR(HLOOKUP('CH4 Gødning'!$E148,Indtastning!$A$28:$S$32,4,FALSE),0) -> 0 | G148: Gylle | H148: M | I148: 0.126 | J148: 0.046 | Q148: 4.6368 | R148: 5.2632 | S148: 0 | U148: 16.66 | V148: 0.45 | W148: 0.2643700097 | X148: 0
A149: Weaners | B149: Svin | C149: 1 smågris (7-31 kg) | D149: Partly slatted floor | E149: To klimastald, delvis spaltegulv | F149: =IFERROR(HLOOKUP('CH4 Gødning'!$E149,Indtastning!$A$28:$S$32,4,FALSE),0) -> 0 | G149: Gylle | H149: M | I149: 0.132 | J149: 0.05 | K149: Strøelse | L149: S | M149: 0.001 | N149: 0.85 | Q149: 6.1296175 | R149: 5.2632 | S149: 0 | U149: 16.66 | V149: 0.45 | W149: 0.2643700097 | X149: 0
A150: Weaners | B150: Svin | C150: 1 smågris (7-31 kg) | D150: Solid floor | E150: Fast gulv | F150: =IFERROR(HLOOKUP('CH4 Gødning'!$E150,Indtastning!$A$28:$S$32,4,FALSE),0) -> 0 | G150: Staldgødning | H150: M | I150: 0.018 | J150: 0.23 | K150: Strøelse | L150: S | M150: 0.025 | N150: 0.85 | Q150: 24.5524375 | R150: 6.029375 | S150: 0 | U150: 2 | V150: 0.45 | W150: 0.03635713125 | X150: 0
A151: Weaners | B151: Svin | C151: 1 smågris (7-31 kg) | D151: solid floor | E151: Fast gulv | F151: =IFERROR(HLOOKUP('CH4 Gødning'!$E151,Indtastning!$A$28:$S$32,4,FALSE),0) -> 0 | G151: Ajle (liquid manure/urin) | H151: M | I151: 0.071 | J151: 0.019 | Q151: 1.0792 | R151: 1.12 | S151: 0 | U151: 16.66 | V151: 0.45 | W151: 0.056257488 | X151: 0
A152: Weaners | B152: Svin | C152: 1 smågris (7-31 kg) | D152: Deep litter (to-climate housings) | E152: Dybstrøelse | F152: =IFERROR(HLOOKUP('CH4 Gødning'!$E152,Indtastning!$A$28:$S$32,4,FALSE),0) -> 0 | K152: Dybstrøelse | L152: S | M152: 0.026 | N152: 0.33 | Q152: 8.576139 | R152: 15.81595 | S152: 0 | U152: 7.2 | V152: 0.45 | W152: 0.3433326426 | X152: 0
A153: Weaners | B153: Svin | C153: 1 smågris (7-31 kg) | D153: Partly slatted and drained floor | E153: Drænet gulv + spalter (50/50) | F153: =IFERROR(HLOOKUP('CH4 Gødning'!$E153,Indtastning!$A$28:$S$32,4,FALSE),0) -> 0 | G153: Gylle | H153: M | I153: 0.132 | J153: 0.044 | Q153: 4.6464 | R153: 5.2632 | S153: 0 | U153: 16.66 | V153: 0.45 | W153: 0.2643700097 | X153: 0
A154: Fattening pigs | B154: Svin | C154: Slagtesvin (31 kg >) | D154: Fully slatted floor | E154: Fuldspaltegulv | F154: =IFERROR(HLOOKUP('CH4 Gødning'!$E154,Indtastning!$A$28:$S$32,5,FALSE),0) -> 0 | G154: Gylle | H154: M | I154: 0.55 | J154: 0.061 | Q154: 26.84 | R154: 31.36 | S154: 0 | U154: 16.66 | V154: 0.45 | W154: 1.575209664 | X154: 0
A155: Fattening pigs | B155: Svin | C155: Slagtesvin (31 kg >) | D155: Solid floor | E155: Fast gulv | F155: =IFERROR(HLOOKUP('CH4 Gødning'!$E155,Indtastning!$A$28:$S$32,5,FALSE),0) -> 0 | G155: Ajle (liquid manure/urin) | H155: M | I155: 0.35 | J155: 0.02 | Q155: 5.6 | R155: 5.92 | S155: 0 | U155: 16.66 | V155: 0.45 | W155: 0.297361008 | X155: 0
A156: Fattening pigs | B156: Svin | C156: Slagtesvin (31 kg >) | D156: Solid floor | E156: Fast gulv | F156: =IFERROR(HLOOKUP('CH4 Gødning'!$E156,Indtastning!$A$28:$S$32,5,FALSE),0) -> 0 | G156: Staldgødning | H156: M | I156: 0.1 | J156: 0.23 | K156: Strøelse | L156: S | M156: =13/1000*(365/3.7) -> 1.282432432 | N156: 0.85 | Q156: 1107.977037 | R156: 36.55275 | S156: 0 | U156: 2 | V156: 0.45 | W156: 0.2204130825 | X156: 0
A157: Fattening pigs | B157: Svin | C157: Slagtesvin (31 kg >) | D157: Deep litter, fattening pigs | E157: Dybstrøelse | F157: =IFERROR(HLOOKUP('CH4 Gødning'!$E157,Indtastning!$A$28:$S$32,5,FALSE),0) -> 0 | K157: Dybstrøelse | L157: S | M157: 0.17 | N157: 0.33 | Q157: 56.074755 | R157: 87.6548625 | S157: 0 | U157: 11.4 | V157: 0.45 | W157: 3.012785279 | X157: 0
A158: Fattening pigs | B158: Svin | C158: Slagtesvin (31 kg >) | D158: Partly slatted floor and partly deep litter | E158: Dybstrøelse, opdelt lejeareal | F158: =IFERROR(HLOOKUP('CH4 Gødning'!$E158,Indtastning!$A$28:$S$32,5,FALSE),0) -> 0 | G158: Gylle | H158: M | I158: 0.34 | J158: 0.049 | Q158: 13.328 | R158: 15.68 | S158: 0 | U158: 16.66 | V158: 0.45 | W158: 0.787604832 | X158: 0
A159: Fattening pigs | B159: Svin | C159: Slagtesvin (31 kg >) | D159: Partly slatted floor and partly deep litter | E159: Dybstrøelse, opdelt lejeareal | F159: =IFERROR(HLOOKUP('CH4 Gødning'!$E159,Indtastning!$A$28:$S$32,5,FALSE),0) -> 0 | K159: Dybstrøelse | L159: S | M159: 0.09 | N159: 0.33 | Q159: 29.686635 | R159: 44.09125 | S159: 0 | U159: 17 | V159: 0.45 | W159: 2.259897019 | X159: 0
A160: Fattening pigs | B160: Svin | C160: Slagtesvin (31 kg >) | D160: Partly slatted and drained floor | E160: Drænet gulv + spalter (33/67) | F160: =IFERROR(HLOOKUP('CH4 Gødning'!$E160,Indtastning!$A$28:$S$32,5,FALSE),0) -> 0 | G160: Gylle | H160: M | I160: 0.55 | J160: 0.061 | Q160: 26.84 | R160: 31.36 | S160: 0 | U160: 16.66 | V160: 0.45 | W160: =(R160*U160/100*0.67*V160)+(T160*U160/100*0.67*V160) -> 1.575209664 | X160: 0
A161: Fattening pigs | B161: Svin | C161: Slagtesvin (31 kg >) | D161: Biogas | E161: Biogas | F161: =IFERROR(HLOOKUP('CH4 Gødning'!$E161,Indtastning!$A$28:$S$32,5,FALSE),0) -> 0 | Q161: 0 | R161: 34.3228875 | S161: 0 | U161: 10.12 | V161: 0.45 | W161: 1.047253079 | X161: 0
A162: Hens | B162: Andet | C162: Høns | D162: Free-range hens | E162: Friland, konsumæg | F162: =IFERROR(HLOOKUP('CH4 Gødning'!$E162,Indtastning!$B$39:$O$42,2,FALSE),0) -> 0 | G162: Staldgødning | H162: M | I162: =1.27/100 -> 0.0127 | J162: 0.4 | Q162: 4.064 | R162: 6.5856 | S162: 0 | U162: 1 | V162: 0.39 | W162: 0.0172081728 | X162: 0
A163: Hens | B163: Andet | C163: Høns | D163: Free-range hens | E163: Friland, konsumæg | F163: =IFERROR(HLOOKUP('CH4 Gødning'!$E163,Indtastning!$B$39:$O$42,2,FALSE),0) -> 0 | K163: Dybstrøelse | L163: S | M163: =0.01*0.38 -> 0.0038 | N163: 0.633 | Q163: 2.40431757 | R163: 3.4145625 | S163: 0 | U163: 1 | V163: 0.39 | W163: 0.008922251813 | X163: =F163*W163 -> 0
A164: Hens | B164: Andet | C164: Høns | D164: Free-range hens | E164: Friland, konsumæg | F164: =IFERROR(HLOOKUP('CH4 Gødning'!$E164,Indtastning!$B$39:$O$42,2,FALSE),0) -> 0 | G164: Udeareal | H164: M | I164: =0.48/100 -> 0.0048 | J164: 0.28 | Q164: 1.0752 | R164: 1.0976 | S164: 0 | U164: 1 | V164: 0.39 | W164: 0.0028680288 | X164: 0
A165: Hens | B165: Andet | C165: Høns | D165: Organic hens | E165: Økologiske, konsumæg | F165: =IFERROR(HLOOKUP('CH4 Gødning'!$E165,Indtastning!$B$39:$O$42,2,FALSE),0) -> 0 | G165: Staldgødning | H165: M | I165: =1.3/100 -> 0.013 | J165: 0.4 | K165: Dybstrøelse | L165: S | M165: =0.01*0.42 -> 0.0042 | N165: 0.633 | Q165: 6.81740363 | R165: 10.396275 | S165: 0 | U165: 1.5 | V165: 0.39 | W165: 0.04074819986 | X165: 0
A166: Hens | B166: Andet | C166: Høns | D166: Organic hens | E166: Økologiske, konsumæg | F166: =IFERROR(HLOOKUP('CH4 Gødning'!$E166,Indtastning!$B$39:$O$42,2,FALSE),0) -> 0 | G166: Udeareal | H166: M | I166: =0.01*0.49 -> 0.0049 | J166: 0.28 | Q166: 1.0976 | R166: 1.12 | S166: 0 | U166: 1 | V166: 0.39 | W166: 0.00292656 | X166: 0
A167: Hens | B167: Andet | C167: Høns | D167: Barn hens | E167: Skrabehøner, konsumæg | F167: =IFERROR(HLOOKUP('CH4 Gødning'!$E167,Indtastning!$B$39:$O$42,2,FALSE),0) -> 0 | G167: Staldgødning | H167: M | I167: =0.01*0.4 -> 0.004 | J167: 0.633 | Q167: 2.0256 | R167: 7.3696 | S167: 0 | U167: 1.5 | V167: 0.39 | W167: 0.0288851472 | X167: 0
A168: Hens | B168: Andet | C168: Høns | D168: Barn hens | E168: Skrabehøner, konsumæg | F168: =IFERROR(HLOOKUP('CH4 Gødning'!$E168,Indtastning!$B$39:$O$42,2,FALSE),0) -> 0 | K168: Dybstrøelse | Q168: 0 | R168: 3.709975 | S168: 0 | U168: 1 | V168: 0.39 | W168: 0.009694164675 | X168: 0
A169: Hens | B169: Andet | C169: Høns | D169: Battery hens, manure shed | E169: Burhøns, konsumæg, bånd, staldgødning | F169: =IFERROR(HLOOKUP('CH4 Gødning'!$E169,Indtastning!$B$39:$O$42,2,FALSE),0) -> 0 | G169: Staldgødning | H169: M | I169: =0.01*2.82 -> 0.0282 | J169: 0.4 | Q169: 9.024 | R169: 9.9232 | S169: 0 | U169: 1.5 | V169: 0.39 | W169: 0.0388939824 | X169: 0
A170: Hens | B170: Andet | C170: Høns | D170: Battery hens, manure tank | E170: Burhøns, konsumæg, bånd, gylle | F170: =IFERROR(HLOOKUP('CH4 Gødning'!$E170,Indtastning!$B$39:$O$42,2,FALSE),0) -> 0 | G170: Gylle | H170: M | I170: =0.01*9.92 -> 0.0992 | J170: 0.12 | Q170: 9.5232 | R170: 9.9232 | S170: 0 | U170: 1.5 | V170: 0.39 | W170: 0.0388939824 | X170: 0
A171: Hens | B171: Andet | C171: Høns | D171: Battery hens, manure cellar | E171: Burhøns, konsumæg, gødningskælder | F171: =IFERROR(HLOOKUP('CH4 Gødning'!$E171,Indtastning!$B$39:$O$42,2,FALSE),0) -> 0 | G171: Staldgødning | H171: M | I171: =0.01*1.97 -> 0.0197 | J171: 0.4 | Q171: 6.304 | R171: 9.9232 | S171: 0 | U171: 1.5 | V171: 0.39 | W171: 0.0388939824 | X171: 0
A172: Hens | B172: Andet | C172: Høns | D172: Hens for production of brood egg | E172: HPR høner (rugeæg), gulvdrift | F172: =IFERROR(HLOOKUP('CH4 Gødning'!$E172,Indtastning!$B$39:$O$42,2,FALSE),0) -> 0 | K172: Dybstrøelse | Q172: 0 | R172: 14.4032 | S172: 0 | U172: 1.5 | V172: 0.39 | W172: 0.0564533424 | X172: 0
A173: Hens | B173: Andet | C173: Høns | D173: Hens for production of brood egg | E173: HPR høner (rugeæg), gulvdrift | F173: =IFERROR(HLOOKUP('CH4 Gødning'!$E173,Indtastning!$B$39:$O$42,2,FALSE),0) -> 0 | G173: Staldgødning | H173: M | Q173: 0 | R173: 0.16235 | S173: 0 | U173: 1.5 | V173: 0.39 | W173: 0.000636330825 | X173: 0
A174: Pullet | B174: Andet | C174: Hønniker | D174: Pullet, consumption, net | E174: Hønniker, konsum, gulvdrift, 112 dage | F174: =IFERROR(HLOOKUP('CH4 Gødning'!$E174,Indtastning!$B$39:$R$42,3,FALSE),0) -> 0 | K174: Dybstrøelse | Q174: 0 | R174: 1.34235 | S174: 0 | U174: 1.5 | V174: 0.39 | W174: 0.005261340825 | X174: 0
A175: Pullet | B175: Andet | C175: Hønniker | D175: Pullet, consumption, floor | E175: Hønniker, konsum, netdrift, 112 dage | F175: =IFERROR(HLOOKUP('CH4 Gødning'!$E175,Indtastning!$B$39:$R$42,3,FALSE),0) -> 0 | G175: Staldgødning | Q175: 0 | R175: 1.18 | S175: 0 | U175: 1.5 | V175: 0.39 | W175: 0.00462501 | X175: 0
A176: Pullet | B176: Andet | C176: Hønniker | D176: Pullet, brood egg, floor | E176: Hønniker, rugeæg, HPR, gulvdrift, 119 dage | F176: =IFERROR(HLOOKUP('CH4 Gødning'!$E176,Indtastning!$B$39:$R$42,3,FALSE),0) -> 0 | K176: Dybstrøelse | Q176: 0 | R176: 1.40235 | S176: 0 | U176: 1.5 | V176: 0.39 | W176: 0.005496510825 | X176: 0
A177: Pullet | B177: Andet | C177: Hønniker | E177: Hønniker, rugeæg, HPR, gulvdrift, 119 dage | F177: =IFERROR(HLOOKUP('CH4 Gødning'!$E177,Indtastning!$B$39:$R$42,3,FALSE),0) -> 0 | Q177: 0 | S177: 0 | U177: 1.5 | V177: 0.39 | W177: 0 | X177: 0
A178: Broilers | B178: Andet | C178: Slagtekyllinger, 1000 stk. | D178: Broilers, (conv. 30 days) | E178: Slagtekyllinger (25 dyr/m2), produktionstid 30 dage | F178: =IFERROR(HLOOKUP('CH4 Gødning'!$E178,Indtastning!$B$39:$Q$42,4,FALSE),0) -> 0 | K178: Dybstrøelse | L178: S | M178: =1.02/1000 -> 0.00102 | N178: 0.48 | Q178: 0.48937968 | R178: 0.5243525 | S178: 0 | U178: 1.5 | V178: 0.36 | W178: 0.001897107345 | X178: 0
A179: Broilers | B179: Andet | C179: Slagtekyllinger, 1000 stk. | D179: Broilers, (conv. 32 days) | E179: Slagtekyllinger (25 dyr/m2), produktionstid 32 dage | F179: =IFERROR(HLOOKUP('CH4 Gødning'!$E179,Indtastning!$B$39:$Q$42,4,FALSE),0) -> 0 | K179: Dybstrøelse | L179: S | M179: =1.14/1000 -> 0.00114 | N179: 0.48 | Q179: 0.54695376 | R179: 0.5903525 | S179: 0 | U179: 1.5 | V179: 0.36 | W179: 0.002135895345 | X179: 0
A180: Broilers | B180: Andet | C180: Slagtekyllinger, 1000 stk. | D180: Broilers, (conv. 35 days) | E180: Slagtekyllinger (25 dyr/m2), produktionstid 35 dage | F180: =IFERROR(HLOOKUP('CH4 Gødning'!$E180,Indtastning!$B$39:$Q$42,4,FALSE),0) -> 0 | K180: Dybstrøelse | L180: S | M180: =1.37/1000 -> 0.00137 | N180: 0.48 | Q180: 0.65730408 | R180: 0.7043525 | S180: 0 | U180: 1.5 | V180: 0.36 | W180: 0.002548347345 | X180: 0
A181: Broilers | B181: Andet | C181: Slagtekyllinger, 1000 stk. | D181: Broilers, (conv. 40 days) | E181: Slagtekyllinger (25 dyr/m2), produktionstid 40 dage | F181: =IFERROR(HLOOKUP('CH4 Gødning'!$E181,Indtastning!$B$39:$Q$42,4,FALSE),0) -> 0 | K181: Dybstrøelse | L181: S | M181: =1.77/1000 -> 0.00177 | N181: 0.48 | Q181: 0.84921768 | R181: 0.9123525 | S181: 0 | U181: 1.5 | V181: 0.36 | W181: 0.003300891345 | X181: 0
A182: Broilers | B182: Andet | C182: Slagtekyllinger, 1000 stk. | D182: Broilers, (conv. 45 days) | E182: Slagtekyllinger (25 dyr/m2), produktionstid 45 dage | F182: =IFERROR(HLOOKUP('CH4 Gødning'!$E182,Indtastning!$B$39:$Q$42,4,FALSE),0) -> 0 | K182: Dybstrøelse | L182: S | M182: =2.22/1000 -> 0.00222 | N182: 0.48 | Q182: 1.06512048 | S182: 0 | U182: 1.5 | V182: 0.36 | W182: 0 | X182: 0
A183: Broilers | B183: Andet | C183: Slagtekyllinger, 1000 stk. | D183: Broilers, barn (56 days) | E183: Skrabekyllinger (10 dyr/m2), produktionstid 56 dage | F183: =IFERROR(HLOOKUP('CH4 Gødning'!$E183,Indtastning!$B$39:$Q$42,4,FALSE),0) -> 0 | K183: Dybstrøelse | L183: S | M183: =2.41/1000 -> 0.00241 | N183: 0.48 | Q183: 1.15627944 | R183: 1.2477625 | S183: 0 | U183: 1.5 | V183: 0.36 | W183: 0.004514404725 | X183: 0
A184: Broilers | B184: Andet | C184: Slagtekyllinger, 1000 stk. | D184: Organic broilers (81 days) | E184: Økologiske slagtekyllinger | F184: =IFERROR(HLOOKUP('CH4 Gødning'!$E184,Indtastning!$B$39:$Q$42,4,FALSE),0) -> 0 | K184: Dybstrøelse | L184: S | M184: =2.09/1000 -> 0.00209 | N184: 0.5 | Q184: 1.04452975 | R184: 2.221625 | S184: 0 | U184: 1.5 | V184: 0.36 | W184: 0.00803783925 | X184: 0
A185: Broilers | B185: Andet | C185: Slagtekyllinger, 1000 stk. | D185: Organic broilers (81 days) | E185: Økologiske slagtekyllinger | F185: =IFERROR(HLOOKUP('CH4 Gødning'!$E185,Indtastning!$B$39:$Q$42,4,FALSE),0) -> 0 | G185: Udeareal | H185: M | I185: =0.28/1000 -> 0.00028 | J185: 0.5 | Q185: 0.112 | R185: 0.112 | S185: 0 | U185: 1 | V185: 0.36 | W185: 0.000270144 | X185: 0
A186: Mink | B186: Andet | C186: Mink | D186: Slurry system | E186: Bure, fast gødning i gødningsrende | F186: =IFERROR(HLOOKUP('CH4 Gødning'!$E186,Indtastning!$A$60:$G$67,8,FALSE),0) -> 0 | G186: Gylle | H186: M | I186: 0.37 | J186: 0.12 | Q186: 35.52 | R186: 44.8375 | S186: 0 | U186: 10.14 | V186: 0.25 | W186: 0.7615425188 | X186: 0
A187: Mink | B187: Andet | C187: Mink | D187: Slurry system | E187: Bure gødningsrende, ugentlig tømning | F187: =IFERROR(HLOOKUP('CH4 Gødning'!$E187,Indtastning!$A$60:$G$67,8,FALSE),0) -> 0 | K187: Dybstrøelse | L187: S | M187: 0.06 | N187: 0.35 | Q187: 20.99055 | R187: 10.5079 | S187: 0 | U187: 10.14 | V187: 0.25 | W187: 0.1784714276 | X187: 0
A188: Mink | B188: Andet | C188: Mink | D188: Solid manure and urine | E188: Bure gødningsrende, ugentlig tømning | F188: =IFERROR(HLOOKUP('CH4 Gødning'!$E188,Indtastning!$A$60:$G$67,8,FALSE),0) -> 0 | G188: Gylle | H188: M | I188: 0.41 | J188: 0.069 | Q188: 22.632 | R188: 26.2944 | S188: 0 | U188: 10.14 | V188: 0.25 | W188: 0.4465972368 | X188: 0
A189: Horse <300 kg | B189: Andet | C189: Heste <300 kg | D189: Deep litter | E189: Dybstrøelse | F189: =IFERROR(HLOOKUP('CH4 Gødning'!$E189,Indtastning!$A$60:$G$67,2,FALSE),0) -> 0 | K189: Dybstrøelse | L189: S | M189: 2.97 | N189: 0.26 | P189: 182.5 | Q189: 771.85251 | R189: 680.433125 | S189: 0 | T189: 236 | U189: 2 | V189: 0.3 | W189: 3.684061163 | X189: 0
A190: Horse 300 - <500 kg | B190: Andet | C190: Heste 300 kg, <500 kg | D190: Deep litter | E190: Dybstrøelse | F190: =IFERROR(HLOOKUP('CH4 Gødning'!$E190,Indtastning!$A$60:$G$67,2,FALSE),0) -> 0 | K190: Dybstrøelse | L190: S | M190: 4.52 | N190: 0.26 | P190: 182.5 | Q190: 1174.67116 | R190: 1032.721875 | S190: 0 | T190: 292 | U190: 2 | V190: 0.3 | W190: 5.325381938 | X190: 0
A191: Horse 500 - <700 kg | B191: Andet | C191: Heste 500 kg, <700 kg | D191: Deep litter | E191: Dybstrøelse | F191: =IFERROR(HLOOKUP('CH4 Gødning'!$E191,Indtastning!$A$60:$G$67,2,FALSE),0) -> 0 | K191: Dybstrøelse | L191: S | M191: 5.13 | N191: 0.26 | P191: 182.5 | Q191: 1333.19979 | R191: 1178.721875 | S191: 0 | T191: 438 | U191: 2 | V191: 0.3 | W191: 6.499221937 | X191: 0
A192: Horse >700 kg | B192: Andet | C192: Heste 700+ kg | D192: Deep litter | E192: Dybstrøelse | F192: =IFERROR(HLOOKUP('CH4 Gødning'!$E192,Indtastning!$A$60:$G$67,2,FALSE),0) -> 0 | K192: Dybstrøelse | L192: S | M192: 5.75 | N192: 0.26 | P192: 182.5 | Q192: 1494.32725 | R192: 1324.721875 | S192: 0 | T192: 584 | U192: 2 | V192: 0.3 | W192: =(R192*U192/100*0.67*V192)+(T192*U192/100*0.67*V192) -> 7.673061938 | X192: 0
A193: Sheep | B193: Andet | C193: Får | D193: Deep litter | E193: Dybstrøelse | F193: =IFERROR(HLOOKUP('CH4 Gødning'!$E193,Indtastning!$A$49:$G$52,2,FALSE),0) -> 0 | K193: Dybstrøelse | L193: S | M193: 1.13 | N193: 0.346 | P193: 265 | Q193: =(I193*1000)/365*J193*(365-O193)*0.8+(M193*1000)/365*N193*(365-O193)*(1-0.045/100) -> 390.804059 | R193: 148.3194452 | S193: =(I193*1000)/365*J193*0.8*P193 -> 0 | T193: 147.8168548 | U193: 5.383561644 | V193: 0.19 | W193: 2.029503197 | X193: 0
A194: Mohair goat | B194: Andet | C194: Mohairgeder | D194: Deep litter | E194: Dybstrøelse | F194: =IFERROR(HLOOKUP('CH4 Gødning'!$E194,Indtastning!$A$49:$B$53,4,FALSE),0) -> 0 | K194: Dybstrøelse | L194: S | M194: 1.21 | N194: 0.346 | P194: 265 | Q194: 418.471603 | R194: 212.0719178 | S194: 0 | T194: 237.8465753 | U194: 17 | V194: 0.18 | W194: 9.224228947 | X194: 0
A195: Meat goat | B195: Andet | C195: Kødgeder | D195: Deep litter | E195: Dybstrøelse | F195: =IFERROR(HLOOKUP('CH4 Gødning'!$E195,Indtastning!$A$49:$B$53,5,FALSE),0) -> 0 | K195: Dybstrøelse | L195: S | M195: 1.1 | N195: 0.346 | P195: 265 | Q195: 380.42873 | R195: 190.0116438 | S195: 0 | T195: 179.3868493 | U195: 17 | V195: 0.18 | W195: 7.573407907 | X195: =F195*W195 -> 0
A196: Milk goat | B196: Andet | C196: Malkegeder | D196: Deep litter | E196: Dybstrøelse | F196: =IFERROR(HLOOKUP('CH4 Gødning'!$E196,Indtastning!$A$49:$B$53,3,FALSE),0) -> 0 | K196: Dybstrøelse | L196: S | M196: 1.13 | N196: 0.346 | P196: 265 | Q196: 390.804059 | R196: 195.7168493 | S196: 0 | T196: 194.5056438 | U196: 17 | V196: 0.18 | W196: 8.000341555 | X196: 0
C199: Kilde | G199: Poulsen (2015) Normtal | H199: Poulsen (2015) Normtal | I199: Poulsen (2015) Normtal | J199: Poulsen (2015) Normtal | K199: Poulsen (2015) Normtal og baggrundstal til normtal | L199: Poulsen (2015) Normtal og baggrundstal til normtal | M199: Poulsen (2015) Normtal og baggrundstal til normtal | N199: Poulsen (2015) Normtal og baggrundstal til normtal | P199: NIR Annex 3D-9 | R199: DCE | T199: DCE | U199: NIR Annex 3D-13 | V199: IPCC Tabel 10A-4 til 10A-9
A223: Kg Metan | B223: Andet kvæg | C223: Malkekvæg | D223: Svin | E223: Andet | G223: Hovedtotal
A224: Ajle (liquid manure/urin) | B224: =SUMIFS('CH4 Gødning'!$X$3:$X$196,'CH4 Gødning'!$G$3:$G$196,$A224,'CH4 Gødning'!$B$3:$B$196,B223) -> 0 | C224: =SUMIFS('CH4 Gødning'!$X$3:$X$196,'CH4 Gødning'!$G$3:$G$196,A224,'CH4 Gødning'!$B$3:$B$196,$C$223) -> 0 | D224: =SUMIFS('CH4 Gødning'!$X$3:$X$196,'CH4 Gødning'!$G$3:$G$196,A224,'CH4 Gødning'!$B$3:$B$196,$D$223) -> 0 | E224: =SUMIFS('CH4 Gødning'!$X$3:$X$196,'CH4 Gødning'!$G$3:$G$196,A224,'CH4 Gødning'!$B$3:$B$196,$E$223) -> 0 | G224: =SUMIF('CH4 Gødning'!$G$3:$G$196,A224,'CH4 Gødning'!$X$3:$X$196) -> 0
A225: Gylle | B225: =SUMIFS('CH4 Gødning'!$X$3:$X$196,'CH4 Gødning'!$G$3:$G$196,A225,'CH4 Gødning'!$B$3:$B$196,$B$223) -> 0 | C225: =SUMIFS('CH4 Gødning'!$X$3:$X$196,'CH4 Gødning'!$G$3:$G$196,A225,'CH4 Gødning'!$B$3:$B$196,$C$223) -> 0 | D225: =SUMIFS('CH4 Gødning'!$X$3:$X$196,'CH4 Gødning'!$G$3:$G$196,A225,'CH4 Gødning'!$B$3:$B$196,$D$223) -> 0 | E225: =SUMIFS('CH4 Gødning'!$X$3:$X$196,'CH4 Gødning'!$G$3:$G$196,A225,'CH4 Gødning'!$B$3:$B$196,$E$223) -> 0 | G225: =SUMIF('CH4 Gødning'!$G$3:$G$196,A225,'CH4 Gødning'!$X$3:$X$196) -> 0
... 4 more rows

Sheet N2O Gødning
A1: Karakteristika | G1: Inputs | H1: Normtal (Poulsen 2015) | I1: Direkte udledninger | M1: Indirekte udledninger | R1: Totale udledninger
A2: Livestock categories | B2: Dyrekategori | C2: Dyr | D2: Housing type | E2: Staldsystem | F2: Gødningstype | G2: Antal dyr | H2: Kg N pr dyr (Nex) | I2: Total N excretion (kg pr year) | J2: Emissionsfaktor (kgN2O-N pr kg Nex) | K2: Total N2O-N | L2: Total N2O direkte, kg | M2: FracGasMS | N2: Total N fra fordampning | O2: Emissionsfaktor (EF4) | P2: Total N2O-N2 kg | Q2: Total N2O indirekte, kg | R2: Totale udledninger
A3: dairy cattle | B3: Malkekvæg | C3: 1 årsko, tung race | D3: Tethered with urine and solid manure | E3: Bindestald med grebning | F3: Staldgødning | G3: =IFERROR(HLOOKUP(Tabel86[[#This Row],[Staldsystem]],Indtastning!$B$8:$P$9,2,FALSE),0) -> 0 | H3: 69.66 | I3: =G3*H3 -> 0 | J3: 0.005 | K3: =I3*J3 -> 0 | L3: =K3*44/28 -> 0 | M3: 0.07787965788 | N3: =Tabel86[[#This Row],[Total N excretion (kg pr year)]]*Tabel86[[#This Row],[FracGasMS]] -> 0 | O3: 0.01 | P3: =Tabel86[[#This Row],[Total N fra fordampning]]*Tabel86[[#This Row],[Emissionsfaktor (EF4)]] -> 0 | Q3: =Tabel86[[#This Row],[Total N2O-N2 kg]]*44/28 -> 0 | R3: =Tabel86[[#This Row],[Total N2O direkte, kg]]+Tabel86[[#This Row],[Total N2O indirekte, kg ]] -> 0
A4: dairy cattle | B4: Malkekvæg | C4: 1 årsko, tung race | D4: Tethered with urine and solid manure | E4: Bindestald med grebning | F4: Ajle (liquid manure/urin) | G4: =IFERROR(HLOOKUP(Tabel86[[#This Row],[Staldsystem]],Indtastning!$B$8:$P$9,2,FALSE),0) -> 0 | H4: 58.26 | I4: 0 | J4: 0.005 | K4: =I4*J4 -> 0 | L4: 0 | M4: 0.07787965788 | N4: =Tabel86[[#This Row],[Total N excretion (kg pr year)]]*Tabel86[[#This Row],[FracGasMS]] -> 0 | O4: 0.01 | P4: =Tabel86[[#This Row],[Total N fra fordampning]]*Tabel86[[#This Row],[Emissionsfaktor (EF4)]] -> 0 | Q4: =Tabel86[[#This Row],[Total N2O-N2 kg]]*44/28 -> 0 | R4: =Tabel86[[#This Row],[Total N2O direkte, kg]]+Tabel86[[#This Row],[Total N2O indirekte, kg ]] -> 0
A5: dairy cattle | B5: Malkekvæg | C5: 1 årsko, tung race | D5: Tethered with slurry | E5: Bindestald med riste | F5: Gylle | G5: =IFERROR(HLOOKUP(Tabel86[[#This Row],[Staldsystem]],Indtastning!$B$8:$P$9,2,FALSE),0) -> 0 | H5: 142.17 | I5: 0 | J5: 0.005 | K5: 0 | L5: 0 | M5: 0.07787965788 | N5: =Tabel86[[#This Row],[Total N excretion (kg pr year)]]*Tabel86[[#This Row],[FracGasMS]] -> 0 | O5: 0.01 | P5: =Tabel86[[#This Row],[Total N fra fordampning]]*Tabel86[[#This Row],[Emissionsfaktor (EF4)]] -> 0 | Q5: =Tabel86[[#This Row],[Total N2O-N2 kg]]*44/28 -> 0 | R5: =Tabel86[[#This Row],[Total N2O direkte, kg]]+Tabel86[[#This Row],[Total N2O indirekte, kg ]] -> 0
A6: dairy cattle | B6: Malkekvæg | C6: 1 årsko, tung race | D6: Loose-holding with beds, solid floor | E6: Sengestald med fast gulv | F6: Gylle | G6: =IFERROR(HLOOKUP(Tabel86[[#This Row],[Staldsystem]],Indtastning!$B$8:$P$9,2,FALSE),0) -> 0 | H6: 131.96 | I6: 0 | J6: 0.005 | K6: 0 | L6: 0 | M6: 0.07787965788 | N6: =Tabel86[[#This Row],[Total N excretion (kg pr year)]]*Tabel86[[#This Row],[FracGasMS]] -> 0 | O6: 0.01 | P6: =Tabel86[[#This Row],[Total N fra fordampning]]*Tabel86[[#This Row],[Emissionsfaktor (EF4)]] -> 0 | Q6: =Tabel86[[#This Row],[Total N2O-N2 kg]]*44/28 -> 0 | R6: =Tabel86[[#This Row],[Total N2O direkte, kg]]+Tabel86[[#This Row],[Total N2O indirekte, kg ]] -> 0
A7: dairy cattle | B7: Malkekvæg | C7: 1 årsko, tung race | D7: Loose-holding with beds, slatted floor | E7: Sengestald med spalter (kanal, linespil) | F7: Gylle | G7: =IFERROR(HLOOKUP(Tabel86[[#This Row],[Staldsystem]],Indtastning!$B$8:$P$9,2,FALSE),0) -> 0 | H7: 137.09 | I7: 0 | J7: 0.005 | K7: 0 | L7: 0 | M7: 0.07787965788 | N7: =Tabel86[[#This Row],[Total N excretion (kg pr year)]]*Tabel86[[#This Row],[FracGasMS]] -> 0 | O7: 0.01 | P7: =Tabel86[[#This Row],[Total N fra fordampning]]*Tabel86[[#This Row],[Emissionsfaktor (EF4)]] -> 0 | Q7: =Tabel86[[#This Row],[Total N2O-N2 kg]]*44/28 -> 0 | R7: =Tabel86[[#This Row],[Total N2O direkte, kg]]+Tabel86[[#This Row],[Total N2O indirekte, kg ]] -> 0
A8: dairy cattle | B8: Malkekvæg | C8: 1 årsko, tung race | D8: Loose-holding with beds, slatted floor, scrape | E8: Sengestald med spalter (kanal, bagskyl eller ringkanal) | F8: Gylle | G8: =IFERROR(HLOOKUP(Tabel86[[#This Row],[Staldsystem]],Indtastning!$B$8:$P$9,2,FALSE),0) -> 0 | H8: 134.53 | I8: 0 | J8: 0.005 | K8: 0 | L8: 0 | M8: 0.07787965788 | N8: =Tabel86[[#This Row],[Total N excretion (kg pr year)]]*Tabel86[[#This Row],[FracGasMS]] -> 0 | O8: 0.01 | P8: =Tabel86[[#This Row],[Total N fra fordampning]]*Tabel86[[#This Row],[Emissionsfaktor (EF4)]] -> 0 | Q8: =Tabel86[[#This Row],[Total N2O-N2 kg]]*44/28 -> 0 | R8: =Tabel86[[#This Row],[Total N2O direkte, kg]]+Tabel86[[#This Row],[Total N2O indirekte, kg ]] -> 0
A9: dairy cattle | B9: Malkekvæg | C9: 1 årsko, tung race | D9: Loose-holding with beds, solid floor with tilt | E9: Sengestald, fast drænet gulv med skraber og ajleafløb | F9: Gylle | G9: =IFERROR(HLOOKUP(Tabel86[[#This Row],[Staldsystem]],Indtastning!$B$8:$P$9,2,FALSE),0) -> 0 | H9: 139.65 | I9: 0 | J9: 0.005 | K9: 0 | L9: 0 | M9: 0.07787965788 | N9: =Tabel86[[#This Row],[Total N excretion (kg pr year)]]*Tabel86[[#This Row],[FracGasMS]] -> 0 | O9: 0.01 | P9: =Tabel86[[#This Row],[Total N fra fordampning]]*Tabel86[[#This Row],[Emissionsfaktor (EF4)]] -> 0 | Q9: =Tabel86[[#This Row],[Total N2O-N2 kg]]*44/28 -> 0 | R9: =Tabel86[[#This Row],[Total N2O direkte, kg]]+Tabel86[[#This Row],[Total N2O indirekte, kg ]] -> 0
A10: dairy cattle | B10: Malkekvæg | C10: 1 årsko, tung race | D10: Deep litter (all) | E10: Dybstrøelse (hele arealet) | F10: Dybstrøelse | G10: =IFERROR(HLOOKUP(Tabel86[[#This Row],[Staldsystem]],Indtastning!$B$8:$P$9,2,FALSE),0) -> 0 | H10: 151.87 | I10: 0 | J10: 0.01 | K10: 0 | L10: 0 | M10: 0.07787965788 | N10: =Tabel86[[#This Row],[Total N excretion (kg pr year)]]*Tabel86[[#This Row],[FracGasMS]] -> 0 | O10: 0.01 | P10: =Tabel86[[#This Row],[Total N fra fordampning]]*Tabel86[[#This Row],[Emissionsfaktor (EF4)]] -> 0 | Q10: =Tabel86[[#This Row],[Total N2O-N2 kg]]*44/28 -> 0 | R10: =Tabel86[[#This Row],[Total N2O direkte, kg]]+Tabel86[[#This Row],[Total N2O indirekte, kg ]] -> 0
A11: dairy cattle | B11: Malkekvæg | C11: 1 årsko, tung race | D11: Deep litter, long eating space, solid floor | E11: Dybstrøelse, lang ædeplads med fast gulv | F11: Dybstrøelse | G11: =IFERROR(HLOOKUP(Tabel86[[#This Row],[Staldsystem]],Indtastning!$B$8:$P$9,2,FALSE),0) -> 0 | H11: 95.34 | I11: 0 | J11: 0.01 | K11: 0 | L11: 0 | M11: 0.07787965788 | N11: =Tabel86[[#This Row],[Total N excretion (kg pr year)]]*Tabel86[[#This Row],[FracGasMS]] -> 0 | O11: 0.01 | P11: =Tabel86[[#This Row],[Total N fra fordampning]]*Tabel86[[#This Row],[Emissionsfaktor (EF4)]] -> 0 | Q11: =Tabel86[[#This Row],[Total N2O-N2 kg]]*44/28 -> 0 | R11: =Tabel86[[#This Row],[Total N2O direkte, kg]]+Tabel86[[#This Row],[Total N2O indirekte, kg ]] -> 0
A12: dairy cattle | B12: Malkekvæg | C12: 1 årsko, tung race | D12: Deep litter, long eating space, solid floor | E12: Dybstrøelse, lang ædeplads med fast gulv | F12: Gylle | G12: =IFERROR(HLOOKUP(Tabel86[[#This Row],[Staldsystem]],Indtastning!$B$8:$P$9,2,FALSE),0) -> 0 | H12: 52.54 | I12: 0 | J12: 0.005 | K12: 0 | L12: 0 | M12: 0.07787965788 | N12: =Tabel86[[#This Row],[Total N excretion (kg pr year)]]*Tabel86[[#This Row],[FracGasMS]] -> 0 | O12: 0.01 | P12: =Tabel86[[#This Row],[Total N fra fordampning]]*Tabel86[[#This Row],[Emissionsfaktor (EF4)]] -> 0 | Q12: =Tabel86[[#This Row],[Total N2O-N2 kg]]*44/28 -> 0 | R12: =Tabel86[[#This Row],[Total N2O direkte, kg]]+Tabel86[[#This Row],[Total N2O indirekte, kg ]] -> 0
A13: dairy cattle | B13: Malkekvæg | C13: 1 årsko, tung race | D13: Deep litter, slatted floor | E13: Dybstrøelse, lang ædeplads med spalter (kanal, linespil) | F13: Dybstrøelse | G13: =IFERROR(HLOOKUP(Tabel86[[#This Row],[Staldsystem]],Indtastning!$B$8:$P$9,2,FALSE),0) -> 0 | H13: 95.34 | I13: 0 | J13: 0.01 | K13: 0 | L13: 0 | M13: 0.07787965788 | N13: =Tabel86[[#This Row],[Total N excretion (kg pr year)]]*Tabel86[[#This Row],[FracGasMS]] -> 0 | O13: 0.01 | P13: =Tabel86[[#This Row],[Total N fra fordampning]]*Tabel86[[#This Row],[Emissionsfaktor (EF4)]] -> 0 | Q13: =Tabel86[[#This Row],[Total N2O-N2 kg]]*44/28 -> 0 | R13: =Tabel86[[#This Row],[Total N2O direkte, kg]]+Tabel86[[#This Row],[Total N2O indirekte, kg ]] -> 0
A14: dairy cattle | B14: Malkekvæg | C14: 1 årsko, tung race | D14: Deep litter, slatted floor | E14: Dybstrøelse, lang ædeplads med spalter (kanal, linespil) | F14: Gylle | G14: =IFERROR(HLOOKUP(Tabel86[[#This Row],[Staldsystem]],Indtastning!$B$8:$P$9,2,FALSE),0) -> 0 | H14: 54.59 | I14: 0 | J14: 0.005 | K14: 0 | L14: 0 | M14: 0.07787965788 | N14: =Tabel86[[#This Row],[Total N excretion (kg pr year)]]*Tabel86[[#This Row],[FracGasMS]] -> 0 | O14: 0.01 | P14: =Tabel86[[#This Row],[Total N fra fordampning]]*Tabel86[[#This Row],[Emissionsfaktor (EF4)]] -> 0 | Q14: =Tabel86[[#This Row],[Total N2O-N2 kg]]*44/28 -> 0 | R14: =Tabel86[[#This Row],[Total N2O direkte, kg]]+Tabel86[[#This Row],[Total N2O indirekte, kg ]] -> 0
A15: dairy cattle | B15: Malkekvæg | C15: 1 årsko, tung race | D15: Deep litter, slatted floor, scrape | E15: Dybstrøelse, lang ædeplads med spalter (kanal, bagskyl eller ringkanal) | F15: Dybstrøelse | G15: =IFERROR(HLOOKUP(Tabel86[[#This Row],[Staldsystem]],Indtastning!$B$8:$P$9,2,FALSE),0) -> 0 | H15: 95.34 | I15: 0 | J15: 0.01 | K15: 0 | L15: 0 | M15: 0.07787965788 | N15: =Tabel86[[#This Row],[Total N excretion (kg pr year)]]*Tabel86[[#This Row],[FracGasMS]] -> 0 | O15: 0.01 | P15: =Tabel86[[#This Row],[Total N fra fordampning]]*Tabel86[[#This Row],[Emissionsfaktor (EF4)]] -> 0 | Q15: =Tabel86[[#This Row],[Total N2O-N2 kg]]*44/28 -> 0 | R15: =Tabel86[[#This Row],[Total N2O direkte, kg]]+Tabel86[[#This Row],[Total N2O indirekte, kg ]] -> 0
A16: dairy cattle | B16: Malkekvæg | C16: 1 årsko, tung race | D16: Deep litter, slatted floor, scrape | E16: Dybstrøelse, lang ædeplads med spalter (kanal, bagskyl eller ringkanal) | F16: Gylle | G16: =IFERROR(HLOOKUP(Tabel86[[#This Row],[Staldsystem]],Indtastning!$B$8:$P$9,2,FALSE),0) -> 0 | H16: 53.56 | I16: 0 | J16: 0.005 | K16: 0 | L16: 0 | M16: 0.07787965788 | N16: =Tabel86[[#This Row],[Total N excretion (kg pr year)]]*Tabel86[[#This Row],[FracGasMS]] -> 0 | O16: 0.01 | P16: =Tabel86[[#This Row],[Total N fra fordampning]]*Tabel86[[#This Row],[Emissionsfaktor (EF4)]] -> 0 | Q16: =Tabel86[[#This Row],[Total N2O-N2 kg]]*44/28 -> 0 | R16: =Tabel86[[#This Row],[Total N2O direkte, kg]]+Tabel86[[#This Row],[Total N2O indirekte, kg ]] -> 0
A17: dairy cattle | B17: Malkekvæg | C17: 1 årsko, tung race | D17: Biogas | E17: Biogas | G17: =IFERROR(HLOOKUP(Tabel86[[#This Row],[Staldsystem]],Indtastning!$B$8:$S$9,2,FALSE),0) -> 0 | H17: 137.09 | I17: 0 | J17: 0 | K17: 0 | L17: =K17*44/28 -> 0 | M17: 0.07787965788 | N17: =Tabel86[[#This Row],[Total N excretion (kg pr year)]]*Tabel86[[#This Row],[FracGasMS]] -> 0 | O17: 0.01 | P17: =Tabel86[[#This Row],[Total N fra fordampning]]*Tabel86[[#This Row],[Emissionsfaktor (EF4)]] -> 0 | Q17: =Tabel86[[#This Row],[Total N2O-N2 kg]]*44/28 -> 0 | R17: =Tabel86[[#This Row],[Total N2O direkte, kg]]+Tabel86[[#This Row],[Total N2O indirekte, kg ]] -> 0
A18: Dairy cattle, jersey | B18: Malkekvæg | C18: 1 årsko, jersey | D18: Tethered with urine and solid manure | E18: Bindestald med grebning | F18: Staldgødning | G18: =IFERROR(HLOOKUP(Tabel86[[#This Row],[Staldsystem]],Indtastning!$B$8:$P$10,3,FALSE),0) -> 0 | H18: 58.73 | I18: 0 | J18: 0.005 | K18: 0 | L18: 0 | M18: 0.07787965788 | N18: =Tabel86[[#This Row],[Total N excretion (kg pr year)]]*Tabel86[[#This Row],[FracGasMS]] -> 0 | O18: 0.01 | P18: =Tabel86[[#This Row],[Total N fra fordampning]]*Tabel86[[#This Row],[Emissionsfaktor (EF4)]] -> 0 | Q18: =Tabel86[[#This Row],[Total N2O-N2 kg]]*44/28 -> 0 | R18: =Tabel86[[#This Row],[Total N2O direkte, kg]]+Tabel86[[#This Row],[Total N2O indirekte, kg ]] -> 0
A19: Dairy cattle, jersey | B19: Malkekvæg | C19: 1 årsko, jersey | D19: Tethered with urine and solid manure | E19: Bindestald med grebning | F19: Ajle (liquid manure/urin) | G19: =IFERROR(HLOOKUP(Tabel86[[#This Row],[Staldsystem]],Indtastning!$B$8:$P$10,3,FALSE),0) -> 0 | H19: 49.06 | I19: 0 | J19: 0.005 | K19: 0 | L19: 0 | M19: 0.07787965788 | N19: =Tabel86[[#This Row],[Total N excretion (kg pr year)]]*Tabel86[[#This Row],[FracGasMS]] -> 0 | O19: 0.01 | P19: =Tabel86[[#This Row],[Total N fra fordampning]]*Tabel86[[#This Row],[Emissionsfaktor (EF4)]] -> 0 | Q19: =Tabel86[[#This Row],[Total N2O-N2 kg]]*44/28 -> 0 | R19: =Tabel86[[#This Row],[Total N2O direkte, kg]]+Tabel86[[#This Row],[Total N2O indirekte, kg ]] -> 0
A20: Dairy cattle, jersey | B20: Malkekvæg | C20: 1 årsko, jersey | D20: Tethered with slurry | E20: Bindestald med riste | F20: Gylle | G20: =IFERROR(HLOOKUP(Tabel86[[#This Row],[Staldsystem]],Indtastning!$B$8:$P$10,3,FALSE),0) -> 0 | H20: 119.79 | I20: 0 | J20: 0.005 | K20: 0 | L20: 0 | M20: 0.07787965788 | N20: =Tabel86[[#This Row],[Total N excretion (kg pr year)]]*Tabel86[[#This Row],[FracGasMS]] -> 0 | O20: 0.01 | P20: =Tabel86[[#This Row],[Total N fra fordampning]]*Tabel86[[#This Row],[Emissionsfaktor (EF4)]] -> 0 | Q20: =Tabel86[[#This Row],[Total N2O-N2 kg]]*44/28 -> 0 | R20: =Tabel86[[#This Row],[Total N2O direkte, kg]]+Tabel86[[#This Row],[Total N2O indirekte, kg ]] -> 0
A21: Dairy cattle, jersey | B21: Malkekvæg | C21: 1 årsko, jersey | D21: Loose-holding with beds, solid floor | E21: Sengestald med fast gulv | F21: Gylle | G21: =IFERROR(HLOOKUP(Tabel86[[#This Row],[Staldsystem]],Indtastning!$B$8:$P$10,3,FALSE),0) -> 0 | H21: 111.15 | I21: 0 | J21: 0.005 | K21: 0 | L21: 0 | M21: 0.07787965788 | N21: =Tabel86[[#This Row],[Total N excretion (kg pr year)]]*Tabel86[[#This Row],[FracGasMS]] -> 0 | O21: 0.01 | P21: =Tabel86[[#This Row],[Total N fra fordampning]]*Tabel86[[#This Row],[Emissionsfaktor (EF4)]] -> 0 | Q21: =Tabel86[[#This Row],[Total N2O-N2 kg]]*44/28 -> 0 | R21: =Tabel86[[#This Row],[Total N2O direkte, kg]]+Tabel86[[#This Row],[Total N2O indirekte, kg ]] -> 0
A22: Dairy cattle, jersey | B22: Malkekvæg | C22: 1 årsko, jersey | D22: Loose-holding with beds, slatted floor | E22: Sengestald med spalter (kanal, linespil) | F22: Gylle | G22: =IFERROR(HLOOKUP(Tabel86[[#This Row],[Staldsystem]],Indtastning!$B$8:$P$10,3,FALSE),0) -> 0 | H22: 115.47 | I22: 0 | J22: 0.005 | K22: 0 | L22: 0 | M22: 0.07787965788 | N22: =Tabel86[[#This Row],[Total N excretion (kg pr year)]]*Tabel86[[#This Row],[FracGasMS]] -> 0 | O22: 0.01 | P22: =Tabel86[[#This Row],[Total N fra fordampning]]*Tabel86[[#This Row],[Emissionsfaktor (EF4)]] -> 0 | Q22: =Tabel86[[#This Row],[Total N2O-N2 kg]]*44/28 -> 0 | R22: =Tabel86[[#This Row],[Total N2O direkte, kg]]+Tabel86[[#This Row],[Total N2O indirekte, kg ]] -> 0
A23: Dairy cattle, jersey | B23: Malkekvæg | C23: 1 årsko, jersey | D23: Loose-holding with beds, slatted floor, scrape | E23: Sengestald med spalter (kanal, bagskyl eller ringkanal) | F23: Gylle | G23: =IFERROR(HLOOKUP(Tabel86[[#This Row],[Staldsystem]],Indtastning!$B$8:$P$10,3,FALSE),0) -> 0 | H23: 113.31 | I23: 0 | J23: 0.005 | K23: 0 | L23: 0 | M23: 0.07787965788 | N23: =Tabel86[[#This Row],[Total N excretion (kg pr year)]]*Tabel86[[#This Row],[FracGasMS]] -> 0 | O23: 0.01 | P23: =Tabel86[[#This Row],[Total N fra fordampning]]*Tabel86[[#This Row],[Emissionsfaktor (EF4)]] -> 0 | Q23: =Tabel86[[#This Row],[Total N2O-N2 kg]]*44/28 -> 0 | R23: =Tabel86[[#This Row],[Total N2O direkte, kg]]+Tabel86[[#This Row],[Total N2O indirekte, kg ]] -> 0
A24: Dairy cattle, jersey | B24: Malkekvæg | C24: 1 årsko, jersey | D24: Loose-holding with beds, solid floor with tilt | E24: Sengestald, fast drænet gulv med skraber og ajleafløb | F24: Gylle | G24: =IFERROR(HLOOKUP(Tabel86[[#This Row],[Staldsystem]],Indtastning!$B$8:$P$10,3,FALSE),0) -> 0 | H24: 117.63 | I24: 0 | J24: 0.005 | K24: 0 | L24: 0 | M24: 0.07787965788 | N24: =Tabel86[[#This Row],[Total N excretion (kg pr year)]]*Tabel86[[#This Row],[FracGasMS]] -> 0 | O24: 0.01 | P24: =Tabel86[[#This Row],[Total N fra fordampning]]*Tabel86[[#This Row],[Emissionsfaktor (EF4)]] -> 0 | Q24: =Tabel86[[#This Row],[Total N2O-N2 kg]]*44/28 -> 0 | R24: =Tabel86[[#This Row],[Total N2O direkte, kg]]+Tabel86[[#This Row],[Total N2O indirekte, kg ]] -> 0
A25: Dairy cattle, jersey | B25: Malkekvæg | C25: 1 årsko, jersey | D25: Deep litter (all) | E25: Dybstrøelse (hele arealet) | F25: Dybstrøelse | G25: =IFERROR(HLOOKUP(Tabel86[[#This Row],[Staldsystem]],Indtastning!$B$8:$P$10,3,FALSE),0) -> 0 | H25: 127.81 | I25: 0 | J25: 0.01 | K25: 0 | L25: 0 | M25: 0.07787965788 | N25: =Tabel86[[#This Row],[Total N excretion (kg pr year)]]*Tabel86[[#This Row],[FracGasMS]] -> 0 | O25: 0.01 | P25: =Tabel86[[#This Row],[Total N fra fordampning]]*Tabel86[[#This Row],[Emissionsfaktor (EF4)]] -> 0 | Q25: =Tabel86[[#This Row],[Total N2O-N2 kg]]*44/28 -> 0 | R25: =Tabel86[[#This Row],[Total N2O direkte, kg]]+Tabel86[[#This Row],[Total N2O indirekte, kg ]] -> 0
A26: Dairy cattle, jersey | B26: Malkekvæg | C26: 1 årsko, jersey | D26: Deep litter, long eating space, solid floor | E26: Dybstrøelse, lang ædeplads med fast gulv | F26: Gylle | G26: =IFERROR(HLOOKUP(Tabel86[[#This Row],[Staldsystem]],Indtastning!$B$8:$P$10,3,FALSE),0) -> 0 | H26: 44.27 | I26: 0 | J26: 0.01 | K26: 0 | L26: 0 | M26: 0.07787965788 | N26: =Tabel86[[#This Row],[Total N excretion (kg pr year)]]*Tabel86[[#This Row],[FracGasMS]] -> 0 | O26: 0.01 | P26: =Tabel86[[#This Row],[Total N fra fordampning]]*Tabel86[[#This Row],[Emissionsfaktor (EF4)]] -> 0 | Q26: =Tabel86[[#This Row],[Total N2O-N2 kg]]*44/28 -> 0 | R26: =Tabel86[[#This Row],[Total N2O direkte, kg]]+Tabel86[[#This Row],[Total N2O indirekte, kg ]] -> 0
A27: Dairy cattle, jersey | B27: Malkekvæg | C27: 1 årsko, jersey | D27: Deep litter, long eating space, solid floor | E27: Dybstrøelse, lang ædeplads med fast gulv | F27: Dybstrøelse | G27: =IFERROR(HLOOKUP(Tabel86[[#This Row],[Staldsystem]],Indtastning!$B$8:$P$10,3,FALSE),0) -> 0 | H27: 79.7 | I27: 0 | J27: 0.005 | K27: 0 | L27: 0 | M27: 0.07787965788 | N27: =Tabel86[[#This Row],[Total N excretion (kg pr year)]]*Tabel86[[#This Row],[FracGasMS]] -> 0 | O27: 0.01 | P27: =Tabel86[[#This Row],[Total N fra fordampning]]*Tabel86[[#This Row],[Emissionsfaktor (EF4)]] -> 0 | Q27: =Tabel86[[#This Row],[Total N2O-N2 kg]]*44/28 -> 0 | R27: =Tabel86[[#This Row],[Total N2O direkte, kg]]+Tabel86[[#This Row],[Total N2O indirekte, kg ]] -> 0
A28: Dairy cattle, jersey | B28: Malkekvæg | C28: 1 årsko, jersey | D28: Deep litter, slatted floor | E28: Dybstrøelse, lang ædeplads med spalter (kanal, linespil) | F28: Gylle | G28: =IFERROR(HLOOKUP(Tabel86[[#This Row],[Staldsystem]],Indtastning!$B$8:$P$10,3,FALSE),0) -> 0 | H28: 46 | I28: 0 | J28: 0.01 | K28: 0 | L28: 0 | M28: 0.07787965788 | N28: =Tabel86[[#This Row],[Total N excretion (kg pr year)]]*Tabel86[[#This Row],[FracGasMS]] -> 0 | O28: 0.01 | P28: =Tabel86[[#This Row],[Total N fra fordampning]]*Tabel86[[#This Row],[Emissionsfaktor (EF4)]] -> 0 | Q28: =Tabel86[[#This Row],[Total N2O-N2 kg]]*44/28 -> 0 | R28: =Tabel86[[#This Row],[Total N2O direkte, kg]]+Tabel86[[#This Row],[Total N2O indirekte, kg ]] -> 0
A29: Dairy cattle, jersey | B29: Malkekvæg | C29: 1 årsko, jersey | D29: Deep litter, slatted floor | E29: Dybstrøelse, lang ædeplads med spalter (kanal, linespil) | F29: Dybstrøelse | G29: =IFERROR(HLOOKUP(Tabel86[[#This Row],[Staldsystem]],Indtastning!$B$8:$P$10,3,FALSE),0) -> 0 | H29: 79.7 | I29: 0 | J29: 0.005 | K29: 0 | L29: 0 | M29: 0.07787965788 | N29: =Tabel86[[#This Row],[Total N excretion (kg pr year)]]*Tabel86[[#This Row],[FracGasMS]] -> 0 | O29: 0.01 | P29: =Tabel86[[#This Row],[Total N fra fordampning]]*Tabel86[[#This Row],[Emissionsfaktor (EF4)]] -> 0 | Q29: =Tabel86[[#This Row],[Total N2O-N2 kg]]*44/28 -> 0 | R29: =Tabel86[[#This Row],[Total N2O direkte, kg]]+Tabel86[[#This Row],[Total N2O indirekte, kg ]] -> 0
A30: Dairy cattle, jersey | B30: Malkekvæg | C30: 1 årsko, jersey | D30: Deep litter, slatted floor, scrape | E30: Dybstrøelse, lang ædeplads med spalter (kanal, bagskyl eller ringkanal) | F30: Gylle | G30: =IFERROR(HLOOKUP(Tabel86[[#This Row],[Staldsystem]],Indtastning!$B$8:$P$10,3,FALSE),0) -> 0 | H30: 45.14 | I30: 0 | J30: 0.01 | K30: 0 | L30: 0 | M30: 0.07787965788 | N30: =Tabel86[[#This Row],[Total N excretion (kg pr year)]]*Tabel86[[#This Row],[FracGasMS]] -> 0 | O30: 0.01 | P30: =Tabel86[[#This Row],[Total N fra fordampning]]*Tabel86[[#This Row],[Emissionsfaktor (EF4)]] -> 0 | Q30: =Tabel86[[#This Row],[Total N2O-N2 kg]]*44/28 -> 0 | R30: =Tabel86[[#This Row],[Total N2O direkte, kg]]+Tabel86[[#This Row],[Total N2O indirekte, kg ]] -> 0
A31: Dairy cattle, jersey | B31: Malkekvæg | C31: 1 årsko, jersey | D31: Deep litter, slatted floor, scrape | E31: Dybstrøelse, lang ædeplads med spalter (kanal, bagskyl eller ringkanal) | F31: Dybstrøelse | G31: =IFERROR(HLOOKUP(Tabel86[[#This Row],[Staldsystem]],Indtastning!$B$8:$P$10,3,FALSE),0) -> 0 | H31: 79.7 | I31: 0 | J31: 0.005 | K31: 0 | L31: 0 | M31: 0.07787965788 | N31: =Tabel86[[#This Row],[Total N excretion (kg pr year)]]*Tabel86[[#This Row],[FracGasMS]] -> 0 | O31: 0.01 | P31: =Tabel86[[#This Row],[Total N fra fordampning]]*Tabel86[[#This Row],[Emissionsfaktor (EF4)]] -> 0 | Q31: =Tabel86[[#This Row],[Total N2O-N2 kg]]*44/28 -> 0 | R31: =Tabel86[[#This Row],[Total N2O direkte, kg]]+Tabel86[[#This Row],[Total N2O indirekte, kg ]] -> 0
A32: Dairy cattle, jersey | B32: Malkekvæg | C32: 1 årsko, jersey | D32: Biogas | E32: Biogas | G32: =IFERROR(HLOOKUP(Tabel86[[#This Row],[Staldsystem]],Indtastning!$B$8:$P$10,3,FALSE),0) -> 0 | H32: 115.47 | I32: 0 | J32: 0 | K32: 0 | L32: 0 | M32: 0.07787965788 | N32: =Tabel86[[#This Row],[Total N excretion (kg pr year)]]*Tabel86[[#This Row],[FracGasMS]] -> 0 | O32: 0.01 | P32: =Tabel86[[#This Row],[Total N fra fordampning]]*Tabel86[[#This Row],[Emissionsfaktor (EF4)]] -> 0 | Q32: =Tabel86[[#This Row],[Total N2O-N2 kg]]*44/28 -> 0 | R32: =Tabel86[[#This Row],[Total N2O direkte, kg]]+Tabel86[[#This Row],[Total N2O indirekte, kg ]] -> 0
A33: Heifer calves, 0-6 mth. | B33: Andet kvæg | C33: Årsopdræt, 0-6 mdr., småkalv, tung race. | D33: Deep litter (boxes) | E33: Dybstrøelse (hele arealet) | F33: Dybstrøelse | G33: =IFERROR(HLOOKUP(Tabel86[[#This Row],[Staldsystem]],Indtastning!$B$8:$P$21,4,FALSE),0) -> 0 | H33: 26.68 | I33: 0 | J33: 0.01 | K33: =Tabel86[[#This Row],[Total N excretion (kg pr year)]]*Tabel86[[#This Row],[Emissionsfaktor (kgN2O-N pr kg Nex) ]] -> 0 | L33: =Tabel86[[#This Row],[Total N2O-N]]*44/28 -> 0 | M33: 0.07579022528 | N33: =Tabel86[[#This Row],[Total N excretion (kg pr year)]]*Tabel86[[#This Row],[FracGasMS]] -> 0 | O33: 0.01 | P33: =Tabel86[[#This Row],[Total N fra fordampning]]*Tabel86[[#This Row],[Emissionsfaktor (EF4)]] -> 0 | Q33: =Tabel86[[#This Row],[Total N2O-N2 kg]]*44/28 -> 0 | R33: =Tabel86[[#This Row],[Total N2O direkte, kg]]+Tabel86[[#This Row],[Total N2O indirekte, kg ]] -> 0
A34: Heifer calves, 0-6 mth. | B34: Andet kvæg | C34: Årsopdræt, 0-6 mdr., småkalv, tung race. | D34: Deep litter, solid floor | E34: Dybstrøelse + kort ædeplads med fast gulv | F34: Dybstrøelse | G34: =IFERROR(HLOOKUP(Tabel86[[#This Row],[Staldsystem]],Indtastning!$B$8:$P$21,4,FALSE),0) -> 0 | H34: 26.68 | I34: 0 | J34: 0.01 | K34: =Tabel86[[#This Row],[Total N excretion (kg pr year)]]*Tabel86[[#This Row],[Emissionsfaktor (kgN2O-N pr kg Nex) ]] -> 0 | L34: =Tabel86[[#This Row],[Total N2O-N]]*44/28 -> 0 | M34: 0.07579022528 | N34: =Tabel86[[#This Row],[Total N excretion (kg pr year)]]*Tabel86[[#This Row],[FracGasMS]] -> 0 | O34: 0.01 | P34: =Tabel86[[#This Row],[Total N fra fordampning]]*Tabel86[[#This Row],[Emissionsfaktor (EF4)]] -> 0 | Q34: =Tabel86[[#This Row],[Total N2O-N2 kg]]*44/28 -> 0 | R34: =Tabel86[[#This Row],[Total N2O direkte, kg]]+Tabel86[[#This Row],[Total N2O indirekte, kg ]] -> 0
A35: Heifer, 6 mth.-calving | B35: Andet kvæg | C35: Årsopdræt 6 mdr. til kælvning (27 mdr.), kvier og stude, tung race | D35: Slatted floor-boxes | E35: Spaltegulvbokse | F35: Gylle | G35: =IFERROR(HLOOKUP(Tabel86[[#This Row],[Staldsystem]],Indtastning!$B$8:$P$21,6,FALSE),0) -> 0 | H35: 44.02 | I35: =G35*H35 -> 0 | J35: 0.005 | K35: =Tabel86[[#This Row],[Total N excretion (kg pr year)]]*Tabel86[[#This Row],[Emissionsfaktor (kgN2O-N pr kg Nex) ]] -> 0 | L35: =Tabel86[[#This Row],[Total N2O-N]]*44/28 -> 0 | M35: 0.07579022528 | N35: =Tabel86[[#This Row],[Total N excretion (kg pr year)]]*Tabel86[[#This Row],[FracGasMS]] -> 0 | O35: 0.01 | P35: =Tabel86[[#This Row],[Total N fra fordampning]]*Tabel86[[#This Row],[Emissionsfaktor (EF4)]] -> 0 | Q35: =Tabel86[[#This Row],[Total N2O-N2 kg]]*44/28 -> 0 | R35: =Tabel86[[#This Row],[Total N2O direkte, kg]]+Tabel86[[#This Row],[Total N2O indirekte, kg ]] -> 0
A36: Heifer, 6 mth.-calving | B36: Andet kvæg | C36: Årsopdræt 6 mdr. til kælvning (27 mdr.), kvier og stude, tung race | D36: Tethered with urine and solid manure | E36: Bindestald med grebning | F36: Staldgødning | G36: =IFERROR(HLOOKUP(Tabel86[[#This Row],[Staldsystem]],Indtastning!$B$8:$P$21,6,FALSE),0) -> 0 | H36: 21.1 | I36: 0 | J36: 0.005 | K36: =Tabel86[[#This Row],[Total N excretion (kg pr year)]]*Tabel86[[#This Row],[Emissionsfaktor (kgN2O-N pr kg Nex) ]] -> 0 | L36: =Tabel86[[#This Row],[Total N2O-N]]*44/28 -> 0 | M36: 0.07579022528 | N36: =Tabel86[[#This Row],[Total N excretion (kg pr year)]]*Tabel86[[#This Row],[FracGasMS]] -> 0 | O36: 0.01 | P36: =Tabel86[[#This Row],[Total N fra fordampning]]*Tabel86[[#This Row],[Emissionsfaktor (EF4)]] -> 0 | Q36: =Tabel86[[#This Row],[Total N2O-N2 kg]]*44/28 -> 0 | R36: =Tabel86[[#This Row],[Total N2O direkte, kg]]+Tabel86[[#This Row],[Total N2O indirekte, kg ]] -> 0
A37: Heifer, 6 mth.-calving | B37: Andet kvæg | C37: Årsopdræt 6 mdr. til kælvning (27 mdr.), kvier og stude, tung race | D37: Tethered with urine and solid manure | E37: Bindestald med grebning | F37: Ajle (liquid manure/urin) | G37: =IFERROR(HLOOKUP(Tabel86[[#This Row],[Staldsystem]],Indtastning!$B$8:$P$21,6,FALSE),0) -> 0 | H37: 23.26 | I37: 0 | J37: 0.005 | K37: =Tabel86[[#This Row],[Total N excretion (kg pr year)]]*Tabel86[[#This Row],[Emissionsfaktor (kgN2O-N pr kg Nex) ]] -> 0 | L37: =Tabel86[[#This Row],[Total N2O-N]]*44/28 -> 0 | M37: 0.07579022528 | N37: =Tabel86[[#This Row],[Total N excretion (kg pr year)]]*Tabel86[[#This Row],[FracGasMS]] -> 0 | O37: 0.01 | P37: =Tabel86[[#This Row],[Total N fra fordampning]]*Tabel86[[#This Row],[Emissionsfaktor (EF4)]] -> 0 | Q37: =Tabel86[[#This Row],[Total N2O-N2 kg]]*44/28 -> 0 | R37: =Tabel86[[#This Row],[Total N2O direkte, kg]]+Tabel86[[#This Row],[Total N2O indirekte, kg ]] -> 0
A38: Heifer, 6 mth.-calving | B38: Andet kvæg | C38: Årsopdræt 6 mdr. til kælvning (27 mdr.), kvier og stude, tung race | D38: Tethered with slurry | E38: Bindestald med riste | F38: Gylle | G38: =IFERROR(HLOOKUP(Tabel86[[#This Row],[Staldsystem]],Indtastning!$B$8:$P$21,6,FALSE),0) -> 0 | H38: 48.14 | I38: 0 | J38: 0.005 | K38: =Tabel86[[#This Row],[Total N excretion (kg pr year)]]*Tabel86[[#This Row],[Emissionsfaktor (kgN2O-N pr kg Nex) ]] -> 0 | L38: =Tabel86[[#This Row],[Total N2O-N]]*44/28 -> 0 | M38: 0.07579022528 | N38: =Tabel86[[#This Row],[Total N excretion (kg pr year)]]*Tabel86[[#This Row],[FracGasMS]] -> 0 | O38: 0.01 | P38: =Tabel86[[#This Row],[Total N fra fordampning]]*Tabel86[[#This Row],[Emissionsfaktor (EF4)]] -> 0 | Q38: =Tabel86[[#This Row],[Total N2O-N2 kg]]*44/28 -> 0 | R38: =Tabel86[[#This Row],[Total N2O direkte, kg]]+Tabel86[[#This Row],[Total N2O indirekte, kg ]] -> 0
A39: Heifer, 6 mth.-calving | B39: Andet kvæg | C39: Årsopdræt 6 mdr. til kælvning (27 mdr.), kvier og stude, tung race | D39: Loose-holding with beds, solid floor | E39: Sengestald med fast gulv | F39: Gylle | G39: =IFERROR(HLOOKUP(Tabel86[[#This Row],[Staldsystem]],Indtastning!$B$8:$P$21,6,FALSE),0) -> 0 | H39: 43.05 | I39: 0 | J39: 0.005 | K39: =Tabel86[[#This Row],[Total N excretion (kg pr year)]]*Tabel86[[#This Row],[Emissionsfaktor (kgN2O-N pr kg Nex) ]] -> 0 | L39: =Tabel86[[#This Row],[Total N2O-N]]*44/28 -> 0 | M39: 0.07579022528 | N39: =Tabel86[[#This Row],[Total N excretion (kg pr year)]]*Tabel86[[#This Row],[FracGasMS]] -> 0 | O39: 0.01 | P39: =Tabel86[[#This Row],[Total N fra fordampning]]*Tabel86[[#This Row],[Emissionsfaktor (EF4)]] -> 0 | Q39: =Tabel86[[#This Row],[Total N2O-N2 kg]]*44/28 -> 0 | R39: =Tabel86[[#This Row],[Total N2O direkte, kg]]+Tabel86[[#This Row],[Total N2O indirekte, kg ]] -> 0
A40: Heifer, 6 mth.-calving | B40: Andet kvæg | C40: Årsopdræt 6 mdr. til kælvning (27 mdr.), kvier og stude, tung race | D40: Loose-holding with beds, slatted floor | E40: Sengestald med spalter (kanal, linespil) | F40: Gylle | G40: =IFERROR(HLOOKUP(Tabel86[[#This Row],[Staldsystem]],Indtastning!$B$8:$P$21,6,FALSE),0) -> 0 | H40: 45.67 | I40: 0 | J40: 0.005 | K40: =Tabel86[[#This Row],[Total N excretion (kg pr year)]]*Tabel86[[#This Row],[Emissionsfaktor (kgN2O-N pr kg Nex) ]] -> 0 | L40: =Tabel86[[#This Row],[Total N2O-N]]*44/28 -> 0 | M40: 0.07579022528 | N40: =Tabel86[[#This Row],[Total N excretion (kg pr year)]]*Tabel86[[#This Row],[FracGasMS]] -> 0 | O40: 0.01 | P40: =Tabel86[[#This Row],[Total N fra fordampning]]*Tabel86[[#This Row],[Emissionsfaktor (EF4)]] -> 0 | Q40: =Tabel86[[#This Row],[Total N2O-N2 kg]]*44/28 -> 0 | R40: =Tabel86[[#This Row],[Total N2O direkte, kg]]+Tabel86[[#This Row],[Total N2O indirekte, kg ]] -> 0
A41: Heifer, 6 mth.-calving | B41: Andet kvæg | C41: Årsopdræt 6 mdr. til kælvning (27 mdr.), kvier og stude, tung race | D41: Loose-holding with beds, slatted floor, scrape | E41: Sengestald med spalter (kanal, bagskyl eller ringkanal) | F41: Gylle | G41: =IFERROR(HLOOKUP(Tabel86[[#This Row],[Staldsystem]],Indtastning!$B$8:$P$21,6,FALSE),0) -> 0 | H41: 44.36 | I41: 0 | J41: 0.005 | K41: =Tabel86[[#This Row],[Total N excretion (kg pr year)]]*Tabel86[[#This Row],[Emissionsfaktor (kgN2O-N pr kg Nex) ]] -> 0 | L41: =Tabel86[[#This Row],[Total N2O-N]]*44/28 -> 0 | M41: 0.07579022528 | N41: =Tabel86[[#This Row],[Total N excretion (kg pr year)]]*Tabel86[[#This Row],[FracGasMS]] -> 0 | O41: 0.01 | P41: =Tabel86[[#This Row],[Total N fra fordampning]]*Tabel86[[#This Row],[Emissionsfaktor (EF4)]] -> 0 | Q41: =Tabel86[[#This Row],[Total N2O-N2 kg]]*44/28 -> 0 | R41: =Tabel86[[#This Row],[Total N2O direkte, kg]]+Tabel86[[#This Row],[Total N2O indirekte, kg ]] -> 0
A42: Heifer, 6 mth.-calving | B42: Andet kvæg | C42: Årsopdræt 6 mdr. til kælvning (27 mdr.), kvier og stude, tung race | D42: Loose-holding with beds, solid floor with tilt | E42: Sengestald, fast drænet gulv med skraber og ajleafløb | F42: Gylle | G42: =IFERROR(HLOOKUP(Tabel86[[#This Row],[Staldsystem]],Indtastning!$B$8:$P$21,6,FALSE),0) -> 0 | H42: 46.98 | I42: 0 | J42: 0.005 | K42: =Tabel86[[#This Row],[Total N excretion (kg pr year)]]*Tabel86[[#This Row],[Emissionsfaktor (kgN2O-N pr kg Nex) ]] -> 0 | L42: =Tabel86[[#This Row],[Total N2O-N]]*44/28 -> 0 | M42: 0.07579022528 | N42: =Tabel86[[#This Row],[Total N excretion (kg pr year)]]*Tabel86[[#This Row],[FracGasMS]] -> 0 | O42: 0.01 | P42: =Tabel86[[#This Row],[Total N fra fordampning]]*Tabel86[[#This Row],[Emissionsfaktor (EF4)]] -> 0 | Q42: =Tabel86[[#This Row],[Total N2O-N2 kg]]*44/28 -> 0 | R42: =Tabel86[[#This Row],[Total N2O direkte, kg]]+Tabel86[[#This Row],[Total N2O indirekte, kg ]] -> 0
A43: Heifer, 6 mth.-calving | B43: Andet kvæg | C43: Årsopdræt 6 mdr. til kælvning (27 mdr.), kvier og stude, tung race | D43: Deep litter (all) | E43: Dybstrøelse (hele arealet) | F43: Dybstrøelse | G43: =IFERROR(HLOOKUP(Tabel86[[#This Row],[Staldsystem]],Indtastning!$B$8:$P$21,6,FALSE),0) -> 0 | H43: 52.62 | I43: 0 | J43: 0.01 | K43: =Tabel86[[#This Row],[Total N excretion (kg pr year)]]*Tabel86[[#This Row],[Emissionsfaktor (kgN2O-N pr kg Nex) ]] -> 0 | L43: =Tabel86[[#This Row],[Total N2O-N]]*44/28 -> 0 | M43: 0.07579022528 | N43: =Tabel86[[#This Row],[Total N excretion (kg pr year)]]*Tabel86[[#This Row],[FracGasMS]] -> 0 | O43: 0.01 | P43: =Tabel86[[#This Row],[Total N fra fordampning]]*Tabel86[[#This Row],[Emissionsfaktor (EF4)]] -> 0 | Q43: =Tabel86[[#This Row],[Total N2O-N2 kg]]*44/28 -> 0 | R43: =Tabel86[[#This Row],[Total N2O direkte, kg]]+Tabel86[[#This Row],[Total N2O indirekte, kg ]] -> 0
A44: Heifer, 6 mth.-calving | B44: Andet kvæg | C44: Årsopdræt 6 mdr. til kælvning (27 mdr.), kvier og stude, tung race | D44: Deep litter, long eating space, solid floor | E44: Dybstrøelse, lang ædeplads med fast gulv | F44: Dybstrøelse | G44: =IFERROR(HLOOKUP(Tabel86[[#This Row],[Staldsystem]],Indtastning!$B$8:$P$21,6,FALSE),0) -> 0 | H44: 33.11 | I44: 0 | J44: 0.01 | K44: =Tabel86[[#This Row],[Total N excretion (kg pr year)]]*Tabel86[[#This Row],[Emissionsfaktor (kgN2O-N pr kg Nex) ]] -> 0 | L44: =Tabel86[[#This Row],[Total N2O-N]]*44/28 -> 0 | M44: 0.07579022528 | N44: =Tabel86[[#This Row],[Total N excretion (kg pr year)]]*Tabel86[[#This Row],[FracGasMS]] -> 0 | O44: 0.01 | P44: =Tabel86[[#This Row],[Total N fra fordampning]]*Tabel86[[#This Row],[Emissionsfaktor (EF4)]] -> 0 | Q44: =Tabel86[[#This Row],[Total N2O-N2 kg]]*44/28 -> 0 | R44: =Tabel86[[#This Row],[Total N2O direkte, kg]]+Tabel86[[#This Row],[Total N2O indirekte, kg ]] -> 0
A45: Heifer, 6 mth.-calving | B45: Andet kvæg | C45: Årsopdræt 6 mdr. til kælvning (27 mdr.), kvier og stude, tung race | D45: Deep litter, long eating space, solid floor | E45: Dybstrøelse, lang ædeplads med fast gulv | F45: Gylle | G45: =IFERROR(HLOOKUP(Tabel86[[#This Row],[Staldsystem]],Indtastning!$B$8:$P$21,6,FALSE),0) -> 0 | H45: 17.09 | I45: 0 | J45: 0.005 | K45: =Tabel86[[#This Row],[Total N excretion (kg pr year)]]*Tabel86[[#This Row],[Emissionsfaktor (kgN2O-N pr kg Nex) ]] -> 0 | L45: =Tabel86[[#This Row],[Total N2O-N]]*44/28 -> 0 | M45: 0.07579022528 | N45: =Tabel86[[#This Row],[Total N excretion (kg pr year)]]*Tabel86[[#This Row],[FracGasMS]] -> 0 | O45: 0.01 | P45: =Tabel86[[#This Row],[Total N fra fordampning]]*Tabel86[[#This Row],[Emissionsfaktor (EF4)]] -> 0 | Q45: =Tabel86[[#This Row],[Total N2O-N2 kg]]*44/28 -> 0 | R45: =Tabel86[[#This Row],[Total N2O direkte, kg]]+Tabel86[[#This Row],[Total N2O indirekte, kg ]] -> 0
A46: Heifer, 6 mth.-calving | B46: Andet kvæg | C46: Årsopdræt 6 mdr. til kælvning (27 mdr.), kvier og stude, tung race | D46: Deep litter, solid floor | E46: Dybstrøelse + kort ædeplads med fast gulv | F46: Dybstrøelse | G46: =IFERROR(HLOOKUP(Tabel86[[#This Row],[Staldsystem]],Indtastning!$B$8:$P$21,6,FALSE),0) -> 0 | H46: 51.53 | I46: 0 | J46: 0.01 | K46: =Tabel86[[#This Row],[Total N excretion (kg pr year)]]*Tabel86[[#This Row],[Emissionsfaktor (kgN2O-N pr kg Nex) ]] -> 0 | L46: =Tabel86[[#This Row],[Total N2O-N]]*44/28 -> 0 | M46: 0.07579022528 | N46: =Tabel86[[#This Row],[Total N excretion (kg pr year)]]*Tabel86[[#This Row],[FracGasMS]] -> 0 | O46: 0.01 | P46: =Tabel86[[#This Row],[Total N fra fordampning]]*Tabel86[[#This Row],[Emissionsfaktor (EF4)]] -> 0 | Q46: =Tabel86[[#This Row],[Total N2O-N2 kg]]*44/28 -> 0 | R46: =Tabel86[[#This Row],[Total N2O direkte, kg]]+Tabel86[[#This Row],[Total N2O indirekte, kg ]] -> 0
A47: Heifer, 6 mth.-calving | B47: Andet kvæg | C47: Årsopdræt 6 mdr. til kælvning (27 mdr.), kvier og stude, tung race | D47: Deep litter, slatted floor | E47: Dybstrøelse, lang ædeplads med spalter (kanal, linespil) | F47: Dybstrøelse | G47: =IFERROR(HLOOKUP(Tabel86[[#This Row],[Staldsystem]],Indtastning!$B$8:$P$21,6,FALSE),0) -> 0 | H47: 33.11 | I47: 0 | J47: 0.01 | K47: =Tabel86[[#This Row],[Total N excretion (kg pr year)]]*Tabel86[[#This Row],[Emissionsfaktor (kgN2O-N pr kg Nex) ]] -> 0 | L47: =Tabel86[[#This Row],[Total N2O-N]]*44/28 -> 0 | M47: 0.07579022528 | N47: =Tabel86[[#This Row],[Total N excretion (kg pr year)]]*Tabel86[[#This Row],[FracGasMS]] -> 0 | O47: 0.01 | P47: =Tabel86[[#This Row],[Total N fra fordampning]]*Tabel86[[#This Row],[Emissionsfaktor (EF4)]] -> 0 | Q47: =Tabel86[[#This Row],[Total N2O-N2 kg]]*44/28 -> 0 | R47: =Tabel86[[#This Row],[Total N2O direkte, kg]]+Tabel86[[#This Row],[Total N2O indirekte, kg ]] -> 0
A48: Heifer, 6 mth.-calving | B48: Andet kvæg | C48: Årsopdræt 6 mdr. til kælvning (27 mdr.), kvier og stude, tung race | D48: Deep litter, slatted floor | E48: Dybstrøelse, lang ædeplads med spalter (kanal, linespil) | F48: Gylle | G48: =IFERROR(HLOOKUP(Tabel86[[#This Row],[Staldsystem]],Indtastning!$B$8:$P$21,6,FALSE),0) -> 0 | H48: 18.13 | I48: 0 | J48: 0.005 | K48: =Tabel86[[#This Row],[Total N excretion (kg pr year)]]*Tabel86[[#This Row],[Emissionsfaktor (kgN2O-N pr kg Nex) ]] -> 0 | L48: =Tabel86[[#This Row],[Total N2O-N]]*44/28 -> 0 | M48: 0.07579022528 | N48: =Tabel86[[#This Row],[Total N excretion (kg pr year)]]*Tabel86[[#This Row],[FracGasMS]] -> 0 | O48: 0.01 | P48: =Tabel86[[#This Row],[Total N fra fordampning]]*Tabel86[[#This Row],[Emissionsfaktor (EF4)]] -> 0 | Q48: =Tabel86[[#This Row],[Total N2O-N2 kg]]*44/28 -> 0 | R48: =Tabel86[[#This Row],[Total N2O direkte, kg]]+Tabel86[[#This Row],[Total N2O indirekte, kg ]] -> 0
A49: Heifer, 6 mth.-calving | B49: Andet kvæg | C49: Årsopdræt 6 mdr. til kælvning (27 mdr.), kvier og stude, tung race | D49: Deep litter, slatted floor, scrape | E49: Dybstrøelse, lang ædeplads med spalter (kanal, bagskyl eller ringkanal) | F49: Dybstrøelse | G49: =IFERROR(HLOOKUP(Tabel86[[#This Row],[Staldsystem]],Indtastning!$B$8:$P$21,6,FALSE),0) -> 0 | H49: 33.11 | I49: 0 | J49: 0.01 | K49: =Tabel86[[#This Row],[Total N excretion (kg pr year)]]*Tabel86[[#This Row],[Emissionsfaktor (kgN2O-N pr kg Nex) ]] -> 0 | L49: =Tabel86[[#This Row],[Total N2O-N]]*44/28 -> 0 | M49: 0.07579022528 | N49: =Tabel86[[#This Row],[Total N excretion (kg pr year)]]*Tabel86[[#This Row],[FracGasMS]] -> 0 | O49: 0.01 | P49: =Tabel86[[#This Row],[Total N fra fordampning]]*Tabel86[[#This Row],[Emissionsfaktor (EF4)]] -> 0 | Q49: =Tabel86[[#This Row],[Total N2O-N2 kg]]*44/28 -> 0 | R49: =Tabel86[[#This Row],[Total N2O direkte, kg]]+Tabel86[[#This Row],[Total N2O indirekte, kg ]] -> 0
A50: Heifer, 6 mth.-calving | B50: Andet kvæg | C50: Årsopdræt 6 mdr. til kælvning (27 mdr.), kvier og stude, tung race | D50: Deep litter, slatted floor, scrape | E50: Dybstrøelse, lang ædeplads med spalter (kanal, bagskyl eller ringkanal) | F50: Gylle | G50: =IFERROR(HLOOKUP(Tabel86[[#This Row],[Staldsystem]],Indtastning!$B$8:$P$21,6,FALSE),0) -> 0 | H50: 17.61 | I50: 0 | J50: 0.005 | K50: =Tabel86[[#This Row],[Total N excretion (kg pr year)]]*Tabel86[[#This Row],[Emissionsfaktor (kgN2O-N pr kg Nex) ]] -> 0 | L50: =Tabel86[[#This Row],[Total N2O-N]]*44/28 -> 0 | M50: 0.07579022528 | N50: =Tabel86[[#This Row],[Total N excretion (kg pr year)]]*Tabel86[[#This Row],[FracGasMS]] -> 0 | O50: 0.01 | P50: =Tabel86[[#This Row],[Total N fra fordampning]]*Tabel86[[#This Row],[Emissionsfaktor (EF4)]] -> 0 | Q50: =Tabel86[[#This Row],[Total N2O-N2 kg]]*44/28 -> 0 | R50: =Tabel86[[#This Row],[Total N2O direkte, kg]]+Tabel86[[#This Row],[Total N2O indirekte, kg ]] -> 0
A51: Heifer calves, 0-6 mth., jersey | B51: Andet kvæg | C51: Årsopdræt, 0-6 mdr., småkalv, jersey. | D51: Deep litter (boxes) | E51: Dybstrøelse (hele arealet) | G51: =IFERROR(HLOOKUP(Tabel86[[#This Row],[Staldsystem]],Indtastning!$B$8:$P$21,5,FALSE),0) -> 0 | H51: 20.13 | I51: 0 | J51: 0.01 | K51: =Tabel86[[#This Row],[Total N excretion (kg pr year)]]*Tabel86[[#This Row],[Emissionsfaktor (kgN2O-N pr kg Nex) ]] -> 0 | L51: =Tabel86[[#This Row],[Total N2O-N]]*44/28 -> 0 | M51: 0.07579022528 | N51: =Tabel86[[#This Row],[Total N excretion (kg pr year)]]*Tabel86[[#This Row],[FracGasMS]] -> 0 | O51: 0.01 | P51: =Tabel86[[#This Row],[Total N fra fordampning]]*Tabel86[[#This Row],[Emissionsfaktor (EF4)]] -> 0 | Q51: =Tabel86[[#This Row],[Total N2O-N2 kg]]*44/28 -> 0 | R51: =Tabel86[[#This Row],[Total N2O direkte, kg]]+Tabel86[[#This Row],[Total N2O indirekte, kg ]] -> 0
A52: Heifer calves, 0-6 mth., jersey | B52: Andet kvæg | C52: Årsopdræt, 0-6 mdr., småkalv, jersey. | D52: Deep litter, solid floor | E52: Dybstrøelse + kort ædeplads med fast gulv | G52: =IFERROR(HLOOKUP(Tabel86[[#This Row],[Staldsystem]],Indtastning!$B$8:$P$21,5,FALSE),0) -> 0 | H52: 20.13 | I52: 0 | J52: 0.01 | K52: =Tabel86[[#This Row],[Total N excretion (kg pr year)]]*Tabel86[[#This Row],[Emissionsfaktor (kgN2O-N pr kg Nex) ]] -> 0 | L52: =Tabel86[[#This Row],[Total N2O-N]]*44/28 -> 0 | M52: 0.07579022528 | N52: =Tabel86[[#This Row],[Total N excretion (kg pr year)]]*Tabel86[[#This Row],[FracGasMS]] -> 0 | O52: 0.01 | P52: =Tabel86[[#This Row],[Total N fra fordampning]]*Tabel86[[#This Row],[Emissionsfaktor (EF4)]] -> 0 | Q52: =Tabel86[[#This Row],[Total N2O-N2 kg]]*44/28 -> 0 | R52: =Tabel86[[#This Row],[Total N2O direkte, kg]]+Tabel86[[#This Row],[Total N2O indirekte, kg ]] -> 0
A53: Heifer, 6 mth.-calving, jersey | B53: Andet kvæg | C53: Årsopdræt 6 mdr. til kælvning (27 mdr.), kvier og stude, jersey | D53: Deep litter, long eating space, solid floor | E53: Spaltegulvbokse | F53: Gylle | G53: =IFERROR(HLOOKUP(Tabel86[[#This Row],[Staldsystem]],Indtastning!$B$8:$P$21,7,FALSE),0) -> 0 | H53: 33.06 | I53: 0 | J53: 0.005 | K53: =Tabel86[[#This Row],[Total N excretion (kg pr year)]]*Tabel86[[#This Row],[Emissionsfaktor (kgN2O-N pr kg Nex) ]] -> 0 | L53: =Tabel86[[#This Row],[Total N2O-N]]*44/28 -> 0 | M53: 0.07579022528 | N53: =Tabel86[[#This Row],[Total N excretion (kg pr year)]]*Tabel86[[#This Row],[FracGasMS]] -> 0 | O53: 0.01 | P53: =Tabel86[[#This Row],[Total N fra fordampning]]*Tabel86[[#This Row],[Emissionsfaktor (EF4)]] -> 0 | Q53: =Tabel86[[#This Row],[Total N2O-N2 kg]]*44/28 -> 0 | R53: =Tabel86[[#This Row],[Total N2O direkte, kg]]+Tabel86[[#This Row],[Total N2O indirekte, kg ]] -> 0
A54: Heifer, 6 mth.-calving, jersey | B54: Andet kvæg | C54: Årsopdræt 6 mdr. til kælvning (27 mdr.), kvier og stude, jersey | D54: Deep litter, long eating space, solid floor | E54: Bindestald med grebning | F54: Staldgødning | G54: =IFERROR(HLOOKUP(Tabel86[[#This Row],[Staldsystem]],Indtastning!$B$8:$P$21,7,FALSE),0) -> 0 | H54: 16.26 | I54: 0 | J54: 0.005 | K54: =Tabel86[[#This Row],[Total N excretion (kg pr year)]]*Tabel86[[#This Row],[Emissionsfaktor (kgN2O-N pr kg Nex) ]] -> 0 | L54: =Tabel86[[#This Row],[Total N2O-N]]*44/28 -> 0 | M54: 0.07579022528 | N54: =Tabel86[[#This Row],[Total N excretion (kg pr year)]]*Tabel86[[#This Row],[FracGasMS]] -> 0 | O54: 0.01 | P54: =Tabel86[[#This Row],[Total N fra fordampning]]*Tabel86[[#This Row],[Emissionsfaktor (EF4)]] -> 0 | Q54: =Tabel86[[#This Row],[Total N2O-N2 kg]]*44/28 -> 0 | R54: =Tabel86[[#This Row],[Total N2O direkte, kg]]+Tabel86[[#This Row],[Total N2O indirekte, kg ]] -> 0
A55: Heifer, 6 mth.-calving, jersey | B55: Andet kvæg | C55: Årsopdræt 6 mdr. til kælvning (27 mdr.), kvier og stude, jersey | D55: Deep litter, long eating space, solid floor | E55: Bindestald med grebning | F55: Ajle (liquid manure/urin) | G55: =IFERROR(HLOOKUP(Tabel86[[#This Row],[Staldsystem]],Indtastning!$B$8:$P$21,7,FALSE),0) -> 0 | H55: 17.08 | I55: 0 | J55: 0.005 | K55: =Tabel86[[#This Row],[Total N excretion (kg pr year)]]*Tabel86[[#This Row],[Emissionsfaktor (kgN2O-N pr kg Nex) ]] -> 0 | L55: =Tabel86[[#This Row],[Total N2O-N]]*44/28 -> 0 | M55: 0.07579022528 | N55: =Tabel86[[#This Row],[Total N excretion (kg pr year)]]*Tabel86[[#This Row],[FracGasMS]] -> 0 | O55: 0.01 | P55: =Tabel86[[#This Row],[Total N fra fordampning]]*Tabel86[[#This Row],[Emissionsfaktor (EF4)]] -> 0 | Q55: =Tabel86[[#This Row],[Total N2O-N2 kg]]*44/28 -> 0 | R55: =Tabel86[[#This Row],[Total N2O direkte, kg]]+Tabel86[[#This Row],[Total N2O indirekte, kg ]] -> 0
A56: Heifer, 6 mth.-calving, jersey | B56: Andet kvæg | C56: Årsopdræt 6 mdr. til kælvning (27 mdr.), kvier og stude, jersey | D56: Deep litter, long eating space, solid floor | E56: Bindestald med riste | F56: Gylle | G56: =IFERROR(HLOOKUP(Tabel86[[#This Row],[Staldsystem]],Indtastning!$B$8:$P$21,7,FALSE),0) -> 0 | H56: 36.2 | I56: 0 | J56: 0.005 | K56: =Tabel86[[#This Row],[Total N excretion (kg pr year)]]*Tabel86[[#This Row],[Emissionsfaktor (kgN2O-N pr kg Nex) ]] -> 0 | L56: =Tabel86[[#This Row],[Total N2O-N]]*44/28 -> 0 | M56: 0.07579022528 | N56: =Tabel86[[#This Row],[Total N excretion (kg pr year)]]*Tabel86[[#This Row],[FracGasMS]] -> 0 | O56: 0.01 | P56: =Tabel86[[#This Row],[Total N fra fordampning]]*Tabel86[[#This Row],[Emissionsfaktor (EF4)]] -> 0 | Q56: =Tabel86[[#This Row],[Total N2O-N2 kg]]*44/28 -> 0 | R56: =Tabel86[[#This Row],[Total N2O direkte, kg]]+Tabel86[[#This Row],[Total N2O indirekte, kg ]] -> 0
A57: Heifer, 6 mth.-calving, jersey | B57: Andet kvæg | C57: Årsopdræt 6 mdr. til kælvning (27 mdr.), kvier og stude, jersey | D57: Deep litter, long eating space, solid floor | E57: Sengestald med fast gulv | F57: Gylle | G57: =IFERROR(HLOOKUP(Tabel86[[#This Row],[Staldsystem]],Indtastning!$B$8:$P$21,7,FALSE),0) -> 0 | H57: 32.31 | I57: 0 | J57: 0.005 | K57: =Tabel86[[#This Row],[Total N excretion (kg pr year)]]*Tabel86[[#This Row],[Emissionsfaktor (kgN2O-N pr kg Nex) ]] -> 0 | L57: =Tabel86[[#This Row],[Total N2O-N]]*44/28 -> 0 | M57: 0.07579022528 | N57: =Tabel86[[#This Row],[Total N excretion (kg pr year)]]*Tabel86[[#This Row],[FracGasMS]] -> 0 | O57: 0.01 | P57: =Tabel86[[#This Row],[Total N fra fordampning]]*Tabel86[[#This Row],[Emissionsfaktor (EF4)]] -> 0 | Q57: =Tabel86[[#This Row],[Total N2O-N2 kg]]*44/28 -> 0 | R57: =Tabel86[[#This Row],[Total N2O direkte, kg]]+Tabel86[[#This Row],[Total N2O indirekte, kg ]] -> 0
A58: Heifer, 6 mth.-calving, jersey | B58: Andet kvæg | C58: Årsopdræt 6 mdr. til kælvning (27 mdr.), kvier og stude, jersey | D58: Deep litter, long eating space, solid floor | E58: Sengestald med spalter (kanal, linespil) | F58: Gylle | G58: =IFERROR(HLOOKUP(Tabel86[[#This Row],[Staldsystem]],Indtastning!$B$8:$P$21,7,FALSE),0) -> 0 | H58: 34.27 | I58: 0 | J58: 0.005 | K58: =Tabel86[[#This Row],[Total N excretion (kg pr year)]]*Tabel86[[#This Row],[Emissionsfaktor (kgN2O-N pr kg Nex) ]] -> 0 | L58: =Tabel86[[#This Row],[Total N2O-N]]*44/28 -> 0 | M58: 0.07579022528 | N58: =Tabel86[[#This Row],[Total N excretion (kg pr year)]]*Tabel86[[#This Row],[FracGasMS]] -> 0 | O58: 0.01 | P58: =Tabel86[[#This Row],[Total N fra fordampning]]*Tabel86[[#This Row],[Emissionsfaktor (EF4)]] -> 0 | Q58: =Tabel86[[#This Row],[Total N2O-N2 kg]]*44/28 -> 0 | R58: =Tabel86[[#This Row],[Total N2O direkte, kg]]+Tabel86[[#This Row],[Total N2O indirekte, kg ]] -> 0
A59: Heifer, 6 mth.-calving, jersey | B59: Andet kvæg | C59: Årsopdræt 6 mdr. til kælvning (27 mdr.), kvier og stude, jersey | D59: Deep litter, long eating space, solid floor | E59: Sengestald med spalter (kanal, bagskyl eller ringkanal) | F59: Gylle | G59: =IFERROR(HLOOKUP(Tabel86[[#This Row],[Staldsystem]],Indtastning!$B$8:$P$21,7,FALSE),0) -> 0 | H59: 33.29 | I59: 0 | J59: 0.005 | K59: =Tabel86[[#This Row],[Total N excretion (kg pr year)]]*Tabel86[[#This Row],[Emissionsfaktor (kgN2O-N pr kg Nex) ]] -> 0 | L59: =Tabel86[[#This Row],[Total N2O-N]]*44/28 -> 0 | M59: 0.07579022528 | N59: =Tabel86[[#This Row],[Total N excretion (kg pr year)]]*Tabel86[[#This Row],[FracGasMS]] -> 0 | O59: 0.01 | P59: =Tabel86[[#This Row],[Total N fra fordampning]]*Tabel86[[#This Row],[Emissionsfaktor (EF4)]] -> 0 | Q59: =Tabel86[[#This Row],[Total N2O-N2 kg]]*44/28 -> 0 | R59: =Tabel86[[#This Row],[Total N2O direkte, kg]]+Tabel86[[#This Row],[Total N2O indirekte, kg ]] -> 0
A60: Heifer, 6 mth.-calving, jersey | B60: Andet kvæg | C60: Årsopdræt 6 mdr. til kælvning (27 mdr.), kvier og stude, jersey | D60: Deep litter, long eating space, solid floor | E60: Sengestald, fast drænet gulv med skraber og ajleafløb | F60: Gylle | G60: =IFERROR(HLOOKUP(Tabel86[[#This Row],[Staldsystem]],Indtastning!$B$8:$P$21,7,FALSE),0) -> 0 | H60: 35.26 | I60: 0 | J60: 0.005 | K60: =Tabel86[[#This Row],[Total N excretion (kg pr year)]]*Tabel86[[#This Row],[Emissionsfaktor (kgN2O-N pr kg Nex) ]] -> 0 | L60: =Tabel86[[#This Row],[Total N2O-N]]*44/28 -> 0 | M60: 0.07579022528 | N60: =Tabel86[[#This Row],[Total N excretion (kg pr year)]]*Tabel86[[#This Row],[FracGasMS]] -> 0 | O60: 0.01 | P60: =Tabel86[[#This Row],[Total N fra fordampning]]*Tabel86[[#This Row],[Emissionsfaktor (EF4)]] -> 0 | Q60: =Tabel86[[#This Row],[Total N2O-N2 kg]]*44/28 -> 0 | R60: =Tabel86[[#This Row],[Total N2O direkte, kg]]+Tabel86[[#This Row],[Total N2O indirekte, kg ]] -> 0
A61: Heifer, 6 mth.-calving, jersey | B61: Andet kvæg | C61: Årsopdræt 6 mdr. til kælvning (27 mdr.), kvier og stude, jersey | D61: Deep litter, long eating space, solid floor | E61: Dybstrøelse (hele arealet) | F61: Dybstrøelse | G61: =IFERROR(HLOOKUP(Tabel86[[#This Row],[Staldsystem]],Indtastning!$B$8:$P$21,7,FALSE),0) -> 0 | H61: 40.07 | I61: 0 | J61: 0.01 | K61: =Tabel86[[#This Row],[Total N excretion (kg pr year)]]*Tabel86[[#This Row],[Emissionsfaktor (kgN2O-N pr kg Nex) ]] -> 0 | L61: =Tabel86[[#This Row],[Total N2O-N]]*44/28 -> 0 | M61: 0.07579022528 | N61: =Tabel86[[#This Row],[Total N excretion (kg pr year)]]*Tabel86[[#This Row],[FracGasMS]] -> 0 | O61: 0.01 | P61: =Tabel86[[#This Row],[Total N fra fordampning]]*Tabel86[[#This Row],[Emissionsfaktor (EF4)]] -> 0 | Q61: =Tabel86[[#This Row],[Total N2O-N2 kg]]*44/28 -> 0 | R61: =Tabel86[[#This Row],[Total N2O direkte, kg]]+Tabel86[[#This Row],[Total N2O indirekte, kg ]] -> 0
A62: Heifer, 6 mth.-calving, jersey | C62: Årsopdræt 6 mdr. til kælvning (27 mdr.), kvier og stude, jersey | E62: Dybstrøelse, lang ædeplads med fast gulv | F62: Dybstrøelse | G62: =IFERROR(HLOOKUP(Tabel86[[#This Row],[Staldsystem]],Indtastning!$B$8:$P$21,7,FALSE),0) -> 0 | H62: 25.14 | I62: 0 | J62: 0.01 | K62: =Tabel86[[#This Row],[Total N excretion (kg pr year)]]*Tabel86[[#This Row],[Emissionsfaktor (kgN2O-N pr kg Nex) ]] -> 0 | L62: =Tabel86[[#This Row],[Total N2O-N]]*44/28 -> 0 | M62: 0.07579022528 | N62: =Tabel86[[#This Row],[Total N excretion (kg pr year)]]*Tabel86[[#This Row],[FracGasMS]] -> 0 | O62: 0.01 | P62: =Tabel86[[#This Row],[Total N fra fordampning]]*Tabel86[[#This Row],[Emissionsfaktor (EF4)]] -> 0 | Q62: =Tabel86[[#This Row],[Total N2O-N2 kg]]*44/28 -> 0 | R62: =Tabel86[[#This Row],[Total N2O direkte, kg]]+Tabel86[[#This Row],[Total N2O indirekte, kg ]] -> 0
A63: Heifer, 6 mth.-calving, jersey | B63: Andet kvæg | C63: Årsopdræt 6 mdr. til kælvning (27 mdr.), kvier og stude, jersey | D63: Deep litter, long eating space, solid floor | E63: Dybstrøelse, lang ædeplads med fast gulv | F63: Gylle | G63: =IFERROR(HLOOKUP(Tabel86[[#This Row],[Staldsystem]],Indtastning!$B$8:$P$21,7,FALSE),0) -> 0 | H63: 12.83 | I63: 0 | J63: 0.005 | K63: =Tabel86[[#This Row],[Total N excretion (kg pr year)]]*Tabel86[[#This Row],[Emissionsfaktor (kgN2O-N pr kg Nex) ]] -> 0 | L63: =Tabel86[[#This Row],[Total N2O-N]]*44/28 -> 0 | M63: 0.07579022528 | N63: =Tabel86[[#This Row],[Total N excretion (kg pr year)]]*Tabel86[[#This Row],[FracGasMS]] -> 0 | O63: 0.01 | P63: =Tabel86[[#This Row],[Total N fra fordampning]]*Tabel86[[#This Row],[Emissionsfaktor (EF4)]] -> 0 | Q63: =Tabel86[[#This Row],[Total N2O-N2 kg]]*44/28 -> 0 | R63: =Tabel86[[#This Row],[Total N2O direkte, kg]]+Tabel86[[#This Row],[Total N2O indirekte, kg ]] -> 0
A64: Heifer, 6 mth.-calving, jersey | B64: Andet kvæg | C64: Årsopdræt 6 mdr. til kælvning (27 mdr.), kvier og stude, jersey | D64: Deep litter, long eating space, solid floor | E64: Dybstrøelse + kort ædeplads med fast gulv | F64: Dybstrøelse | G64: =IFERROR(HLOOKUP(Tabel86[[#This Row],[Staldsystem]],Indtastning!$B$8:$P$21,7,FALSE),0) -> 0 | H64: 38.97 | I64: 0 | J64: 0.01 | K64: =Tabel86[[#This Row],[Total N excretion (kg pr year)]]*Tabel86[[#This Row],[Emissionsfaktor (kgN2O-N pr kg Nex) ]] -> 0 | L64: =Tabel86[[#This Row],[Total N2O-N]]*44/28 -> 0 | M64: 0.07579022528 | N64: =Tabel86[[#This Row],[Total N excretion (kg pr year)]]*Tabel86[[#This Row],[FracGasMS]] -> 0 | O64: 0.01 | P64: =Tabel86[[#This Row],[Total N fra fordampning]]*Tabel86[[#This Row],[Emissionsfaktor (EF4)]] -> 0 | Q64: =Tabel86[[#This Row],[Total N2O-N2 kg]]*44/28 -> 0 | R64: =Tabel86[[#This Row],[Total N2O direkte, kg]]+Tabel86[[#This Row],[Total N2O indirekte, kg ]] -> 0
A65: Heifer, 6 mth.-calving, jersey | B65: Andet kvæg | C65: Årsopdræt 6 mdr. til kælvning (27 mdr.), kvier og stude, jersey | D65: Deep litter, long eating space, solid floor | E65: Dybstrøelse, lang ædeplads med spalter (kanal, linespil) | F65: Dybstrøelse | G65: =IFERROR(HLOOKUP(Tabel86[[#This Row],[Staldsystem]],Indtastning!$B$8:$P$21,7,FALSE),0) -> 0 | H65: 25.14 | I65: 0 | J65: 0.01 | K65: =Tabel86[[#This Row],[Total N excretion (kg pr year)]]*Tabel86[[#This Row],[Emissionsfaktor (kgN2O-N pr kg Nex) ]] -> 0 | L65: =Tabel86[[#This Row],[Total N2O-N]]*44/28 -> 0 | M65: 0.07579022528 | N65: =Tabel86[[#This Row],[Total N excretion (kg pr year)]]*Tabel86[[#This Row],[FracGasMS]] -> 0 | O65: 0.01 | P65: =Tabel86[[#This Row],[Total N fra fordampning]]*Tabel86[[#This Row],[Emissionsfaktor (EF4)]] -> 0 | Q65: =Tabel86[[#This Row],[Total N2O-N2 kg]]*44/28 -> 0 | R65: =Tabel86[[#This Row],[Total N2O direkte, kg]]+Tabel86[[#This Row],[Total N2O indirekte, kg ]] -> 0
A66: Heifer, 6 mth.-calving, jersey | B66: Andet kvæg | C66: Årsopdræt 6 mdr. til kælvning (27 mdr.), kvier og stude, jersey | D66: Deep litter, long eating space, solid floor | E66: Dybstrøelse, lang ædeplads med spalter (kanal, linespil) | F66: Gylle | G66: =IFERROR(HLOOKUP(Tabel86[[#This Row],[Staldsystem]],Indtastning!$B$8:$P$21,7,FALSE),0) -> 0 | H66: 13.62 | I66: 0 | J66: 0.005 | K66: =Tabel86[[#This Row],[Total N excretion (kg pr year)]]*Tabel86[[#This Row],[Emissionsfaktor (kgN2O-N pr kg Nex) ]] -> 0 | L66: =Tabel86[[#This Row],[Total N2O-N]]*44/28 -> 0 | M66: 0.07579022528 | N66: =Tabel86[[#This Row],[Total N excretion (kg pr year)]]*Tabel86[[#This Row],[FracGasMS]] -> 0 | O66: 0.01 | P66: =Tabel86[[#This Row],[Total N fra fordampning]]*Tabel86[[#This Row],[Emissionsfaktor (EF4)]] -> 0 | Q66: =Tabel86[[#This Row],[Total N2O-N2 kg]]*44/28 -> 0 | R66: =Tabel86[[#This Row],[Total N2O direkte, kg]]+Tabel86[[#This Row],[Total N2O indirekte, kg ]] -> 0
A67: Heifer, 6 mth.-calving, jersey | B67: Andet kvæg | C67: Årsopdræt 6 mdr. til kælvning (27 mdr.), kvier og stude, jersey | D67: Deep litter, long eating space, solid floor | E67: Dybstrøelse, lang ædeplads med spalter (kanal, bagskyl eller ringkanal) | F67: Dybstrøelse | G67: =IFERROR(HLOOKUP(Tabel86[[#This Row],[Staldsystem]],Indtastning!$B$8:$P$21,7,FALSE),0) -> 0 | H67: 25.14 | I67: =G67*H67 -> 0 | J67: 0.01 | K67: =Tabel86[[#This Row],[Total N excretion (kg pr year)]]*Tabel86[[#This Row],[Emissionsfaktor (kgN2O-N pr kg Nex) ]] -> 0 | L67: =Tabel86[[#This Row],[Total N2O-N]]*44/28 -> 0 | M67: 0.07579022528 | N67: =Tabel86[[#This Row],[Total N excretion (kg pr year)]]*Tabel86[[#This Row],[FracGasMS]] -> 0 | O67: 0.01 | P67: =Tabel86[[#This Row],[Total N fra fordampning]]*Tabel86[[#This Row],[Emissionsfaktor (EF4)]] -> 0 | Q67: =Tabel86[[#This Row],[Total N2O-N2 kg]]*44/28 -> 0 | R67: =Tabel86[[#This Row],[Total N2O direkte, kg]]+Tabel86[[#This Row],[Total N2O indirekte, kg ]] -> 0
A68: Heifer, 6 mth.-calving, jersey | B68: Andet kvæg | C68: Årsopdræt 6 mdr. til kælvning (27 mdr.), kvier og stude, jersey | D68: Deep litter, long eating space, solid floor | E68: Dybstrøelse, lang ædeplads med spalter (kanal, bagskyl eller ringkanal) | F68: Gylle | G68: =IFERROR(HLOOKUP(Tabel86[[#This Row],[Staldsystem]],Indtastning!$B$8:$P$21,7,FALSE),0) -> 0 | H68: 13.23 | I68: 0 | J68: 0.005 | K68: =Tabel86[[#This Row],[Total N excretion (kg pr year)]]*Tabel86[[#This Row],[Emissionsfaktor (kgN2O-N pr kg Nex) ]] -> 0 | L68: =Tabel86[[#This Row],[Total N2O-N]]*44/28 -> 0 | M68: 0.07579022528 | N68: =Tabel86[[#This Row],[Total N excretion (kg pr year)]]*Tabel86[[#This Row],[FracGasMS]] -> 0 | O68: 0.01 | P68: =Tabel86[[#This Row],[Total N fra fordampning]]*Tabel86[[#This Row],[Emissionsfaktor (EF4)]] -> 0 | Q68: =Tabel86[[#This Row],[Total N2O-N2 kg]]*44/28 -> 0 | R68: =Tabel86[[#This Row],[Total N2O direkte, kg]]+Tabel86[[#This Row],[Total N2O indirekte, kg ]] -> 0
A69: Bull calves, 0-6 mth. | B69: Andet kvæg | C69: 1 produceret tyrekalv, 0-6 mdr., tung race | D69: Deep litter (boxes) | E69: Dybstrøelse (hele arealet) | F69: Dybstrøelse | G69: =IFERROR(HLOOKUP(Tabel86[[#This Row],[Staldsystem]],Indtastning!$B$8:$P$21,8,FALSE),0) -> 0 | H69: 11.74 | I69: 0 | J69: 0.01 | K69: =Tabel86[[#This Row],[Total N excretion (kg pr year)]]*Tabel86[[#This Row],[Emissionsfaktor (kgN2O-N pr kg Nex) ]] -> 0 | L69: =Tabel86[[#This Row],[Total N2O-N]]*44/28 -> 0 | M69: 0.07579022528 | N69: =Tabel86[[#This Row],[Total N excretion (kg pr year)]]*Tabel86[[#This Row],[FracGasMS]] -> 0 | O69: 0.01 | P69: =Tabel86[[#This Row],[Total N fra fordampning]]*Tabel86[[#This Row],[Emissionsfaktor (EF4)]] -> 0 | Q69: =Tabel86[[#This Row],[Total N2O-N2 kg]]*44/28 -> 0 | R69: =Tabel86[[#This Row],[Total N2O direkte, kg]]+Tabel86[[#This Row],[Total N2O indirekte, kg ]] -> 0
A70: Bull calves, 0-6 mth. | B70: Andet kvæg | C70: 1 produceret tyrekalv, 0-6 mdr., tung race | D70: Deep litter, solid floor | E70: Dybstrøelse + kort ædeplads med fast gulv | F70: Dybstrøelse | G70: =IFERROR(HLOOKUP(Tabel86[[#This Row],[Staldsystem]],Indtastning!$B$8:$P$21,8,FALSE),0) -> 0 | H70: 11.74 | I70: 0 | J70: 0.01 | K70: =Tabel86[[#This Row],[Total N excretion (kg pr year)]]*Tabel86[[#This Row],[Emissionsfaktor (kgN2O-N pr kg Nex) ]] -> 0 | L70: =Tabel86[[#This Row],[Total N2O-N]]*44/28 -> 0 | M70: 0.07579022528 | N70: =Tabel86[[#This Row],[Total N excretion (kg pr year)]]*Tabel86[[#This Row],[FracGasMS]] -> 0 | O70: 0.01 | P70: =Tabel86[[#This Row],[Total N fra fordampning]]*Tabel86[[#This Row],[Emissionsfaktor (EF4)]] -> 0 | Q70: =Tabel86[[#This Row],[Total N2O-N2 kg]]*44/28 -> 0 | R70: =Tabel86[[#This Row],[Total N2O direkte, kg]]+Tabel86[[#This Row],[Total N2O indirekte, kg ]] -> 0
A71: Bulls, 6 mth - 440 kg | B71: Andet kvæg | C71: Ungtyre, 6 mdr. til slagtning (440 kg), tung race, (1 produceret ungtyr) | D71: Slatted floor-boxes | E71: Spaltegulvbokse | F71: Gylle | G71: =IFERROR(HLOOKUP(Tabel86[[#This Row],[Staldsystem]],Indtastning!$B$8:$P$21,10,FALSE),0) -> 0 | H71: 21.27 | I71: 0 | J71: 0.005 | K71: =Tabel86[[#This Row],[Total N excretion (kg pr year)]]*Tabel86[[#This Row],[Emissionsfaktor (kgN2O-N pr kg Nex) ]] -> 0 | L71: =Tabel86[[#This Row],[Total N2O-N]]*44/28 -> 0 | M71: 0.07579022528 | N71: =Tabel86[[#This Row],[Total N excretion (kg pr year)]]*Tabel86[[#This Row],[FracGasMS]] -> 0 | O71: 0.01 | P71: =Tabel86[[#This Row],[Total N fra fordampning]]*Tabel86[[#This Row],[Emissionsfaktor (EF4)]] -> 0 | Q71: =Tabel86[[#This Row],[Total N2O-N2 kg]]*44/28 -> 0 | R71: =Tabel86[[#This Row],[Total N2O direkte, kg]]+Tabel86[[#This Row],[Total N2O indirekte, kg ]] -> 0
A72: Bulls, 6 mth - 440 kg | B72: Andet kvæg | C72: Ungtyre, 6 mdr. til slagtning (440 kg), tung race, (1 produceret ungtyr) | D72: Tethered with urine and solid manure | E72: Bindestald med grebning | F72: Staldgødning | G72: =IFERROR(HLOOKUP(Tabel86[[#This Row],[Staldsystem]],Indtastning!$B$8:$P$21,10,FALSE),0) -> 0 | H72: 12.38 | I72: 0 | J72: 0.005 | K72: =Tabel86[[#This Row],[Total N excretion (kg pr year)]]*Tabel86[[#This Row],[Emissionsfaktor (kgN2O-N pr kg Nex) ]] -> 0 | L72: =Tabel86[[#This Row],[Total N2O-N]]*44/28 -> 0 | M72: 0.07579022528 | N72: =Tabel86[[#This Row],[Total N excretion (kg pr year)]]*Tabel86[[#This Row],[FracGasMS]] -> 0 | O72: 0.01 | P72: =Tabel86[[#This Row],[Total N fra fordampning]]*Tabel86[[#This Row],[Emissionsfaktor (EF4)]] -> 0 | Q72: =Tabel86[[#This Row],[Total N2O-N2 kg]]*44/28 -> 0 | R72: =Tabel86[[#This Row],[Total N2O direkte, kg]]+Tabel86[[#This Row],[Total N2O indirekte, kg ]] -> 0
A73: Bulls, 6 mth - 440 kg | B73: Andet kvæg | C73: Ungtyre, 6 mdr. til slagtning (440 kg), tung race, (1 produceret ungtyr) | D73: Tethered with urine and solid manure | E73: Bindestald med grebning | F73: Ajle (liquid manure/urin) | G73: =IFERROR(HLOOKUP(Tabel86[[#This Row],[Staldsystem]],Indtastning!$B$8:$P$21,10,FALSE),0) -> 0 | H73: 9.14 | I73: 0 | J73: 0.005 | K73: =Tabel86[[#This Row],[Total N excretion (kg pr year)]]*Tabel86[[#This Row],[Emissionsfaktor (kgN2O-N pr kg Nex) ]] -> 0 | L73: =Tabel86[[#This Row],[Total N2O-N]]*44/28 -> 0 | M73: 0.07579022528 | N73: =Tabel86[[#This Row],[Total N excretion (kg pr year)]]*Tabel86[[#This Row],[FracGasMS]] -> 0 | O73: 0.01 | P73: =Tabel86[[#This Row],[Total N fra fordampning]]*Tabel86[[#This Row],[Emissionsfaktor (EF4)]] -> 0 | Q73: =Tabel86[[#This Row],[Total N2O-N2 kg]]*44/28 -> 0 | R73: =Tabel86[[#This Row],[Total N2O direkte, kg]]+Tabel86[[#This Row],[Total N2O indirekte, kg ]] -> 0
A74: Bulls, 6 mth - 440 kg | B74: Andet kvæg | C74: Ungtyre, 6 mdr. til slagtning (440 kg), tung race, (1 produceret ungtyr) | D74: Tethered with slurry | E74: Bindestald med riste | F74: Gylle | G74: =IFERROR(HLOOKUP(Tabel86[[#This Row],[Staldsystem]],Indtastning!$B$8:$P$21,10,FALSE),0) -> 0 | H74: 23.46 | I74: 0 | J74: 0.005 | K74: =Tabel86[[#This Row],[Total N excretion (kg pr year)]]*Tabel86[[#This Row],[Emissionsfaktor (kgN2O-N pr kg Nex) ]] -> 0 | L74: =Tabel86[[#This Row],[Total N2O-N]]*44/28 -> 0 | M74: 0.07579022528 | N74: =Tabel86[[#This Row],[Total N excretion (kg pr year)]]*Tabel86[[#This Row],[FracGasMS]] -> 0 | O74: 0.01 | P74: =Tabel86[[#This Row],[Total N fra fordampning]]*Tabel86[[#This Row],[Emissionsfaktor (EF4)]] -> 0 | Q74: =Tabel86[[#This Row],[Total N2O-N2 kg]]*44/28 -> 0 | R74: =Tabel86[[#This Row],[Total N2O direkte, kg]]+Tabel86[[#This Row],[Total N2O indirekte, kg ]] -> 0
A75: Bulls, 6 mth - 440 kg | B75: Andet kvæg | C75: Ungtyre, 6 mdr. til slagtning (440 kg), tung race, (1 produceret ungtyr) | D75: Loose-holding with beds, solid floor | E75: Sengestald med fast gulv | F75: Gylle | G75: =IFERROR(HLOOKUP(Tabel86[[#This Row],[Staldsystem]],Indtastning!$B$8:$P$21,10,FALSE),0) -> 0 | H75: 20.9 | I75: 0 | J75: 0.005 | K75: =Tabel86[[#This Row],[Total N excretion (kg pr year)]]*Tabel86[[#This Row],[Emissionsfaktor (kgN2O-N pr kg Nex) ]] -> 0 | L75: =Tabel86[[#This Row],[Total N2O-N]]*44/28 -> 0 | M75: 0.07579022528 | N75: =Tabel86[[#This Row],[Total N excretion (kg pr year)]]*Tabel86[[#This Row],[FracGasMS]] -> 0 | O75: 0.01 | P75: =Tabel86[[#This Row],[Total N fra fordampning]]*Tabel86[[#This Row],[Emissionsfaktor (EF4)]] -> 0 | Q75: =Tabel86[[#This Row],[Total N2O-N2 kg]]*44/28 -> 0 | R75: =Tabel86[[#This Row],[Total N2O direkte, kg]]+Tabel86[[#This Row],[Total N2O indirekte, kg ]] -> 0
A76: Bulls, 6 mth - 440 kg | B76: Andet kvæg | C76: Ungtyre, 6 mdr. til slagtning (440 kg), tung race, (1 produceret ungtyr) | D76: Loose-holding with beds, slatted floor | E76: Sengestald med spalter (kanal, linespil) | F76: Gylle | G76: =IFERROR(HLOOKUP(Tabel86[[#This Row],[Staldsystem]],Indtastning!$B$8:$P$21,10,FALSE),0) -> 0 | H76: 22.14 | I76: 0 | J76: 0.005 | K76: =Tabel86[[#This Row],[Total N excretion (kg pr year)]]*Tabel86[[#This Row],[Emissionsfaktor (kgN2O-N pr kg Nex) ]] -> 0 | L76: =Tabel86[[#This Row],[Total N2O-N]]*44/28 -> 0 | M76: 0.07579022528 | N76: =Tabel86[[#This Row],[Total N excretion (kg pr year)]]*Tabel86[[#This Row],[FracGasMS]] -> 0 | O76: 0.01 | P76: =Tabel86[[#This Row],[Total N fra fordampning]]*Tabel86[[#This Row],[Emissionsfaktor (EF4)]] -> 0 | Q76: =Tabel86[[#This Row],[Total N2O-N2 kg]]*44/28 -> 0 | R76: =Tabel86[[#This Row],[Total N2O direkte, kg]]+Tabel86[[#This Row],[Total N2O indirekte, kg ]] -> 0
A77: Bulls, 6 mth - 440 kg | B77: Andet kvæg | C77: Ungtyre, 6 mdr. til slagtning (440 kg), tung race, (1 produceret ungtyr) | D77: Loose-holding with beds, slatted floor, scrape | E77: Sengestald med spalter (kanal, bagskyl eller ringkanal) | F77: Gylle | G77: =IFERROR(HLOOKUP(Tabel86[[#This Row],[Staldsystem]],Indtastning!$B$8:$P$21,10,FALSE),0) -> 0 | H77: 21.52 | I77: 0 | J77: 0.005 | K77: =Tabel86[[#This Row],[Total N excretion (kg pr year)]]*Tabel86[[#This Row],[Emissionsfaktor (kgN2O-N pr kg Nex) ]] -> 0 | L77: =Tabel86[[#This Row],[Total N2O-N]]*44/28 -> 0 | M77: 0.07579022528 | N77: =Tabel86[[#This Row],[Total N excretion (kg pr year)]]*Tabel86[[#This Row],[FracGasMS]] -> 0 | O77: 0.01 | P77: =Tabel86[[#This Row],[Total N fra fordampning]]*Tabel86[[#This Row],[Emissionsfaktor (EF4)]] -> 0 | Q77: =Tabel86[[#This Row],[Total N2O-N2 kg]]*44/28 -> 0 | R77: =Tabel86[[#This Row],[Total N2O direkte, kg]]+Tabel86[[#This Row],[Total N2O indirekte, kg ]] -> 0
A78: Bulls, 6 mth - 440 kg | B78: Andet kvæg | C78: Ungtyre, 6 mdr. til slagtning (440 kg), tung race, (1 produceret ungtyr) | D78: Loose-holding with beds, solid floor with tilt | E78: Sengestald, fast drænet gulv med skraber og ajleafløb | F78: Gylle | G78: =IFERROR(HLOOKUP(Tabel86[[#This Row],[Staldsystem]],Indtastning!$B$8:$P$21,10,FALSE),0) -> 0 | H78: 22.77 | I78: 0 | J78: 0.005 | K78: =Tabel86[[#This Row],[Total N excretion (kg pr year)]]*Tabel86[[#This Row],[Emissionsfaktor (kgN2O-N pr kg Nex) ]] -> 0 | L78: =Tabel86[[#This Row],[Total N2O-N]]*44/28 -> 0 | M78: 0.07579022528 | N78: =Tabel86[[#This Row],[Total N excretion (kg pr year)]]*Tabel86[[#This Row],[FracGasMS]] -> 0 | O78: 0.01 | P78: =Tabel86[[#This Row],[Total N fra fordampning]]*Tabel86[[#This Row],[Emissionsfaktor (EF4)]] -> 0 | Q78: =Tabel86[[#This Row],[Total N2O-N2 kg]]*44/28 -> 0 | R78: =Tabel86[[#This Row],[Total N2O direkte, kg]]+Tabel86[[#This Row],[Total N2O indirekte, kg ]] -> 0
A79: Bulls, 6 mth - 440 kg | B79: Andet kvæg | C79: Ungtyre, 6 mdr. til slagtning (440 kg), tung race, (1 produceret ungtyr) | D79: Deep litter (all) | E79: Dybstrøelse (hele arealet) | F79: Dybstrøelse | G79: =IFERROR(HLOOKUP(Tabel86[[#This Row],[Staldsystem]],Indtastning!$B$8:$P$21,10,FALSE),0) -> 0 | H79: 25.34 | I79: 0 | J79: 0.01 | K79: =Tabel86[[#This Row],[Total N excretion (kg pr year)]]*Tabel86[[#This Row],[Emissionsfaktor (kgN2O-N pr kg Nex) ]] -> 0 | L79: =Tabel86[[#This Row],[Total N2O-N]]*44/28 -> 0 | M79: 0.07579022528 | N79: =Tabel86[[#This Row],[Total N excretion (kg pr year)]]*Tabel86[[#This Row],[FracGasMS]] -> 0 | O79: 0.01 | P79: =Tabel86[[#This Row],[Total N fra fordampning]]*Tabel86[[#This Row],[Emissionsfaktor (EF4)]] -> 0 | Q79: =Tabel86[[#This Row],[Total N2O-N2 kg]]*44/28 -> 0 | R79: =Tabel86[[#This Row],[Total N2O direkte, kg]]+Tabel86[[#This Row],[Total N2O indirekte, kg ]] -> 0
A80: Bulls, 6 mth - 440 kg | B80: Andet kvæg | C80: Ungtyre, 6 mdr. til slagtning (440 kg), tung race, (1 produceret ungtyr) | D80: Deep litter, long eating space, solid floor | E80: Dybstrøelse, lang ædeplads med fast gulv | F80: Dybstrøelse | G80: =IFERROR(HLOOKUP(Tabel86[[#This Row],[Staldsystem]],Indtastning!$B$8:$P$21,10,FALSE),0) -> 0 | H80: 15.88 | I80: 0 | J80: 0.01 | K80: =Tabel86[[#This Row],[Total N excretion (kg pr year)]]*Tabel86[[#This Row],[Emissionsfaktor (kgN2O-N pr kg Nex) ]] -> 0 | L80: =Tabel86[[#This Row],[Total N2O-N]]*44/28 -> 0 | M80: 0.07579022528 | N80: =Tabel86[[#This Row],[Total N excretion (kg pr year)]]*Tabel86[[#This Row],[FracGasMS]] -> 0 | O80: 0.01 | P80: =Tabel86[[#This Row],[Total N fra fordampning]]*Tabel86[[#This Row],[Emissionsfaktor (EF4)]] -> 0 | Q80: =Tabel86[[#This Row],[Total N2O-N2 kg]]*44/28 -> 0 | R80: =Tabel86[[#This Row],[Total N2O direkte, kg]]+Tabel86[[#This Row],[Total N2O indirekte, kg ]] -> 0
A81: Bulls, 6 mth - 440 kg | B81: Andet kvæg | C81: Ungtyre, 6 mdr. til slagtning (440 kg), tung race, (1 produceret ungtyr) | D81: Deep litter, long eating space, solid floor | E81: Dybstrøelse, lang ædeplads med fast gulv | F81: Gylle | G81: =IFERROR(HLOOKUP(Tabel86[[#This Row],[Staldsystem]],Indtastning!$B$8:$P$21,10,FALSE),0) -> 0 | H81: 8.26 | I81: 0 | J81: 0.005 | K81: =Tabel86[[#This Row],[Total N excretion (kg pr year)]]*Tabel86[[#This Row],[Emissionsfaktor (kgN2O-N pr kg Nex) ]] -> 0 | L81: =Tabel86[[#This Row],[Total N2O-N]]*44/28 -> 0 | M81: 0.07579022528 | N81: =Tabel86[[#This Row],[Total N excretion (kg pr year)]]*Tabel86[[#This Row],[FracGasMS]] -> 0 | O81: 0.01 | P81: =Tabel86[[#This Row],[Total N fra fordampning]]*Tabel86[[#This Row],[Emissionsfaktor (EF4)]] -> 0 | Q81: =Tabel86[[#This Row],[Total N2O-N2 kg]]*44/28 -> 0 | R81: =Tabel86[[#This Row],[Total N2O direkte, kg]]+Tabel86[[#This Row],[Total N2O indirekte, kg ]] -> 0
A82: Bulls, 6 mth - 440 kg | B82: Andet kvæg | C82: Ungtyre, 6 mdr. til slagtning (440 kg), tung race, (1 produceret ungtyr) | D82: Deep litter, solid floor | E82: Dybstrøelse + kort ædeplads med fast gulv | F82: Dybstrøelse | G82: =IFERROR(HLOOKUP(Tabel86[[#This Row],[Staldsystem]],Indtastning!$B$8:$P$21,10,FALSE),0) -> 0 | H82: 24.84 | I82: 0 | J82: 0.01 | K82: =Tabel86[[#This Row],[Total N excretion (kg pr year)]]*Tabel86[[#This Row],[Emissionsfaktor (kgN2O-N pr kg Nex) ]] -> 0 | L82: =Tabel86[[#This Row],[Total N2O-N]]*44/28 -> 0 | M82: 0.07579022528 | N82: =Tabel86[[#This Row],[Total N excretion (kg pr year)]]*Tabel86[[#This Row],[FracGasMS]] -> 0 | O82: 0.01 | P82: =Tabel86[[#This Row],[Total N fra fordampning]]*Tabel86[[#This Row],[Emissionsfaktor (EF4)]] -> 0 | Q82: =Tabel86[[#This Row],[Total N2O-N2 kg]]*44/28 -> 0 | R82: =Tabel86[[#This Row],[Total N2O direkte, kg]]+Tabel86[[#This Row],[Total N2O indirekte, kg ]] -> 0
A83: Bulls, 6 mth - 440 kg | B83: Andet kvæg | C83: Ungtyre, 6 mdr. til slagtning (440 kg), tung race, (1 produceret ungtyr) | D83: Deep litter, slatted floor | E83: Dybstrøelse, lang ædeplads med spalter (kanal, linespil) | F83: Dybstrøelse | G83: =IFERROR(HLOOKUP(Tabel86[[#This Row],[Staldsystem]],Indtastning!$B$8:$P$21,10,FALSE),0) -> 0 | H83: 15.88 | I83: 0 | J83: 0.01 | K83: =Tabel86[[#This Row],[Total N excretion (kg pr year)]]*Tabel86[[#This Row],[Emissionsfaktor (kgN2O-N pr kg Nex) ]] -> 0 | L83: =Tabel86[[#This Row],[Total N2O-N]]*44/28 -> 0 | M83: 0.07579022528 | N83: =Tabel86[[#This Row],[Total N excretion (kg pr year)]]*Tabel86[[#This Row],[FracGasMS]] -> 0 | O83: 0.01 | P83: =Tabel86[[#This Row],[Total N fra fordampning]]*Tabel86[[#This Row],[Emissionsfaktor (EF4)]] -> 0 | Q83: =Tabel86[[#This Row],[Total N2O-N2 kg]]*44/28 -> 0 | R83: =Tabel86[[#This Row],[Total N2O direkte, kg]]+Tabel86[[#This Row],[Total N2O indirekte, kg ]] -> 0
A84: Bulls, 6 mth - 440 kg | B84: Andet kvæg | C84: Ungtyre, 6 mdr. til slagtning (440 kg), tung race, (1 produceret ungtyr) | D84: Deep litter, slatted floor | E84: Dybstrøelse, lang ædeplads med spalter (kanal, linespil) | F84: Gylle | G84: =IFERROR(HLOOKUP(Tabel86[[#This Row],[Staldsystem]],Indtastning!$B$8:$P$21,10,FALSE),0) -> 0 | H84: 8.76 | I84: 0 | J84: 0.005 | K84: =Tabel86[[#This Row],[Total N excretion (kg pr year)]]*Tabel86[[#This Row],[Emissionsfaktor (kgN2O-N pr kg Nex) ]] -> 0 | L84: =Tabel86[[#This Row],[Total N2O-N]]*44/28 -> 0 | M84: 0.07579022528 | N84: =Tabel86[[#This Row],[Total N excretion (kg pr year)]]*Tabel86[[#This Row],[FracGasMS]] -> 0 | O84: 0.01 | P84: =Tabel86[[#This Row],[Total N fra fordampning]]*Tabel86[[#This Row],[Emissionsfaktor (EF4)]] -> 0 | Q84: =Tabel86[[#This Row],[Total N2O-N2 kg]]*44/28 -> 0 | R84: =Tabel86[[#This Row],[Total N2O direkte, kg]]+Tabel86[[#This Row],[Total N2O indirekte, kg ]] -> 0
A85: Bulls, 6 mth - 440 kg | B85: Andet kvæg | C85: Ungtyre, 6 mdr. til slagtning (440 kg), tung race, (1 produceret ungtyr) | D85: Deep litter, slatted floor, scrape | E85: Dybstrøelse, lang ædeplads med spalter (kanal, bagskyl eller ringkanal) | F85: Dybstrøelse | G85: =IFERROR(HLOOKUP(Tabel86[[#This Row],[Staldsystem]],Indtastning!$B$8:$P$21,10,FALSE),0) -> 0 | H85: 15.88 | I85: 0 | J85: 0.01 | K85: =Tabel86[[#This Row],[Total N excretion (kg pr year)]]*Tabel86[[#This Row],[Emissionsfaktor (kgN2O-N pr kg Nex) ]] -> 0 | L85: =Tabel86[[#This Row],[Total N2O-N]]*44/28 -> 0 | M85: 0.07579022528 | N85: =Tabel86[[#This Row],[Total N excretion (kg pr year)]]*Tabel86[[#This Row],[FracGasMS]] -> 0 | O85: 0.01 | P85: =Tabel86[[#This Row],[Total N fra fordampning]]*Tabel86[[#This Row],[Emissionsfaktor (EF4)]] -> 0 | Q85: =Tabel86[[#This Row],[Total N2O-N2 kg]]*44/28 -> 0 | R85: =Tabel86[[#This Row],[Total N2O direkte, kg]]+Tabel86[[#This Row],[Total N2O indirekte, kg ]] -> 0
A86: Bulls, 6 mth - 440 kg | B86: Andet kvæg | C86: Ungtyre, 6 mdr. til slagtning (440 kg), tung race, (1 produceret ungtyr) | D86: Deep litter, slatted floor, scrape | E86: Dybstrøelse, lang ædeplads med spalter (kanal, bagskyl eller ringkanal) | F86: Gylle | G86: =IFERROR(HLOOKUP(Tabel86[[#This Row],[Staldsystem]],Indtastning!$B$8:$P$21,10,FALSE),0) -> 0 | H86: 8.51 | I86: 0 | J86: 0.005 | K86: =Tabel86[[#This Row],[Total N excretion (kg pr year)]]*Tabel86[[#This Row],[Emissionsfaktor (kgN2O-N pr kg Nex) ]] -> 0 | L86: =Tabel86[[#This Row],[Total N2O-N]]*44/28 -> 0 | M86: 0.07579022528 | N86: =Tabel86[[#This Row],[Total N excretion (kg pr year)]]*Tabel86[[#This Row],[FracGasMS]] -> 0 | O86: 0.01 | P86: =Tabel86[[#This Row],[Total N fra fordampning]]*Tabel86[[#This Row],[Emissionsfaktor (EF4)]] -> 0 | Q86: =Tabel86[[#This Row],[Total N2O-N2 kg]]*44/28 -> 0 | R86: =Tabel86[[#This Row],[Total N2O direkte, kg]]+Tabel86[[#This Row],[Total N2O indirekte, kg ]] -> 0
A87: Bull calves, 0-6 mth., jersey | B87: Andet kvæg | C87: 1 produceret tyrekalv, 0-6 mdr., jersey | D87: Deep litter (boxes) | E87: Dybstrøelse (hele arealet) | F87: Dybstrøelse | G87: =IFERROR(HLOOKUP(Tabel86[[#This Row],[Staldsystem]],Indtastning!$B$8:$P$21,9,FALSE),0) -> 0 | H87: 8.69 | I87: 0 | J87: 0.01 | K87: =Tabel86[[#This Row],[Total N excretion (kg pr year)]]*Tabel86[[#This Row],[Emissionsfaktor (kgN2O-N pr kg Nex) ]] -> 0 | L87: =Tabel86[[#This Row],[Total N2O-N]]*44/28 -> 0 | M87: 0.07579022528 | N87: =Tabel86[[#This Row],[Total N excretion (kg pr year)]]*Tabel86[[#This Row],[FracGasMS]] -> 0 | O87: 0.01 | P87: =Tabel86[[#This Row],[Total N fra fordampning]]*Tabel86[[#This Row],[Emissionsfaktor (EF4)]] -> 0 | Q87: =Tabel86[[#This Row],[Total N2O-N2 kg]]*44/28 -> 0 | R87: =Tabel86[[#This Row],[Total N2O direkte, kg]]+Tabel86[[#This Row],[Total N2O indirekte, kg ]] -> 0
A88: Bull calves, 0-6 mth., jersey | B88: Andet kvæg | C88: 1 produceret tyrekalv, 0-6 mdr., jersey | D88: Deep litter, solid floor | E88: Dybstrøelse + kort ædeplads med fast gulv | F88: Dybstrøelse | G88: =IFERROR(HLOOKUP(Tabel86[[#This Row],[Staldsystem]],Indtastning!$B$8:$P$21,9,FALSE),0) -> 0 | H88: 8.69 | I88: 0 | J88: 0.01 | K88: =Tabel86[[#This Row],[Total N excretion (kg pr year)]]*Tabel86[[#This Row],[Emissionsfaktor (kgN2O-N pr kg Nex) ]] -> 0 | L88: =Tabel86[[#This Row],[Total N2O-N]]*44/28 -> 0 | M88: 0.07579022528 | N88: =Tabel86[[#This Row],[Total N excretion (kg pr year)]]*Tabel86[[#This Row],[FracGasMS]] -> 0 | O88: 0.01 | P88: =Tabel86[[#This Row],[Total N fra fordampning]]*Tabel86[[#This Row],[Emissionsfaktor (EF4)]] -> 0 | Q88: =Tabel86[[#This Row],[Total N2O-N2 kg]]*44/28 -> 0 | R88: =Tabel86[[#This Row],[Total N2O direkte, kg]]+Tabel86[[#This Row],[Total N2O indirekte, kg ]] -> 0
A89: Bulls, 6 mth - 440 kg, jersey | B89: Andet kvæg | C89: Ungtyre, 6 mdr. til slagtning (440 kg), tung race, (1 produceret ungtyr) | D89: Slatted floor-boxes | E89: Spaltegulvbokse | F89: Gylle | G89: =IFERROR(HLOOKUP(Tabel86[[#This Row],[Staldsystem]],Indtastning!$B$8:$P$21,11,FALSE),0) -> 0 | H89: 16.54 | I89: 0 | J89: 0.005 | K89: =Tabel86[[#This Row],[Total N excretion (kg pr year)]]*Tabel86[[#This Row],[Emissionsfaktor (kgN2O-N pr kg Nex) ]] -> 0 | L89: =Tabel86[[#This Row],[Total N2O-N]]*44/28 -> 0 | M89: 0.07579022528 | N89: =Tabel86[[#This Row],[Total N excretion (kg pr year)]]*Tabel86[[#This Row],[FracGasMS]] -> 0 | O89: 0.01 | P89: =Tabel86[[#This Row],[Total N fra fordampning]]*Tabel86[[#This Row],[Emissionsfaktor (EF4)]] -> 0 | Q89: =Tabel86[[#This Row],[Total N2O-N2 kg]]*44/28 -> 0 | R89: =Tabel86[[#This Row],[Total N2O direkte, kg]]+Tabel86[[#This Row],[Total N2O indirekte, kg ]] -> 0
A90: Bulls, 6 mth - 440 kg, jersey | B90: Andet kvæg | C90: Ungtyre, 6 mdr. til slagtning (440 kg), tung race, (1 produceret ungtyr) | D90: Tethered with urine and solid manure | E90: Bindestald med grebning | F90: Staldgødning | G90: =IFERROR(HLOOKUP(Tabel86[[#This Row],[Staldsystem]],Indtastning!$B$8:$P$21,11,FALSE),0) -> 0 | H90: 9.74 | I90: 0 | J90: 0.005 | K90: =Tabel86[[#This Row],[Total N excretion (kg pr year)]]*Tabel86[[#This Row],[Emissionsfaktor (kgN2O-N pr kg Nex) ]] -> 0 | L90: =Tabel86[[#This Row],[Total N2O-N]]*44/28 -> 0 | M90: 0.07579022528 | N90: =Tabel86[[#This Row],[Total N excretion (kg pr year)]]*Tabel86[[#This Row],[FracGasMS]] -> 0 | O90: 0.01 | P90: =Tabel86[[#This Row],[Total N fra fordampning]]*Tabel86[[#This Row],[Emissionsfaktor (EF4)]] -> 0 | Q90: =Tabel86[[#This Row],[Total N2O-N2 kg]]*44/28 -> 0 | R90: =Tabel86[[#This Row],[Total N2O direkte, kg]]+Tabel86[[#This Row],[Total N2O indirekte, kg ]] -> 0
A91: Bulls, 6 mth - 440 kg, jersey | B91: Andet kvæg | C91: Ungtyre, 6 mdr. til slagtning (440 kg), tung race, (1 produceret ungtyr) | D91: Tethered with urine and solid manure | E91: Bindestald med grebning | F91: Ajle (liquid manure/urin) | G91: =IFERROR(HLOOKUP(Tabel86[[#This Row],[Staldsystem]],Indtastning!$B$8:$P$21,11,FALSE),0) -> 0 | H91: 7 | I91: 0 | J91: 0.005 | K91: =Tabel86[[#This Row],[Total N excretion (kg pr year)]]*Tabel86[[#This Row],[Emissionsfaktor (kgN2O-N pr kg Nex) ]] -> 0 | L91: =Tabel86[[#This Row],[Total N2O-N]]*44/28 -> 0 | M91: 0.07579022528 | N91: =Tabel86[[#This Row],[Total N excretion (kg pr year)]]*Tabel86[[#This Row],[FracGasMS]] -> 0 | O91: 0.01 | P91: =Tabel86[[#This Row],[Total N fra fordampning]]*Tabel86[[#This Row],[Emissionsfaktor (EF4)]] -> 0 | Q91: =Tabel86[[#This Row],[Total N2O-N2 kg]]*44/28 -> 0 | R91: =Tabel86[[#This Row],[Total N2O direkte, kg]]+Tabel86[[#This Row],[Total N2O indirekte, kg ]] -> 0
A92: Bulls, 6 mth - 440 kg, jersey | B92: Andet kvæg | C92: Ungtyre, 6 mdr. til slagtning (440 kg), tung race, (1 produceret ungtyr) | D92: Tethered with slurry | E92: Bindestald med riste | F92: Gylle | G92: =IFERROR(HLOOKUP(Tabel86[[#This Row],[Staldsystem]],Indtastning!$B$8:$P$21,11,FALSE),0) -> 0 | H92: 18.26 | I92: 0 | J92: 0.005 | K92: =Tabel86[[#This Row],[Total N excretion (kg pr year)]]*Tabel86[[#This Row],[Emissionsfaktor (kgN2O-N pr kg Nex) ]] -> 0 | L92: =Tabel86[[#This Row],[Total N2O-N]]*44/28 -> 0 | M92: 0.07579022528 | N92: =Tabel86[[#This Row],[Total N excretion (kg pr year)]]*Tabel86[[#This Row],[FracGasMS]] -> 0 | O92: 0.01 | P92: =Tabel86[[#This Row],[Total N fra fordampning]]*Tabel86[[#This Row],[Emissionsfaktor (EF4)]] -> 0 | Q92: =Tabel86[[#This Row],[Total N2O-N2 kg]]*44/28 -> 0 | R92: =Tabel86[[#This Row],[Total N2O direkte, kg]]+Tabel86[[#This Row],[Total N2O indirekte, kg ]] -> 0
A93: Bulls, 6 mth - 440 kg, jersey | B93: Andet kvæg | C93: Ungtyre, 6 mdr. til slagtning (440 kg), tung race, (1 produceret ungtyr) | D93: Loose-holding with beds, solid floor | E93: Sengestald med fast gulv | F93: Gylle | G93: =IFERROR(HLOOKUP(Tabel86[[#This Row],[Staldsystem]],Indtastning!$B$8:$P$21,11,FALSE),0) -> 0 | H93: 16.23 | I93: 0 | J93: 0.005 | K93: =Tabel86[[#This Row],[Total N excretion (kg pr year)]]*Tabel86[[#This Row],[Emissionsfaktor (kgN2O-N pr kg Nex) ]] -> 0 | L93: =Tabel86[[#This Row],[Total N2O-N]]*44/28 -> 0 | M93: 0.07579022528 | N93: =Tabel86[[#This Row],[Total N excretion (kg pr year)]]*Tabel86[[#This Row],[FracGasMS]] -> 0 | O93: 0.01 | P93: =Tabel86[[#This Row],[Total N fra fordampning]]*Tabel86[[#This Row],[Emissionsfaktor (EF4)]] -> 0 | Q93: =Tabel86[[#This Row],[Total N2O-N2 kg]]*44/28 -> 0 | R93: =Tabel86[[#This Row],[Total N2O direkte, kg]]+Tabel86[[#This Row],[Total N2O indirekte, kg ]] -> 0
A94: Bulls, 6 mth - 440 kg, jersey | B94: Andet kvæg | C94: Ungtyre, 6 mdr. til slagtning (440 kg), tung race, (1 produceret ungtyr) | D94: Loose-holding with beds, slatted floor | E94: Sengestald med spalter (kanal, linespil) | F94: Gylle | G94: =IFERROR(HLOOKUP(Tabel86[[#This Row],[Staldsystem]],Indtastning!$B$8:$P$21,11,FALSE),0) -> 0 | H94: 17.19 | I94: 0 | J94: 0.005 | K94: =Tabel86[[#This Row],[Total N excretion (kg pr year)]]*Tabel86[[#This Row],[Emissionsfaktor (kgN2O-N pr kg Nex) ]] -> 0 | L94: =Tabel86[[#This Row],[Total N2O-N]]*44/28 -> 0 | M94: 0.07579022528 | N94: =Tabel86[[#This Row],[Total N excretion (kg pr year)]]*Tabel86[[#This Row],[FracGasMS]] -> 0 | O94: 0.01 | P94: =Tabel86[[#This Row],[Total N fra fordampning]]*Tabel86[[#This Row],[Emissionsfaktor (EF4)]] -> 0 | Q94: =Tabel86[[#This Row],[Total N2O-N2 kg]]*44/28 -> 0 | R94: =Tabel86[[#This Row],[Total N2O direkte, kg]]+Tabel86[[#This Row],[Total N2O indirekte, kg ]] -> 0
A95: Bulls, 6 mth - 440 kg, jersey | B95: Andet kvæg | C95: Ungtyre, 6 mdr. til slagtning (440 kg), tung race, (1 produceret ungtyr) | D95: Loose-holding with beds, slatted floor, scrape | E95: Sengestald med spalter (kanal, bagskyl eller ringkanal) | F95: Gylle | G95: =IFERROR(HLOOKUP(Tabel86[[#This Row],[Staldsystem]],Indtastning!$B$8:$P$21,11,FALSE),0) -> 0 | H95: 16.71 | I95: 0 | J95: 0.005 | K95: =Tabel86[[#This Row],[Total N excretion (kg pr year)]]*Tabel86[[#This Row],[Emissionsfaktor (kgN2O-N pr kg Nex) ]] -> 0 | L95: =Tabel86[[#This Row],[Total N2O-N]]*44/28 -> 0 | M95: 0.07579022528 | N95: =Tabel86[[#This Row],[Total N excretion (kg pr year)]]*Tabel86[[#This Row],[FracGasMS]] -> 0 | O95: 0.01 | P95: =Tabel86[[#This Row],[Total N fra fordampning]]*Tabel86[[#This Row],[Emissionsfaktor (EF4)]] -> 0 | Q95: =Tabel86[[#This Row],[Total N2O-N2 kg]]*44/28 -> 0 | R95: =Tabel86[[#This Row],[Total N2O direkte, kg]]+Tabel86[[#This Row],[Total N2O indirekte, kg ]] -> 0
A96: Bulls, 6 mth - 440 kg, jersey | B96: Andet kvæg | C96: Ungtyre, 6 mdr. til slagtning (440 kg), tung race, (1 produceret ungtyr) | D96: Loose-holding with beds, solid floor with tilt | E96: Sengestald, fast drænet gulv med skraber og ajleafløb | F96: Gylle | G96: =IFERROR(HLOOKUP(Tabel86[[#This Row],[Staldsystem]],Indtastning!$B$8:$P$21,11,FALSE),0) -> 0 | H96: 17.68 | I96: 0 | J96: 0.005 | K96: =Tabel86[[#This Row],[Total N excretion (kg pr year)]]*Tabel86[[#This Row],[Emissionsfaktor (kgN2O-N pr kg Nex) ]] -> 0 | L96: =Tabel86[[#This Row],[Total N2O-N]]*44/28 -> 0 | M96: 0.07579022528 | N96: =Tabel86[[#This Row],[Total N excretion (kg pr year)]]*Tabel86[[#This Row],[FracGasMS]] -> 0 | O96: 0.01 | P96: =Tabel86[[#This Row],[Total N fra fordampning]]*Tabel86[[#This Row],[Emissionsfaktor (EF4)]] -> 0 | Q96: =Tabel86[[#This Row],[Total N2O-N2 kg]]*44/28 -> 0 | R96: =Tabel86[[#This Row],[Total N2O direkte, kg]]+Tabel86[[#This Row],[Total N2O indirekte, kg ]] -> 0
A97: Bulls, 6 mth - 440 kg, jersey | B97: Andet kvæg | C97: Ungtyre, 6 mdr. til slagtning (440 kg), tung race, (1 produceret ungtyr) | D97: Deep litter (all) | E97: Dybstrøelse (hele arealet) | F97: Dybstrøelse | G97: =IFERROR(HLOOKUP(Tabel86[[#This Row],[Staldsystem]],Indtastning!$B$8:$P$21,11,FALSE),0) -> 0 | H97: 19.65 | I97: 0 | J97: 0.01 | K97: =Tabel86[[#This Row],[Total N excretion (kg pr year)]]*Tabel86[[#This Row],[Emissionsfaktor (kgN2O-N pr kg Nex) ]] -> 0 | L97: =Tabel86[[#This Row],[Total N2O-N]]*44/28 -> 0 | M97: 0.07579022528 | N97: =Tabel86[[#This Row],[Total N excretion (kg pr year)]]*Tabel86[[#This Row],[FracGasMS]] -> 0 | O97: 0.01 | P97: =Tabel86[[#This Row],[Total N fra fordampning]]*Tabel86[[#This Row],[Emissionsfaktor (EF4)]] -> 0 | Q97: =Tabel86[[#This Row],[Total N2O-N2 kg]]*44/28 -> 0 | R97: =Tabel86[[#This Row],[Total N2O direkte, kg]]+Tabel86[[#This Row],[Total N2O indirekte, kg ]] -> 0
A98: Bulls, 6 mth - 440 kg, jersey | B98: Andet kvæg | C98: Ungtyre, 6 mdr. til slagtning (440 kg), tung race, (1 produceret ungtyr) | D98: Deep litter, long eating space, solid floor | E98: Dybstrøelse, lang ædeplads med fast gulv | F98: Dybstrøelse | G98: =IFERROR(HLOOKUP(Tabel86[[#This Row],[Staldsystem]],Indtastning!$B$8:$P$21,11,FALSE),0) -> 0 | H98: 12.25 | I98: 0 | J98: 0.01 | K98: =Tabel86[[#This Row],[Total N excretion (kg pr year)]]*Tabel86[[#This Row],[Emissionsfaktor (kgN2O-N pr kg Nex) ]] -> 0 | L98: =Tabel86[[#This Row],[Total N2O-N]]*44/28 -> 0 | M98: 0.07579022528 | N98: =Tabel86[[#This Row],[Total N excretion (kg pr year)]]*Tabel86[[#This Row],[FracGasMS]] -> 0 | O98: 0.01 | P98: =Tabel86[[#This Row],[Total N fra fordampning]]*Tabel86[[#This Row],[Emissionsfaktor (EF4)]] -> 0 | Q98: =Tabel86[[#This Row],[Total N2O-N2 kg]]*44/28 -> 0 | R98: =Tabel86[[#This Row],[Total N2O direkte, kg]]+Tabel86[[#This Row],[Total N2O indirekte, kg ]] -> 0
A99: Bulls, 6 mth - 440 kg, jersey | B99: Andet kvæg | C99: Ungtyre, 6 mdr. til slagtning (440 kg), tung race, (1 produceret ungtyr) | D99: Deep litter, long eating space, solid floor | E99: Dybstrøelse, lang ædeplads med fast gulv | F99: Gylle | G99: =IFERROR(HLOOKUP(Tabel86[[#This Row],[Staldsystem]],Indtastning!$B$8:$P$21,11,FALSE),0) -> 0 | H99: 6.43 | I99: =G99*H99 -> 0 | J99: 0.005 | K99: =Tabel86[[#This Row],[Total N excretion (kg pr year)]]*Tabel86[[#This Row],[Emissionsfaktor (kgN2O-N pr kg Nex) ]] -> 0 | L99: =Tabel86[[#This Row],[Total N2O-N]]*44/28 -> 0 | M99: 0.07579022528 | N99: =Tabel86[[#This Row],[Total N excretion (kg pr year)]]*Tabel86[[#This Row],[FracGasMS]] -> 0 | O99: 0.01 | P99: =Tabel86[[#This Row],[Total N fra fordampning]]*Tabel86[[#This Row],[Emissionsfaktor (EF4)]] -> 0 | Q99: =Tabel86[[#This Row],[Total N2O-N2 kg]]*44/28 -> 0 | R99: =Tabel86[[#This Row],[Total N2O direkte, kg]]+Tabel86[[#This Row],[Total N2O indirekte, kg ]] -> 0
A100: Bulls, 6 mth - 440 kg, jersey | B100: Andet kvæg | C100: Ungtyre, 6 mdr. til slagtning (440 kg), tung race, (1 produceret ungtyr) | D100: Deep litter, solid floor | E100: Dybstrøelse + kort ædeplads med fast gulv | F100: Dybstrøelse | G100: =IFERROR(HLOOKUP(Tabel86[[#This Row],[Staldsystem]],Indtastning!$B$8:$P$21,11,FALSE),0) -> 0 | H100: 19.24 | I100: 0 | J100: 0.01 | K100: =Tabel86[[#This Row],[Total N excretion (kg pr year)]]*Tabel86[[#This Row],[Emissionsfaktor (kgN2O-N pr kg Nex) ]] -> 0 | L100: =Tabel86[[#This Row],[Total N2O-N]]*44/28 -> 0 | M100: 0.07579022528 | N100: =Tabel86[[#This Row],[Total N excretion (kg pr year)]]*Tabel86[[#This Row],[FracGasMS]] -> 0 | O100: 0.01 | P100: =Tabel86[[#This Row],[Total N fra fordampning]]*Tabel86[[#This Row],[Emissionsfaktor (EF4)]] -> 0 | Q100: =Tabel86[[#This Row],[Total N2O-N2 kg]]*44/28 -> 0 | R100: =Tabel86[[#This Row],[Total N2O direkte, kg]]+Tabel86[[#This Row],[Total N2O indirekte, kg ]] -> 0
A101: Bulls, 6 mth - 440 kg, jersey | B101: Andet kvæg | C101: Ungtyre, 6 mdr. til slagtning (440 kg), tung race, (1 produceret ungtyr) | D101: Deep litter, slatted floor | E101: Dybstrøelse, lang ædeplads med spalter (kanal, linespil) | F101: Dybstrøelse | G101: =IFERROR(HLOOKUP(Tabel86[[#This Row],[Staldsystem]],Indtastning!$B$8:$P$21,11,FALSE),0) -> 0 | H101: 12.25 | I101: 0 | J101: 0.01 | K101: =Tabel86[[#This Row],[Total N excretion (kg pr year)]]*Tabel86[[#This Row],[Emissionsfaktor (kgN2O-N pr kg Nex) ]] -> 0 | L101: =Tabel86[[#This Row],[Total N2O-N]]*44/28 -> 0 | M101: 0.07579022528 | N101: =Tabel86[[#This Row],[Total N excretion (kg pr year)]]*Tabel86[[#This Row],[FracGasMS]] -> 0 | O101: 0.01 | P101: =Tabel86[[#This Row],[Total N fra fordampning]]*Tabel86[[#This Row],[Emissionsfaktor (EF4)]] -> 0 | Q101: =Tabel86[[#This Row],[Total N2O-N2 kg]]*44/28 -> 0 | R101: =Tabel86[[#This Row],[Total N2O direkte, kg]]+Tabel86[[#This Row],[Total N2O indirekte, kg ]] -> 0
A102: Bulls, 6 mth - 440 kg, jersey | B102: Andet kvæg | C102: Ungtyre, 6 mdr. til slagtning (440 kg), tung race, (1 produceret ungtyr) | D102: Deep litter, slatted floor | E102: Dybstrøelse, lang ædeplads med spalter (kanal, linespil) | F102: Gylle | G102: =IFERROR(HLOOKUP(Tabel86[[#This Row],[Staldsystem]],Indtastning!$B$8:$P$21,11,FALSE),0) -> 0 | H102: 6.81 | I102: 0 | J102: 0.005 | K102: =Tabel86[[#This Row],[Total N excretion (kg pr year)]]*Tabel86[[#This Row],[Emissionsfaktor (kgN2O-N pr kg Nex) ]] -> 0 | L102: =Tabel86[[#This Row],[Total N2O-N]]*44/28 -> 0 | M102: 0.07579022528 | N102: =Tabel86[[#This Row],[Total N excretion (kg pr year)]]*Tabel86[[#This Row],[FracGasMS]] -> 0 | O102: 0.01 | P102: =Tabel86[[#This Row],[Total N fra fordampning]]*Tabel86[[#This Row],[Emissionsfaktor (EF4)]] -> 0 | Q102: =Tabel86[[#This Row],[Total N2O-N2 kg]]*44/28 -> 0 | R102: =Tabel86[[#This Row],[Total N2O direkte, kg]]+Tabel86[[#This Row],[Total N2O indirekte, kg ]] -> 0
A103: Bulls, 6 mth - 440 kg, jersey | B103: Andet kvæg | C103: Ungtyre, 6 mdr. til slagtning (440 kg), tung race, (1 produceret ungtyr) | D103: Deep litter, slatted floor, scrape | E103: Dybstrøelse, lang ædeplads med spalter (kanal, bagskyl eller ringkanal) | F103: Dybstrøelse | G103: =IFERROR(HLOOKUP(Tabel86[[#This Row],[Staldsystem]],Indtastning!$B$8:$P$21,11,FALSE),0) -> 0 | H103: 12.25 | I103: 0 | J103: 0.01 | K103: =Tabel86[[#This Row],[Total N excretion (kg pr year)]]*Tabel86[[#This Row],[Emissionsfaktor (kgN2O-N pr kg Nex) ]] -> 0 | L103: =Tabel86[[#This Row],[Total N2O-N]]*44/28 -> 0 | M103: 0.07579022528 | N103: =Tabel86[[#This Row],[Total N excretion (kg pr year)]]*Tabel86[[#This Row],[FracGasMS]] -> 0 | O103: 0.01 | P103: =Tabel86[[#This Row],[Total N fra fordampning]]*Tabel86[[#This Row],[Emissionsfaktor (EF4)]] -> 0 | Q103: =Tabel86[[#This Row],[Total N2O-N2 kg]]*44/28 -> 0 | R103: =Tabel86[[#This Row],[Total N2O direkte, kg]]+Tabel86[[#This Row],[Total N2O indirekte, kg ]] -> 0
A104: Bulls, 6 mth - 440 kg, jersey | B104: Andet kvæg | C104: Ungtyre, 6 mdr. til slagtning (440 kg), tung race, (1 produceret ungtyr) | D104: Deep litter, slatted floor, scrape | E104: Dybstrøelse, lang ædeplads med spalter (kanal, bagskyl eller ringkanal) | F104: Gylle | G104: =IFERROR(HLOOKUP(Tabel86[[#This Row],[Staldsystem]],Indtastning!$B$8:$P$21,11,FALSE),0) -> 0 | H104: 6.62 | I104: 0 | J104: 0.005 | K104: =Tabel86[[#This Row],[Total N excretion (kg pr year)]]*Tabel86[[#This Row],[Emissionsfaktor (kgN2O-N pr kg Nex) ]] -> 0 | L104: =Tabel86[[#This Row],[Total N2O-N]]*44/28 -> 0 | M104: 0.07579022528 | N104: =Tabel86[[#This Row],[Total N excretion (kg pr year)]]*Tabel86[[#This Row],[FracGasMS]] -> 0 | O104: 0.01 | P104: =Tabel86[[#This Row],[Total N fra fordampning]]*Tabel86[[#This Row],[Emissionsfaktor (EF4)]] -> 0 | Q104: =Tabel86[[#This Row],[Total N2O-N2 kg]]*44/28 -> 0 | R104: =Tabel86[[#This Row],[Total N2O direkte, kg]]+Tabel86[[#This Row],[Total N2O indirekte, kg ]] -> 0
A105: Suckling cattle <400 kg | B105: Andet kvæg | C105: Ammekøer, 1 årsko under 400 kg | D105: Tethered with urine and solid manure | E105: Bindestald med grebning | F105: Staldgødning | G105: =IFERROR(HLOOKUP(Tabel86[[#This Row],[Staldsystem]],Indtastning!$B$8:$P$21,12,FALSE),0) -> 0 | H105: 14.55 | I105: 0 | J105: 0.005 | K105: =Tabel86[[#This Row],[Total N excretion (kg pr year)]]*Tabel86[[#This Row],[Emissionsfaktor (kgN2O-N pr kg Nex) ]] -> 0 | L105: =Tabel86[[#This Row],[Total N2O-N]]*44/28 -> 0 | M105: 0.07579022528 | N105: =Tabel86[[#This Row],[Total N excretion (kg pr year)]]*Tabel86[[#This Row],[FracGasMS]] -> 0 | O105: 0.01 | P105: =Tabel86[[#This Row],[Total N fra fordampning]]*Tabel86[[#This Row],[Emissionsfaktor (EF4)]] -> 0 | Q105: =Tabel86[[#This Row],[Total N2O-N2 kg]]*44/28 -> 0 | R105: =Tabel86[[#This Row],[Total N2O direkte, kg]]+Tabel86[[#This Row],[Total N2O indirekte, kg ]] -> 0
A106: Suckling cattle <400 kg | B106: Andet kvæg | C106: Ammekøer, 1 årsko under 400 kg | D106: Tethered with urine and solid manure | E106: Bindestald med grebning | F106: Ajle (liquid manure/urin) | G106: =IFERROR(HLOOKUP(Tabel86[[#This Row],[Staldsystem]],Indtastning!$B$8:$P$21,12,FALSE),0) -> 0 | H106: 23.74 | I106: 0 | J106: 0.005 | K106: =Tabel86[[#This Row],[Total N excretion (kg pr year)]]*Tabel86[[#This Row],[Emissionsfaktor (kgN2O-N pr kg Nex) ]] -> 0 | L106: =Tabel86[[#This Row],[Total N2O-N]]*44/28 -> 0 | M106: 0.07579022528 | N106: =Tabel86[[#This Row],[Total N excretion (kg pr year)]]*Tabel86[[#This Row],[FracGasMS]] -> 0 | O106: 0.01 | P106: =Tabel86[[#This Row],[Total N fra fordampning]]*Tabel86[[#This Row],[Emissionsfaktor (EF4)]] -> 0 | Q106: =Tabel86[[#This Row],[Total N2O-N2 kg]]*44/28 -> 0 | R106: =Tabel86[[#This Row],[Total N2O direkte, kg]]+Tabel86[[#This Row],[Total N2O indirekte, kg ]] -> 0
A107: Suckling cattle <400 kg | B107: Andet kvæg | C107: Ammekøer, 1 årsko under 400 kg | D107: Tethered with slurry | E107: Bindestald med riste | F107: Gylle | G107: =IFERROR(HLOOKUP(Tabel86[[#This Row],[Staldsystem]],Indtastning!$B$8:$P$21,12,FALSE),0) -> 0 | H107: 41.33 | I107: 0 | J107: 0.005 | K107: =Tabel86[[#This Row],[Total N excretion (kg pr year)]]*Tabel86[[#This Row],[Emissionsfaktor (kgN2O-N pr kg Nex) ]] -> 0 | L107: =Tabel86[[#This Row],[Total N2O-N]]*44/28 -> 0 | M107: 0.07579022528 | N107: =Tabel86[[#This Row],[Total N excretion (kg pr year)]]*Tabel86[[#This Row],[FracGasMS]] -> 0 | O107: 0.01 | P107: =Tabel86[[#This Row],[Total N fra fordampning]]*Tabel86[[#This Row],[Emissionsfaktor (EF4)]] -> 0 | Q107: =Tabel86[[#This Row],[Total N2O-N2 kg]]*44/28 -> 0 | R107: =Tabel86[[#This Row],[Total N2O direkte, kg]]+Tabel86[[#This Row],[Total N2O indirekte, kg ]] -> 0
A108: Suckling cattle <400 kg | B108: Andet kvæg | C108: Ammekøer, 1 årsko under 400 kg | D108: Deep litter (all) | E108: Dybstrøelse (hele arealet) | F108: Dybstrøelse | G108: =IFERROR(HLOOKUP(Tabel86[[#This Row],[Staldsystem]],Indtastning!$B$8:$P$21,12,FALSE),0) -> 0 | H108: 44.36 | I108: 0 | J108: 0.01 | K108: =Tabel86[[#This Row],[Total N excretion (kg pr year)]]*Tabel86[[#This Row],[Emissionsfaktor (kgN2O-N pr kg Nex) ]] -> 0 | L108: =Tabel86[[#This Row],[Total N2O-N]]*44/28 -> 0 | M108: 0.07579022528 | N108: =Tabel86[[#This Row],[Total N excretion (kg pr year)]]*Tabel86[[#This Row],[FracGasMS]] -> 0 | O108: 0.01 | P108: =Tabel86[[#This Row],[Total N fra fordampning]]*Tabel86[[#This Row],[Emissionsfaktor (EF4)]] -> 0 | Q108: =Tabel86[[#This Row],[Total N2O-N2 kg]]*44/28 -> 0 | R108: =Tabel86[[#This Row],[Total N2O direkte, kg]]+Tabel86[[#This Row],[Total N2O indirekte, kg ]] -> 0
A109: Suckling cattle <400 kg | B109: Andet kvæg | C109: Ammekøer, 1 årsko under 400 kg | D109: Deep litter, long eating space, solid floor | E109: Dybstrøelse, lang ædeplads med fast gulv | F109: Dybstrøelse | G109: =IFERROR(HLOOKUP(Tabel86[[#This Row],[Staldsystem]],Indtastning!$B$8:$P$21,12,FALSE),0) -> 0 | H109: 27.29 | I109: 0 | J109: 0.01 | K109: =Tabel86[[#This Row],[Total N excretion (kg pr year)]]*Tabel86[[#This Row],[Emissionsfaktor (kgN2O-N pr kg Nex) ]] -> 0 | L109: =Tabel86[[#This Row],[Total N2O-N]]*44/28 -> 0 | M109: 0.07579022528 | N109: =Tabel86[[#This Row],[Total N excretion (kg pr year)]]*Tabel86[[#This Row],[FracGasMS]] -> 0 | O109: 0.01 | P109: =Tabel86[[#This Row],[Total N fra fordampning]]*Tabel86[[#This Row],[Emissionsfaktor (EF4)]] -> 0 | Q109: =Tabel86[[#This Row],[Total N2O-N2 kg]]*44/28 -> 0 | R109: =Tabel86[[#This Row],[Total N2O direkte, kg]]+Tabel86[[#This Row],[Total N2O indirekte, kg ]] -> 0
A110: Suckling cattle <400 kg | B110: Andet kvæg | C110: Ammekøer, 1 årsko under 400 kg | D110: Deep litter, long eating space, solid floor | E110: Dybstrøelse, lang ædeplads med fast gulv | F110: Gylle | G110: =IFERROR(HLOOKUP(Tabel86[[#This Row],[Staldsystem]],Indtastning!$B$8:$P$21,12,FALSE),0) -> 0 | H110: 14.72 | I110: 0 | J110: 0.005 | K110: =Tabel86[[#This Row],[Total N excretion (kg pr year)]]*Tabel86[[#This Row],[Emissionsfaktor (kgN2O-N pr kg Nex) ]] -> 0 | L110: =Tabel86[[#This Row],[Total N2O-N]]*44/28 -> 0 | M110: 0.07579022528 | N110: =Tabel86[[#This Row],[Total N excretion (kg pr year)]]*Tabel86[[#This Row],[FracGasMS]] -> 0 | O110: 0.01 | P110: =Tabel86[[#This Row],[Total N fra fordampning]]*Tabel86[[#This Row],[Emissionsfaktor (EF4)]] -> 0 | Q110: =Tabel86[[#This Row],[Total N2O-N2 kg]]*44/28 -> 0 | R110: =Tabel86[[#This Row],[Total N2O direkte, kg]]+Tabel86[[#This Row],[Total N2O indirekte, kg ]] -> 0
A111: Suckling cattle <400 kg | B111: Andet kvæg | C111: Ammekøer, 1 årsko under 400 kg | D111: Deep litter, solid floor | E111: Dybstrøelse + kort ædeplads med fast gulv | F111: Dybstrøelse | G111: =IFERROR(HLOOKUP(Tabel86[[#This Row],[Staldsystem]],Indtastning!$B$8:$P$21,12,FALSE),0) -> 0 | H111: 43.8 | I111: 0 | J111: 0.01 | K111: =Tabel86[[#This Row],[Total N excretion (kg pr year)]]*Tabel86[[#This Row],[Emissionsfaktor (kgN2O-N pr kg Nex) ]] -> 0 | L111: =Tabel86[[#This Row],[Total N2O-N]]*44/28 -> 0 | M111: 0.07579022528 | N111: =Tabel86[[#This Row],[Total N excretion (kg pr year)]]*Tabel86[[#This Row],[FracGasMS]] -> 0 | O111: 0.01 | P111: =Tabel86[[#This Row],[Total N fra fordampning]]*Tabel86[[#This Row],[Emissionsfaktor (EF4)]] -> 0 | Q111: =Tabel86[[#This Row],[Total N2O-N2 kg]]*44/28 -> 0 | R111: =Tabel86[[#This Row],[Total N2O direkte, kg]]+Tabel86[[#This Row],[Total N2O indirekte, kg ]] -> 0
A112: Suckling cattle <400 kg | B112: Andet kvæg | C112: Ammekøer, 1 årsko under 400 kg | D112: Deep litter, slatted floor | E112: Dybstrøelse, lang ædeplads med spalter (kanal, linespil) | F112: Dybstrøelse | G112: =IFERROR(HLOOKUP(Tabel86[[#This Row],[Staldsystem]],Indtastning!$B$8:$P$21,12,FALSE),0) -> 0 | H112: 27.29 | I112: 0 | J112: 0.01 | K112: =Tabel86[[#This Row],[Total N excretion (kg pr year)]]*Tabel86[[#This Row],[Emissionsfaktor (kgN2O-N pr kg Nex) ]] -> 0 | L112: =Tabel86[[#This Row],[Total N2O-N]]*44/28 -> 0 | M112: 0.07579022528 | N112: =Tabel86[[#This Row],[Total N excretion (kg pr year)]]*Tabel86[[#This Row],[FracGasMS]] -> 0 | O112: 0.01 | P112: =Tabel86[[#This Row],[Total N fra fordampning]]*Tabel86[[#This Row],[Emissionsfaktor (EF4)]] -> 0 | Q112: =Tabel86[[#This Row],[Total N2O-N2 kg]]*44/28 -> 0 | R112: =Tabel86[[#This Row],[Total N2O direkte, kg]]+Tabel86[[#This Row],[Total N2O indirekte, kg ]] -> 0
A113: Suckling cattle <400 kg | B113: Andet kvæg | C113: Ammekøer, 1 årsko under 400 kg | D113: Deep litter, slatted floor | E113: Dybstrøelse, lang ædeplads med spalter (kanal, linespil) | F113: Gylle | G113: =IFERROR(HLOOKUP(Tabel86[[#This Row],[Staldsystem]],Indtastning!$B$8:$P$21,12,FALSE),0) -> 0 | H113: 15.65 | I113: 0 | J113: 0.005 | K113: =Tabel86[[#This Row],[Total N excretion (kg pr year)]]*Tabel86[[#This Row],[Emissionsfaktor (kgN2O-N pr kg Nex) ]] -> 0 | L113: =Tabel86[[#This Row],[Total N2O-N]]*44/28 -> 0 | M113: 0.07579022528 | N113: =Tabel86[[#This Row],[Total N excretion (kg pr year)]]*Tabel86[[#This Row],[FracGasMS]] -> 0 | O113: 0.01 | P113: =Tabel86[[#This Row],[Total N fra fordampning]]*Tabel86[[#This Row],[Emissionsfaktor (EF4)]] -> 0 | Q113: =Tabel86[[#This Row],[Total N2O-N2 kg]]*44/28 -> 0 | R113: =Tabel86[[#This Row],[Total N2O direkte, kg]]+Tabel86[[#This Row],[Total N2O indirekte, kg ]] -> 0
A114: Suckling cattle <400 kg | B114: Andet kvæg | C114: Ammekøer, 1 årsko under 400 kg | D114: Deep litter, slatted floor, scrape | E114: Dybstrøelse, lang ædeplads med spalter (kanal, bagskyl eller ringkanal) | F114: Dybstrøelse | G114: =IFERROR(HLOOKUP(Tabel86[[#This Row],[Staldsystem]],Indtastning!$B$8:$P$21,12,FALSE),0) -> 0 | H114: 27.29 | I114: 0 | J114: 0.01 | K114: =Tabel86[[#This Row],[Total N excretion (kg pr year)]]*Tabel86[[#This Row],[Emissionsfaktor (kgN2O-N pr kg Nex) ]] -> 0 | L114: =Tabel86[[#This Row],[Total N2O-N]]*44/28 -> 0 | M114: 0.07579022528 | N114: =Tabel86[[#This Row],[Total N excretion (kg pr year)]]*Tabel86[[#This Row],[FracGasMS]] -> 0 | O114: 0.01 | P114: =Tabel86[[#This Row],[Total N fra fordampning]]*Tabel86[[#This Row],[Emissionsfaktor (EF4)]] -> 0 | Q114: =Tabel86[[#This Row],[Total N2O-N2 kg]]*44/28 -> 0 | R114: =Tabel86[[#This Row],[Total N2O direkte, kg]]+Tabel86[[#This Row],[Total N2O indirekte, kg ]] -> 0
A115: Suckling cattle <400 kg | B115: Andet kvæg | C115: Ammekøer, 1 årsko under 400 kg | D115: Deep litter, slatted floor, scrape | E115: Dybstrøelse, lang ædeplads med spalter (kanal, bagskyl eller ringkanal) | F115: Gylle | G115: =IFERROR(HLOOKUP(Tabel86[[#This Row],[Staldsystem]],Indtastning!$B$8:$P$21,12,FALSE),0) -> 0 | H115: 15.18 | I115: 0 | J115: 0.005 | K115: =Tabel86[[#This Row],[Total N excretion (kg pr year)]]*Tabel86[[#This Row],[Emissionsfaktor (kgN2O-N pr kg Nex) ]] -> 0 | L115: =Tabel86[[#This Row],[Total N2O-N]]*44/28 -> 0 | M115: 0.07579022528 | N115: =Tabel86[[#This Row],[Total N excretion (kg pr year)]]*Tabel86[[#This Row],[FracGasMS]] -> 0 | O115: 0.01 | P115: =Tabel86[[#This Row],[Total N fra fordampning]]*Tabel86[[#This Row],[Emissionsfaktor (EF4)]] -> 0 | Q115: =Tabel86[[#This Row],[Total N2O-N2 kg]]*44/28 -> 0 | R115: =Tabel86[[#This Row],[Total N2O direkte, kg]]+Tabel86[[#This Row],[Total N2O indirekte, kg ]] -> 0
A116: Suckling cattle 400-600 kg | B116: Andet kvæg | C116: Ammekøer, 1 årsko 400-600 kg | D116: Tethered with urine and solid manure | E116: Bindestald med grebning | F116: Staldgødning | G116: =IFERROR(HLOOKUP(Tabel86[[#This Row],[Staldsystem]],Indtastning!$B$8:$P$21,13,FALSE),0) -> 0 | H116: 20.63 | I116: 0 | J116: 0.005 | K116: =Tabel86[[#This Row],[Total N excretion (kg pr year)]]*Tabel86[[#This Row],[Emissionsfaktor (kgN2O-N pr kg Nex) ]] -> 0 | L116: =Tabel86[[#This Row],[Total N2O-N]]*44/28 -> 0 | M116: 0.07579022528 | N116: =Tabel86[[#This Row],[Total N excretion (kg pr year)]]*Tabel86[[#This Row],[FracGasMS]] -> 0 | O116: 0.01 | P116: =Tabel86[[#This Row],[Total N fra fordampning]]*Tabel86[[#This Row],[Emissionsfaktor (EF4)]] -> 0 | Q116: =Tabel86[[#This Row],[Total N2O-N2 kg]]*44/28 -> 0 | R116: =Tabel86[[#This Row],[Total N2O direkte, kg]]+Tabel86[[#This Row],[Total N2O indirekte, kg ]] -> 0
A117: Suckling cattle 400-600 kg | B117: Andet kvæg | C117: Ammekøer, 1 årsko 400-600 kg | D117: Tethered with urine and solid manure | E117: Bindestald med grebning | F117: Ajle (liquid manure/urin) | G117: =IFERROR(HLOOKUP(Tabel86[[#This Row],[Staldsystem]],Indtastning!$B$8:$P$21,13,FALSE),0) -> 0 | H117: 35.17 | I117: 0 | J117: 0.005 | K117: =Tabel86[[#This Row],[Total N excretion (kg pr year)]]*Tabel86[[#This Row],[Emissionsfaktor (kgN2O-N pr kg Nex) ]] -> 0 | L117: =Tabel86[[#This Row],[Total N2O-N]]*44/28 -> 0 | M117: 0.07579022528 | N117: =Tabel86[[#This Row],[Total N excretion (kg pr year)]]*Tabel86[[#This Row],[FracGasMS]] -> 0 | O117: 0.01 | P117: =Tabel86[[#This Row],[Total N fra fordampning]]*Tabel86[[#This Row],[Emissionsfaktor (EF4)]] -> 0 | Q117: =Tabel86[[#This Row],[Total N2O-N2 kg]]*44/28 -> 0 | R117: =Tabel86[[#This Row],[Total N2O direkte, kg]]+Tabel86[[#This Row],[Total N2O indirekte, kg ]] -> 0
A118: Suckling cattle 400-600 kg | B118: Andet kvæg | C118: Ammekøer, 1 årsko 400-600 kg | D118: Tethered with slurry | E118: Bindestald med riste | F118: Gylle | G118: =IFERROR(HLOOKUP(Tabel86[[#This Row],[Staldsystem]],Indtastning!$B$8:$P$21,13,FALSE),0) -> 0 | H118: 60.19 | I118: 0 | J118: 0.005 | K118: =Tabel86[[#This Row],[Total N excretion (kg pr year)]]*Tabel86[[#This Row],[Emissionsfaktor (kgN2O-N pr kg Nex) ]] -> 0 | L118: =Tabel86[[#This Row],[Total N2O-N]]*44/28 -> 0 | M118: 0.07579022528 | N118: =Tabel86[[#This Row],[Total N excretion (kg pr year)]]*Tabel86[[#This Row],[FracGasMS]] -> 0 | O118: 0.01 | P118: =Tabel86[[#This Row],[Total N fra fordampning]]*Tabel86[[#This Row],[Emissionsfaktor (EF4)]] -> 0 | Q118: =Tabel86[[#This Row],[Total N2O-N2 kg]]*44/28 -> 0 | R118: =Tabel86[[#This Row],[Total N2O direkte, kg]]+Tabel86[[#This Row],[Total N2O indirekte, kg ]] -> 0
A119: Suckling cattle 400-600 kg | B119: Andet kvæg | C119: Ammekøer, 1 årsko 400-600 kg | D119: Deep litter (all) | E119: Dybstrøelse (hele arealet) | F119: Dybstrøelse | G119: =IFERROR(HLOOKUP(Tabel86[[#This Row],[Staldsystem]],Indtastning!$B$8:$P$21,13,FALSE),0) -> 0 | H119: 64.11 | I119: 0 | J119: 0.01 | K119: =Tabel86[[#This Row],[Total N excretion (kg pr year)]]*Tabel86[[#This Row],[Emissionsfaktor (kgN2O-N pr kg Nex) ]] -> 0 | L119: =Tabel86[[#This Row],[Total N2O-N]]*44/28 -> 0 | M119: 0.07579022528 | N119: =Tabel86[[#This Row],[Total N excretion (kg pr year)]]*Tabel86[[#This Row],[FracGasMS]] -> 0 | O119: 0.01 | P119: =Tabel86[[#This Row],[Total N fra fordampning]]*Tabel86[[#This Row],[Emissionsfaktor (EF4)]] -> 0 | Q119: =Tabel86[[#This Row],[Total N2O-N2 kg]]*44/28 -> 0 | R119: =Tabel86[[#This Row],[Total N2O direkte, kg]]+Tabel86[[#This Row],[Total N2O indirekte, kg ]] -> 0
A120: Suckling cattle 400-600 kg | B120: Andet kvæg | C120: Ammekøer, 1 årsko 400-600 kg | D120: Deep litter, long eating space, solid floor | E120: Dybstrøelse, lang ædeplads med fast gulv | F120: Dybstrøelse | G120: =IFERROR(HLOOKUP(Tabel86[[#This Row],[Staldsystem]],Indtastning!$B$8:$P$21,13,FALSE),0) -> 0 | H120: 39.36 | I120: 0 | J120: 0.01 | K120: =Tabel86[[#This Row],[Total N excretion (kg pr year)]]*Tabel86[[#This Row],[Emissionsfaktor (kgN2O-N pr kg Nex) ]] -> 0 | L120: =Tabel86[[#This Row],[Total N2O-N]]*44/28 -> 0 | M120: 0.07579022528 | N120: =Tabel86[[#This Row],[Total N excretion (kg pr year)]]*Tabel86[[#This Row],[FracGasMS]] -> 0 | O120: 0.01 | P120: =Tabel86[[#This Row],[Total N fra fordampning]]*Tabel86[[#This Row],[Emissionsfaktor (EF4)]] -> 0 | Q120: =Tabel86[[#This Row],[Total N2O-N2 kg]]*44/28 -> 0 | R120: =Tabel86[[#This Row],[Total N2O direkte, kg]]+Tabel86[[#This Row],[Total N2O indirekte, kg ]] -> 0
A121: Suckling cattle 400-600 kg | B121: Andet kvæg | C121: Ammekøer, 1 årsko 400-600 kg | D121: Deep litter, long eating space, solid floor | E121: Dybstrøelse, lang ædeplads med fast gulv | F121: Gylle | G121: =IFERROR(HLOOKUP(Tabel86[[#This Row],[Staldsystem]],Indtastning!$B$8:$P$21,13,FALSE),0) -> 0 | H121: 21.45 | I121: 0 | J121: 0.005 | K121: =Tabel86[[#This Row],[Total N excretion (kg pr year)]]*Tabel86[[#This Row],[Emissionsfaktor (kgN2O-N pr kg Nex) ]] -> 0 | L121: =Tabel86[[#This Row],[Total N2O-N]]*44/28 -> 0 | M121: 0.07579022528 | N121: =Tabel86[[#This Row],[Total N excretion (kg pr year)]]*Tabel86[[#This Row],[FracGasMS]] -> 0 | O121: 0.01 | P121: =Tabel86[[#This Row],[Total N fra fordampning]]*Tabel86[[#This Row],[Emissionsfaktor (EF4)]] -> 0 | Q121: =Tabel86[[#This Row],[Total N2O-N2 kg]]*44/28 -> 0 | R121: =Tabel86[[#This Row],[Total N2O direkte, kg]]+Tabel86[[#This Row],[Total N2O indirekte, kg ]] -> 0
A122: Suckling cattle 400-600 kg | B122: Andet kvæg | C122: Ammekøer, 1 årsko 400-600 kg | D122: Deep litter, solid floor | E122: Dybstrøelse + kort ædeplads med fast gulv | F122: Dybstrøelse | G122: =IFERROR(HLOOKUP(Tabel86[[#This Row],[Staldsystem]],Indtastning!$B$8:$P$21,13,FALSE),0) -> 0 | H122: 63.36 | I122: 0 | J122: 0.01 | K122: =Tabel86[[#This Row],[Total N excretion (kg pr year)]]*Tabel86[[#This Row],[Emissionsfaktor (kgN2O-N pr kg Nex) ]] -> 0 | L122: =Tabel86[[#This Row],[Total N2O-N]]*44/28 -> 0 | M122: 0.07579022528 | N122: =Tabel86[[#This Row],[Total N excretion (kg pr year)]]*Tabel86[[#This Row],[FracGasMS]] -> 0 | O122: 0.01 | P122: =Tabel86[[#This Row],[Total N fra fordampning]]*Tabel86[[#This Row],[Emissionsfaktor (EF4)]] -> 0 | Q122: =Tabel86[[#This Row],[Total N2O-N2 kg]]*44/28 -> 0 | R122: =Tabel86[[#This Row],[Total N2O direkte, kg]]+Tabel86[[#This Row],[Total N2O indirekte, kg ]] -> 0
A123: Suckling cattle 400-600 kg | B123: Andet kvæg | C123: Ammekøer, 1 årsko 400-600 kg | D123: Deep litter, slatted floor | E123: Dybstrøelse, lang ædeplads med spalter (kanal, linespil) | F123: Dybstrøelse | G123: =IFERROR(HLOOKUP(Tabel86[[#This Row],[Staldsystem]],Indtastning!$B$8:$P$21,13,FALSE),0) -> 0 | H123: 39.36 | I123: 0 | J123: 0.01 | K123: =Tabel86[[#This Row],[Total N excretion (kg pr year)]]*Tabel86[[#This Row],[Emissionsfaktor (kgN2O-N pr kg Nex) ]] -> 0 | L123: =Tabel86[[#This Row],[Total N2O-N]]*44/28 -> 0 | M123: 0.07579022528 | N123: =Tabel86[[#This Row],[Total N excretion (kg pr year)]]*Tabel86[[#This Row],[FracGasMS]] -> 0 | O123: 0.01 | P123: =Tabel86[[#This Row],[Total N fra fordampning]]*Tabel86[[#This Row],[Emissionsfaktor (EF4)]] -> 0 | Q123: =Tabel86[[#This Row],[Total N2O-N2 kg]]*44/28 -> 0 | R123: =Tabel86[[#This Row],[Total N2O direkte, kg]]+Tabel86[[#This Row],[Total N2O indirekte, kg ]] -> 0
A124: Suckling cattle 400-600 kg | B124: Andet kvæg | C124: Ammekøer, 1 årsko 400-600 kg | D124: Deep litter, slatted floor | E124: Dybstrøelse, lang ædeplads med spalter (kanal, linespil) | F124: Gylle | G124: =IFERROR(HLOOKUP(Tabel86[[#This Row],[Staldsystem]],Indtastning!$B$8:$P$21,13,FALSE),0) -> 0 | H124: 22.81 | I124: 0 | J124: 0.005 | K124: =Tabel86[[#This Row],[Total N excretion (kg pr year)]]*Tabel86[[#This Row],[Emissionsfaktor (kgN2O-N pr kg Nex) ]] -> 0 | L124: =Tabel86[[#This Row],[Total N2O-N]]*44/28 -> 0 | M124: 0.07579022528 | N124: =Tabel86[[#This Row],[Total N excretion (kg pr year)]]*Tabel86[[#This Row],[FracGasMS]] -> 0 | O124: 0.01 | P124: =Tabel86[[#This Row],[Total N fra fordampning]]*Tabel86[[#This Row],[Emissionsfaktor (EF4)]] -> 0 | Q124: =Tabel86[[#This Row],[Total N2O-N2 kg]]*44/28 -> 0 | R124: =Tabel86[[#This Row],[Total N2O direkte, kg]]+Tabel86[[#This Row],[Total N2O indirekte, kg ]] -> 0
A125: Suckling cattle 400-600 kg | B125: Andet kvæg | C125: Ammekøer, 1 årsko 400-600 kg | D125: Deep litter, slatted floor, scrape | E125: Dybstrøelse, lang ædeplads med spalter (kanal, bagskyl eller ringkanal) | F125: Dybstrøelse | G125: =IFERROR(HLOOKUP(Tabel86[[#This Row],[Staldsystem]],Indtastning!$B$8:$P$21,13,FALSE),0) -> 0 | H125: 39.36 | I125: 0 | J125: 0.01 | K125: =Tabel86[[#This Row],[Total N excretion (kg pr year)]]*Tabel86[[#This Row],[Emissionsfaktor (kgN2O-N pr kg Nex) ]] -> 0 | L125: =Tabel86[[#This Row],[Total N2O-N]]*44/28 -> 0 | M125: 0.07579022528 | N125: =Tabel86[[#This Row],[Total N excretion (kg pr year)]]*Tabel86[[#This Row],[FracGasMS]] -> 0 | O125: 0.01 | P125: =Tabel86[[#This Row],[Total N fra fordampning]]*Tabel86[[#This Row],[Emissionsfaktor (EF4)]] -> 0 | Q125: =Tabel86[[#This Row],[Total N2O-N2 kg]]*44/28 -> 0 | R125: =Tabel86[[#This Row],[Total N2O direkte, kg]]+Tabel86[[#This Row],[Total N2O indirekte, kg ]] -> 0
A126: Suckling cattle 400-600 kg | B126: Andet kvæg | C126: Ammekøer, 1 årsko 400-600 kg | D126: Deep litter, slatted floor, scrape | E126: Dybstrøelse, lang ædeplads med spalter (kanal, bagskyl eller ringkanal) | F126: Gylle | G126: =IFERROR(HLOOKUP(Tabel86[[#This Row],[Staldsystem]],Indtastning!$B$8:$P$21,13,FALSE),0) -> 0 | H126: 22.13 | I126: 0 | J126: 0.005 | K126: =Tabel86[[#This Row],[Total N excretion (kg pr year)]]*Tabel86[[#This Row],[Emissionsfaktor (kgN2O-N pr kg Nex) ]] -> 0 | L126: =Tabel86[[#This Row],[Total N2O-N]]*44/28 -> 0 | M126: 0.07579022528 | N126: =Tabel86[[#This Row],[Total N excretion (kg pr year)]]*Tabel86[[#This Row],[FracGasMS]] -> 0 | O126: 0.01 | P126: =Tabel86[[#This Row],[Total N fra fordampning]]*Tabel86[[#This Row],[Emissionsfaktor (EF4)]] -> 0 | Q126: =Tabel86[[#This Row],[Total N2O-N2 kg]]*44/28 -> 0 | R126: =Tabel86[[#This Row],[Total N2O direkte, kg]]+Tabel86[[#This Row],[Total N2O indirekte, kg ]] -> 0
A127: Suckling cattle >600 kg | B127: Andet kvæg | C127: Ammekøer, 1 årsko over 600 kg | D127: Tethered with urine and solid manure | E127: Bindestald med grebning | F127: Staldgødning | G127: =IFERROR(HLOOKUP(Tabel86[[#This Row],[Staldsystem]],Indtastning!$B$8:$P$21,14,FALSE),0) -> 0 | H127: 22.66 | I127: 0 | J127: 0.005 | K127: =Tabel86[[#This Row],[Total N excretion (kg pr year)]]*Tabel86[[#This Row],[Emissionsfaktor (kgN2O-N pr kg Nex) ]] -> 0 | L127: =Tabel86[[#This Row],[Total N2O-N]]*44/28 -> 0 | M127: 0.07579022528 | N127: =Tabel86[[#This Row],[Total N excretion (kg pr year)]]*Tabel86[[#This Row],[FracGasMS]] -> 0 | O127: 0.01 | P127: =Tabel86[[#This Row],[Total N fra fordampning]]*Tabel86[[#This Row],[Emissionsfaktor (EF4)]] -> 0 | Q127: =Tabel86[[#This Row],[Total N2O-N2 kg]]*44/28 -> 0 | R127: =Tabel86[[#This Row],[Total N2O direkte, kg]]+Tabel86[[#This Row],[Total N2O indirekte, kg ]] -> 0
A128: Suckling cattle >600 kg | B128: Andet kvæg | C128: Ammekøer, 1 årsko over 600 kg | D128: Tethered with urine and solid manure | E128: Bindestald med grebning | F128: Ajle (liquid manure/urin) | G128: =IFERROR(HLOOKUP(Tabel86[[#This Row],[Staldsystem]],Indtastning!$B$8:$P$21,14,FALSE),0) -> 0 | H128: 40.8 | I128: 0 | J128: 0.005 | K128: =Tabel86[[#This Row],[Total N excretion (kg pr year)]]*Tabel86[[#This Row],[Emissionsfaktor (kgN2O-N pr kg Nex) ]] -> 0 | L128: =Tabel86[[#This Row],[Total N2O-N]]*44/28 -> 0 | M128: 0.07579022528 | N128: =Tabel86[[#This Row],[Total N excretion (kg pr year)]]*Tabel86[[#This Row],[FracGasMS]] -> 0 | O128: 0.01 | P128: =Tabel86[[#This Row],[Total N fra fordampning]]*Tabel86[[#This Row],[Emissionsfaktor (EF4)]] -> 0 | Q128: =Tabel86[[#This Row],[Total N2O-N2 kg]]*44/28 -> 0 | R128: =Tabel86[[#This Row],[Total N2O direkte, kg]]+Tabel86[[#This Row],[Total N2O indirekte, kg ]] -> 0
A129: Suckling cattle >600 kg | B129: Andet kvæg | C129: Ammekøer, 1 årsko over 600 kg | D129: Tethered with slurry | E129: Bindestald med riste | F129: Gylle | G129: =IFERROR(HLOOKUP(Tabel86[[#This Row],[Staldsystem]],Indtastning!$B$8:$P$21,14,FALSE),0) -> 0 | H129: 68.41 | I129: 0 | J129: 0.005 | K129: =Tabel86[[#This Row],[Total N excretion (kg pr year)]]*Tabel86[[#This Row],[Emissionsfaktor (kgN2O-N pr kg Nex) ]] -> 0 | L129: =Tabel86[[#This Row],[Total N2O-N]]*44/28 -> 0 | M129: 0.07579022528 | N129: =Tabel86[[#This Row],[Total N excretion (kg pr year)]]*Tabel86[[#This Row],[FracGasMS]] -> 0 | O129: 0.01 | P129: =Tabel86[[#This Row],[Total N fra fordampning]]*Tabel86[[#This Row],[Emissionsfaktor (EF4)]] -> 0 | Q129: =Tabel86[[#This Row],[Total N2O-N2 kg]]*44/28 -> 0 | R129: =Tabel86[[#This Row],[Total N2O direkte, kg]]+Tabel86[[#This Row],[Total N2O indirekte, kg ]] -> 0
A130: Suckling cattle >600 kg | B130: Andet kvæg | C130: Ammekøer, 1 årsko over 600 kg | D130: Deep litter (all) | E130: Dybstrøelse (hele arealet) | F130: Dybstrøelse | G130: =IFERROR(HLOOKUP(Tabel86[[#This Row],[Staldsystem]],Indtastning!$B$8:$P$21,14,FALSE),0) -> 0 | H130: 72.15 | I130: 0 | J130: 0.01 | K130: =Tabel86[[#This Row],[Total N excretion (kg pr year)]]*Tabel86[[#This Row],[Emissionsfaktor (kgN2O-N pr kg Nex) ]] -> 0 | L130: =Tabel86[[#This Row],[Total N2O-N]]*44/28 -> 0 | M130: 0.07579022528 | N130: =Tabel86[[#This Row],[Total N excretion (kg pr year)]]*Tabel86[[#This Row],[FracGasMS]] -> 0 | O130: 0.01 | P130: =Tabel86[[#This Row],[Total N fra fordampning]]*Tabel86[[#This Row],[Emissionsfaktor (EF4)]] -> 0 | Q130: =Tabel86[[#This Row],[Total N2O-N2 kg]]*44/28 -> 0 | R130: =Tabel86[[#This Row],[Total N2O direkte, kg]]+Tabel86[[#This Row],[Total N2O indirekte, kg ]] -> 0
A131: Suckling cattle >600 kg | B131: Andet kvæg | C131: Ammekøer, 1 årsko over 600 kg | D131: Deep litter, long eating space, solid floor | E131: Dybstrøelse, lang ædeplads med fast gulv | F131: Dybstrøelse | G131: =IFERROR(HLOOKUP(Tabel86[[#This Row],[Staldsystem]],Indtastning!$B$8:$P$21,14,FALSE),0) -> 0 | H131: 44.18 | I131: =G131*H131 -> 0 | J131: 0.01 | K131: =Tabel86[[#This Row],[Total N excretion (kg pr year)]]*Tabel86[[#This Row],[Emissionsfaktor (kgN2O-N pr kg Nex) ]] -> 0 | L131: =Tabel86[[#This Row],[Total N2O-N]]*44/28 -> 0 | M131: 0.07579022528 | N131: =Tabel86[[#This Row],[Total N excretion (kg pr year)]]*Tabel86[[#This Row],[FracGasMS]] -> 0 | O131: 0.01 | P131: =Tabel86[[#This Row],[Total N fra fordampning]]*Tabel86[[#This Row],[Emissionsfaktor (EF4)]] -> 0 | Q131: =Tabel86[[#This Row],[Total N2O-N2 kg]]*44/28 -> 0 | R131: =Tabel86[[#This Row],[Total N2O direkte, kg]]+Tabel86[[#This Row],[Total N2O indirekte, kg ]] -> 0
A132: Suckling cattle >600 kg | B132: Andet kvæg | C132: Ammekøer, 1 årsko over 600 kg | D132: Deep litter, long eating space, solid floor | E132: Dybstrøelse, lang ædeplads med fast gulv | F132: Gylle | G132: =IFERROR(HLOOKUP(Tabel86[[#This Row],[Staldsystem]],Indtastning!$B$8:$P$21,14,FALSE),0) -> 0 | H132: 24.4 | I132: 0 | J132: 0.005 | K132: =Tabel86[[#This Row],[Total N excretion (kg pr year)]]*Tabel86[[#This Row],[Emissionsfaktor (kgN2O-N pr kg Nex) ]] -> 0 | L132: =Tabel86[[#This Row],[Total N2O-N]]*44/28 -> 0 | M132: 0.07579022528 | N132: =Tabel86[[#This Row],[Total N excretion (kg pr year)]]*Tabel86[[#This Row],[FracGasMS]] -> 0 | O132: 0.01 | P132: =Tabel86[[#This Row],[Total N fra fordampning]]*Tabel86[[#This Row],[Emissionsfaktor (EF4)]] -> 0 | Q132: =Tabel86[[#This Row],[Total N2O-N2 kg]]*44/28 -> 0 | R132: =Tabel86[[#This Row],[Total N2O direkte, kg]]+Tabel86[[#This Row],[Total N2O indirekte, kg ]] -> 0
A133: Suckling cattle >600 kg | B133: Andet kvæg | C133: Ammekøer, 1 årsko over 600 kg | D133: Deep litter, solid floor | E133: Dybstrøelse + kort ædeplads med fast gulv | F133: Dybstrøelse | G133: =IFERROR(HLOOKUP(Tabel86[[#This Row],[Staldsystem]],Indtastning!$B$8:$P$21,14,FALSE),0) -> 0 | H133: 71.4 | I133: 0 | J133: 0.01 | K133: =Tabel86[[#This Row],[Total N excretion (kg pr year)]]*Tabel86[[#This Row],[Emissionsfaktor (kgN2O-N pr kg Nex) ]] -> 0 | L133: =Tabel86[[#This Row],[Total N2O-N]]*44/28 -> 0 | M133: 0.07579022528 | N133: =Tabel86[[#This Row],[Total N excretion (kg pr year)]]*Tabel86[[#This Row],[FracGasMS]] -> 0 | O133: 0.01 | P133: =Tabel86[[#This Row],[Total N fra fordampning]]*Tabel86[[#This Row],[Emissionsfaktor (EF4)]] -> 0 | Q133: =Tabel86[[#This Row],[Total N2O-N2 kg]]*44/28 -> 0 | R133: =Tabel86[[#This Row],[Total N2O direkte, kg]]+Tabel86[[#This Row],[Total N2O indirekte, kg ]] -> 0
A134: Suckling cattle >600 kg | B134: Andet kvæg | C134: Ammekøer, 1 årsko over 600 kg | D134: Deep litter, slatted floor | E134: Dybstrøelse, lang ædeplads med spalter (kanal, linespil) | F134: Dybstrøelse | G134: =IFERROR(HLOOKUP(Tabel86[[#This Row],[Staldsystem]],Indtastning!$B$8:$P$21,14,FALSE),0) -> 0 | H134: 44.18 | I134: 0 | J134: 0.01 | K134: =Tabel86[[#This Row],[Total N excretion (kg pr year)]]*Tabel86[[#This Row],[Emissionsfaktor (kgN2O-N pr kg Nex) ]] -> 0 | L134: =Tabel86[[#This Row],[Total N2O-N]]*44/28 -> 0 | M134: 0.07579022528 | N134: =Tabel86[[#This Row],[Total N excretion (kg pr year)]]*Tabel86[[#This Row],[FracGasMS]] -> 0 | O134: 0.01 | P134: =Tabel86[[#This Row],[Total N fra fordampning]]*Tabel86[[#This Row],[Emissionsfaktor (EF4)]] -> 0 | Q134: =Tabel86[[#This Row],[Total N2O-N2 kg]]*44/28 -> 0 | R134: =Tabel86[[#This Row],[Total N2O direkte, kg]]+Tabel86[[#This Row],[Total N2O indirekte, kg ]] -> 0
A135: Suckling cattle >600 kg | B135: Andet kvæg | C135: Ammekøer, 1 årsko over 600 kg | D135: Deep litter, slatted floor | E135: Dybstrøelse, lang ædeplads med spalter (kanal, linespil) | F135: Gylle | G135: =IFERROR(HLOOKUP(Tabel86[[#This Row],[Staldsystem]],Indtastning!$B$8:$P$21,14,FALSE),0) -> 0 | H135: 25.95 | I135: 0 | J135: 0.005 | K135: =Tabel86[[#This Row],[Total N excretion (kg pr year)]]*Tabel86[[#This Row],[Emissionsfaktor (kgN2O-N pr kg Nex) ]] -> 0 | L135: =Tabel86[[#This Row],[Total N2O-N]]*44/28 -> 0 | M135: 0.07579022528 | N135: =Tabel86[[#This Row],[Total N excretion (kg pr year)]]*Tabel86[[#This Row],[FracGasMS]] -> 0 | O135: 0.01 | P135: =Tabel86[[#This Row],[Total N fra fordampning]]*Tabel86[[#This Row],[Emissionsfaktor (EF4)]] -> 0 | Q135: =Tabel86[[#This Row],[Total N2O-N2 kg]]*44/28 -> 0 | R135: =Tabel86[[#This Row],[Total N2O direkte, kg]]+Tabel86[[#This Row],[Total N2O indirekte, kg ]] -> 0
A136: Suckling cattle >600 kg | B136: Andet kvæg | C136: Ammekøer, 1 årsko over 600 kg | D136: Deep litter, slatted floor, scrape | E136: Dybstrøelse, lang ædeplads med spalter (kanal, bagskyl eller ringkanal) | F136: Dybstrøelse | G136: =IFERROR(HLOOKUP(Tabel86[[#This Row],[Staldsystem]],Indtastning!$B$8:$P$21,14,FALSE),0) -> 0 | H136: 44.18 | I136: 0 | J136: 0.01 | K136: =Tabel86[[#This Row],[Total N excretion (kg pr year)]]*Tabel86[[#This Row],[Emissionsfaktor (kgN2O-N pr kg Nex) ]] -> 0 | L136: =Tabel86[[#This Row],[Total N2O-N]]*44/28 -> 0 | M136: 0.07579022528 | N136: =Tabel86[[#This Row],[Total N excretion (kg pr year)]]*Tabel86[[#This Row],[FracGasMS]] -> 0 | O136: 0.01 | P136: =Tabel86[[#This Row],[Total N fra fordampning]]*Tabel86[[#This Row],[Emissionsfaktor (EF4)]] -> 0 | Q136: =Tabel86[[#This Row],[Total N2O-N2 kg]]*44/28 -> 0 | R136: =Tabel86[[#This Row],[Total N2O direkte, kg]]+Tabel86[[#This Row],[Total N2O indirekte, kg ]] -> 0
A137: Suckling cattle >600 kg | B137: Andet kvæg | C137: Ammekøer, 1 årsko over 600 kg | D137: Deep litter, slatted floor, scrape | E137: Dybstrøelse, lang ædeplads med spalter (kanal, bagskyl eller ringkanal) | F137: Gylle | G137: =IFERROR(HLOOKUP(Tabel86[[#This Row],[Staldsystem]],Indtastning!$B$8:$P$21,14,FALSE),0) -> 0 | H137: 25.18 | I137: 0 | J137: 0.005 | K137: =Tabel86[[#This Row],[Total N excretion (kg pr year)]]*Tabel86[[#This Row],[Emissionsfaktor (kgN2O-N pr kg Nex) ]] -> 0 | L137: =Tabel86[[#This Row],[Total N2O-N]]*44/28 -> 0 | M137: 0.07579022528 | N137: =Tabel86[[#This Row],[Total N excretion (kg pr year)]]*Tabel86[[#This Row],[FracGasMS]] -> 0 | O137: 0.01 | P137: =Tabel86[[#This Row],[Total N fra fordampning]]*Tabel86[[#This Row],[Emissionsfaktor (EF4)]] -> 0 | Q137: =Tabel86[[#This Row],[Total N2O-N2 kg]]*44/28 -> 0 | R137: =Tabel86[[#This Row],[Total N2O direkte, kg]]+Tabel86[[#This Row],[Total N2O indirekte, kg ]] -> 0
A138: Sows, gastation period | B138: Svin | C138: 1 årsso med 30 grise til 7,0 kg | D138: Deep litter + solid floor | E138: Løsgående, dybstrøelse + fast gulv | F138: Dybstrøelse | G138: =IFERROR(HLOOKUP(Tabel86[[#This Row],[Staldsystem]],Indtastning!$A$28:$S$32,2,FALSE),0) -> 0 | H138: 4.72 | I138: 0 | J138: 0.07 | K138: =Tabel86[[#This Row],[Total N excretion (kg pr year)]]*Tabel86[[#This Row],[Emissionsfaktor (kgN2O-N pr kg Nex) ]] -> 0 | L138: =Tabel86[[#This Row],[Total N2O-N]]*44/28 -> 0 | M138: 0.1674732172 | N138: =Tabel86[[#This Row],[Total N excretion (kg pr year)]]*Tabel86[[#This Row],[FracGasMS]] -> 0 | O138: 0.01 | P138: =Tabel86[[#This Row],[Total N fra fordampning]]*Tabel86[[#This Row],[Emissionsfaktor (EF4)]] -> 0 | Q138: =Tabel86[[#This Row],[Total N2O-N2 kg]]*44/28 -> 0 | R138: =Tabel86[[#This Row],[Total N2O direkte, kg]]+Tabel86[[#This Row],[Total N2O indirekte, kg ]] -> 0
A139: Sows, gastation period | B139: Svin | C139: 1 årsso med 30 grise til 7,0 kg | D139: Deep litter + solid floor | E139: Løsgående, dybstrøelse + fast gulv | F139: Gylle | G139: =IFERROR(HLOOKUP(Tabel86[[#This Row],[Staldsystem]],Indtastning!$A$28:$S$32,2,FALSE),0) -> 0 | H139: 9.83 | I139: 0 | J139: 0.005 | K139: =Tabel86[[#This Row],[Total N excretion (kg pr year)]]*Tabel86[[#This Row],[Emissionsfaktor (kgN2O-N pr kg Nex) ]] -> 0 | L139: =Tabel86[[#This Row],[Total N2O-N]]*44/28 -> 0 | M139: 0.1674732172 | N139: =Tabel86[[#This Row],[Total N excretion (kg pr year)]]*Tabel86[[#This Row],[FracGasMS]] -> 0 | O139: 0.01 | P139: =Tabel86[[#This Row],[Total N fra fordampning]]*Tabel86[[#This Row],[Emissionsfaktor (EF4)]] -> 0 | Q139: =Tabel86[[#This Row],[Total N2O-N2 kg]]*44/28 -> 0 | R139: =Tabel86[[#This Row],[Total N2O direkte, kg]]+Tabel86[[#This Row],[Total N2O indirekte, kg ]] -> 0
A140: Sows, gastation period | B140: Svin | C140: 1 årsso med 30 grise til 7,0 kg | D140: Deep litter + slatted floor | E140: Løsgående, dybstrøelse + spaltegulv | F140: Dybstrøelse | G140: =IFERROR(HLOOKUP(Tabel86[[#This Row],[Staldsystem]],Indtastning!$A$28:$S$32,2,FALSE),0) -> 0 | H140: 4.72 | I140: 0 | J140: 0.07 | K140: =Tabel86[[#This Row],[Total N excretion (kg pr year)]]*Tabel86[[#This Row],[Emissionsfaktor (kgN2O-N pr kg Nex) ]] -> 0 | L140: =Tabel86[[#This Row],[Total N2O-N]]*44/28 -> 0 | M140: 0.1674732172 | N140: =Tabel86[[#This Row],[Total N excretion (kg pr year)]]*Tabel86[[#This Row],[FracGasMS]] -> 0 | O140: 0.01 | P140: =Tabel86[[#This Row],[Total N fra fordampning]]*Tabel86[[#This Row],[Emissionsfaktor (EF4)]] -> 0 | Q140: =Tabel86[[#This Row],[Total N2O-N2 kg]]*44/28 -> 0 | R140: =Tabel86[[#This Row],[Total N2O direkte, kg]]+Tabel86[[#This Row],[Total N2O indirekte, kg ]] -> 0
A141: Sows, gastation period | B141: Svin | C141: 1 årsso med 30 grise til 7,0 kg | D141: Deep litter + slatted floor | E141: Løsgående, dybstrøelse + spaltegulv | F141: Gylle | G141: =IFERROR(HLOOKUP(Tabel86[[#This Row],[Staldsystem]],Indtastning!$A$28:$S$32,2,FALSE),0) -> 0 | H141: 10.1 | I141: 0 | J141: 0.005 | K141: =Tabel86[[#This Row],[Total N excretion (kg pr year)]]*Tabel86[[#This Row],[Emissionsfaktor (kgN2O-N pr kg Nex) ]] -> 0 | L141: =Tabel86[[#This Row],[Total N2O-N]]*44/28 -> 0 | M141: 0.1674732172 | N141: =Tabel86[[#This Row],[Total N excretion (kg pr year)]]*Tabel86[[#This Row],[FracGasMS]] -> 0 | O141: 0.01 | P141: =Tabel86[[#This Row],[Total N fra fordampning]]*Tabel86[[#This Row],[Emissionsfaktor (EF4)]] -> 0 | Q141: =Tabel86[[#This Row],[Total N2O-N2 kg]]*44/28 -> 0 | R141: =Tabel86[[#This Row],[Total N2O direkte, kg]]+Tabel86[[#This Row],[Total N2O indirekte, kg ]] -> 0
A142: Sows, gastation period | B142: Svin | C142: 1 årsso med 30 grise til 7,0 kg | D142: Deep litter, sows | E142: Løsgående, dybstrøelse | F142: Dybstrøelse | G142: =IFERROR(HLOOKUP(Tabel86[[#This Row],[Staldsystem]],Indtastning!$A$28:$S$32,2,FALSE),0) -> 0 | H142: 13.8 | I142: 0 | J142: 0.07 | K142: =Tabel86[[#This Row],[Total N excretion (kg pr year)]]*Tabel86[[#This Row],[Emissionsfaktor (kgN2O-N pr kg Nex) ]] -> 0 | L142: =Tabel86[[#This Row],[Total N2O-N]]*44/28 -> 0 | M142: 0.1674732172 | N142: =Tabel86[[#This Row],[Total N excretion (kg pr year)]]*Tabel86[[#This Row],[FracGasMS]] -> 0 | O142: 0.01 | P142: =Tabel86[[#This Row],[Total N fra fordampning]]*Tabel86[[#This Row],[Emissionsfaktor (EF4)]] -> 0 | Q142: =Tabel86[[#This Row],[Total N2O-N2 kg]]*44/28 -> 0 | R142: =Tabel86[[#This Row],[Total N2O direkte, kg]]+Tabel86[[#This Row],[Total N2O indirekte, kg ]] -> 0
A143: Sows, gastation period | B143: Svin | C143: 1 årsso med 30 grise til 7,0 kg | D143: Individual housing, partly slatted floor | E143: Individuel opstaldning, delvis spaltegulv | F143: Gylle | G143: =IFERROR(HLOOKUP(Tabel86[[#This Row],[Staldsystem]],Indtastning!$A$28:$S$32,2,FALSE),0) -> 0 | H143: 15.4 | I143: 0 | J143: 0.005 | K143: =Tabel86[[#This Row],[Total N excretion (kg pr year)]]*Tabel86[[#This Row],[Emissionsfaktor (kgN2O-N pr kg Nex) ]] -> 0 | L143: =Tabel86[[#This Row],[Total N2O-N]]*44/28 -> 0 | M143: 0.1674732172 | N143: =Tabel86[[#This Row],[Total N excretion (kg pr year)]]*Tabel86[[#This Row],[FracGasMS]] -> 0 | O143: 0.01 | P143: =Tabel86[[#This Row],[Total N fra fordampning]]*Tabel86[[#This Row],[Emissionsfaktor (EF4)]] -> 0 | Q143: =Tabel86[[#This Row],[Total N2O-N2 kg]]*44/28 -> 0 | R143: =Tabel86[[#This Row],[Total N2O direkte, kg]]+Tabel86[[#This Row],[Total N2O indirekte, kg ]] -> 0
A144: Sows, gastation period | B144: Svin | C144: 1 årsso med 30 grise til 7,0 kg | D144: Individual housing, fully slatted floor | E144: Individuel opstaldning, fuldspaltegulv | F144: Gylle | G144: =IFERROR(HLOOKUP(Tabel86[[#This Row],[Staldsystem]],Indtastning!$A$28:$S$32,2,FALSE),0) -> 0 | H144: 14.7 | I144: 0 | J144: 0.005 | K144: =Tabel86[[#This Row],[Total N excretion (kg pr year)]]*Tabel86[[#This Row],[Emissionsfaktor (kgN2O-N pr kg Nex) ]] -> 0 | L144: =Tabel86[[#This Row],[Total N2O-N]]*44/28 -> 0 | M144: 0.1674732172 | N144: =Tabel86[[#This Row],[Total N excretion (kg pr year)]]*Tabel86[[#This Row],[FracGasMS]] -> 0 | O144: 0.01 | P144: =Tabel86[[#This Row],[Total N fra fordampning]]*Tabel86[[#This Row],[Emissionsfaktor (EF4)]] -> 0 | Q144: =Tabel86[[#This Row],[Total N2O-N2 kg]]*44/28 -> 0 | R144: =Tabel86[[#This Row],[Total N2O direkte, kg]]+Tabel86[[#This Row],[Total N2O indirekte, kg ]] -> 0
A145: Sows, gastation period | B145: Svin | C145: 1 årsso med 30 grise til 7,0 kg | D145: Individual housing, solid floor | E145: Individuel opstaldning, fast gulv | F145: Staldgødning | G145: =IFERROR(HLOOKUP(Tabel86[[#This Row],[Staldsystem]],Indtastning!$A$28:$S$32,2,FALSE),0) -> 0 | H145: 4.47 | I145: 0 | J145: 0.005 | K145: =Tabel86[[#This Row],[Total N excretion (kg pr year)]]*Tabel86[[#This Row],[Emissionsfaktor (kgN2O-N pr kg Nex) ]] -> 0 | L145: =Tabel86[[#This Row],[Total N2O-N]]*44/28 -> 0 | M145: 0.1674732172 | N145: =Tabel86[[#This Row],[Total N excretion (kg pr year)]]*Tabel86[[#This Row],[FracGasMS]] -> 0 | O145: 0.01 | P145: =Tabel86[[#This Row],[Total N fra fordampning]]*Tabel86[[#This Row],[Emissionsfaktor (EF4)]] -> 0 | Q145: =Tabel86[[#This Row],[Total N2O-N2 kg]]*44/28 -> 0 | R145: =Tabel86[[#This Row],[Total N2O direkte, kg]]+Tabel86[[#This Row],[Total N2O indirekte, kg ]] -> 0
A146: Sows, gastation period | B146: Svin | C146: 1 årsso med 30 grise til 7,0 kg | D146: Individual housing, solid floor | E146: Individuel opstaldning, fast gulv | F146: Ajle (liquid manure/urin) | G146: =IFERROR(HLOOKUP(Tabel86[[#This Row],[Staldsystem]],Indtastning!$A$28:$S$32,2,FALSE),0) -> 0 | H146: 7.8 | I146: 0 | J146: 0.005 | K146: =Tabel86[[#This Row],[Total N excretion (kg pr year)]]*Tabel86[[#This Row],[Emissionsfaktor (kgN2O-N pr kg Nex) ]] -> 0 | L146: =Tabel86[[#This Row],[Total N2O-N]]*44/28 -> 0 | M146: 0.1674732172 | N146: =Tabel86[[#This Row],[Total N excretion (kg pr year)]]*Tabel86[[#This Row],[FracGasMS]] -> 0 | O146: 0.01 | P146: =Tabel86[[#This Row],[Total N fra fordampning]]*Tabel86[[#This Row],[Emissionsfaktor (EF4)]] -> 0 | Q146: =Tabel86[[#This Row],[Total N2O-N2 kg]]*44/28 -> 0 | R146: =Tabel86[[#This Row],[Total N2O direkte, kg]]+Tabel86[[#This Row],[Total N2O indirekte, kg ]] -> 0
A147: Sows, gastation period | B147: Svin | C147: 1 årsso med 30 grise til 7,0 kg | D147: Loose housing, partly slatted floor | E147: Løsgående, delvis spaltegulv | F147: Gylle | G147: =IFERROR(HLOOKUP(Tabel86[[#This Row],[Staldsystem]],Indtastning!$A$28:$S$32,2,FALSE),0) -> 0 | H147: 15.2 | I147: 0 | J147: 0.005 | K147: =Tabel86[[#This Row],[Total N excretion (kg pr year)]]*Tabel86[[#This Row],[Emissionsfaktor (kgN2O-N pr kg Nex) ]] -> 0 | L147: =Tabel86[[#This Row],[Total N2O-N]]*44/28 -> 0 | M147: 0.1674732172 | N147: =Tabel86[[#This Row],[Total N excretion (kg pr year)]]*Tabel86[[#This Row],[FracGasMS]] -> 0 | O147: 0.01 | P147: =Tabel86[[#This Row],[Total N fra fordampning]]*Tabel86[[#This Row],[Emissionsfaktor (EF4)]] -> 0 | Q147: =Tabel86[[#This Row],[Total N2O-N2 kg]]*44/28 -> 0 | R147: =Tabel86[[#This Row],[Total N2O direkte, kg]]+Tabel86[[#This Row],[Total N2O indirekte, kg ]] -> 0
A148: Sows, farrow period | B148: Svin | C148: Bidrag fra farestald | D148: Individual housing, partly slatted floor | E148: Kassestier, delvis spaltegulv | F148: Gylle | G148: =IFERROR(HLOOKUP(Tabel86[[#This Row],[Staldsystem]],Indtastning!$A$28:$S$32,3,FALSE),0) -> 0 | H148: 6.61 | I148: 0 | J148: 0.005 | K148: =Tabel86[[#This Row],[Total N excretion (kg pr year)]]*Tabel86[[#This Row],[Emissionsfaktor (kgN2O-N pr kg Nex) ]] -> 0 | L148: =Tabel86[[#This Row],[Total N2O-N]]*44/28 -> 0 | M148: 0.1674732172 | N148: =Tabel86[[#This Row],[Total N excretion (kg pr year)]]*Tabel86[[#This Row],[FracGasMS]] -> 0 | O148: 0.01 | P148: =Tabel86[[#This Row],[Total N fra fordampning]]*Tabel86[[#This Row],[Emissionsfaktor (EF4)]] -> 0 | Q148: =Tabel86[[#This Row],[Total N2O-N2 kg]]*44/28 -> 0 | R148: =Tabel86[[#This Row],[Total N2O direkte, kg]]+Tabel86[[#This Row],[Total N2O indirekte, kg ]] -> 0
A149: Sows, farrow period | B149: Svin | C149: Bidrag fra farestald | D149: Individual housing, fully slatted floor | E149: Kassestier, fuldspaltegulv | F149: Gylle | G149: =IFERROR(HLOOKUP(Tabel86[[#This Row],[Staldsystem]],Indtastning!$A$28:$S$32,3,FALSE),0) -> 0 | H149: 5.91 | I149: 0 | J149: 0.005 | K149: =Tabel86[[#This Row],[Total N excretion (kg pr year)]]*Tabel86[[#This Row],[Emissionsfaktor (kgN2O-N pr kg Nex) ]] -> 0 | L149: =Tabel86[[#This Row],[Total N2O-N]]*44/28 -> 0 | M149: 0.1674732172 | N149: =Tabel86[[#This Row],[Total N excretion (kg pr year)]]*Tabel86[[#This Row],[FracGasMS]] -> 0 | O149: 0.01 | P149: =Tabel86[[#This Row],[Total N fra fordampning]]*Tabel86[[#This Row],[Emissionsfaktor (EF4)]] -> 0 | Q149: =Tabel86[[#This Row],[Total N2O-N2 kg]]*44/28 -> 0 | R149: =Tabel86[[#This Row],[Total N2O direkte, kg]]+Tabel86[[#This Row],[Total N2O indirekte, kg ]] -> 0
A150: Weaners | B150: Svin | C150: 1 smågris (7-31 kg) | D150: Fully slatted floor | E150: Fuldspaltegulv | F150: Gylle | G150: =IFERROR(HLOOKUP(Tabel86[[#This Row],[Staldsystem]],Indtastning!$A$28:$S$32,4,FALSE),0) -> 0 | H150: 0.4 | I150: 0 | J150: 0.005 | K150: =Tabel86[[#This Row],[Total N excretion (kg pr year)]]*Tabel86[[#This Row],[Emissionsfaktor (kgN2O-N pr kg Nex) ]] -> 0 | L150: =Tabel86[[#This Row],[Total N2O-N]]*44/28 -> 0 | M150: 0.1674732172 | N150: =Tabel86[[#This Row],[Total N excretion (kg pr year)]]*Tabel86[[#This Row],[FracGasMS]] -> 0 | O150: 0.01 | P150: =Tabel86[[#This Row],[Total N fra fordampning]]*Tabel86[[#This Row],[Emissionsfaktor (EF4)]] -> 0 | Q150: =Tabel86[[#This Row],[Total N2O-N2 kg]]*44/28 -> 0 | R150: =Tabel86[[#This Row],[Total N2O direkte, kg]]+Tabel86[[#This Row],[Total N2O indirekte, kg ]] -> 0
A151: Weaners | B151: Svin | C151: 1 smågris (7-31 kg) | D151: Partly slatted floor | E151: To klimastald, delvis spaltegulv | F151: Gylle | G151: =IFERROR(HLOOKUP(Tabel86[[#This Row],[Staldsystem]],Indtastning!$A$28:$S$32,4,FALSE),0) -> 0 | H151: 0.44 | I151: 0 | J151: 0.005 | K151: =Tabel86[[#This Row],[Total N excretion (kg pr year)]]*Tabel86[[#This Row],[Emissionsfaktor (kgN2O-N pr kg Nex) ]] -> 0 | L151: =Tabel86[[#This Row],[Total N2O-N]]*44/28 -> 0 | M151: 0.1674732172 | N151: =Tabel86[[#This Row],[Total N excretion (kg pr year)]]*Tabel86[[#This Row],[FracGasMS]] -> 0 | O151: 0.01 | P151: =Tabel86[[#This Row],[Total N fra fordampning]]*Tabel86[[#This Row],[Emissionsfaktor (EF4)]] -> 0 | Q151: =Tabel86[[#This Row],[Total N2O-N2 kg]]*44/28 -> 0 | R151: =Tabel86[[#This Row],[Total N2O direkte, kg]]+Tabel86[[#This Row],[Total N2O indirekte, kg ]] -> 0
A152: Weaners | B152: Svin | C152: 1 smågris (7-31 kg) | D152: Solid floor | E152: Fast gulv | F152: Staldgødning | G152: =IFERROR(HLOOKUP(Tabel86[[#This Row],[Staldsystem]],Indtastning!$A$28:$S$32,4,FALSE),0) -> 0 | H152: 0.16 | I152: 0 | J152: 0.005 | K152: =Tabel86[[#This Row],[Total N excretion (kg pr year)]]*Tabel86[[#This Row],[Emissionsfaktor (kgN2O-N pr kg Nex) ]] -> 0 | L152: =Tabel86[[#This Row],[Total N2O-N]]*44/28 -> 0 | M152: 0.1674732172 | N152: =Tabel86[[#This Row],[Total N excretion (kg pr year)]]*Tabel86[[#This Row],[FracGasMS]] -> 0 | O152: 0.01 | P152: =Tabel86[[#This Row],[Total N fra fordampning]]*Tabel86[[#This Row],[Emissionsfaktor (EF4)]] -> 0 | Q152: =Tabel86[[#This Row],[Total N2O-N2 kg]]*44/28 -> 0 | R152: =Tabel86[[#This Row],[Total N2O direkte, kg]]+Tabel86[[#This Row],[Total N2O indirekte, kg ]] -> 0
A153: Weaners | B153: Svin | C153: 1 smågris (7-31 kg) | D153: solid floor | E153: Fast gulv | F153: Ajle (liquid manure/urin) | G153: =IFERROR(HLOOKUP(Tabel86[[#This Row],[Staldsystem]],Indtastning!$A$28:$S$32,4,FALSE),0) -> 0 | H153: 0.12 | I153: 0 | J153: 0.005 | K153: =Tabel86[[#This Row],[Total N excretion (kg pr year)]]*Tabel86[[#This Row],[Emissionsfaktor (kgN2O-N pr kg Nex) ]] -> 0 | L153: =Tabel86[[#This Row],[Total N2O-N]]*44/28 -> 0 | M153: 0.1674732172 | N153: =Tabel86[[#This Row],[Total N excretion (kg pr year)]]*Tabel86[[#This Row],[FracGasMS]] -> 0 | O153: 0.01 | P153: =Tabel86[[#This Row],[Total N fra fordampning]]*Tabel86[[#This Row],[Emissionsfaktor (EF4)]] -> 0 | Q153: =Tabel86[[#This Row],[Total N2O-N2 kg]]*44/28 -> 0 | R153: =Tabel86[[#This Row],[Total N2O direkte, kg]]+Tabel86[[#This Row],[Total N2O indirekte, kg ]] -> 0
A154: Weaners | B154: Svin | C154: 1 smågris (7-31 kg) | D154: Deep litter (to-climate housings) | E154: Dybstrøelse | F154: Dybstrøelse | G154: =IFERROR(HLOOKUP(Tabel86[[#This Row],[Staldsystem]],Indtastning!$A$28:$S$32,4,FALSE),0) -> 0 | H154: 0.3 | I154: 0 | J154: 0.07 | K154: =Tabel86[[#This Row],[Total N excretion (kg pr year)]]*Tabel86[[#This Row],[Emissionsfaktor (kgN2O-N pr kg Nex) ]] -> 0 | L154: =Tabel86[[#This Row],[Total N2O-N]]*44/28 -> 0 | M154: 0.1674732172 | N154: =Tabel86[[#This Row],[Total N excretion (kg pr year)]]*Tabel86[[#This Row],[FracGasMS]] -> 0 | O154: 0.01 | P154: =Tabel86[[#This Row],[Total N fra fordampning]]*Tabel86[[#This Row],[Emissionsfaktor (EF4)]] -> 0 | Q154: =Tabel86[[#This Row],[Total N2O-N2 kg]]*44/28 -> 0 | R154: =Tabel86[[#This Row],[Total N2O direkte, kg]]+Tabel86[[#This Row],[Total N2O indirekte, kg ]] -> 0
A155: Weaners | B155: Svin | C155: 1 smågris (7-31 kg) | D155: Partly slatted and drained floor | E155: Drænet gulv + spalter (50/50) | F155: Gylle | G155: =IFERROR(HLOOKUP(Tabel86[[#This Row],[Staldsystem]],Indtastning!$A$28:$S$32,4,FALSE),0) -> 0 | H155: 0.41 | I155: 0 | J155: 0.005 | K155: =Tabel86[[#This Row],[Total N excretion (kg pr year)]]*Tabel86[[#This Row],[Emissionsfaktor (kgN2O-N pr kg Nex) ]] -> 0 | L155: =Tabel86[[#This Row],[Total N2O-N]]*44/28 -> 0 | M155: 0.1674732172 | N155: =Tabel86[[#This Row],[Total N excretion (kg pr year)]]*Tabel86[[#This Row],[FracGasMS]] -> 0 | O155: 0.01 | P155: =Tabel86[[#This Row],[Total N fra fordampning]]*Tabel86[[#This Row],[Emissionsfaktor (EF4)]] -> 0 | Q155: =Tabel86[[#This Row],[Total N2O-N2 kg]]*44/28 -> 0 | R155: =Tabel86[[#This Row],[Total N2O direkte, kg]]+Tabel86[[#This Row],[Total N2O indirekte, kg ]] -> 0
A156: Fattening pigs | B156: Svin | C156: Slagtesvin (31 kg >) | D156: Fully slatted floor | E156: Fuldspaltegulv | F156: Gylle | G156: =IFERROR(HLOOKUP(Tabel86[[#This Row],[Staldsystem]],Indtastning!$A$28:$S$32,5,FALSE),0) -> 0 | H156: 2.43 | I156: 0 | J156: 0.005 | K156: =Tabel86[[#This Row],[Total N excretion (kg pr year)]]*Tabel86[[#This Row],[Emissionsfaktor (kgN2O-N pr kg Nex) ]] -> 0 | L156: =Tabel86[[#This Row],[Total N2O-N]]*44/28 -> 0 | M156: 0.1674732172 | N156: =Tabel86[[#This Row],[Total N excretion (kg pr year)]]*Tabel86[[#This Row],[FracGasMS]] -> 0 | O156: 0.01 | P156: =Tabel86[[#This Row],[Total N fra fordampning]]*Tabel86[[#This Row],[Emissionsfaktor (EF4)]] -> 0 | Q156: =Tabel86[[#This Row],[Total N2O-N2 kg]]*44/28 -> 0 | R156: =Tabel86[[#This Row],[Total N2O direkte, kg]]+Tabel86[[#This Row],[Total N2O indirekte, kg ]] -> 0
A157: Fattening pigs | B157: Svin | C157: Slagtesvin (31 kg >) | D157: Solid floor | E157: Fast gulv | F157: Ajle (liquid manure/urin) | G157: =IFERROR(HLOOKUP(Tabel86[[#This Row],[Staldsystem]],Indtastning!$A$28:$S$32,5,FALSE),0) -> 0 | H157: 0.961 | I157: 0 | J157: 0.005 | K157: =Tabel86[[#This Row],[Total N excretion (kg pr year)]]*Tabel86[[#This Row],[Emissionsfaktor (kgN2O-N pr kg Nex) ]] -> 0 | L157: =Tabel86[[#This Row],[Total N2O-N]]*44/28 -> 0 | M157: 0.1674732172 | N157: =Tabel86[[#This Row],[Total N excretion (kg pr year)]]*Tabel86[[#This Row],[FracGasMS]] -> 0 | O157: 0.01 | P157: =Tabel86[[#This Row],[Total N fra fordampning]]*Tabel86[[#This Row],[Emissionsfaktor (EF4)]] -> 0 | Q157: =Tabel86[[#This Row],[Total N2O-N2 kg]]*44/28 -> 0 | R157: =Tabel86[[#This Row],[Total N2O direkte, kg]]+Tabel86[[#This Row],[Total N2O indirekte, kg ]] -> 0
A158: Fattening pigs | B158: Svin | C158: Slagtesvin (31 kg >) | D158: Solid floor | E158: Fast gulv | F158: Staldgødning | G158: =IFERROR(HLOOKUP(Tabel86[[#This Row],[Staldsystem]],Indtastning!$A$28:$S$32,5,FALSE),0) -> 0 | H158: 0.948 | I158: 0 | J158: 0.005 | K158: =Tabel86[[#This Row],[Total N excretion (kg pr year)]]*Tabel86[[#This Row],[Emissionsfaktor (kgN2O-N pr kg Nex) ]] -> 0 | L158: =Tabel86[[#This Row],[Total N2O-N]]*44/28 -> 0 | M158: 0.1674732172 | N158: =Tabel86[[#This Row],[Total N excretion (kg pr year)]]*Tabel86[[#This Row],[FracGasMS]] -> 0 | O158: 0.01 | P158: =Tabel86[[#This Row],[Total N fra fordampning]]*Tabel86[[#This Row],[Emissionsfaktor (EF4)]] -> 0 | Q158: =Tabel86[[#This Row],[Total N2O-N2 kg]]*44/28 -> 0 | R158: =Tabel86[[#This Row],[Total N2O direkte, kg]]+Tabel86[[#This Row],[Total N2O indirekte, kg ]] -> 0
A159: Fattening pigs | B159: Svin | C159: Slagtesvin (31 kg >) | D159: Deep litter, fattening pigs | E159: Dybstrøelse | F159: Dybstrøelse | G159: =IFERROR(HLOOKUP(Tabel86[[#This Row],[Staldsystem]],Indtastning!$A$28:$S$32,5,FALSE),0) -> 0 | H159: 1.97 | I159: 0 | J159: 0.07 | K159: =Tabel86[[#This Row],[Total N excretion (kg pr year)]]*Tabel86[[#This Row],[Emissionsfaktor (kgN2O-N pr kg Nex) ]] -> 0 | L159: =Tabel86[[#This Row],[Total N2O-N]]*44/28 -> 0 | M159: 0.1674732172 | N159: =Tabel86[[#This Row],[Total N excretion (kg pr year)]]*Tabel86[[#This Row],[FracGasMS]] -> 0 | O159: 0.01 | P159: =Tabel86[[#This Row],[Total N fra fordampning]]*Tabel86[[#This Row],[Emissionsfaktor (EF4)]] -> 0 | Q159: =Tabel86[[#This Row],[Total N2O-N2 kg]]*44/28 -> 0 | R159: =Tabel86[[#This Row],[Total N2O direkte, kg]]+Tabel86[[#This Row],[Total N2O indirekte, kg ]] -> 0
A160: Fattening pigs | B160: Svin | C160: Slagtesvin (31 kg >) | D160: Partly slatted floor and partly deep litter | E160: Dybstrøelse, opdelt lejeareal | F160: Dybstrøelse | G160: =IFERROR(HLOOKUP(Tabel86[[#This Row],[Staldsystem]],Indtastning!$A$28:$S$32,5,FALSE),0) -> 0 | H160: 0.985 | I160: 0 | J160: 0.07 | K160: =Tabel86[[#This Row],[Total N excretion (kg pr year)]]*Tabel86[[#This Row],[Emissionsfaktor (kgN2O-N pr kg Nex) ]] -> 0 | L160: =Tabel86[[#This Row],[Total N2O-N]]*44/28 -> 0 | M160: 0.1674732172 | N160: =Tabel86[[#This Row],[Total N excretion (kg pr year)]]*Tabel86[[#This Row],[FracGasMS]] -> 0 | O160: 0.01 | P160: =Tabel86[[#This Row],[Total N fra fordampning]]*Tabel86[[#This Row],[Emissionsfaktor (EF4)]] -> 0 | Q160: =Tabel86[[#This Row],[Total N2O-N2 kg]]*44/28 -> 0 | R160: =Tabel86[[#This Row],[Total N2O direkte, kg]]+Tabel86[[#This Row],[Total N2O indirekte, kg ]] -> 0
A161: Fattening pigs | B161: Svin | C161: Slagtesvin (31 kg >) | D161: Partly slatted floor and partly deep litter | E161: Dybstrøelse, opdelt lejeareal | F161: Gylle | G161: =IFERROR(HLOOKUP(Tabel86[[#This Row],[Staldsystem]],Indtastning!$A$28:$S$32,5,FALSE),0) -> 0 | H161: 1.271 | I161: 0 | J161: 0.005 | K161: =Tabel86[[#This Row],[Total N excretion (kg pr year)]]*Tabel86[[#This Row],[Emissionsfaktor (kgN2O-N pr kg Nex) ]] -> 0 | L161: =Tabel86[[#This Row],[Total N2O-N]]*44/28 -> 0 | M161: 0.1674732172 | N161: =Tabel86[[#This Row],[Total N excretion (kg pr year)]]*Tabel86[[#This Row],[FracGasMS]] -> 0 | O161: 0.01 | P161: =Tabel86[[#This Row],[Total N fra fordampning]]*Tabel86[[#This Row],[Emissionsfaktor (EF4)]] -> 0 | Q161: =Tabel86[[#This Row],[Total N2O-N2 kg]]*44/28 -> 0 | R161: =Tabel86[[#This Row],[Total N2O direkte, kg]]+Tabel86[[#This Row],[Total N2O indirekte, kg ]] -> 0
A162: Fattening pigs | B162: Svin | C162: Slagtesvin (31 kg >) | D162: Partly slatted and drained floor | E162: Drænet gulv + spalter (33/67) | F162: Gylle | G162: =IFERROR(HLOOKUP(Tabel86[[#This Row],[Staldsystem]],Indtastning!$A$28:$S$32,5,FALSE),0) -> 0 | H162: 2.49 | I162: 0 | J162: 0.005 | K162: =Tabel86[[#This Row],[Total N excretion (kg pr year)]]*Tabel86[[#This Row],[Emissionsfaktor (kgN2O-N pr kg Nex) ]] -> 0 | L162: =Tabel86[[#This Row],[Total N2O-N]]*44/28 -> 0 | M162: 0.1674732172 | N162: =Tabel86[[#This Row],[Total N excretion (kg pr year)]]*Tabel86[[#This Row],[FracGasMS]] -> 0 | O162: 0.01 | P162: =Tabel86[[#This Row],[Total N fra fordampning]]*Tabel86[[#This Row],[Emissionsfaktor (EF4)]] -> 0 | Q162: =Tabel86[[#This Row],[Total N2O-N2 kg]]*44/28 -> 0 | R162: =Tabel86[[#This Row],[Total N2O direkte, kg]]+Tabel86[[#This Row],[Total N2O indirekte, kg ]] -> 0
A163: Fattening pigs | B163: Svin | C163: Slagtesvin (31 kg >) | D163: Biogas | E163: Biogas | G163: =IFERROR(HLOOKUP(Tabel86[[#This Row],[Staldsystem]],Indtastning!$A$28:$S$32,5,FALSE),0) -> 0 | H163: 2.43 | I163: =G163*H163 -> 0 | J163: 0.005 | K163: =Tabel86[[#This Row],[Total N excretion (kg pr year)]]*Tabel86[[#This Row],[Emissionsfaktor (kgN2O-N pr kg Nex) ]] -> 0 | L163: =Tabel86[[#This Row],[Total N2O-N]]*44/28 -> 0 | M163: 0.1674732172 | N163: =Tabel86[[#This Row],[Total N excretion (kg pr year)]]*Tabel86[[#This Row],[FracGasMS]] -> 0 | O163: 0.01 | P163: =Tabel86[[#This Row],[Total N fra fordampning]]*Tabel86[[#This Row],[Emissionsfaktor (EF4)]] -> 0 | Q163: =Tabel86[[#This Row],[Total N2O-N2 kg]]*44/28 -> 0 | R163: =Tabel86[[#This Row],[Total N2O direkte, kg]]+Tabel86[[#This Row],[Total N2O indirekte, kg ]] -> 0
A164: Hens | B164: Andet | C164: Høns | D164: Free-range hens | E164: Friland, konsumæg | F164: Staldgødning | G164: =IFERROR(HLOOKUP(Tabel86[[#This Row],[Staldsystem]],Indtastning!$B$39:$O$42,2,FALSE),0) -> 0 | H164: =25.44/100 -> 0.2544 | I164: 0 | J164: 0.001 | K164: =Tabel86[[#This Row],[Total N excretion (kg pr year)]]*Tabel86[[#This Row],[Emissionsfaktor (kgN2O-N pr kg Nex) ]] -> 0 | L164: =Tabel86[[#This Row],[Total N2O-N]]*44/28 -> 0 | M164: 0.413377741 | N164: =Tabel86[[#This Row],[Total N excretion (kg pr year)]]*Tabel86[[#This Row],[FracGasMS]] -> 0 | O164: 0.01 | P164: =Tabel86[[#This Row],[Total N fra fordampning]]*Tabel86[[#This Row],[Emissionsfaktor (EF4)]] -> 0 | Q164: =Tabel86[[#This Row],[Total N2O-N2 kg]]*44/28 -> 0 | R164: =Tabel86[[#This Row],[Total N2O direkte, kg]]+Tabel86[[#This Row],[Total N2O indirekte, kg ]] -> 0
A165: Hens | B165: Andet | C165: Høns | D165: Free-range hens | E165: Friland, konsumæg | F165: Dybstrøelse | G165: =IFERROR(HLOOKUP(Tabel86[[#This Row],[Staldsystem]],Indtastning!$B$39:$O$42,2,FALSE),0) -> 0 | H165: =16.1/100 -> 0.161 | I165: 0 | J165: 0.001 | K165: =Tabel86[[#This Row],[Total N excretion (kg pr year)]]*Tabel86[[#This Row],[Emissionsfaktor (kgN2O-N pr kg Nex) ]] -> 0 | L165: =Tabel86[[#This Row],[Total N2O-N]]*44/28 -> 0 | M165: 0.413377741 | N165: =Tabel86[[#This Row],[Total N excretion (kg pr year)]]*Tabel86[[#This Row],[FracGasMS]] -> 0 | O165: 0.01 | P165: =Tabel86[[#This Row],[Total N fra fordampning]]*Tabel86[[#This Row],[Emissionsfaktor (EF4)]] -> 0 | Q165: =Tabel86[[#This Row],[Total N2O-N2 kg]]*44/28 -> 0 | R165: =Tabel86[[#This Row],[Total N2O direkte, kg]]+Tabel86[[#This Row],[Total N2O indirekte, kg ]] -> 0
A166: Hens | B166: Andet | C166: Høns | D166: Free-range hens | E166: Friland, konsumæg | F166: Udeareal | G166: =IFERROR(HLOOKUP(Tabel86[[#This Row],[Staldsystem]],Indtastning!$B$39:$O$42,2,FALSE),0) -> 0 | H166: =8.31/100 -> 0.0831 | I166: 0 | J166: 0.001 | K166: =Tabel86[[#This Row],[Total N excretion (kg pr year)]]*Tabel86[[#This Row],[Emissionsfaktor (kgN2O-N pr kg Nex) ]] -> 0 | L166: =Tabel86[[#This Row],[Total N2O-N]]*44/28 -> 0 | M166: 0.413377741 | N166: =Tabel86[[#This Row],[Total N excretion (kg pr year)]]*Tabel86[[#This Row],[FracGasMS]] -> 0 | O166: 0.01 | P166: =Tabel86[[#This Row],[Total N fra fordampning]]*Tabel86[[#This Row],[Emissionsfaktor (EF4)]] -> 0 | Q166: =Tabel86[[#This Row],[Total N2O-N2 kg]]*44/28 -> 0 | R166: =Tabel86[[#This Row],[Total N2O direkte, kg]]+Tabel86[[#This Row],[Total N2O indirekte, kg ]] -> 0
A167: Hens | B167: Andet | C167: Høns | D167: Organic hens | E167: Økologiske, konsumæg | F167: Staldgødning | G167: =IFERROR(HLOOKUP(Tabel86[[#This Row],[Staldsystem]],Indtastning!$B$39:$O$42,2,FALSE),0) -> 0 | H167: =26.6/100 -> 0.266 | I167: 0 | J167: 0.001 | K167: =Tabel86[[#This Row],[Total N excretion (kg pr year)]]*Tabel86[[#This Row],[Emissionsfaktor (kgN2O-N pr kg Nex) ]] -> 0 | L167: =Tabel86[[#This Row],[Total N2O-N]]*44/28 -> 0 | M167: 0.413377741 | N167: =Tabel86[[#This Row],[Total N excretion (kg pr year)]]*Tabel86[[#This Row],[FracGasMS]] -> 0 | O167: 0.01 | P167: =Tabel86[[#This Row],[Total N fra fordampning]]*Tabel86[[#This Row],[Emissionsfaktor (EF4)]] -> 0 | Q167: =Tabel86[[#This Row],[Total N2O-N2 kg]]*44/28 -> 0 | R167: =Tabel86[[#This Row],[Total N2O direkte, kg]]+Tabel86[[#This Row],[Total N2O indirekte, kg ]] -> 0
A168: Hens | B168: Andet | C168: Høns | D168: Organic hens | E168: Økologiske, konsumæg | F168: Dybstrøelse | G168: =IFERROR(HLOOKUP(Tabel86[[#This Row],[Staldsystem]],Indtastning!$B$39:$O$42,2,FALSE),0) -> 0 | H168: =16.95/100 -> 0.1695 | I168: 0 | J168: 0.001 | K168: =Tabel86[[#This Row],[Total N excretion (kg pr year)]]*Tabel86[[#This Row],[Emissionsfaktor (kgN2O-N pr kg Nex) ]] -> 0 | L168: =Tabel86[[#This Row],[Total N2O-N]]*44/28 -> 0 | M168: 0.413377741 | N168: =Tabel86[[#This Row],[Total N excretion (kg pr year)]]*Tabel86[[#This Row],[FracGasMS]] -> 0 | O168: 0.01 | P168: =Tabel86[[#This Row],[Total N fra fordampning]]*Tabel86[[#This Row],[Emissionsfaktor (EF4)]] -> 0 | Q168: =Tabel86[[#This Row],[Total N2O-N2 kg]]*44/28 -> 0 | R168: =Tabel86[[#This Row],[Total N2O direkte, kg]]+Tabel86[[#This Row],[Total N2O indirekte, kg ]] -> 0
A169: Hens | B169: Andet | C169: Høns | D169: Organic hens | E169: Økologiske, konsumæg | F169: Udeareal | G169: =IFERROR(HLOOKUP(Tabel86[[#This Row],[Staldsystem]],Indtastning!$B$39:$O$42,2,FALSE),0) -> 0 | H169: =8.69/100 -> 0.0869 | I169: 0 | J169: 0.001 | K169: =Tabel86[[#This Row],[Total N excretion (kg pr year)]]*Tabel86[[#This Row],[Emissionsfaktor (kgN2O-N pr kg Nex) ]] -> 0 | L169: =Tabel86[[#This Row],[Total N2O-N]]*44/28 -> 0 | M169: 0.413377741 | N169: =Tabel86[[#This Row],[Total N excretion (kg pr year)]]*Tabel86[[#This Row],[FracGasMS]] -> 0 | O169: 0.01 | P169: =Tabel86[[#This Row],[Total N fra fordampning]]*Tabel86[[#This Row],[Emissionsfaktor (EF4)]] -> 0 | Q169: =Tabel86[[#This Row],[Total N2O-N2 kg]]*44/28 -> 0 | R169: =Tabel86[[#This Row],[Total N2O direkte, kg]]+Tabel86[[#This Row],[Total N2O indirekte, kg ]] -> 0
A170: Hens | B170: Andet | C170: Høns | D170: Barn hens | E170: Skrabehøner, konsumæg | F170: Staldgødning | G170: =IFERROR(HLOOKUP(Tabel86[[#This Row],[Staldsystem]],Indtastning!$B$39:$O$42,2,FALSE),0) -> 0 | H170: =17.66/100 -> 0.1766 | I170: 0 | J170: 0.001 | K170: =Tabel86[[#This Row],[Total N excretion (kg pr year)]]*Tabel86[[#This Row],[Emissionsfaktor (kgN2O-N pr kg Nex) ]] -> 0 | L170: =Tabel86[[#This Row],[Total N2O-N]]*44/28 -> 0 | M170: 0.413377741 | N170: =Tabel86[[#This Row],[Total N excretion (kg pr year)]]*Tabel86[[#This Row],[FracGasMS]] -> 0 | O170: 0.01 | P170: =Tabel86[[#This Row],[Total N fra fordampning]]*Tabel86[[#This Row],[Emissionsfaktor (EF4)]] -> 0 | Q170: =Tabel86[[#This Row],[Total N2O-N2 kg]]*44/28 -> 0 | R170: =Tabel86[[#This Row],[Total N2O direkte, kg]]+Tabel86[[#This Row],[Total N2O indirekte, kg ]] -> 0
A171: Hens | B171: Andet | C171: Høns | D171: Barn hens | E171: Skrabehøner, konsumæg | F171: Udeareal | G171: =IFERROR(HLOOKUP(Tabel86[[#This Row],[Staldsystem]],Indtastning!$B$39:$O$42,2,FALSE),0) -> 0 | H171: =28.38/100 -> 0.2838 | I171: 0 | J171: 0.001 | K171: =Tabel86[[#This Row],[Total N excretion (kg pr year)]]*Tabel86[[#This Row],[Emissionsfaktor (kgN2O-N pr kg Nex) ]] -> 0 | L171: =Tabel86[[#This Row],[Total N2O-N]]*44/28 -> 0 | M171: 0.413377741 | N171: =Tabel86[[#This Row],[Total N excretion (kg pr year)]]*Tabel86[[#This Row],[FracGasMS]] -> 0 | O171: 0.01 | P171: =Tabel86[[#This Row],[Total N fra fordampning]]*Tabel86[[#This Row],[Emissionsfaktor (EF4)]] -> 0 | Q171: =Tabel86[[#This Row],[Total N2O-N2 kg]]*44/28 -> 0 | R171: =Tabel86[[#This Row],[Total N2O direkte, kg]]+Tabel86[[#This Row],[Total N2O indirekte, kg ]] -> 0
A172: Hens | B172: Andet | C172: Høns | D172: Battery hens, manure shed | E172: Burhøns, konsumæg, bånd, staldgødning | F172: Staldgødning | G172: =IFERROR(HLOOKUP(Tabel86[[#This Row],[Staldsystem]],Indtastning!$B$39:$O$42,2,FALSE),0) -> 0 | H172: =53.7/100 -> 0.537 | I172: 0 | J172: 0.001 | K172: =Tabel86[[#This Row],[Total N excretion (kg pr year)]]*Tabel86[[#This Row],[Emissionsfaktor (kgN2O-N pr kg Nex) ]] -> 0 | L172: =Tabel86[[#This Row],[Total N2O-N]]*44/28 -> 0 | M172: 0.413377741 | N172: =Tabel86[[#This Row],[Total N excretion (kg pr year)]]*Tabel86[[#This Row],[FracGasMS]] -> 0 | O172: 0.01 | P172: =Tabel86[[#This Row],[Total N fra fordampning]]*Tabel86[[#This Row],[Emissionsfaktor (EF4)]] -> 0 | Q172: =Tabel86[[#This Row],[Total N2O-N2 kg]]*44/28 -> 0 | R172: =Tabel86[[#This Row],[Total N2O direkte, kg]]+Tabel86[[#This Row],[Total N2O indirekte, kg ]] -> 0
A173: Hens | B173: Andet | C173: Høns | D173: Battery hens, manure tank | E173: Burhøns, konsumæg, bånd, gylle | F173: Gylle | G173: =IFERROR(HLOOKUP(Tabel86[[#This Row],[Staldsystem]],Indtastning!$B$39:$O$42,2,FALSE),0) -> 0 | H173: =61.92/100 -> 0.6192 | I173: 0 | J173: 0.001 | K173: =Tabel86[[#This Row],[Total N excretion (kg pr year)]]*Tabel86[[#This Row],[Emissionsfaktor (kgN2O-N pr kg Nex) ]] -> 0 | L173: =Tabel86[[#This Row],[Total N2O-N]]*44/28 -> 0 | M173: 0.413377741 | N173: =Tabel86[[#This Row],[Total N excretion (kg pr year)]]*Tabel86[[#This Row],[FracGasMS]] -> 0 | O173: 0.01 | P173: =Tabel86[[#This Row],[Total N fra fordampning]]*Tabel86[[#This Row],[Emissionsfaktor (EF4)]] -> 0 | Q173: =Tabel86[[#This Row],[Total N2O-N2 kg]]*44/28 -> 0 | R173: =Tabel86[[#This Row],[Total N2O direkte, kg]]+Tabel86[[#This Row],[Total N2O indirekte, kg ]] -> 0
A174: Hens | B174: Andet | C174: Høns | D174: Battery hens, manure cellar | E174: Burhøns, konsumæg, gødningskælder | F174: Staldgødning | G174: =IFERROR(HLOOKUP(Tabel86[[#This Row],[Staldsystem]],Indtastning!$B$39:$O$42,2,FALSE),0) -> 0 | H174: =52.51/100 -> 0.5251 | I174: 0 | J174: 0.001 | K174: =Tabel86[[#This Row],[Total N excretion (kg pr year)]]*Tabel86[[#This Row],[Emissionsfaktor (kgN2O-N pr kg Nex) ]] -> 0 | L174: =Tabel86[[#This Row],[Total N2O-N]]*44/28 -> 0 | M174: 0.413377741 | N174: =Tabel86[[#This Row],[Total N excretion (kg pr year)]]*Tabel86[[#This Row],[FracGasMS]] -> 0 | O174: 0.01 | P174: =Tabel86[[#This Row],[Total N fra fordampning]]*Tabel86[[#This Row],[Emissionsfaktor (EF4)]] -> 0 | Q174: =Tabel86[[#This Row],[Total N2O-N2 kg]]*44/28 -> 0 | R174: =Tabel86[[#This Row],[Total N2O direkte, kg]]+Tabel86[[#This Row],[Total N2O indirekte, kg ]] -> 0
A175: Pullet | B175: Andet | C175: Hønniker | D175: Pullet, consumption, net | E175: Hønniker, konsum, gulvdrift, 112 dage | F175: Dybstrøelse | G175: =IFERROR(HLOOKUP(Tabel86[[#This Row],[Staldsystem]],Indtastning!$B$39:$R$42,3,FALSE),0) -> 0 | H175: =5.68/100 -> 0.0568 | I175: 0 | J175: 0.01 | K175: =Tabel86[[#This Row],[Total N excretion (kg pr year)]]*Tabel86[[#This Row],[Emissionsfaktor (kgN2O-N pr kg Nex) ]] -> 0 | L175: =Tabel86[[#This Row],[Total N2O-N]]*44/28 -> 0 | M175: 0.413377741 | N175: =Tabel86[[#This Row],[Total N excretion (kg pr year)]]*Tabel86[[#This Row],[FracGasMS]] -> 0 | O175: 0.01 | P175: =Tabel86[[#This Row],[Total N fra fordampning]]*Tabel86[[#This Row],[Emissionsfaktor (EF4)]] -> 0 | Q175: =Tabel86[[#This Row],[Total N2O-N2 kg]]*44/28 -> 0 | R175: =Tabel86[[#This Row],[Total N2O direkte, kg]]+Tabel86[[#This Row],[Total N2O indirekte, kg ]] -> 0
A176: Pullet | B176: Andet | C176: Hønniker | D176: Pullet, consumption, floor | E176: Hønniker, konsum, netdrift, 112 dage | F176: Staldgødning | G176: =IFERROR(HLOOKUP(Tabel86[[#This Row],[Staldsystem]],Indtastning!$B$39:$R$42,3,FALSE),0) -> 0 | H176: =5.68/100 -> 0.0568 | I176: 0 | J176: 0.01 | K176: =Tabel86[[#This Row],[Total N excretion (kg pr year)]]*Tabel86[[#This Row],[Emissionsfaktor (kgN2O-N pr kg Nex) ]] -> 0 | L176: =Tabel86[[#This Row],[Total N2O-N]]*44/28 -> 0 | M176: 0.413377741 | N176: =Tabel86[[#This Row],[Total N excretion (kg pr year)]]*Tabel86[[#This Row],[FracGasMS]] -> 0 | O176: 0.01 | P176: =Tabel86[[#This Row],[Total N fra fordampning]]*Tabel86[[#This Row],[Emissionsfaktor (EF4)]] -> 0 | Q176: =Tabel86[[#This Row],[Total N2O-N2 kg]]*44/28 -> 0 | R176: =Tabel86[[#This Row],[Total N2O direkte, kg]]+Tabel86[[#This Row],[Total N2O indirekte, kg ]] -> 0
A177: Pullet | B177: Andet | C177: Hønniker | D177: Pullet, brood egg, floor | E177: Hønniker, rugeæg, HPR, gulvdrift, 119 dage | F177: Dybstrøelse | G177: =IFERROR(HLOOKUP(Tabel86[[#This Row],[Staldsystem]],Indtastning!$B$39:$R$42,3,FALSE),0) -> 0 | H177: =5.68/100 -> 0.0568 | I177: 0 | J177: 0.01 | K177: =Tabel86[[#This Row],[Total N excretion (kg pr year)]]*Tabel86[[#This Row],[Emissionsfaktor (kgN2O-N pr kg Nex) ]] -> 0 | L177: =Tabel86[[#This Row],[Total N2O-N]]*44/28 -> 0 | M177: 0.413377741 | N177: =Tabel86[[#This Row],[Total N excretion (kg pr year)]]*Tabel86[[#This Row],[FracGasMS]] -> 0 | O177: 0.01 | P177: =Tabel86[[#This Row],[Total N fra fordampning]]*Tabel86[[#This Row],[Emissionsfaktor (EF4)]] -> 0 | Q177: =Tabel86[[#This Row],[Total N2O-N2 kg]]*44/28 -> 0 | R177: =Tabel86[[#This Row],[Total N2O direkte, kg]]+Tabel86[[#This Row],[Total N2O indirekte, kg ]] -> 0
A178: Broilers | B178: Andet | C178: Slagtekyllinger, 1000 stk. | D178: Broilers, (conv. 30 days) | E178: Slagtekyllinger (25 dyr/m2), produktionstid 30 dage | F178: Dybstrøelse | G178: =IFERROR(HLOOKUP(Tabel86[[#This Row],[Staldsystem]],Indtastning!$B$39:$O$42,4,FALSE),0) -> 0 | H178: =25.25/1000 -> 0.02525 | I178: 0 | J178: 0.001 | K178: =Tabel86[[#This Row],[Total N excretion (kg pr year)]]*Tabel86[[#This Row],[Emissionsfaktor (kgN2O-N pr kg Nex) ]] -> 0 | L178: =Tabel86[[#This Row],[Total N2O-N]]*44/28 -> 0 | M178: 1.602652797 | N178: =Tabel86[[#This Row],[Total N excretion (kg pr year)]]*Tabel86[[#This Row],[FracGasMS]] -> 0 | O178: 0.01 | P178: =Tabel86[[#This Row],[Total N fra fordampning]]*Tabel86[[#This Row],[Emissionsfaktor (EF4)]] -> 0 | Q178: =Tabel86[[#This Row],[Total N2O-N2 kg]]*44/28 -> 0 | R178: =Tabel86[[#This Row],[Total N2O direkte, kg]]+Tabel86[[#This Row],[Total N2O indirekte, kg ]] -> 0
A179: Broilers | B179: Andet | C179: Slagtekyllinger, 1000 stk. | D179: Broilers, (conv. 32 days) | E179: Slagtekyllinger (25 dyr/m2), produktionstid 32 dage | F179: Dybstrøelse | G179: =IFERROR(HLOOKUP(Tabel86[[#This Row],[Staldsystem]],Indtastning!$B$39:$O$42,4,FALSE),0) -> 0 | H179: =28.93/1000 -> 0.02893 | I179: 0 | J179: 0.001 | K179: =Tabel86[[#This Row],[Total N excretion (kg pr year)]]*Tabel86[[#This Row],[Emissionsfaktor (kgN2O-N pr kg Nex) ]] -> 0 | L179: =Tabel86[[#This Row],[Total N2O-N]]*44/28 -> 0 | M179: 1.602652797 | N179: =Tabel86[[#This Row],[Total N excretion (kg pr year)]]*Tabel86[[#This Row],[FracGasMS]] -> 0 | O179: 0.01 | P179: =Tabel86[[#This Row],[Total N fra fordampning]]*Tabel86[[#This Row],[Emissionsfaktor (EF4)]] -> 0 | Q179: =Tabel86[[#This Row],[Total N2O-N2 kg]]*44/28 -> 0 | R179: =Tabel86[[#This Row],[Total N2O direkte, kg]]+Tabel86[[#This Row],[Total N2O indirekte, kg ]] -> 0
A180: Broilers | B180: Andet | C180: Slagtekyllinger, 1000 stk. | D180: Broilers, (conv. 35 days) | E180: Slagtekyllinger (25 dyr/m2), produktionstid 35 dage | F180: Dybstrøelse | G180: =IFERROR(HLOOKUP(Tabel86[[#This Row],[Staldsystem]],Indtastning!$B$39:$O$42,4,FALSE),0) -> 0 | H180: =36.3/1000 -> 0.0363 | I180: 0 | J180: 0.001 | K180: =Tabel86[[#This Row],[Total N excretion (kg pr year)]]*Tabel86[[#This Row],[Emissionsfaktor (kgN2O-N pr kg Nex) ]] -> 0 | L180: =Tabel86[[#This Row],[Total N2O-N]]*44/28 -> 0 | M180: 1.602652797 | N180: =Tabel86[[#This Row],[Total N excretion (kg pr year)]]*Tabel86[[#This Row],[FracGasMS]] -> 0 | O180: 0.01 | P180: =Tabel86[[#This Row],[Total N fra fordampning]]*Tabel86[[#This Row],[Emissionsfaktor (EF4)]] -> 0 | Q180: =Tabel86[[#This Row],[Total N2O-N2 kg]]*44/28 -> 0 | R180: =Tabel86[[#This Row],[Total N2O direkte, kg]]+Tabel86[[#This Row],[Total N2O indirekte, kg ]] -> 0
A181: Broilers | B181: Andet | C181: Slagtekyllinger, 1000 stk. | D181: Broilers, (conv. 40 days) | E181: Slagtekyllinger (25 dyr/m2), produktionstid 40 dage | F181: Dybstrøelse | G181: =IFERROR(HLOOKUP(Tabel86[[#This Row],[Staldsystem]],Indtastning!$B$39:$O$42,4,FALSE),0) -> 0 | H181: =50.41/1000 -> 0.05041 | I181: 0 | J181: 0.001 | K181: =Tabel86[[#This Row],[Total N excretion (kg pr year)]]*Tabel86[[#This Row],[Emissionsfaktor (kgN2O-N pr kg Nex) ]] -> 0 | L181: =Tabel86[[#This Row],[Total N2O-N]]*44/28 -> 0 | M181: 1.602652797 | N181: =Tabel86[[#This Row],[Total N excretion (kg pr year)]]*Tabel86[[#This Row],[FracGasMS]] -> 0 | O181: 0.01 | P181: =Tabel86[[#This Row],[Total N fra fordampning]]*Tabel86[[#This Row],[Emissionsfaktor (EF4)]] -> 0 | Q181: =Tabel86[[#This Row],[Total N2O-N2 kg]]*44/28 -> 0 | R181: =Tabel86[[#This Row],[Total N2O direkte, kg]]+Tabel86[[#This Row],[Total N2O indirekte, kg ]] -> 0
A182: Broilers | B182: Andet | C182: Slagtekyllinger, 1000 stk. | D182: Broilers, barn (56 days) | E182: Skrabekyllinger (10 dyr/m2), produktionstid 56 dage | F182: Dybstrøelse | G182: =IFERROR(HLOOKUP(Tabel86[[#This Row],[Staldsystem]],Indtastning!$B$39:$O$42,4,FALSE),0) -> 0 | H182: =49.01/1000 -> 0.04901 | I182: 0 | J182: 0.001 | K182: =Tabel86[[#This Row],[Total N excretion (kg pr year)]]*Tabel86[[#This Row],[Emissionsfaktor (kgN2O-N pr kg Nex) ]] -> 0 | L182: =Tabel86[[#This Row],[Total N2O-N]]*44/28 -> 0 | M182: 1.602652797 | N182: =Tabel86[[#This Row],[Total N excretion (kg pr year)]]*Tabel86[[#This Row],[FracGasMS]] -> 0 | O182: 0.01 | P182: =Tabel86[[#This Row],[Total N fra fordampning]]*Tabel86[[#This Row],[Emissionsfaktor (EF4)]] -> 0 | Q182: =Tabel86[[#This Row],[Total N2O-N2 kg]]*44/28 -> 0 | R182: =Tabel86[[#This Row],[Total N2O direkte, kg]]+Tabel86[[#This Row],[Total N2O indirekte, kg ]] -> 0
A183: Broilers | B183: Andet | C183: Slagtekyllinger, 1000 stk. | D183: Organic broilers (81 days) | E183: Økologiske slagtekyllinger | F183: Udeareal | G183: =IFERROR(HLOOKUP(Tabel86[[#This Row],[Staldsystem]],Indtastning!$B$39:$O$42,4,FALSE),0) -> 0 | H183: =10.54/1000 -> 0.01054 | I183: 0 | J183: 0.001 | K183: =Tabel86[[#This Row],[Total N excretion (kg pr year)]]*Tabel86[[#This Row],[Emissionsfaktor (kgN2O-N pr kg Nex) ]] -> 0 | L183: =Tabel86[[#This Row],[Total N2O-N]]*44/28 -> 0 | M183: 1.602652797 | N183: =Tabel86[[#This Row],[Total N excretion (kg pr year)]]*Tabel86[[#This Row],[FracGasMS]] -> 0 | O183: 0.01 | P183: =Tabel86[[#This Row],[Total N fra fordampning]]*Tabel86[[#This Row],[Emissionsfaktor (EF4)]] -> 0 | Q183: =Tabel86[[#This Row],[Total N2O-N2 kg]]*44/28 -> 0 | R183: =Tabel86[[#This Row],[Total N2O direkte, kg]]+Tabel86[[#This Row],[Total N2O indirekte, kg ]] -> 0
A184: Broilers | B184: Andet | C184: Slagtekyllinger, 1000 stk. | D184: Organic broilers (81 days) | E184: Økologiske slagtekyllinger | F184: Dybstrøelse | G184: =IFERROR(HLOOKUP(Tabel86[[#This Row],[Staldsystem]],Indtastning!$B$39:$O$42,4,FALSE),0) -> 0 | H184: =73.64/1000 -> 0.07364 | I184: 0 | J184: 0.001 | K184: =Tabel86[[#This Row],[Total N excretion (kg pr year)]]*Tabel86[[#This Row],[Emissionsfaktor (kgN2O-N pr kg Nex) ]] -> 0 | L184: =Tabel86[[#This Row],[Total N2O-N]]*44/28 -> 0 | M184: 1.602652797 | N184: =Tabel86[[#This Row],[Total N excretion (kg pr year)]]*Tabel86[[#This Row],[FracGasMS]] -> 0 | O184: 0.01 | P184: =Tabel86[[#This Row],[Total N fra fordampning]]*Tabel86[[#This Row],[Emissionsfaktor (EF4)]] -> 0 | Q184: =Tabel86[[#This Row],[Total N2O-N2 kg]]*44/28 -> 0 | R184: =Tabel86[[#This Row],[Total N2O direkte, kg]]+Tabel86[[#This Row],[Total N2O indirekte, kg ]] -> 0
A185: Mink | B185: Andet | C185: Mink | D185: Slurry system | E185: Bure, fast gødning i gødningsrende | F185: Gylle | G185: =IFERROR(HLOOKUP(Tabel86[[#This Row],[Staldsystem]],Indtastning!$A$60:$G$67,8,FALSE),0) -> 0 | H185: 2.82 | I185: 0 | J185: 0.005 | K185: =Tabel86[[#This Row],[Total N excretion (kg pr year)]]*Tabel86[[#This Row],[Emissionsfaktor (kgN2O-N pr kg Nex) ]] -> 0 | L185: =Tabel86[[#This Row],[Total N2O-N]]*44/28 -> 0 | M185: 0.5239162536 | N185: =Tabel86[[#This Row],[Total N excretion (kg pr year)]]*Tabel86[[#This Row],[FracGasMS]] -> 0 | O185: 0.01 | P185: =Tabel86[[#This Row],[Total N fra fordampning]]*Tabel86[[#This Row],[Emissionsfaktor (EF4)]] -> 0 | Q185: =Tabel86[[#This Row],[Total N2O-N2 kg]]*44/28 -> 0 | R185: =Tabel86[[#This Row],[Total N2O direkte, kg]]+Tabel86[[#This Row],[Total N2O indirekte, kg ]] -> 0
A186: Mink | B186: Andet | C186: Mink | D186: Solid manure and urine | E186: bure gødningsrende, ugentlig tømning | F186: Dybstrøelse | G186: =IFERROR(HLOOKUP(Tabel86[[#This Row],[Staldsystem]],Indtastning!$A$60:$G$67,8,FALSE),0) -> 0 | H186: 0.57 | I186: 0 | J186: 0.01 | K186: =Tabel86[[#This Row],[Total N excretion (kg pr year)]]*Tabel86[[#This Row],[Emissionsfaktor (kgN2O-N pr kg Nex) ]] -> 0 | L186: =Tabel86[[#This Row],[Total N2O-N]]*44/28 -> 0 | M186: 0.5239162536 | N186: =Tabel86[[#This Row],[Total N excretion (kg pr year)]]*Tabel86[[#This Row],[FracGasMS]] -> 0 | O186: 0.01 | P186: =Tabel86[[#This Row],[Total N fra fordampning]]*Tabel86[[#This Row],[Emissionsfaktor (EF4)]] -> 0 | Q186: =Tabel86[[#This Row],[Total N2O-N2 kg]]*44/28 -> 0 | R186: =Tabel86[[#This Row],[Total N2O direkte, kg]]+Tabel86[[#This Row],[Total N2O indirekte, kg ]] -> 0
A187: Mink | B187: Andet | C187: Mink | D187: Solid manure and urine | E187: bure gødningsrende, ugentlig tømning | F187: Gylle | G187: =IFERROR(HLOOKUP(Tabel86[[#This Row],[Staldsystem]],Indtastning!$A$60:$G$67,8,FALSE),0) -> 0 | H187: 3.39 | I187: 0 | J187: 0.005 | K187: =Tabel86[[#This Row],[Total N excretion (kg pr year)]]*Tabel86[[#This Row],[Emissionsfaktor (kgN2O-N pr kg Nex) ]] -> 0 | L187: =Tabel86[[#This Row],[Total N2O-N]]*44/28 -> 0 | M187: 0.5239162536 | N187: =Tabel86[[#This Row],[Total N excretion (kg pr year)]]*Tabel86[[#This Row],[FracGasMS]] -> 0 | O187: 0.01 | P187: =Tabel86[[#This Row],[Total N fra fordampning]]*Tabel86[[#This Row],[Emissionsfaktor (EF4)]] -> 0 | Q187: =Tabel86[[#This Row],[Total N2O-N2 kg]]*44/28 -> 0 | R187: =Tabel86[[#This Row],[Total N2O direkte, kg]]+Tabel86[[#This Row],[Total N2O indirekte, kg ]] -> 0
A188: Horse <300 kg | B188: Andet | C188: Heste <300 kg | D188: Deep litter | E188: Dybstrøelse | F188: Dybstrøelse | G188: =IFERROR(HLOOKUP(Tabel86[[#This Row],[Staldsystem]],Indtastning!$A$60:$G$67,2,FALSE),0) -> 0 | H188: 21.06 | I188: 0 | J188: 0.01 | K188: =Tabel86[[#This Row],[Total N excretion (kg pr year)]]*Tabel86[[#This Row],[Emissionsfaktor (kgN2O-N pr kg Nex) ]] -> 0 | L188: =Tabel86[[#This Row],[Total N2O-N]]*44/28 -> 0 | M188: 0.09498767801 | N188: =Tabel86[[#This Row],[Total N excretion (kg pr year)]]*Tabel86[[#This Row],[FracGasMS]] -> 0 | O188: 0.01 | P188: =Tabel86[[#This Row],[Total N fra fordampning]]*Tabel86[[#This Row],[Emissionsfaktor (EF4)]] -> 0 | Q188: =Tabel86[[#This Row],[Total N2O-N2 kg]]*44/28 -> 0 | R188: =Tabel86[[#This Row],[Total N2O direkte, kg]]+Tabel86[[#This Row],[Total N2O indirekte, kg ]] -> 0
A189: Horse 300 - <500 kg | B189: Andet | C189: Heste 300 kg, <500 kg | D189: Deep litter | E189: Dybstrøelse | F189: Dybstrøelse | G189: =IFERROR(HLOOKUP(Tabel86[[#This Row],[Staldsystem]],Indtastning!$A$60:$G$67,3,FALSE),0) -> 0 | H189: 34.85 | I189: 0 | J189: 0.01 | K189: =Tabel86[[#This Row],[Total N excretion (kg pr year)]]*Tabel86[[#This Row],[Emissionsfaktor (kgN2O-N pr kg Nex) ]] -> 0 | L189: =Tabel86[[#This Row],[Total N2O-N]]*44/28 -> 0 | M189: 0.09498767801 | N189: =Tabel86[[#This Row],[Total N excretion (kg pr year)]]*Tabel86[[#This Row],[FracGasMS]] -> 0 | O189: 0.01 | P189: =Tabel86[[#This Row],[Total N fra fordampning]]*Tabel86[[#This Row],[Emissionsfaktor (EF4)]] -> 0 | Q189: =Tabel86[[#This Row],[Total N2O-N2 kg]]*44/28 -> 0 | R189: =Tabel86[[#This Row],[Total N2O direkte, kg]]+Tabel86[[#This Row],[Total N2O indirekte, kg ]] -> 0
A190: Horse 500 - <700 kg | B190: Andet | C190: Heste 500 kg, <700 kg | D190: Deep litter | E190: Dybstrøelse | F190: Dybstrøelse | G190: =IFERROR(HLOOKUP(Tabel86[[#This Row],[Staldsystem]],Indtastning!$A$60:$G$67,4,FALSE),0) -> 0 | H190: 43.72 | I190: 0 | J190: 0.01 | K190: =Tabel86[[#This Row],[Total N excretion (kg pr year)]]*Tabel86[[#This Row],[Emissionsfaktor (kgN2O-N pr kg Nex) ]] -> 0 | L190: =Tabel86[[#This Row],[Total N2O-N]]*44/28 -> 0 | M190: 0.09498767801 | N190: =Tabel86[[#This Row],[Total N excretion (kg pr year)]]*Tabel86[[#This Row],[FracGasMS]] -> 0 | O190: 0.01 | P190: =Tabel86[[#This Row],[Total N fra fordampning]]*Tabel86[[#This Row],[Emissionsfaktor (EF4)]] -> 0 | Q190: =Tabel86[[#This Row],[Total N2O-N2 kg]]*44/28 -> 0 | R190: =Tabel86[[#This Row],[Total N2O direkte, kg]]+Tabel86[[#This Row],[Total N2O indirekte, kg ]] -> 0
A191: Horse >700 kg | B191: Andet | C191: Heste 700+ kg | D191: Deep litter | E191: Dybstrøelse | F191: Dybstrøelse | G191: =IFERROR(HLOOKUP(Tabel86[[#This Row],[Staldsystem]],Indtastning!$A$60:$G$67,5,FALSE),0) -> 0 | H191: 53.34 | I191: 0 | J191: 0.01 | K191: =Tabel86[[#This Row],[Total N excretion (kg pr year)]]*Tabel86[[#This Row],[Emissionsfaktor (kgN2O-N pr kg Nex) ]] -> 0 | L191: =Tabel86[[#This Row],[Total N2O-N]]*44/28 -> 0 | M191: 0.09498767801 | N191: =Tabel86[[#This Row],[Total N excretion (kg pr year)]]*Tabel86[[#This Row],[FracGasMS]] -> 0 | O191: 0.01 | P191: =Tabel86[[#This Row],[Total N fra fordampning]]*Tabel86[[#This Row],[Emissionsfaktor (EF4)]] -> 0 | Q191: =Tabel86[[#This Row],[Total N2O-N2 kg]]*44/28 -> 0 | R191: =Tabel86[[#This Row],[Total N2O direkte, kg]]+Tabel86[[#This Row],[Total N2O indirekte, kg ]] -> 0
A192: Sheep | B192: Andet | C192: Får | D192: Deep litter | E192: Får | F192: Dybstrøelse | G192: =Indtastning!B50 -> 0 | H192: 14.57 | I192: 0 | J192: 0.01 | K192: =Tabel86[[#This Row],[Total N excretion (kg pr year)]]*Tabel86[[#This Row],[Emissionsfaktor (kgN2O-N pr kg Nex) ]] -> 0 | L192: =Tabel86[[#This Row],[Total N2O-N]]*44/28 -> 0 | M192: 0.02254519005 | N192: =Tabel86[[#This Row],[Total N excretion (kg pr year)]]*Tabel86[[#This Row],[FracGasMS]] -> 0 | O192: 0.01 | P192: =Tabel86[[#This Row],[Total N fra fordampning]]*Tabel86[[#This Row],[Emissionsfaktor (EF4)]] -> 0 | Q192: =Tabel86[[#This Row],[Total N2O-N2 kg]]*44/28 -> 0 | R192: =Tabel86[[#This Row],[Total N2O direkte, kg]]+Tabel86[[#This Row],[Total N2O indirekte, kg ]] -> 0
A193: Mohair goat | B193: Andet | C193: Mohairgeder | D193: Deep litter | E193: Mohairgeder | F193: Dybstrøelse | G193: =VLOOKUP(Tabel86[[#This Row],[Dyr]],Indtastning!$A$51:$B$53,2,FALSE) -> 0 | H193: 15.7 | I193: 0 | J193: 0.01 | K193: =Tabel86[[#This Row],[Total N excretion (kg pr year)]]*Tabel86[[#This Row],[Emissionsfaktor (kgN2O-N pr kg Nex) ]] -> 0 | L193: =Tabel86[[#This Row],[Total N2O-N]]*44/28 -> 0 | M193: 0.02254519005 | N193: =Tabel86[[#This Row],[Total N excretion (kg pr year)]]*Tabel86[[#This Row],[FracGasMS]] -> 0 | O193: 0.01 | P193: =Tabel86[[#This Row],[Total N fra fordampning]]*Tabel86[[#This Row],[Emissionsfaktor (EF4)]] -> 0 | Q193: =Tabel86[[#This Row],[Total N2O-N2 kg]]*44/28 -> 0 | R193: =Tabel86[[#This Row],[Total N2O direkte, kg]]+Tabel86[[#This Row],[Total N2O indirekte, kg ]] -> 0
A194: Meat goat | B194: Andet | C194: Kødgeder | D194: Deep litter | E194: Kødgeder | F194: Dybstrøelse | G194: =VLOOKUP(Tabel86[[#This Row],[Dyr]],Indtastning!$A$51:$B$53,2,FALSE) -> 0 | H194: 14.13 | I194: 0 | J194: 0.01 | K194: =Tabel86[[#This Row],[Total N excretion (kg pr year)]]*Tabel86[[#This Row],[Emissionsfaktor (kgN2O-N pr kg Nex) ]] -> 0 | L194: =Tabel86[[#This Row],[Total N2O-N]]*44/28 -> 0 | M194: 0.02254519005 | N194: =Tabel86[[#This Row],[Total N excretion (kg pr year)]]*Tabel86[[#This Row],[FracGasMS]] -> 0 | O194: 0.01 | P194: =Tabel86[[#This Row],[Total N fra fordampning]]*Tabel86[[#This Row],[Emissionsfaktor (EF4)]] -> 0 | Q194: =Tabel86[[#This Row],[Total N2O-N2 kg]]*44/28 -> 0 | R194: =Tabel86[[#This Row],[Total N2O direkte, kg]]+Tabel86[[#This Row],[Total N2O indirekte, kg ]] -> 0
A195: Milk goat | B195: Andet | C195: Malkegeder | D195: Deep litter | E195: Malkegeder | F195: Dybstrøelse | G195: =VLOOKUP(Tabel86[[#This Row],[Dyr]],Indtastning!$A$51:$B$53,2,FALSE) -> 0 | H195: 14.62 | I195: 0 | J195: 0.01 | K195: =Tabel86[[#This Row],[Total N excretion (kg pr year)]]*Tabel86[[#This Row],[Emissionsfaktor (kgN2O-N pr kg Nex) ]] -> 0 | L195: =Tabel86[[#This Row],[Total N2O-N]]*44/28 -> 0 | M195: 0.02254519005 | N195: =Tabel86[[#This Row],[Total N excretion (kg pr year)]]*Tabel86[[#This Row],[FracGasMS]] -> 0 | O195: 0.01 | P195: =Tabel86[[#This Row],[Total N fra fordampning]]*Tabel86[[#This Row],[Emissionsfaktor (EF4)]] -> 0 | Q195: =Tabel86[[#This Row],[Total N2O-N2 kg]]*44/28 -> 0 | R195: =Tabel86[[#This Row],[Total N2O direkte, kg]]+Tabel86[[#This Row],[Total N2O indirekte, kg ]] -> 0
C198: Kilde | H198: Poulsen (2015) Normtal | J198: NIR Tabel 5.12 | O198: NIR: 393
A218: Kg lattergas | B218: Andet kvæg | C218: Malkekvæg | D218: Svin | E218: Andet | F218: Hovedtotal
A219: Ajle (liquid manure/urin) | B219: =SUMIFS(Tabel86[Totale udledninger],Tabel86[Dyrekategori],$B$218,Tabel86[Gødningstype],A219) -> 0 | C219: =SUMIFS(Tabel86[Totale udledninger],Tabel86[Dyrekategori],C$218,Tabel86[Gødningstype],A219) -> 0 | D219: =SUMIFS(Tabel86[Totale udledninger],Tabel86[Dyrekategori],D$218,Tabel86[Gødningstype],A219) -> 0 | E219: =SUMIFS(Tabel86[Totale udledninger],Tabel86[Dyrekategori],$E218,Tabel86[Gødningstype],A219) -> 0 | F219: =+SUM(B219:E219) -> 0
A220: Gylle | B220: =SUMIFS(Tabel86[Totale udledninger],Tabel86[Dyrekategori],$B$218,Tabel86[Gødningstype],A220) -> 0 | C220: =SUMIFS(Tabel86[Totale udledninger],Tabel86[Dyrekategori],C$218,Tabel86[Gødningstype],A220) -> 0 | D220: =SUMIFS(Tabel86[Totale udledninger],Tabel86[Dyrekategori],D$218,Tabel86[Gødningstype],A220) -> 0 | E220: =SUMIFS(Tabel86[Totale udledninger],Tabel86[Dyrekategori],$E$218,Tabel86[Gødningstype],A220) -> 0 | F220: =+SUM(B220:E220) -> 0
A221: Staldgødning | B221: =SUMIFS(Tabel86[Totale udledninger],Tabel86[Dyrekategori],$B$218,Tabel86[Gødningstype],A221) -> 0 | C221: =SUMIFS(Tabel86[Totale udledninger],Tabel86[Dyrekategori],C$218,Tabel86[Gødningstype],A221) -> 0 | D221: =SUMIFS(Tabel86[Totale udledninger],Tabel86[Dyrekategori],D$218,Tabel86[Gødningstype],A221) -> 0 | E221: =SUMIFS(Tabel86[Totale udledninger],Tabel86[Dyrekategori],$E$218,Tabel86[Gødningstype],A221) -> 0 | F221: 0
... 3 more rows

Sheet N20 Jord
B2: kg N pr år | C2: kg N2O-N/kg N | D2: N2O (kt)
A3: Direkte N2O emissioner | D3: =D4+D5+D9+D10+D11+D12 -> 0
A4: 1. Handelsgødning | B4: =Indtastning!B92 -> 0 | C4: 0.01 | D4: =B4*C4/1000/1000*44/28 -> 0
A5: 2. Organisk gødning | B5: =B6+B7+B8 -> 0 | C5: 0.01 | D5: =B5*C5/1000/1000*44/28 -> 0
A6: a. Husdyrgødning | B6: =Indtastning!B93 -> 0 | C6: 0.01 | D6: 0
A7: b. Slam | B7: =Indtastning!B94 -> 0 | C7: 0.01 | D7: 0
A8: c. Andet organisk gødning | B8: =Indtastning!B95 -> 0 | C8: 0.01 | D8: 0
A9: 3. Gødning fra græssende dyr | B9: =E71 -> 0 | C9: 0.01802565904 | D9: =B9*C9/1000/1000*44/28 -> 0
A10: 4. Afgrøderester | B10: =S44 -> 0 | C10: 0.01 | D10: =B10*C10/1000/1000*44/28 -> 0
A11: 5. Mineralisering | B11: =E51 -> 0 | C11: 0.009999999995 | D11: =B11*C11/1000/1000*44/28 -> 0
A12: 6. Organiske jorde (kg N20-N) | B12: =D59 -> 0 | D12: =B12/1000/1000*44/28 -> 0
A13: b. Indirekte N2O emissioner | D13: =D14+D15 -> 0
A14: 1. Fordampning (Atmospheric deposition) | B14: =D81 -> 0 | C14: 0.01 | D14: =B14*C14/1000/1000*(44/28) -> 0
A15: 2. Nitrogenudvaskning | B15: =D88 -> 0 | C15: 0.004660127792 | D15: =B15*C15/1000/1000*44/28 -> 0
A21: Kg N fra Afgrøderester | B21: Normtal til høstet tørstof | G21: Dyrket areal | H21: Normtal for over-jorden afgrøderester | N21: Over-jorden afgrøderester | O21: Normtal for under-jorden afgrøder | Q21: Under-jorden afgrøderester | S21: Total kg N
A24: Typen af afgrøde | B24: Høst resultat, Danmark (kg) | C24: Samlet dyrket areal i Danmark (ha) | D24: Høstresultat pr ha (kg) | E24: Tørstofindhold i pct. | F24: Tørstof høstet pr ha (kg) | G24: Dyrket areal på bedriften (ha) | H24: Ompløjningsrate | I24: Hældning | J24: Skæring | K24: AGDM(T) | L24: RAG | M24: NAG | N24: Total kvælstof i over-jorden afgrøderester Kg N | O24: RBG-BIO | P24: NBG | Q24: Total kvælstof i under-jorden afgrøderester Kg N | R24: Halm bjærget (kg) | S24: N i afgrøderester fra afgrøden T
A25: Vinterhvede | B25: 5082600000 | C25: 651530 | D25: =(Tabel1[[#This Row],[Høst resultat, Danmark (kg)]])/Tabel1[[#This Row],[Samlet dyrket areal i Danmark (ha) ]] -> 7801.022209 | E25: 0.85 | F25: =Tabel1[[#This Row],[Høstresultat pr ha (kg)]]*Tabel1[[#This Row],[Tørstofindhold i pct.]] -> 6630.868878 | G25: =Indtastning!B99 -> 0 | H25: 1 | I25: 1.61 | J25: 0.4 | K25: =(Tabel1[[#This Row],[Tørstof høstet pr ha (kg)]]*Tabel1[[#This Row],[Hældning]]+Tabel1[[#This Row],[Skæring]])*Tabel1[[#This Row],[Ompløjningsrate]] -> 10676.09889 | L25: =Tabel1[[#This Row],[AGDM(T)]]/F25 -> 1.610060324 | M25: 0.006 | N25: =Tabel1[[#This Row],[Tørstof høstet pr ha (kg)]]*Tabel1[[#This Row],[Dyrket areal på bedriften (ha)]]*Tabel1[[#This Row],[RAG]]*Tabel1[[#This Row],[NAG]] -> 0 | O25: 0.23 | P25: 0.009 | Q25: =Tabel1[[#This Row],[Dyrket areal på bedriften (ha)]]*Tabel1[[#This Row],[Tørstof høstet pr ha (kg)]]*Tabel1[[#This Row],[RBG-BIO]]*Tabel1[[#This Row],[NBG]]*Tabel1[[#This Row],[Ompløjningsrate]] -> 0 | S25: =Tabel1[[#This Row],[Total kvælstof i over-jorden afgrøderester Kg N]]+Tabel1[[#This Row],[Total kvælstof i under-jorden afgrøderester Kg N]] -> 0
A26: Vårhvede | B26: 70700000 | C26: 16910 | D26: =(Tabel1[[#This Row],[Høst resultat, Danmark (kg)]])/Tabel1[[#This Row],[Samlet dyrket areal i Danmark (ha) ]] -> 4180.958013 | E26: 0.85 | F26: =Tabel1[[#This Row],[Høstresultat pr ha (kg)]]*Tabel1[[#This Row],[Tørstofindhold i pct.]] -> 3553.814311 | G26: =Indtastning!B100 -> 0 | H26: 1 | I26: 1.29 | J26: 0.75 | K26: =(Tabel1[[#This Row],[Tørstof høstet pr ha (kg)]]*Tabel1[[#This Row],[Hældning]]+Tabel1[[#This Row],[Skæring]])*Tabel1[[#This Row],[Ompløjningsrate]] -> 4585.170461 | L26: =Tabel1[[#This Row],[AGDM(T)]]/F26 -> 1.290211041 | M26: 0.006 | N26: =Tabel1[[#This Row],[Tørstof høstet pr ha (kg)]]*Tabel1[[#This Row],[Dyrket areal på bedriften (ha)]]*Tabel1[[#This Row],[RAG]]*Tabel1[[#This Row],[NAG]] -> 0 | O26: 0.28 | P26: 0.009 | Q26: =Tabel1[[#This Row],[Dyrket areal på bedriften (ha)]]*Tabel1[[#This Row],[Tørstof høstet pr ha (kg)]]*Tabel1[[#This Row],[RBG-BIO]]*Tabel1[[#This Row],[NBG]]*Tabel1[[#This Row],[Ompløjningsrate]] -> 0 | S26: =Tabel1[[#This Row],[Total kvælstof i over-jorden afgrøderester Kg N]]+Tabel1[[#This Row],[Total kvælstof i under-jorden afgrøderester Kg N]] -> 0
A27: Rug | B27: 677800000 | C27: 104093 | D27: =(Tabel1[[#This Row],[Høst resultat, Danmark (kg)]])/Tabel1[[#This Row],[Samlet dyrket areal i Danmark (ha) ]] -> 6511.484922 | E27: 0.85 | F27: =Tabel1[[#This Row],[Høstresultat pr ha (kg)]]*Tabel1[[#This Row],[Tørstofindhold i pct.]] -> 5534.762184 | G27: =Indtastning!B101 -> 0 | H27: 1 | I27: 1.09 | J27: 0.88 | K27: =(Tabel1[[#This Row],[Tørstof høstet pr ha (kg)]]*Tabel1[[#This Row],[Hældning]]+Tabel1[[#This Row],[Skæring]])*Tabel1[[#This Row],[Ompløjningsrate]] -> 6033.77078 | L27: =Tabel1[[#This Row],[AGDM(T)]]/F27 -> 1.090158995 | M27: 0.005 | N27: =Tabel1[[#This Row],[Tørstof høstet pr ha (kg)]]*Tabel1[[#This Row],[Dyrket areal på bedriften (ha)]]*Tabel1[[#This Row],[RAG]]*Tabel1[[#This Row],[NAG]] -> 0 | O27: 0.22 | P27: 0.011 | Q27: =Tabel1[[#This Row],[Dyrket areal på bedriften (ha)]]*Tabel1[[#This Row],[Tørstof høstet pr ha (kg)]]*Tabel1[[#This Row],[RBG-BIO]]*Tabel1[[#This Row],[NBG]]*Tabel1[[#This Row],[Ompløjningsrate]] -> 0 | S27: =Tabel1[[#This Row],[Total kvælstof i over-jorden afgrøderester Kg N]]+Tabel1[[#This Row],[Total kvælstof i under-jorden afgrøderester Kg N]] -> 0
A28: Vinterbyg | B28: 789900000 | C28: 145209 | D28: =(Tabel1[[#This Row],[Høst resultat, Danmark (kg)]])/Tabel1[[#This Row],[Samlet dyrket areal i Danmark (ha) ]] -> 5439.74547 | E28: 0.85 | F28: =Tabel1[[#This Row],[Høstresultat pr ha (kg)]]*Tabel1[[#This Row],[Tørstofindhold i pct.]] -> 4623.78365 | G28: =Indtastning!B102 -> 0 | H28: 1 | I28: 0.98 | J28: 0.59 | K28: =(Tabel1[[#This Row],[Tørstof høstet pr ha (kg)]]*Tabel1[[#This Row],[Hældning]]+Tabel1[[#This Row],[Skæring]])*Tabel1[[#This Row],[Ompløjningsrate]] -> 4531.897977 | L28: =Tabel1[[#This Row],[AGDM(T)]]/F28 -> 0.9801276011 | M28: 0.007 | N28: =Tabel1[[#This Row],[Tørstof høstet pr ha (kg)]]*Tabel1[[#This Row],[Dyrket areal på bedriften (ha)]]*Tabel1[[#This Row],[RAG]]*Tabel1[[#This Row],[NAG]] -> 0 | O28: 0.22 | P28: 0.014 | Q28: =Tabel1[[#This Row],[Dyrket areal på bedriften (ha)]]*Tabel1[[#This Row],[Tørstof høstet pr ha (kg)]]*Tabel1[[#This Row],[RBG-BIO]]*Tabel1[[#This Row],[NBG]]*Tabel1[[#This Row],[Ompløjningsrate]] -> 0 | S28: =Tabel1[[#This Row],[Total kvælstof i over-jorden afgrøderester Kg N]]+Tabel1[[#This Row],[Total kvælstof i under-jorden afgrøderester Kg N]] -> 0
A29: Vårbyg | B29: 2757700000 | C29: 490533 | D29: =(Tabel1[[#This Row],[Høst resultat, Danmark (kg)]])/Tabel1[[#This Row],[Samlet dyrket areal i Danmark (ha) ]] -> 5621.843994 | E29: 0.85 | F29: =Tabel1[[#This Row],[Høstresultat pr ha (kg)]]*Tabel1[[#This Row],[Tørstofindhold i pct.]] -> 4778.567395 | G29: =Indtastning!B103 -> 0 | H29: 1 | I29: 0.98 | J29: 0.59 | K29: =(Tabel1[[#This Row],[Tørstof høstet pr ha (kg)]]*Tabel1[[#This Row],[Hældning]]+Tabel1[[#This Row],[Skæring]])*Tabel1[[#This Row],[Ompløjningsrate]] -> 4683.586047 | L29: =Tabel1[[#This Row],[AGDM(T)]]/F29 -> 0.980123468 | M29: 0.007 | N29: =Tabel1[[#This Row],[Tørstof høstet pr ha (kg)]]*Tabel1[[#This Row],[Dyrket areal på bedriften (ha)]]*Tabel1[[#This Row],[RAG]]*Tabel1[[#This Row],[NAG]] -> 0 | O29: 0.22 | P29: 0.014 | Q29: =Tabel1[[#This Row],[Dyrket areal på bedriften (ha)]]*Tabel1[[#This Row],[Tørstof høstet pr ha (kg)]]*Tabel1[[#This Row],[RBG-BIO]]*Tabel1[[#This Row],[NBG]]*Tabel1[[#This Row],[Ompløjningsrate]] -> 0 | S29: =Tabel1[[#This Row],[Total kvælstof i over-jorden afgrøderester Kg N]]+Tabel1[[#This Row],[Total kvælstof i under-jorden afgrøderester Kg N]] -> 0
A30: Havre | B30: 216900000 | C30: 34830 | D30: =(Tabel1[[#This Row],[Høst resultat, Danmark (kg)]])/Tabel1[[#This Row],[Samlet dyrket areal i Danmark (ha) ]] -> 6227.390181 | E30: 0.85 | F30: =Tabel1[[#This Row],[Høstresultat pr ha (kg)]]*Tabel1[[#This Row],[Tørstofindhold i pct.]] -> 5293.281654 | G30: =Indtastning!B104 -> 0 | H30: 1 | I30: 0.91 | J30: 0.89 | K30: =(Tabel1[[#This Row],[Tørstof høstet pr ha (kg)]]*Tabel1[[#This Row],[Hældning]]+Tabel1[[#This Row],[Skæring]])*Tabel1[[#This Row],[Ompløjningsrate]] -> 4817.776305 | L30: =Tabel1[[#This Row],[AGDM(T)]]/F30 -> 0.9101681377 | M30: 0.007 | N30: =Tabel1[[#This Row],[Tørstof høstet pr ha (kg)]]*Tabel1[[#This Row],[Dyrket areal på bedriften (ha)]]*Tabel1[[#This Row],[RAG]]*Tabel1[[#This Row],[NAG]] -> 0 | O30: 0.25 | P30: 0.008 | Q30: =Tabel1[[#This Row],[Dyrket areal på bedriften (ha)]]*Tabel1[[#This Row],[Tørstof høstet pr ha (kg)]]*Tabel1[[#This Row],[RBG-BIO]]*Tabel1[[#This Row],[NBG]]*Tabel1[[#This Row],[Ompløjningsrate]] -> 0 | S30: =Tabel1[[#This Row],[Total kvælstof i over-jorden afgrøderester Kg N]]+Tabel1[[#This Row],[Total kvælstof i under-jorden afgrøderester Kg N]] -> 0
A31: Triticale og andet korn til modenhed | B31: 168800000 | C31: 31667 | D31: =(Tabel1[[#This Row],[Høst resultat, Danmark (kg)]])/Tabel1[[#This Row],[Samlet dyrket areal i Danmark (ha) ]] -> 5330.470206 | E31: 0.85 | F31: =Tabel1[[#This Row],[Høstresultat pr ha (kg)]]*Tabel1[[#This Row],[Tørstofindhold i pct.]] -> 4530.899675 | G31: =Indtastning!B105 -> 0 | H31: 1 | I31: 1.09 | J31: 0.88 | K31: =(Tabel1[[#This Row],[Tørstof høstet pr ha (kg)]]*Tabel1[[#This Row],[Hældning]]+Tabel1[[#This Row],[Skæring]])*Tabel1[[#This Row],[Ompløjningsrate]] -> 4939.560645 | L31: =Tabel1[[#This Row],[AGDM(T)]]/F31 -> 1.090194222 | M31: 0.005 | N31: =Tabel1[[#This Row],[Tørstof høstet pr ha (kg)]]*Tabel1[[#This Row],[Dyrket areal på bedriften (ha)]]*Tabel1[[#This Row],[RAG]]*Tabel1[[#This Row],[NAG]] -> 0 | O31: 0.22 | P31: 0.011 | Q31: =Tabel1[[#This Row],[Dyrket areal på bedriften (ha)]]*Tabel1[[#This Row],[Tørstof høstet pr ha (kg)]]*Tabel1[[#This Row],[RBG-BIO]]*Tabel1[[#This Row],[NBG]]*Tabel1[[#This Row],[Ompløjningsrate]] -> 0 | S31: =Tabel1[[#This Row],[Total kvælstof i over-jorden afgrøderester Kg N]]+Tabel1[[#This Row],[Total kvælstof i under-jorden afgrøderester Kg N]] -> 0
A32: Majs til opfodring | B32: 7568700000 | C32: 183370 | D32: =(Tabel1[[#This Row],[Høst resultat, Danmark (kg)]])/Tabel1[[#This Row],[Samlet dyrket areal i Danmark (ha) ]] -> 41275.56307 | E32: 0.33 | F32: =Tabel1[[#This Row],[Høstresultat pr ha (kg)]]*Tabel1[[#This Row],[Tørstofindhold i pct.]] -> 13620.93581 | G32: =Indtastning!B106 -> 0 | H32: 1 | I32: 1.03 | J32: 0.61 | K32: =(Tabel1[[#This Row],[Tørstof høstet pr ha (kg)]]*Tabel1[[#This Row],[Hældning]]+Tabel1[[#This Row],[Skæring]])*Tabel1[[#This Row],[Ompløjningsrate]] -> 14030.17389 | L32: =Tabel1[[#This Row],[AGDM(T)]]/F32 -> 1.030044784 | M32: 0.006 | N32: =Tabel1[[#This Row],[Tørstof høstet pr ha (kg)]]*Tabel1[[#This Row],[Dyrket areal på bedriften (ha)]]*Tabel1[[#This Row],[RAG]]*Tabel1[[#This Row],[NAG]] -> 0 | O32: 0.22 | P32: 0.007 | Q32: =Tabel1[[#This Row],[Dyrket areal på bedriften (ha)]]*Tabel1[[#This Row],[Tørstof høstet pr ha (kg)]]*Tabel1[[#This Row],[RBG-BIO]]*Tabel1[[#This Row],[NBG]]*Tabel1[[#This Row],[Ompløjningsrate]] -> 0 | S32: =Tabel1[[#This Row],[Total kvælstof i over-jorden afgrøderester Kg N]]+Tabel1[[#This Row],[Total kvælstof i under-jorden afgrøderester Kg N]] -> 0
A33: Kartofler | B33: 1796000000 | C33: 42617 | D33: =(Tabel1[[#This Row],[Høst resultat, Danmark (kg)]])/Tabel1[[#This Row],[Samlet dyrket areal i Danmark (ha) ]] -> 42142.80686 | E33: 0.24 | F33: =Tabel1[[#This Row],[Høstresultat pr ha (kg)]]*Tabel1[[#This Row],[Tørstofindhold i pct.]] -> 10114.27365 | G33: =Indtastning!B107 -> 0 | H33: 1 | I33: 0.1 | J33: 1.06 | K33: =(Tabel1[[#This Row],[Tørstof høstet pr ha (kg)]]*Tabel1[[#This Row],[Hældning]]+Tabel1[[#This Row],[Skæring]])*Tabel1[[#This Row],[Ompløjningsrate]] -> 1012.487365 | L33: =Tabel1[[#This Row],[AGDM(T)]]/F33 -> 0.1001048024 | M33: 0.019 | N33: =Tabel1[[#This Row],[Tørstof høstet pr ha (kg)]]*Tabel1[[#This Row],[Dyrket areal på bedriften (ha)]]*Tabel1[[#This Row],[RAG]]*Tabel1[[#This Row],[NAG]] -> 0 | O33: 0.2 | P33: 0.014 | Q33: =Tabel1[[#This Row],[Dyrket areal på bedriften (ha)]]*Tabel1[[#This Row],[Tørstof høstet pr ha (kg)]]*Tabel1[[#This Row],[RBG-BIO]]*Tabel1[[#This Row],[NBG]]*Tabel1[[#This Row],[Ompløjningsrate]] -> 0 | S33: =Tabel1[[#This Row],[Total kvælstof i over-jorden afgrøderester Kg N]]+Tabel1[[#This Row],[Total kvælstof i under-jorden afgrøderester Kg N]] -> 0
A34: Lucerne | B34: 232500000 | C34: 3814 | D34: =(Tabel1[[#This Row],[Høst resultat, Danmark (kg)]])/Tabel1[[#This Row],[Samlet dyrket areal i Danmark (ha) ]] -> 60959.62244 | E34: 0.21 | F34: =Tabel1[[#This Row],[Høstresultat pr ha (kg)]]*Tabel1[[#This Row],[Tørstofindhold i pct.]] -> 12801.52071 | G34: =Indtastning!B108 -> 0 | H34: =1/3 -> 0.3333333333 | I34: 0.29 | J34: 0 | K34: =(Tabel1[[#This Row],[Tørstof høstet pr ha (kg)]]*Tabel1[[#This Row],[Hældning]]+Tabel1[[#This Row],[Skæring]])*Tabel1[[#This Row],[Ompløjningsrate]] -> 1237.480336 | L34: =Tabel1[[#This Row],[AGDM(T)]]/F34 -> 0.09666666667 | M34: 0.027 | N34: =Tabel1[[#This Row],[Tørstof høstet pr ha (kg)]]*Tabel1[[#This Row],[Dyrket areal på bedriften (ha)]]*Tabel1[[#This Row],[RAG]]*Tabel1[[#This Row],[NAG]] -> 0 | O34: 0.4 | P34: 0.019 | Q34: =Tabel1[[#This Row],[Dyrket areal på bedriften (ha)]]*Tabel1[[#This Row],[Tørstof høstet pr ha (kg)]]*Tabel1[[#This Row],[RBG-BIO]]*Tabel1[[#This Row],[NBG]]*Tabel1[[#This Row],[Ompløjningsrate]] -> 0 | S34: =Tabel1[[#This Row],[Total kvælstof i over-jorden afgrøderester Kg N]]+Tabel1[[#This Row],[Total kvælstof i under-jorden afgrøderester Kg N]] -> 0
A35: Bælgsæd til modenhed | B35: 33200000 | C35: 8793 | D35: =(Tabel1[[#This Row],[Høst resultat, Danmark (kg)]])/Tabel1[[#This Row],[Samlet dyrket areal i Danmark (ha) ]] -> 3775.730695 | E35: 0.852 | F35: =Tabel1[[#This Row],[Høstresultat pr ha (kg)]]*Tabel1[[#This Row],[Tørstofindhold i pct.]] -> 3216.922552 | G35: =Indtastning!B109 -> 0 | H35: 1 | I35: 1.13 | J35: 0.85 | K35: =(Tabel1[[#This Row],[Tørstof høstet pr ha (kg)]]*Tabel1[[#This Row],[Hældning]]+Tabel1[[#This Row],[Skæring]])*Tabel1[[#This Row],[Ompløjningsrate]] -> 3635.972484 | L35: =Tabel1[[#This Row],[AGDM(T)]]/F35 -> 1.130264228 | M35: 0.008 | N35: =Tabel1[[#This Row],[Tørstof høstet pr ha (kg)]]*Tabel1[[#This Row],[Dyrket areal på bedriften (ha)]]*Tabel1[[#This Row],[RAG]]*Tabel1[[#This Row],[NAG]] -> 0 | O35: 0.19 | P35: 0.008 | Q35: =Tabel1[[#This Row],[Dyrket areal på bedriften (ha)]]*Tabel1[[#This Row],[Tørstof høstet pr ha (kg)]]*Tabel1[[#This Row],[RBG-BIO]]*Tabel1[[#This Row],[NBG]]*Tabel1[[#This Row],[Ompløjningsrate]] -> 0 | S35: =Tabel1[[#This Row],[Total kvælstof i over-jorden afgrøderester Kg N]]+Tabel1[[#This Row],[Total kvælstof i under-jorden afgrøderester Kg N]] -> 0
A36: Sukkerroer til fabrik + Foderroer | B36: 2545700000 | C36: 42567 | D36: =(Tabel1[[#This Row],[Høst resultat, Danmark (kg)]])/Tabel1[[#This Row],[Samlet dyrket areal i Danmark (ha) ]] -> 59804.54343 | E36: 0.168 | F36: =Tabel1[[#This Row],[Høstresultat pr ha (kg)]]*Tabel1[[#This Row],[Tørstofindhold i pct.]] -> 10047.1633 | G36: =Indtastning!B110 -> 0 | H36: 1 | I36: 0.1 | J36: 1.06 | K36: =(Tabel1[[#This Row],[Tørstof høstet pr ha (kg)]]*Tabel1[[#This Row],[Hældning]]+Tabel1[[#This Row],[Skæring]])*Tabel1[[#This Row],[Ompløjningsrate]] -> 1005.77633 | L36: =Tabel1[[#This Row],[AGDM(T)]]/F36 -> 0.1001055024 | M36: 0.019 | N36: =Tabel1[[#This Row],[Tørstof høstet pr ha (kg)]]*Tabel1[[#This Row],[Dyrket areal på bedriften (ha)]]*Tabel1[[#This Row],[RAG]]*Tabel1[[#This Row],[NAG]] -> 0 | O36: 0.2 | P36: 0.014 | Q36: =Tabel1[[#This Row],[Dyrket areal på bedriften (ha)]]*Tabel1[[#This Row],[Tørstof høstet pr ha (kg)]]*Tabel1[[#This Row],[RBG-BIO]]*Tabel1[[#This Row],[NBG]]*Tabel1[[#This Row],[Ompløjningsrate]] -> 0 | S36: =Tabel1[[#This Row],[Total kvælstof i over-jorden afgrøderester Kg N]]+Tabel1[[#This Row],[Total kvælstof i under-jorden afgrøderester Kg N]] -> 0
A37: Korn og bælgsæd til ensilering (helsæd) | B37: 1162200000 | C37: 61100 | D37: =(Tabel1[[#This Row],[Høst resultat, Danmark (kg)]])/Tabel1[[#This Row],[Samlet dyrket areal i Danmark (ha) ]] -> 19021.2766 | E37: 0.27 | F37: =Tabel1[[#This Row],[Høstresultat pr ha (kg)]]*Tabel1[[#This Row],[Tørstofindhold i pct.]] -> 5135.744681 | G37: =Indtastning!B111 -> 0 | H37: 1 | I37: =I29 -> 0.98 | J37: 0.59 | K37: =(Tabel1[[#This Row],[Tørstof høstet pr ha (kg)]]*Tabel1[[#This Row],[Hældning]]+Tabel1[[#This Row],[Skæring]])*Tabel1[[#This Row],[Ompløjningsrate]] -> 5033.619787 | L37: =Tabel1[[#This Row],[AGDM(T)]]/F37 -> 0.9801148811 | M37: =M29 -> 0.007 | N37: =Tabel1[[#This Row],[Tørstof høstet pr ha (kg)]]*Tabel1[[#This Row],[Dyrket areal på bedriften (ha)]]*Tabel1[[#This Row],[RAG]]*Tabel1[[#This Row],[NAG]] -> 0 | O37: =O29 -> 0.22 | P37: =P29 -> 0.014 | Q37: =Tabel1[[#This Row],[Dyrket areal på bedriften (ha)]]*Tabel1[[#This Row],[Tørstof høstet pr ha (kg)]]*Tabel1[[#This Row],[RBG-BIO]]*Tabel1[[#This Row],[NBG]]*Tabel1[[#This Row],[Ompløjningsrate]] -> 0 | S37: =Tabel1[[#This Row],[Total kvælstof i over-jorden afgrøderester Kg N]]+Tabel1[[#This Row],[Total kvælstof i under-jorden afgrøderester Kg N]] -> 0
A38: Græs- og kløvermark i omdriften + Frø til udsæd | B38: 14040084100 | C38: 390361 | D38: =(Tabel1[[#This Row],[Høst resultat, Danmark (kg)]])/Tabel1[[#This Row],[Samlet dyrket areal i Danmark (ha) ]] -> 35966.92318 | E38: 0.27 | F38: =Tabel1[[#This Row],[Høstresultat pr ha (kg)]]*Tabel1[[#This Row],[Tørstofindhold i pct.]] -> 9711.069259 | G38: =Indtastning!B112 -> 0 | H38: =1/2 -> 0.5 | I38: 0.3 | J38: 0 | K38: =(Tabel1[[#This Row],[Tørstof høstet pr ha (kg)]]*Tabel1[[#This Row],[Hældning]]+Tabel1[[#This Row],[Skæring]])*Tabel1[[#This Row],[Ompløjningsrate]] -> 1456.660389 | L38: =Tabel1[[#This Row],[AGDM(T)]]/F38 -> 0.15 | M38: 0.025 | N38: =Tabel1[[#This Row],[Tørstof høstet pr ha (kg)]]*Tabel1[[#This Row],[Dyrket areal på bedriften (ha)]]*Tabel1[[#This Row],[RAG]]*Tabel1[[#This Row],[NAG]] -> 0 | O38: 0.8 | P38: 0.016 | Q38: =Tabel1[[#This Row],[Dyrket areal på bedriften (ha)]]*Tabel1[[#This Row],[Tørstof høstet pr ha (kg)]]*Tabel1[[#This Row],[RBG-BIO]]*Tabel1[[#This Row],[NBG]]*Tabel1[[#This Row],[Ompløjningsrate]] -> 0 | S38: =Tabel1[[#This Row],[Total kvælstof i over-jorden afgrøderester Kg N]]+Tabel1[[#This Row],[Total kvælstof i under-jorden afgrøderester Kg N]] -> 0
A39: Græsarealer uden for omdriften | B39: 3158300000 | C39: 192617 | D39: =(Tabel1[[#This Row],[Høst resultat, Danmark (kg)]])/Tabel1[[#This Row],[Samlet dyrket areal i Danmark (ha) ]] -> 16396.78741 | E39: 0.27 | F39: =Tabel1[[#This Row],[Høstresultat pr ha (kg)]]*Tabel1[[#This Row],[Tørstofindhold i pct.]] -> 4427.1326 | G39: =Indtastning!B113 -> 0 | H39: =1/99999 -> 1.00001e-05 | I39: 0.3 | J39: 0 | K39: =(Tabel1[[#This Row],[Tørstof høstet pr ha (kg)]]*Tabel1[[#This Row],[Hældning]]+Tabel1[[#This Row],[Skæring]])*Tabel1[[#This Row],[Ompløjningsrate]] -> 0.01328153062 | L39: =Tabel1[[#This Row],[AGDM(T)]]/F39 -> 3.00003e-06 | M39: 0.025 | N39: =Tabel1[[#This Row],[Tørstof høstet pr ha (kg)]]*Tabel1[[#This Row],[Dyrket areal på bedriften (ha)]]*Tabel1[[#This Row],[RAG]]*Tabel1[[#This Row],[NAG]] -> 0 | O39: 0.8 | P39: 0.016 | Q39: =Tabel1[[#This Row],[Dyrket areal på bedriften (ha)]]*Tabel1[[#This Row],[Tørstof høstet pr ha (kg)]]*Tabel1[[#This Row],[RBG-BIO]]*Tabel1[[#This Row],[NBG]]*Tabel1[[#This Row],[Ompløjningsrate]] -> 0 | S39: =Tabel1[[#This Row],[Total kvælstof i over-jorden afgrøderester Kg N]]+Tabel1[[#This Row],[Total kvælstof i under-jorden afgrøderester Kg N]] -> 0
A40: Raps i alt + Hør + Anden industrifrø | B40: 708900000 | C40: 166592 | D40: =(Tabel1[[#This Row],[Høst resultat, Danmark (kg)]])/Tabel1[[#This Row],[Samlet dyrket areal i Danmark (ha) ]] -> 4255.306377 | E40: 0.925 | F40: =Tabel1[[#This Row],[Høstresultat pr ha (kg)]]*Tabel1[[#This Row],[Tørstofindhold i pct.]] -> 3936.158399 | G40: =Indtastning!B114 -> 0 | H40: 1 | I40: =I25 -> 1.61 | J40: 0.4 | K40: =(Tabel1[[#This Row],[Tørstof høstet pr ha (kg)]]*Tabel1[[#This Row],[Hældning]]+Tabel1[[#This Row],[Skæring]])*Tabel1[[#This Row],[Ompløjningsrate]] -> 6337.615022 | L40: =Tabel1[[#This Row],[AGDM(T)]]/F40 -> 1.610101622 | M40: =M25 -> 0.006 | N40: =Tabel1[[#This Row],[Tørstof høstet pr ha (kg)]]*Tabel1[[#This Row],[Dyrket areal på bedriften (ha)]]*Tabel1[[#This Row],[RAG]]*Tabel1[[#This Row],[NAG]] -> 0 | O40: =O25 -> 0.23 | P40: =P25 -> 0.009 | Q40: =Tabel1[[#This Row],[Dyrket areal på bedriften (ha)]]*Tabel1[[#This Row],[Tørstof høstet pr ha (kg)]]*Tabel1[[#This Row],[RBG-BIO]]*Tabel1[[#This Row],[NBG]]*Tabel1[[#This Row],[Ompløjningsrate]] -> 0 | S40: =Tabel1[[#This Row],[Total kvælstof i over-jorden afgrøderester Kg N]]+Tabel1[[#This Row],[Total kvælstof i under-jorden afgrøderester Kg N]] -> 0
A42: Total N i afgrøderester | S42: =SUM(S25:S40) -> 0
A43: N-indhold i høstet strå | R43: =Indtastning!B118*1000 -> 0 | S43: =Tabel1[[#This Row],[Halm bjærget (kg)]]*85%*3.3%/6.25 -> 0
A44: Netto N-indhold i afgrøderester | S44: =S42-S43 -> 0
A46: Kilder | B46: Danmarks Statistik HST6 | C46: Danmarks Statistik AFG1 | E46: SEGES fodermiddeltabel | H46: DCE | I46: IPCC tabel 11.2 | J46: IPCC tabel 11.2 | M46: IPCC tabel 11.2 | O46: IPCC tabel 11.2 | P46: IPCC tabel 11.2
A49: Kg N fra mineralisering | B49: Dyrket areal | C49: Emissionsfaktor | E49: Total kg N
A50: Jordbundstype | B50: Areal JB-nr. 11 (Humus) (ha) | C50: Total mængde N til udregning af EF | D50: Kg N pr ha | E50: Total kg N
A51: Humus jorde | B51: =Indtastning!B132 -> 0 | C51: 25355877.73 | D51: =C51/41000 -> 618.4360422 | E51: =IFERROR(B51*D51,0) -> 0
A54: Kg N2O-N fra organiske jorde | D54: Total kg N20-N
A55: Græs eller afgrøder | B55: Ha | C55: Emissionsfaktor (kg N20-N pr ha) | D55: Total kg N
A56: Afgrøder på organiske jorde | B56: =Indtastning!B134 -> 0 | C56: 13 | D56: =B56*C56 -> 0
A57: Græsningsområder (organiske jorde) | B57: =Indtastning!B135 -> 0 | C57: 8.2 | D57: =B57*C57 -> 0
A59: Total N | D59: =D56+D57 -> 0
A60: Kilde | C60: NIR: 399
A63: Kg N fra græssende dyr | E63: Total kg N
A64: Dyretype | B64: Antal dyr | C64: Kg N pr dyr pr år | D64: Dage på græs | E64: Kg N
A65: Malkekvæg | B65: =SUM(Indtastning!B9:P10) -> 0 | C65: 146.4 | D65: 18 | E65: =B65*C65*D65/365 -> 0
A66: Kvier > 1/2 år | B66: =SUM(Indtastning!B13:P14) -> 0 | C66: 50.4 | D66: 131.8545455 | E66: =B66*C66*D66/365 -> 0
A67: Diekalve | B67: =SUM(Indtastning!B19:P21) -> 0 | C67: 72.4 | D67: 224 | E67: 0
A68: Får | B68: =SUM(Indtastning!B50) -> 0 | C68: 6.64 | D68: 265 | E68: 0
A69: Geder | B69: =SUM(Indtastning!B51:B53) -> 0 | C69: 16.6 | D69: 265 | E69: 0
A70: Heste | B70: =SUM(Indtastning!B61:B64) -> 0 | C70: 39.56 | D70: 182.5 | E70: 0
A71: Total | E71: =SUM(E65:E70) -> 0
A73: Kilde | C73: NIR tabel 5.13 | D73: NIR Annex 3D-9
A76: Fordampning (Atmospheric deposition) | D76: Total kg N
A77: Type af gødning | B77: Kg N pr år | C77: Andel der fordamper | D77: Total kg N pr år
A78: Uorganisk gødning N Kg pr år | B78: =B4 -> 0 | C78: 0.04350529464 | D78: =B78*C78 -> 0
A79: Organisk gødning +Gødning fra græssende dyr N kg pr år | B79: =B5+B9 -> 0 | C79: 0.08273582541 | D79: =B79*C79 -> 0
A80: Afgrøderester N kg pr år | B80: =B10 -> 0 | C80: 0.0302263272 | D80: 0
A81: Total | D81: =SUM(D78:D80) -> 0
C83: NIR Tabel 5.15 og 5.25
A86: Kg N fra nitrogenudvaskning | D86: Total kg N
B87: Total N input til jorden | C87: Andel der udvaskses (FracLeach) | D87: N udvaskning
A88: Alle jordbundstyper | B88: =SUM(B4,B5,B9,B10,B11) -> 0 | C88: 0.2764536172 | D88: =IFERROR(B88*C88,0) -> 0
A90: Kilde | C90: CRF Table3.D

Sheet CO2 Brændsler
A1: Karakteristika | C1: Input | E1: Normtal | I1: Udregninger | P1: Totale udledninger
A2: Brændselstype | B2: Anlægstype | C2: Brændstofforbrug (mængde) | D2: Enhed | E2: Omregningsfaktor til TJ | F2: Emissionsfaktor (kg/TJ) | I2: Brændstofforbrug (TJ) | J2: Samlede udledninger (ton) | M2: Samlede udledninger (ton CO2e) | P2: Total CO2e
F3: CO2 | G3: CH4 | H3: N2O | J3: CO2 | K3: CH4 | L3: N2O | M3: CO2 | N3: CH4 | O3: N2O
A4: Flydende brændsler | B4: Stationære anlæg | C4: =Indtastning!B77 -> 0 | D4: Liter | E4: 3.59e-05 | F4: =76.3953608167865*1000 -> 76395.36082 | G4: 1.652481175 | H4: 0.2879414432 | I4: =C4*E4 -> 0 | J4: =$I4*F4/1000 -> 0 | K4: 0 | L4: 0 | M4: =J4 -> 0 | N4: =K4*GWP!$B$2 -> 0 | O4: =L4*GWP!$B$3 -> 0 | P4: =SUM(M4:O4) -> 0
A5: Faste brændsler | B5: Stationære anlæg | C5: =Indtastning!B78 -> 0 | D5: Ton | E5: 0.025 | F5: =94.6*1000 -> 94600 | G5: 10 | H5: 1.5 | I5: =C5*E5 -> 0 | J5: 0 | K5: 0 | L5: 0 | M5: =J5 -> 0 | N5: =K5*GWP!$B$2 -> 0 | O5: =L5*GWP!$B$3 -> 0 | P5: =SUM(M5:O5) -> 0
A6: Naturgas | B6: Stationære anlæg | C6: =Indtastning!B79 -> 0 | D6: m3 | E6: 3.99e-05 | F6: =56.9499999999999*1000 -> 56950 | G6: 107.5719699 | H6: 0.9067495264 | I6: =C6*E6 -> 0 | J6: 0 | K6: 0 | L6: 0 | M6: =J6 -> 0 | N6: =K6*GWP!$B$2 -> 0 | O6: =L6*GWP!$B$3 -> 0 | P6: 0
A7: Benzin | B7: Mobile anlæg | C7: =Indtastning!B83 -> 0 | D7: Liter | E7: 3.3e-05 | F7: =72.9999999999999*1000 -> 73000 | G7: 160.2177573 | H7: 1.517498691 | I7: =C7*E7 -> 0 | J7: 0 | K7: 0 | L7: 0 | M7: =J7 -> 0 | N7: =K7*GWP!$B$2 -> 0 | O7: =L7*GWP!$B$3 -> 0 | P7: =SUM(M7:O7) -> 0
A8: Diesel | B8: Mobile anlæg | C8: =Indtastning!B84 -> 0 | D8: Liter | E8: 3.59e-05 | F8: =73.9999999999995*1000 -> 74000 | G8: 1.070852657 | H8: 3.203148796 | I8: =C8*E8 -> 0 | J8: 0 | K8: 0 | L8: 0 | M8: =J8 -> 0 | N8: =K8*GWP!$B$2 -> 0 | O8: =L8*GWP!$B$3 -> 0 | P8: =SUM(M8:O8) -> 0
A11: Kilde | E11: Energistyrelsens Energistatistikken 2015 | F11: CRF Table1.A(a)s4 | G11: CRF Table1.A(a)s4 | H11: CRF Table1.A(a)s4

Sheet Reduktionstiltag
A1: Reduktionstiltag | C1: Input data | E1: Metan | F1: Lattergas | G1: CO2 | H1: Total reduktion | J1: Kilde
A2: Udledningskilde | B2: Tiltag | C2: Input data | D2: Enhed | E2: Reduktion p.a., i pct | F2: Reduktion p.a., per enhed. i ton CO2e | G2: Reduktion p.a., per enhed i ton CO2e
A3: CH4 og N2O Gødning | B3: Forsuret, svinegylle | C3: =IF(Indtastning!B142="ja",SUM('CH4 Gødning'!X135,'CH4 Gødning'!X137,'CH4 Gødning'!X140,'CH4 Gødning'!X141,'CH4 Gødning'!X145,'CH4 Gødning'!X146,'CH4 Gødning'!X147,'CH4 Gødning'!X148,'CH4 Gødning'!X149,'CH4 Gødning'!X153,'CH4 Gødning'!X154,'CH4 Gødning'!X158,'CH4 Gødning'!X160)*GWP!$B$2/1000,0) -> 0 | D3: ton CO2e | E3: 0.6 | H3: =E3*C3 -> 0 | J3: Olesen, Jørgen E.; Jørgensen, Uffe; Hermansen, John E.; Petersen, Søren O.; Eriksen, Jørgen; Søegaard, Karen; Vinther, Finn P.; Elsgaard, Lars; Lund, Peter; Nørgaard, Jan V.; Møller, Henrik B.: Effekter af tiltag til reduktion af landbrugets udledninger af drivhusgasser. DCA Rapport nr. 27. August 2013.
A4: CH4 og N2O Gødning | B4: Forsuret, kvæggylle | C4: =IF(Indtastning!B143="ja",SUM('CH4 Gødning'!X5:X9,'CH4 Gødning'!X11,'CH4 Gødning'!X13,'CH4 Gødning'!X15,'CH4 Gødning'!X20:X24,'CH4 Gødning'!X26,'CH4 Gødning'!X28,'CH4 Gødning'!X30,'CH4 Gødning'!X34,'CH4 Gødning'!X37:X41,'CH4 Gødning'!X43,'CH4 Gødning'!X46,'CH4 Gødning'!X48,'CH4 Gødning'!X52,'CH4 Gødning'!X55:X59,'CH4 Gødning'!X61,'CH4 Gødning'!X64,'CH4 Gødning'!X66,'CH4 Gødning'!X70,'CH4 Gødning'!X73:X77,'CH4 Gødning'!X79,'CH4 Gødning'!X82,'CH4 Gødning'!X84,'CH4 Gødning'!X88,'CH4 Gødning'!X91:X95,'CH4 Gødning'!X97,'CH4 Gødning'!X100,'CH4 Gødning'!X102,'CH4 Gødning'!X106,'CH4 Gødning'!X109,'CH4 Gødning'!X111,'CH4 Gødning'!X115,'CH4 Gødning'!X117,'CH4 Gødning'!X120,'CH4 Gødning'!X122,'CH4 Gødning'!X126,'CH4 Gødning'!X128,'CH4 Gødning'!X131,'CH4 Gødning'!X133)*GWP!$B$2/1000,0) -> 0 | D4: ton CO2e | E4: 0.6 | H4: =E4*C4 -> 0 | J4: Olesen, Jørgen E.; Jørgensen, Uffe; Hermansen, John E.; Petersen, Søren O.; Eriksen, Jørgen; Søegaard, Karen; Vinther, Finn P.; Elsgaard, Lars; Lund, Peter; Nørgaard, Jan V.; Møller, Henrik B.: Effekter af tiltag til reduktion af landbrugets udledninger af drivhusgasser. DCA Rapport nr. 27. August 2013.
